{"text_format":"1","workbook":"xlsx","n_sheets":2,"sheets":["Transfer form","Guidelines - please read"],"not_rendered":{"charts":0,"images":0,"macros":0,"external_links":0,"defined_names":111,"comments":0,"pivot_tables":0},"unopened":[],"bounds":{"document_bytes":16777216,"sheet_cells":100000,"rows_first":2000,"rows_last":500,"rows_between":2000,"halvings":0,"cell_chars":16384,"cell_head_chars":4096},"cells_cut":0,"cells_raw":0,"read":"whole","date_system":"1900"}

{"sheet":"Transfer form","index":0,"n_rows":5060,"n_cols":36,"rows_kept":2250,"cut":true,"hidden":false,"merged":[[41,2,41,9],[37,2,37,9],[35,2,35,9],[40,2,40,9],[38,2,38,9],[39,2,39,9],[36,2,36,9],[18,0,22,0],[6,0,9,0],[23,0,27,0],[28,0,29,9],[10,0,17,0],[14,7,17,7],[18,7,22,7],[33,2,33,9],[34,2,34,9],[31,2,31,9],[23,7,27,7],[10,10,17,10],[32,2,32,9],[30,2,30,9],[18,10,22,10],[23,10,27,10],[5,13,5,14],[5,15,5,16],[3,0,3,2],[0,1,0,3],[6,7,9,7],[0,9,0,10],[0,4,0,8],[2,4,2,8],[3,4,3,8],[4,4,4,7],[1,11,1,12],[4,0,4,3],[1,9,1,10],[2,9,2,10],[3,9,3,10],[1,4,1,8],[41,0,41,1],[30,0,30,1],[36,0,36,1],[37,0,37,1],[38,0,38,1],[39,0,39,1],[40,0,40,1],[31,0,31,1],[32,0,32,1],[33,0,33,1],[34,0,34,1],[35,0,35,1]],"bounds":{"rows_first":1000,"rows_last":250,"rows_between":1000,"halvings":1}}
["Your Club",null,null,null,"Your Starting Balance",null,null,null,null,{"$f":"_xlfn.XLOOKUP(B1,A50:A109,B50:B109)","v":{"$error":"#N/A"}},null,{"$f":"ISBLANK(B1)","v":true},{"$f":"IF(L1=TRUE,1000,0)","v":1000},null,null,null,null,null,null,null,null,null,null,null,"SELECT_Player list for transfer template"]
["Session",4,null,null,"Minimum Running Costs",null,null,null,null,150000,null,"club name missing",null,null,null,null,null,null,null,null,null,null,null,null,"Player ID","Club ID","Club Name","Player Name","MTV","Sale Allowed","Available for Loan","Available for Transfer","Sess on Pool","Draft Pick","order","Manager"]
[null,null,null,null,"Available Balance for Transfers",null,null,null,null,{"$f":"J1-J2","v":{"$error":"#N/A"}},null,null,null,null,null,null,null,null,null,null,null,null,null,null,1590,25,"Nempton","PLAYER NOT AVAILABLE",0,"No","No","No",null,null,1,"UNMANAGED"]
["FORM IS VALID?",null,null,{"$f":"IF(W31>998,\"NO\", \"YES\")","v":{"$error":"#N/A"}},"Balance After Transactions",null,null,null,null,{"$f":"J3+SUM(J11:J14,J15:J18,J24:J28)-SUM(J7:K10,J19:J23)","v":{"$error":"#N/A"}},null,null,null,null,null,null,null,null,null,null,null,null,null,null,3023,27,"Blackwater","Per SKJELBRED",4796,"Yes","Yes","Yes",null,null,2,"James House"]
["See Error messages, if NO",null,null,null,"NOTE: ONLY COMPLETE THE",null,null,null," YELLOW SHADED SQUARES",null,null,null,null,null,null,null,null,null,"TOTALS",null,null,null,null,null,3041,26,"Westfield","Andres INIESTA",0,"Yes","Yes","Yes",null,null,3,"Robin Slade"]
["delete",null,"Player ID","Player Name","Club / Transfer Pool","Manager Status","MTV","DEPENDENCY \nPlayer ID","Inter-Managerial Deal?","Bid/Amount","IM Tax","Bid<MTV","Balance <0","Bid/Amount Missing",null,"Club/Transfer list missing",null,"Invalid Player","Bid<MTV","Balance <0","Bid/Amount Missing","Club/Transfer pool missing","Loans",null,3059,22,"Nellerton City","Cristiano RONALDO",0,"Yes","Yes","Yes",null,null,4,"Michael Atkinson-House"]
["PURCHASES \n(Bids from Transfer Pool or \nInter-Managerial deals IN)","Purchase In",null,{"$f":"IF(C7>0,_xlfn.XLOOKUP(C7,$Y:$Y,$AB:$AB),\"\")","v":""},{"$f":"IF(C7>0,_xlfn.XLOOKUP(C7,$Y:$Y,$AA:$AA),\"\")","v":""},{"$f":"_xlfn.XLOOKUP(E7,$A$112:$A$244,$B$112:$B$244)","v":{"$error":"#N/A"}},{"$f":"IF(C7>0,_xlfn.XLOOKUP(C7,$Y:$Y,$AC:$AC),\"\")","v":""},null,{"$f":"IF(C7>0,IF(E7=\"-\",\"N\",IF(F7=\"UNMANAGED\",\"N\",\"Y\")),\" \")","v":" "},null,{"$f":"IF(I7=\"Y\",IF(G7<100001,10000,(G7*0.1)),\"\")","v":""},{"$f":"IF(C7>0,IF(J7>=G7,1,999),0)","v":0},{"$f":"IF($J$4<0,999,0)","v":{"$error":"#N/A"}},{"$f":"OR(AND(C7=\"\",(ISBLANK(J7))),(AND(C7>0,J7>-1)))","v":true},{"$f":"IF(N7=TRUE,0,999)","v":0},null,null,{"$f":"IF(D7=\"ERROR: Player Not Available\",999,0)","v":0},null,null,null,null,null,null,3187,18,"Fairoak Foresters","Silva VAGNER LOVE",0,"Yes","Yes","Yes",null,null,5,"James House"]
[null,"Purchase In",null,"",{"$f":"IF(C8>0,_xlfn.XLOOKUP(C8,$Y:$Y,$AA:$AA),\"\")","v":""},{"$f":"_xlfn.XLOOKUP(E8,$A$108:$A$243,$B$108:$B$243)","v":{"$error":"#N/A"}},"",null,{"$f":"IF(C8>0,IF(E8=\"-\",\"N\",IF(F8=\"UNMANAGED\",\"N\",\"Y\")),\" \")","v":" "},null,{"$f":"IF(I8=\"Y\",IF(G8<100001,10000,(G8*0.1)),\"\")","v":""},{"$f":"IF(C8>0,IF(J8>=G8,1,999),0)","v":0},{"$f":"IF($J$4<0,999,0)","v":{"$error":"#N/A"}},true,{"$f":"IF(N8=TRUE,0,999)","v":0},null,null,{"$f":"IF(D8=\"ERROR: Player Not Available\",999,0)","v":0},null,null,null,null,null,null,3247,1000,"RETIRED","PLAYER NOT AVAILABLE",0,"No","No","No",null,null,6,"NOT APPLICABLE"]
[null,"Purchase In",null,"",{"$f":"IF(C9>0,_xlfn.XLOOKUP(C9,$Y:$Y,$AA:$AA),\"\")","v":""},{"$error":"#N/A"},"",null," ",null,"",0,{"$error":"#N/A"},true,0,null,null,0,null,null,null,null,null,null,3296,16,"Bumanchester United","Kepler Laveran Lima Ferreira PEPE",0,"Yes","Yes","Yes",null,null,7,"Ellie Andrews"]
[null,"Purchase In",null,"",{"$f":"IF(C10>0,_xlfn.XLOOKUP(C10,$Y:$Y,$AA:$AA),\"\")","v":""},{"$error":"#N/A"},"",null," ",null,"",0,{"$error":"#N/A"},true,0,null,null,0,{"$f":"SUM(L7:L10)","v":0},{"$f":"SUM(M7:M10)","v":{"$error":"#N/A"}},{"$f":"SUM(O7:O10)","v":0},null,null,null,3891,32,"Jonton","Jeremy MENEZ",11987,"Yes","Yes","Yes",null,null,8,"Mick Sims"]
["SALES\n(Sales to Transfer Pool or \nInter-Managerial \ndeals OUT\n","Sale",null,"",null,0,"",null," ",null,null,0,{"$error":"#N/A"},true,null,{"$f":"OR(AND(C11=\"\",(ISBLANK(E11))),(AND(C11>0,E11>0)))","v":true},null,0,null,null,null,null,null,null,3955,36,"VF Turks","Gonzalez SANTI CAZORLA",0,"Yes","Yes","Yes",null,null,9,"Olivia Andrews"]
[null,"Sale",null,"",null,0,"",null," ",null,null,0,{"$error":"#N/A"},true,null,{"$f":"OR(AND(C12=\"\",(ISBLANK(E12))),(AND(C12>0,E12>0)))","v":true},null,0,null,null,null,null,null,null,4081,998,"Waiting List","PLAYER NOT AVAILABLE",0,"No","No","No",null,null,10,"NOT APPLICABLE"]
[null,"Sale",null,"",null,0,"",null," ",null,null,0,{"$error":"#N/A"},true,null,true,null,0,null,null,null,null,null,null,4436,34,"St. Vincent","PLAYER NOT AVAILABLE",0,"No","No","No",null,null,11,"UNMANAGED"]
[null,"Sale",null,"",null,0,"",null," ",null,null,0,{"$error":"#N/A"},true,null,true,null,0,null,null,null,null,null,null,4553,18,"Fairoak Foresters","Giacomo BONAVENTURA",1321701,"Yes","Yes","Yes",null,null,12,"James House"]
[null,"Sale - not Dep.",null,"",null,0,"",null," ",null,null,0,{"$error":"#N/A"},true,null,true,null,0,null,null,null,null,null,null,4561,18,"Fairoak Foresters","Kasper SCHMEICHEL",6908,"Yes","Yes","Yes",null,null,13,"James House"]
[null,"Sale - not Dep.",null,"",null,0,"",null," ",null,null,0,{"$error":"#N/A"},true,null,true,null,0,null,null,null,null,null,null,4668,998,"Waiting List","PLAYER NOT AVAILABLE",0,"No","No","No",null,null,14,"NOT APPLICABLE"]
[null,"Sale - not Dep.",null,"",{"$f":"IF(C17>0,_xlfn.XLOOKUP(C17,$Y:$Y,$AA:$AA),\"\")","v":""},{"$error":"#N/A"},"",null," ",null,null,0,{"$error":"#N/A"},true,null,false,null,0,null,null,null,null,null,null,4897,3,"Real Jameosean","PLAYER NOT AVAILABLE",0,"No","No","No",null,null,15,"UNMANAGED"]
[null,"Sale - not Dep.",null,"","",{"$error":"#N/A"},"",null," ",null,null,0,{"$error":"#N/A"},true,null,false,null,0,{"$f":"SUM(L11:L18)","v":0},{"$f":"SUM(M11:M18)","v":{"$error":"#N/A"}},{"$f":"SUM(O11:O18)","v":0},{"$f":"SUM(Q11:Q18)","v":0},null,null,4992,22,"Nellerton City","PLAYER CAN'T BE SOLD",{"$f":"\"-\"","v":"-"},"No","Yes","No",null,null,16,"Michael Atkinson-House"]
["Loans IN \n(From managed clubs only)","Loan In",null,"","",{"$error":"#N/A"},"",null,{"$f":"IF(C19>0,\"Y\",\" \")","v":" "},{"$f":"IF(I19=\"Y\",IF(G19<2000000,100000,(G19*0.05)),\"\")","v":""},null,null,null,null,null,null,null,0,null,null,null,null,null,null,5006,998,"Waiting List","PLAYER NOT AVAILABLE",0,"No","No","No",null,null,17,"NOT APPLICABLE"]
[null,"Loan In",null,"","",{"$error":"#N/A"},"",null,{"$f":"IF(C20>0,\"Y\",\" \")","v":" "},{"$f":"IF(I20=\"Y\",IF(G20<2000000,100000,(G20*0.05)),\"\")","v":""},null,null,null,null,null,null,null,0,null,null,null,null,null,null,5374,5,"Hurricane Harriers","Luiz Roza FERNANDINHO",0,"Yes","Yes","Yes",null,null,18,"Ken Atkinson"]
[null,"Loan In",null,"","",{"$error":"#N/A"},"",null," ","",null,null,null,null,null,null,null,0,null,null,null,null,null,null,5434,998,"Waiting List","PLAYER NOT AVAILABLE",0,"No","No","No",null,null,19,"NOT APPLICABLE"]
[null,"Loan In",null,"","",{"$error":"#N/A"},"",null," ","",null,null,null,null,null,null,null,0,null,null,null,null,null,null,5440,32,"Jonton","Luis Carlos NANI",19468,"Yes","Yes","Yes",null,null,20,"Mick Sims"]
[null,"Loan In",null,"","",{"$error":"#N/A"},"",null," ","",null,null,null,null,null,null,null,0,null,null,null,null,null,null,5445,14,"Treverton","Filipe JOAO MOUTINHO",18175,"Yes","Yes","Yes",null,null,21,"Stewart Andrews"]
["Loans OUT\n(To managed clubs only)","Loan Out",null,"","",{"$error":"#N/A"},"",null," ",{"$f":"IF(C24>0,G24*0.05,\"\")","v":""},null,null,null,{"$f":"AND(C24=\"\",(ISBLANK(E24)))","v":false},{"$f":"AND(D24>0,(E24>0))","v":true},{"$f":"IF(N24=TRUE,0,IF(O24=TRUE,0,999))","v":0},null,0,null,null,null,null,null,null,5497,998,"Waiting List","PLAYER NOT AVAILABLE",0,"No","No","No",null,null,22,"NOT APPLICABLE"]
[null,"Loan Out",null,"","",{"$error":"#N/A"},"",null," ",{"$f":"IF(C25>0,G25*0.05,\"\")","v":""},null,null,null,{"$f":"AND(C25=\"\",(ISBLANK(E25)))","v":false},{"$f":"AND(D25>0,(E25>0))","v":true},{"$f":"IF(N25=TRUE,0,IF(O25=TRUE,0,999))","v":0},null,0,null,null,null,null,null,null,5511,23,"Rushleydale","Pepe Jose Manuel REINA",0,"Yes","Yes","Yes",null,null,23,"Robin Slade"]
[null,"Loan Out",null,"","",{"$error":"#N/A"},"",null," ","",null,null,null,false,true,0,null,0,null,null,null,null,null,null,5568,44,"Trevmania Travellers","James MILNER",0,"Yes","Yes","Yes",null,null,24,"Bernie Iles"]
[null,"Loan Out",null,"","",{"$error":"#N/A"},"",null," ","",null,null,null,false,true,0,null,0,null,null,null,null,null,null,5594,0,"Transfer Pool","Ashley YOUNG",0,"No","No","Yes",1,null,25,"Transfer List"]
[null,"Loan Out",null,"","",{"$error":"#N/A"},"",null," ","",null,null,null,false,true,0,null,0,null,null,null,null,{"$f":"SUM(P24:P28)","v":0},null,5634,122,"Sherringham","PLAYER NOT AVAILABLE",0,"No","No","No",null,null,26,"UNMANAGED"]
["NOTE: Sale Amount defaults to MTV… Change this to a different amount, if it is an inter-managerial deal, but it must be at least MTV",null,null,null,null,null,null,null,null,null,null,null,null,null,null,null,null,null,null,null,null,null,null,null,5674,998,"Waiting List","PLAYER NOT AVAILABLE",0,"No","No","No",null,null,27,"NOT APPLICABLE"]
[null,null,null,null,null,null,null,null,null,null,null,null,null,null,null,null,null,{"$f":"SUM(R7:R28)","v":0},{"$f":"SUM(S7:S28)","v":0},{"$f":"SUM(T7:T28)","v":{"$error":"#N/A"}},0,0,0,null,5689,33,"Jarikton","Lukasz FABIANSKI",0,"Yes","Yes","Yes",null,null,28,"Norman House"]
["ERROR NAME",null,"Error Description",null,null,null,null,null,null,null,null,null,null,null,null,null,null,null,null,null,null,null,{"$f":"SUM(R30:W30)","v":{"$error":"#N/A"}},null,5719,998,"Waiting List","PLAYER NOT AVAILABLE",0,"No","No","No",null,null,29,"NOT APPLICABLE"]
["Bank Balance",null,{"$f":"IF(M1>998,\"ERROR: Your Bank Balance cannot be less than ZERO!\",\"All OK!\")","v":"ERROR: Your Bank Balance cannot be less than ZERO!"},null,null,null,null,null,null,null,null,null,null,null,null,null,null,null,null,null,null,null,null,null,5720,7,"AEK Grogan","Adel TAARABT",1825594,"Yes","Yes","Yes",null,null,30,"Robin Slade"]
["Player Id \n",null,{"$f":"IF(R30>998,\"ERROR: You have selected an invalid player - please check your form\",\"All OK!\")","v":"All OK!"},null,null,null,null,null,null,null,null,null,null,null,null,null,null,null,null,null,null,null,null,null,5725,65,"Lemmington","PLAYER NOT AVAILABLE",0,"No","No","No",null,null,31,"UNMANAGED"]
["Bid & MTV",null,{"$f":"IF(S30>998,\"ERROR: PURCHASES - One of your bids is lower than MTV, Please check your form\",\"All OK!\")","v":"All OK!"},null,null,null,null,null,null,null,null,null,null,null,null,null,null,null,null,null,null,null,null,null,5753,998,"Waiting List","PLAYER NOT AVAILABLE",0,"No","No","No",null,null,32,"NOT APPLICABLE"]
["Sale & MTV",null,{"$f":"IF(S18>998,\"ERROR: SALES  - One of your Sale Amounts is lower than MTV, Please check your form\",\"All OK!\")","v":"All OK!"},null,null,null,null,null,null,null,null,null,null,null,null,null,null,null,null,null,null,null,null,null,5774,4,"Markhoeven","Luis Alberto SUAREZ",35950,"Yes","Yes","Yes",null,null,33,"David Bird"]
["Superfluous entry - Purchases",null,{"$f":"IF(U10>998,\"ERROR: Purchases -  An amount or player ID entry is missing\",\"All OK!\")","v":"All OK!"},null,null,null,null,null,null,null,null,null,null,null,null,null,null,null,null,null,null,null,null,null,5782,1000,"RETIRED","PLAYER NOT AVAILABLE",0,"No","No","No",null,null,34,"NOT APPLICABLE"]
["Superfluous entry - Sales",null,{"$f":"IF(U18>998,\"ERROR: Purchases - An amount or player ID entry is missing\",\"All OK!\")","v":"All OK!"},null,null,null,null,null,null,null,null,null,null,null,null,null,null,null,null,null,null,null,null,null,5783,998,"Waiting List","PLAYER NOT AVAILABLE",0,"No","No","No",null,null,35,"NOT APPLICABLE"]
["Missing Bid/Amount",null,{"$f":"IF(S19>998,\"ERROR: BID/AMOUNT - A bid or a amount is missing, please check and rectify\",\"All OK!\")","v":"All OK!"},null,null,null,null,null,null,null,null,null,null,null,null,null,null,null,null,null,null,null,null,null,5790,13,"AC Desantelakos","Sergio ROMERO",10066,"Yes","Yes","Yes",null,null,36,"Don Davern"]
["Loan Club",null,{"$f":"IF(W30>998,\"ERROR: LOAN OUT - A club name or Player ID is missing, please check and rectify\",\"All OK!\")","v":"All OK!"},null,null,null,null,null,null,null,null,null,null,null,null,null,null,null,null,null,null,null,null,null,5835,33,"Jarikton","Angel Fabian DI MARIA",98412,"Yes","Yes","Yes",null,null,37,"Norman House"]
["Missing Club Name",null,{"$f":"IF(L1 = TRUE,\"ERROR: CLUB Name is missing\",\"All OK!\")","v":"ERROR: CLUB Name is missing"},null,null,null,null,null,null,null,null,null,null,null,null,null,null,null,null,null,null,null,null,null,5875,998,"Waiting List","PLAYER NOT AVAILABLE",0,"No","No","No",null,null,38,"NOT APPLICABLE"]
["Your Club Name",null,{"$f":"IF(M1>998,\"ERROR: Please enter your club name from dropdown list\",\"All OK!\")","v":"ERROR: Please enter your club name from dropdown list"},null,null,null,null,null,null,null,null,null,null,null,null,null,null,null,null,null,null,null,null,null,5884,0,"Transfer Pool","Mathias Zanka JORGENSEN",2138677,"No","No","Yes",1,null,39,"Transfer List"]
["Transaction issue",null,{"$f":"IF(T30>998,\"ERROR: A transaction has reduced your bank balance below zero!\",\"All OK!\")","v":{"$error":"#N/A"}},null,null,null,null,null,null,null,null,null,null,null,null,null,null,null,null,null,null,null,null,null,5958,21,"Christophia","Jerome BOATENG",609355,"Yes","Yes","Yes",null,null,40,"Paul Newman"]
[null,null,null,null,null,null,null,null,null,null,null,null,null,null,null,null,null,null,null,null,null,null,null,null,5974,45,"NPA","PLAYER NOT AVAILABLE",0,"No","No","No",null,null,41,"UNMANAGED"]
[null,null,null,null,null,null,null,null,null,null,null,null,null,null,null,null,null,null,null,null,null,null,null,null,5984,998,"Waiting List","PLAYER NOT AVAILABLE",0,"No","No","No",null,null,42,"NOT APPLICABLE"]
[null,null,null,null,null,null,null,null,null,null,null,null,null,null,null,null,null,null,null,null,null,null,null,null,6012,29,"Ibursea Wolves","PLAYER NOT AVAILABLE",0,"No","No","No",null,null,43,"UNMANAGED"]
[null,null,null,null,null,null,null,null,null,null,null,null,null,null,null,null,null,null,null,null,null,null,null,null,6027,17,"Bishops Burghclere","Steve MANDANDA",0,"Yes","Yes","Yes",null,null,44,"Bernie Iles"]
[null,null,null,null,null,null,null,null,null,null,null,null,null,null,null,null,null,null,null,null,null,null,null,null,6038,998,"Waiting List","PLAYER NOT AVAILABLE",0,"No","No","No",null,null,45,"NOT APPLICABLE"]
["Club Name","Bank Balance",null,"Club Name","Status",null,null,null,null,null,null,null,null,null,null,null,null,null,null,null,null,null,null,null,6046,14,"Treverton","Andre AYEW",994221,"Yes","Yes","Yes",null,null,46,"Stewart Andrews"]
["Transfer Pool",null,1,"AC Desantelakos","MANAGED",null,"Div","Club","Balance",null,null,null,null,null,null,null,null,null,null,null,null,null,null,null,6098,45,"NPA","PLAYER NOT AVAILABLE",0,"No","No","No",null,null,47,"UNMANAGED"]
["AC Desantelakos",33111806.71838624,2,"AEK Grogan","MANAGED",null,0,"AC Desantelakos",33111806.71838624,null,null,null,null,null,null,null,null,null,null,null,null,null,null,null,6126,0,"Transfer Pool","Veira da Silva Junior MARCELO",2748783,"No","No","Yes",3,null,48,"Transfer List"]
["AEK Grogan",25005983.761682533,3,"Albenotti","MANAGED",null,1,"AEK Grogan",25005983.761682533,null,null,null,null,null,null,null,null,null,null,null,null,null,null,null,6183,16,"Bumanchester United","Manuel NEUER",0,"Yes","Yes","Yes",null,null,49,"Ellie Andrews"]
["Albenotti",10850020.662708495,4,"All Saints United","MANAGED",null,0,"Albenotti",10850020.662708495,null,null,null,null,null,null,null,null,null,null,null,null,null,null,null,6198,29,"Ibursea Wolves","PLAYER NOT AVAILABLE",0,"No","No","No",null,null,50,"UNMANAGED"]
["All Saints United",8936812.385500012,5,"Applegate Manor","MANAGED",null,0,"All Saints United",8936812.385500012,null,null,null,null,null,null,null,null,null,null,null,null,null,null,null,6225,18,"Fairoak Foresters","Borges da Silva WILLIAN",1893653,"Yes","Yes","Yes",null,null,51,"James House"]
["Applegate Manor",23996029.261412263,6,"Bandal Borough","MANAGED",null,2,"Applegate Manor",23996029.261412263,null,null,null,null,null,null,null,null,null,null,null,null,null,null,null,6310,7,"AEK Grogan","PLAYER CAN'T BE SOLD",{"$f":"\"-\"","v":"-"},"No","Yes","No",null,null,52,"Robin Slade"]
["Bandal Borough",39825222.779031768,7,"Bigglesea Albion","MANAGED",null,0,"Bandal Borough",39825222.779031768,null,null,null,null,null,null,null,null,null,null,null,null,null,null,null,6345,1,"Bandal Borough","Garcia SERGIO RAMOS",41046,"Yes","Yes","Yes",null,null,53,"James House"]
["Bigglesea Albion",9426222.3160387203,8,"Bishops Burghclere","MANAGED",null,2,"Bigglesea Albion",9426222.3160387203,null,null,null,null,null,null,null,null,null,null,null,null,null,null,null,6353,16,"Bumanchester United","Alvaro NEGREDO",0,"Yes","Yes","Yes",null,null,54,"Ellie Andrews"]
["Bishops Burghclere",24673894.518192776,9,"Blackwater","MANAGED",null,0,"Bishops Burghclere",24673894.518192776,null,null,null,null,null,null,null,null,null,null,null,null,null,null,null,6364,19,"Jasonville","Cristian ZAPATA",3191,"Yes","Yes","Yes",null,null,55,"James House"]
["Black Diamonds",20048753.964833722,10,"Broxton Bulls","MANAGED",null,2,"Black Diamonds",20048753.964833722,null,null,null,null,null,null,null,null,null,null,null,null,null,null,null,6386,1000,"RETIRED","PLAYER NOT AVAILABLE",0,"No","No","No",null,null,56,"NOT APPLICABLE"]
["Blackwater",15073266.692070458,11,"Bumanchester United","MANAGED",null,2,"Blackwater",15073266.692070458,null,null,null,null,null,null,null,null,null,null,null,null,null,null,null,6406,47,"Port Waltham","PLAYER NOT AVAILABLE",0,"No","No","No",null,null,57,"UNMANAGED"]
["Broxton Bulls",8028942.0944604948,12,"Christophia","MANAGED",null,0,"Broxton Bulls",8028942.0944604948,null,null,null,null,null,null,null,null,null,null,null,null,null,null,null,6424,123,"San Michael","PLAYER NOT AVAILABLE",0,"No","No","No",null,null,58,"UNMANAGED"]
["Bumanchester United",85221721.88888897,13,"Fairoak Foresters","MANAGED",null,1,"Bumanchester United",85221721.88888897,null,null,null,null,null,null,null,null,null,null,null,null,null,null,null,6446,998,"Waiting List","PLAYER NOT AVAILABLE",0,"No","No","No",null,null,59,"NOT APPLICABLE"]
["Christophia",21596545.856626078,14,"Falconetti Fire","MANAGED",null,2,"Christophia",21596545.856626078,null,null,null,null,null,null,null,null,null,null,null,null,null,null,null,6457,1,"Bandal Borough","Joe HART",5693,"Yes","Yes","Yes",null,null,60,"James House"]
["Fairoak Foresters",22006668.404918343,15,"Fellerton","MANAGED",null,1,"Fairoak Foresters",22006668.404918343,null,null,null,null,null,null,null,null,null,null,null,null,null,null,null,6485,19,"Jasonville","de Carvalho FELIPE MELO",0,"Yes","Yes","Yes",null,null,61,"James House"]
["Falconetti Fire",23869390.679967839,16,"Fraserborough","MANAGED",null,2,"Falconetti Fire",23869390.679967839,null,null,null,null,null,null,null,null,null,null,null,null,null,null,null,6497,9,"Real Danyella","Hugo LLORIS",6102,"Yes","Yes","Yes",null,null,62,"Bernie Iles"]
["Fellerton",16343389.121900138,17,"Gainsborough Hamlet","MANAGED",null,1,"Fellerton",16343389.121900138,null,null,null,null,null,null,null,null,null,null,null,null,null,null,null,6500,998,"Waiting List","PLAYER NOT AVAILABLE",0,"No","No","No",null,null,63,"NOT APPLICABLE"]
["Fraserborough",13503084.837222256,18,"H&H","MANAGED",null,1,"Fraserborough",13503084.837222256,null,null,null,null,null,null,null,null,null,null,null,null,null,null,null,6505,79,"Juniper Viables","PLAYER NOT AVAILABLE",0,"No","No","No",null,null,64,"UNMANAGED"]
["Gainsborough Hamlet",23341000.698573638,19,"Hammersmith Celtic","MANAGED",null,0,"Gainsborough Hamlet",23341000.698573638,null,null,null,null,null,null,null,null,null,null,null,null,null,null,null,6507,7,"AEK Grogan","Luka MODRIC",0,"Yes","Yes","Yes",null,null,65,"Robin Slade"]
["H&H",31373918.370761916,20,"Harrogate Orient","MANAGED",null,1,"H&H",31373918.370761916,null,null,null,null,null,null,null,null,null,null,null,null,null,null,null,6513,39,"Albenotti","Martin CACERES",10229,"Yes","Yes","Yes",null,null,66,"Lesley Atkinson"]
["Hammersmith Celtic",2203133.7668177728,21,"Hurricane Harriers","MANAGED",null,1,"Hammersmith Celtic",2203133.7668177728,null,null,null,null,null,null,null,null,null,null,null,null,null,null,null,6515,46,"Marquis of Granby","PLAYER NOT AVAILABLE",0,"No","No","No",null,null,67,"UNMANAGED"]
["Harrogate Orient",24504122.061948992,22,"Inter Normania","MANAGED",null,1,"Harrogate Orient",24504122.061948992,null,null,null,null,null,null,null,null,null,null,null,null,null,null,null,6536,14,"Treverton","Stevan JOVETIC",2624463,"Yes","Yes","Yes",null,null,68,"Stewart Andrews"]
["Hurricane Harriers",31791773.595521837,23,"Jarikton","MANAGED",null,0,"Hurricane Harriers",31791773.595521837,null,null,null,null,null,null,null,null,null,null,null,null,null,null,null,6537,108,"Dover Court","PLAYER NOT AVAILABLE",0,"No","No","No",null,null,69,"UNMANAGED"]
["Ibursea Wolves",48862122.564398155,24,"Jasonville","MANAGED",null,2,"Ibursea Wolves",48862122.564398155,null,null,null,null,null,null,null,null,null,null,null,null,null,null,null,6546,14,"Treverton","Givanildo Vieira de Souza HULK",8880,"Yes","Yes","Yes",null,null,70,"Stewart Andrews"]
["Inter Normania",14669074.320000011,25,"Jonton","MANAGED",null,0,"Inter Normania",14669074.320000011,null,null,null,null,null,null,null,null,null,null,null,null,null,null,null,6571,6,"Roymirth Rovers","Adem LJAJIC",15162578,"Yes","Yes","Yes",null,null,71,"Norman House"]
["Jarikton",13736694.45000004,26,"JPR","MANAGED",null,0,"Jarikton",13736694.45000004,null,null,null,null,null,null,null,null,null,null,null,null,null,null,null,6591,2,"Harrogate Orient","Ever BANEGA",2748783,"Yes","Yes","Yes",null,null,72,"James House"]
["Jasonville",52781131.139070511,27,"Markhoeven","MANAGED",null,2,"Jasonville",52781131.139070511,null,null,null,null,null,null,null,null,null,null,null,null,null,null,null,6616,41,"Newcombe United","Peter GULACSI",1242891,"Yes","Yes","Yes",null,null,73,"Robin Slade"]
["Jonton",85245226.404999971,28,"Nellerton City","MANAGED",null,1,"Jonton",85245226.404999971,null,null,null,null,null,null,null,null,null,null,null,null,null,null,null,6636,59,"Sawbo Sabres","PLAYER NOT AVAILABLE",0,"No","No","No",null,null,74,"UNMANAGED"]
["JPR",16840880.149999969,29,"Nesportivo","MANAGED",null,0,"JPR",16840880.149999969,null,null,null,null,null,null,null,null,null,null,null,null,null,null,null,6667,19,"Jasonville","Rodriguez Ledesma PEDRO",65130,"Yes","Yes","Yes",null,null,75,"James House"]
["Lemeno",47765585.649833731,30,"Nessertoponions","MANAGED",null,2,"Lemeno",47765585.649833731,null,null,null,null,null,null,null,null,null,null,null,null,null,null,null,6672,96,"Stonebridge","PLAYER NOT AVAILABLE",0,"No","No","No",null,null,76,"UNMANAGED"]
["Lyonswade",66692084.457916677,31,"Newcombe United","MANAGED",null,2,"Lyonswade",66692084.457916677,null,null,null,null,null,null,null,null,null,null,null,null,null,null,null,6674,29,"Ibursea Wolves","PLAYER NOT AVAILABLE",0,"No","No","No",null,null,77,"UNMANAGED"]
["Markhoeven",12251693.03999999,32,"North Notley","MANAGED",null,1,"Markhoeven",12251693.03999999,null,null,null,null,null,null,null,null,null,null,null,null,null,null,null,6688,998,"Waiting List","PLAYER NOT AVAILABLE",0,"No","No","No",null,null,78,"NOT APPLICABLE"]
["Marquis of Granby",69197427.484999999,33,"Northridge Cormorants","MANAGED",null,1,"Marquis of Granby",69197427.484999999,null,null,null,null,null,null,null,null,null,null,null,null,null,null,null,6726,998,"Waiting List","PLAYER NOT AVAILABLE",0,"No","No","No",null,null,79,"NOT APPLICABLE"]
["Nellerton City",5316496.3170264792,34,"Olympians","MANAGED",null,0,"Nellerton City",5316496.3170264792,null,null,null,null,null,null,null,null,null,null,null,null,null,null,null,6727,998,"Waiting List","PLAYER NOT AVAILABLE",0,"No","No","No",null,null,80,"NOT APPLICABLE"]
["Nempton",63951996.01199206,35,"Real Danyella","MANAGED",null,0,"Nempton",63951996.01199206,null,null,null,null,null,null,null,null,null,null,null,null,null,null,null,6758,0,"Transfer Pool","Edwin CARDONA",11577264,"No","No","Yes",3,null,81,"Transfer List"]
["Nesportivo",53275320.221334644,36,"Riverside","MANAGED",null,1,"Nesportivo",53275320.221334644,null,null,null,null,null,null,null,null,null,null,null,null,null,null,null,6770,998,"Waiting List","PLAYER NOT AVAILABLE",0,"No","No","No",null,null,82,"NOT APPLICABLE"]
["Nessertoponions",8959879.3873563297,37,"Roymirth Rovers","MANAGED",null,1,"Nessertoponions",8959879.3873563297,null,null,null,null,null,null,null,null,null,null,null,null,null,null,null,6771,48,"Hammersmith Celtic","Fehmi MERT GUNOK",773018,"Yes","Yes","Yes",null,null,83,"Paul Newman"]
["Newcombe United",27190314.335092843,38,"Rushleydale","MANAGED",null,2,"Newcombe United",27190314.335092843,null,null,null,null,null,null,null,null,null,null,null,null,null,null,null,6782,29,"Ibursea Wolves","PLAYER NOT AVAILABLE",0,"No","No","No",null,null,84,"UNMANAGED"]
["North Notley",8053512.3890705258,39,"Sparta Limarnder","MANAGED",null,2,"North Notley",8053512.3890705258,null,null,null,null,null,null,null,null,null,null,null,null,null,null,null,6796,46,"Marquis of Granby","PLAYER NOT AVAILABLE",0,"No","No","No",null,null,85,"UNMANAGED"]
["Northridge Cormorants",35052816.455234796,40,"Springfield Lyons","MANAGED",null,0,"Northridge Cormorants",35052816.455234796,null,null,null,null,null,null,null,null,null,null,null,null,null,null,null,6799,998,"Waiting List","PLAYER NOT AVAILABLE",0,"No","No","No",null,null,86,"NOT APPLICABLE"]
["NPA",58160244.962888874,41,"Treverton","MANAGED",null,0,"NPA",58160244.962888874,null,null,null,null,null,null,null,null,null,null,null,null,null,null,null,6801,26,"Westfield","Jonny EVANS",30231,"Yes","Yes","Yes",null,null,87,"Robin Slade"]
["Old Petersfield",138829055.75083065,42,"Trevmania Travellers","MANAGED",null,0,"Old Petersfield",138829055.75083065,null,null,null,null,null,null,null,null,null,null,null,null,null,null,null,6802,19,"Jasonville","Da Silva FABIO",570747,"Yes","Yes","Yes",null,null,88,"James House"]
["Olympians",11894000.285137208,43,"VF Turks","MANAGED",null,1,"Olympians",11894000.285137208,null,null,null,null,null,null,null,null,null,null,null,null,null,null,null,6803,998,"Waiting List","PLAYER NOT AVAILABLE",0,"No","No","No",null,null,89,"NOT APPLICABLE"]
["Port Waltham",103980526.22260943,44,"Weslington","MANAGED",null,2,"Port Waltham",103980526.22260943,null,null,null,null,null,null,null,null,null,null,null,null,null,null,null,6833,998,"Waiting List","PLAYER NOT AVAILABLE",0,"No","No","No",null,null,90,"NOT APPLICABLE"]
["Real Danyella",55523216.439167589,45,"Westfield","MANAGED",null,2,"Real Danyella",55523216.439167589,null,null,null,null,null,null,null,null,null,null,null,null,null,null,null,6834,34,"St. Vincent","PLAYER NOT AVAILABLE",0,"No","No","No",null,null,91,"UNMANAGED"]
["Real Jameosean",404241626.93720782,46,"Winchelsea","MANAGED",null,0,"Real Jameosean",404241626.93720782,null,null,null,null,null,null,null,null,null,null,null,null,null,null,null,6838,998,"Waiting List","PLAYER NOT AVAILABLE",0,"No","No","No",null,null,92,"NOT APPLICABLE"]
["Riverside",9043286.4020928368,47,"Yelsel Nosnikta","MANAGED",null,2,"Riverside",9043286.4020928368,null,null,null,null,null,null,null,null,null,null,null,null,null,null,null,6841,1,"Bandal Borough","Jordi ALBA",1749261,"Yes","Yes","Yes",null,null,93,"James House"]
["Roymirth Rovers",15912405.15629508,48,null,null,null,1,"Roymirth Rovers",15912405.15629508,null,null,null,null,null,null,null,null,null,null,null,null,null,null,null,6851,76,"Olympians","De Souza LUIZ ADRIANO",12713,"Yes","Yes","Yes",null,null,94,"Michael Atkinson-House"]
["Rushleydale",43652056.215010628,49,null,null,null,1,"Rushleydale",43652056.215010628,null,null,null,null,null,null,null,null,null,null,null,null,null,null,null,6862,20,"Nessertoponions","Pedro dos Santos RUI PATRICIO",71208,"Yes","Yes","Yes",null,null,95,"Paul Newman"]
["Sawbo Sabres",31784086.757916667,50,null,null,null,2,"Sawbo Sabres",31784086.757916667,null,null,null,null,null,null,null,null,null,null,null,null,null,null,null,6926,56,"All Saints United","PLAYER CAN'T BE SOLD",{"$f":"\"-\"","v":"-"},"No","Yes","No",null,null,96,"Paul Newman"]
["Skylark Santiago",78580719.747888908,51,null,null,null,1,"Skylark Santiago",78580719.747888908,null,null,null,null,null,null,null,null,null,null,null,null,null,null,null,6927,50,"E&C","PLAYER NOT AVAILABLE",0,"No","No","No",null,null,97,"UNMANAGED"]
["Sparta Limarnder",33621907.472066857,52,null,null,null,2,"Sparta Limarnder",33621907.472066857,null,null,null,null,null,null,null,null,null,null,null,null,null,null,null,6931,23,"Rushleydale","Radamel FALCAO",0,"Yes","Yes","Yes",null,null,98,"Robin Slade"]
["Springfield Lyons",1229758.5045714122,53,null,null,null,1,"Springfield Lyons",1229758.5045714122,null,null,null,null,null,null,null,null,null,null,null,null,null,null,null,6932,998,"Waiting List","PLAYER NOT AVAILABLE",0,"No","No","No",null,null,99,"NOT APPLICABLE"]
["Tangerinions",60712274.47983373,54,null,null,null,2,"Tangerinions",60712274.47983373,null,null,null,null,null,null,null,null,null,null,null,null,null,null,null,6933,998,"Waiting List","PLAYER NOT AVAILABLE",0,"No","No","No",null,null,100,"NOT APPLICABLE"]
["Treverton",145393164.1751852,55,null,null,null,0,"Treverton",145393164.1751852,null,null,null,null,null,null,null,null,null,null,null,null,null,null,null,6936,47,"Port Waltham","PLAYER NOT AVAILABLE",0,"No","No","No",null,null,101,"UNMANAGED"]
["Trevmania Travellers",40412572.905476168,56,null,null,null,0,"Trevmania Travellers",40412572.905476168,null,null,null,null,null,null,null,null,null,null,null,null,null,null,null,6944,52,"Applegate Manor","Wayne HENNESSEY",859,"Yes","Yes","Yes",null,null,102,"Don Davern"]
["VF Turks",12178386.329499967,57,null,null,null,1,"VF Turks",12178386.329499967,null,null,null,null,null,null,null,null,null,null,null,null,null,null,null,6953,998,"Waiting List","PLAYER NOT AVAILABLE",0,"No","No","No",null,null,103,"NOT APPLICABLE"]
["Weslington",2735923.1635689158,58,null,null,null,2,"Weslington",2735923.1635689158,null,null,null,null,null,null,null,null,null,null,null,null,null,null,null,6964,1000,"RETIRED","PLAYER NOT AVAILABLE",0,"No","No","No",null,null,104,"NOT APPLICABLE"]
["Westfield",40681466.224883646,59,null,null,null,0,"Westfield",40681466.224883646,null,null,null,null,null,null,null,null,null,null,null,null,null,null,null,6965,17,"Bishops Burghclere","Carlos VELA",2252965,"Yes","Yes","Yes",null,null,105,"Bernie Iles"]
["Winchelsea",30532381.28663449,60,null,null,null,2,"Winchelsea",30532381.28663449,null,null,null,null,null,null,null,null,null,null,null,null,null,null,null,6966,998,"Waiting List","PLAYER NOT AVAILABLE",0,"No","No","No",null,null,106,"NOT APPLICABLE"]
["Yelsel Nosnikta",6358798.9846449234,61,null,null,null,1,"Yelsel Nosnikta",6358798.9846449234,null,null,null,null,null,null,null,null,null,null,null,null,null,null,null,6972,19,"Jasonville","Steven NZONZI",1389103,"Yes","Yes","Yes",null,null,107,"James House"]
[null,null,null,null,null,null,3,"AFC Ashton",42639948.133637562,null,null,null,null,null,null,null,null,null,null,null,null,null,null,null,6978,12,"Inter Normania","PLAYER CAN'T BE SOLD",{"$f":"\"-\"","v":"-"},"No","Yes","No",null,null,108,"Norman House"]
["Club Name","Status",null,null,null,null,3,"Bayswater Kings",24566878.842271648,null,null,null,null,null,null,null,null,null,null,null,null,null,null,null,6984,65,"Lemmington","PLAYER NOT AVAILABLE",0,"No","No","No",null,null,109,"UNMANAGED"]
["AC Desantelakos","MANAGED",1,null,null,null,3,"Beaumont Belvedere",29505951.19378246,null,null,null,null,null,null,null,null,null,null,null,null,null,null,null,6985,998,"Waiting List","PLAYER NOT AVAILABLE",0,"No","No","No",null,null,110,"NOT APPLICABLE"]
["AEK Grogan","MANAGED",2,null,null,null,3,"Belize Gonagecha",57362432.903994933,null,null,null,null,null,null,null,null,null,null,null,null,null,null,null,6997,12,"Inter Normania","Nemanja MATIC",2945125,"Yes","Yes","Yes",null,null,111,"Norman House"]
["AFC Ashton","UNMANAGED",3,null,null,null,3,"Bridgewater",7745421.0472906278,null,null,null,null,null,null,null,null,null,null,null,null,null,null,null,7000,998,"Waiting List","PLAYER NOT AVAILABLE",0,"No","No","No",null,null,112,"NOT APPLICABLE"]
["Albenotti","MANAGED",4,null,null,null,3,"Cavendish",4816281.5376588227,null,null,null,null,null,null,null,null,null,null,null,null,null,null,null,7001,998,"Waiting List","PLAYER NOT AVAILABLE",0,"No","No","No",null,null,113,"NOT APPLICABLE"]
["All Saints United","MANAGED",5,null,null,null,3,"Chelmersdale",61463626.64752318,null,null,null,null,null,null,null,null,null,null,null,null,null,null,null,7008,59,"Sawbo Sabres","PLAYER NOT AVAILABLE",0,"No","No","No",null,null,114,"UNMANAGED"]
["Applegate Manor","MANAGED",6,null,null,null,3,"Chingford Argyle",56169127.616022319,null,null,null,null,null,null,null,null,null,null,null,null,null,null,null,7016,75,"Romano","PLAYER NOT AVAILABLE",0,"No","No","No",null,null,115,"UNMANAGED"]
["Bandal Borough","MANAGED",7,null,null,null,3,"Cinsath Argyle",80592332.006597236,null,null,null,null,null,null,null,null,null,null,null,null,null,null,null,7017,106,"Colebank","PLAYER NOT AVAILABLE",0,"No","No","No",null,null,116,"UNMANAGED"]
["Bayswater Kings","UNMANAGED",8,null,null,null,3,"Coggeshall Colts",8420517.3357040305,null,null,null,null,null,null,null,null,null,null,null,null,null,null,null,7024,3,"Real Jameosean","PLAYER NOT AVAILABLE",0,"No","No","No",null,null,117,"UNMANAGED"]
["Beaumont Belvedere","UNMANAGED",9,null,null,null,3,"Colebank",73027348.439466193,null,null,null,null,null,null,null,null,null,null,null,null,null,null,null,7028,7,"AEK Grogan","James TOMKINS",452431,"Yes","Yes","Yes",null,null,118,"Robin Slade"]
["Belize Gonagecha","UNMANAGED",10,null,null,null,3,"Culmore Crusaders",26212208.975415103,null,null,null,null,null,null,null,null,null,null,null,null,null,null,null,7037,19,"Jasonville","Hugo RODALLEGA",0,"Yes","Yes","Yes",null,null,119,"James House"]
["Bigglesea Albion","MANAGED",11,null,null,null,3,"Davemoor",16915800.581917055,null,null,null,null,null,null,null,null,null,null,null,null,null,null,null,7043,96,"Stonebridge","PLAYER NOT AVAILABLE",0,"No","No","No",null,null,120,"UNMANAGED"]
["Bishops Burghclere","MANAGED",12,null,null,null,3,"DBR",21873883.644408569,null,null,null,null,null,null,null,null,null,null,null,null,null,null,null,7070,12,"Inter Normania","PLAYER CAN'T BE SOLD",{"$f":"\"-\"","v":"-"},"No","Yes","No",null,null,121,"Norman House"]
["Black Diamonds","UNMANAGED",13,null,null,null,3,"Dover Court",31349571.996917069,null,null,null,null,null,null,null,null,null,null,null,null,null,null,null,7092,34,"St. Vincent","PLAYER NOT AVAILABLE",0,"No","No","No",null,null,122,"UNMANAGED"]
["Blackwater","MANAGED",14,null,null,null,3,"Dukes Park",17208797.351917058,null,null,null,null,null,null,null,null,null,null,null,null,null,null,null,7094,0,"Transfer Pool","Andy CARROLL",825164,"No","No","Yes",1,null,123,"Transfer List"]
["Bridgewater","UNMANAGED",15,null,null,null,3,"E&C",17654345.678345628,null,null,null,null,null,null,null,null,null,null,null,null,null,null,null,7098,998,"Waiting List","PLAYER NOT AVAILABLE",0,"No","No","No",null,null,124,"NOT APPLICABLE"]
["Broxton Bulls","MANAGED",16,null,null,null,3,"East Hanningfield",4746614.1050220281,null,null,null,null,null,null,null,null,null,null,null,null,null,null,null,7100,998,"Waiting List","PLAYER NOT AVAILABLE",0,"No","No","No",null,null,125,"NOT APPLICABLE"]
["Bumanchester United","MANAGED",17,null,null,null,3,"Essex Ruminants",41191093.659360461,null,null,null,null,null,null,null,null,null,null,null,null,null,null,null,7112,47,"Port Waltham","PLAYER NOT AVAILABLE",0,"No","No","No",null,null,126,"UNMANAGED"]
["Cavendish","UNMANAGED",18,null,null,null,3,"FC Invincible",24534507.440250807,null,null,null,null,null,null,null,null,null,null,null,null,null,null,null,7123,34,"St. Vincent","PLAYER NOT AVAILABLE",0,"No","No","No",null,null,127,"UNMANAGED"]
["Chelmersdale","UNMANAGED",19,null,null,null,3,"Goldhanger",96039328.007735163,null,null,null,null,null,null,null,null,null,null,null,null,null,null,null,7126,1,"Bandal Borough","PLAYER CAN'T BE SOLD",{"$f":"\"-\"","v":"-"},"No","Yes","No",null,null,128,"James House"]
["Chingford Argyle","UNMANAGED",20,null,null,null,3,"Great Baddow Ridge",8618991.0932493079,null,null,null,null,null,null,null,null,null,null,null,null,null,null,null,7208,19,"Jasonville","PLAYER CAN'T BE SOLD","-","No","Yes","No",null,null,129,"James House"]
["Christophia","MANAGED",21,null,null,null,3,"Greenbury",3645782.7319170544,null,null,null,null,null,null,null,null,null,null,null,null,null,null,null,7214,10,"Springfield Lyons","Chris SMALLING",3897084,"Yes","Yes","Yes",null,null,130,"Don Davern"]
["Cinsath Argyle","UNMANAGED",22,null,null,null,3,"Hamlet Foxes",12903344.651929013,null,null,null,null,null,null,null,null,null,null,null,null,null,null,null,7216,0,"Transfer Pool","Javier HERNANDEZ",1105610,"No","No","Yes",1,null,131,"Transfer List"]
["Club Name","MANAGED",23,null,null,null,3,"Heythrop Cavaliers",33170457.088528659,null,null,null,null,null,null,null,null,null,null,null,null,null,null,null,7217,16,"Bumanchester United","Phil JONES",4197068,"Yes","Yes","Yes",null,null,132,"Ellie Andrews"]
["Coggeshall Colts","UNMANAGED",24,null,null,null,3,"Highfield",43505230.18558751,null,null,null,null,null,null,null,null,null,null,null,null,null,null,null,7218,16,"Bumanchester United","Nikola KALINIC",13241,"Yes","Yes","Yes",null,null,133,"Ellie Andrews"]
["Colebank","UNMANAGED",25,null,null,null,3,"Intersol",150513547.71180397,null,null,null,null,null,null,null,null,null,null,null,null,null,null,null,7224,33,"Jarikton","Danny ROSE",1061708,"Yes","Yes","Yes",null,null,134,"Norman House"]
["Culmore Crusaders","UNMANAGED",26,null,null,null,3,"IOD",39997615.787942387,null,null,null,null,null,null,null,null,null,null,null,null,null,null,null,7229,998,"Waiting List","PLAYER NOT AVAILABLE",0,"No","No","No",null,null,135,"NOT APPLICABLE"]
["Davemoor","UNMANAGED",27,null,null,null,3,"Jessingborough Jets",65010943.436314724,null,null,null,null,null,null,null,null,null,null,null,null,null,null,null,7230,26,"Westfield","Chris WOOD",10305605,"Yes","Yes","Yes",null,null,136,"Robin Slade"]
["DBR","UNMANAGED",28,null,null,null,3,"Johnsonville",22526968.006917059,null,null,null,null,null,null,null,null,null,null,null,null,null,null,null,7249,1000,"RETIRED","PLAYER NOT AVAILABLE",0,"No","No","No",null,null,137,"NOT APPLICABLE"]
["Dover Court","UNMANAGED",29,null,null,null,3,"Juniper Viables",34709512.186917067,null,null,null,null,null,null,null,null,null,null,null,null,null,null,null,7250,0,"Transfer Pool","Mendoza MARCOS ALONSO",4760414,"No","No","Yes",1,null,138,"Transfer List"]
["Dukes Park","UNMANAGED",30,null,null,null,3,"Kelvedon Kickers",16446262.344907429,null,null,null,null,null,null,null,null,null,null,null,null,null,null,null,7258,52,"Applegate Manor","Toby ALDERWEIRELD",820472,"Yes","Yes","Yes",null,null,139,"Don Davern"]
["E&C","UNMANAGED",31,null,null,null,3,"Kingston Knights",18000974.967893954,null,null,null,null,null,null,null,null,null,null,null,null,null,null,null,7262,5,"Hurricane Harriers","Christian ERIKSEN",10305605,"Yes","Yes","Yes",null,null,140,"Ken Atkinson"]
["East Hanningfield","UNMANAGED",32,null,null,null,3,"Kraukhampton",49849510.746248692,null,null,null,null,null,null,null,null,null,null,null,null,null,null,null,7264,74,"Scarlet Rovers","PLAYER NOT AVAILABLE",0,"No","No","No",null,null,141,"UNMANAGED"]
["Essex Ruminants","UNMANAGED",33,null,null,null,3,"Krystle Palace",104030726.6154664,null,null,null,null,null,null,null,null,null,null,null,null,null,null,null,7267,56,"All Saints United","PLAYER CAN'T BE SOLD",{"$f":"\"-\"","v":"-"},"No","Yes","No",null,null,142,"Paul Newman"]
["Fairoak Foresters","MANAGED",34,null,null,null,3,"Lemmington",24734556.106917065,null,null,null,null,null,null,null,null,null,null,null,null,null,null,null,7268,998,"Waiting List","PLAYER NOT AVAILABLE",0,"No","No","No",null,null,143,"NOT APPLICABLE"]
["Falconetti Fire","MANAGED",35,null,null,null,3,"Macksfield Rovers",98304406.938962787,null,null,null,null,null,null,null,null,null,null,null,null,null,null,null,7286,119,"Jessingborough Jets","PLAYER NOT AVAILABLE",0,"No","No","No",null,null,144,"UNMANAGED"]
["FC Invincible","UNMANAGED",36,null,null,null,3,"Meadowside",129617500.49296966,null,null,null,null,null,null,null,null,null,null,null,null,null,null,null,7291,3,"Real Jameosean","PLAYER NOT AVAILABLE",0,"No","No","No",null,null,145,"UNMANAGED"]
["Fellerton","MANAGED",37,null,null,null,3,"Melbourne Park",14009468.762881164,null,null,null,null,null,null,null,null,null,null,null,null,null,null,null,7293,14,"Treverton","Ramirez JONATHAN DOS SANTOS",1261628,"Yes","Yes","Yes",null,null,146,"Stewart Andrews"]
["Fraserborough","MANAGED",38,null,null,null,3,"Mellingborough",9197007.3919170573,null,null,null,null,null,null,null,null,null,null,null,null,null,null,null,7295,998,"Waiting List","PLAYER NOT AVAILABLE",0,"No","No","No",null,null,147,"NOT APPLICABLE"]
["Gainsborough Hamlet","MANAGED",39,null,null,null,3,"Oaklea Park",115545544.13977534,null,null,null,null,null,null,null,null,null,null,null,null,null,null,null,7302,0,"Transfer Pool","Xherdan SHAQIRI",7495993,"No","No","Yes",3,null,148,"Transfer List"]
["Goldhanger","UNMANAGED",40,null,null,null,3,"Pantherville",34577003.591917053,null,null,null,null,null,null,null,null,null,null,null,null,null,null,null,7303,22,"Nellerton City","Yann SOMMER",3108898,"Yes","Yes","Yes",null,null,149,"Michael Atkinson-House"]
["Great Baddow Ridge","UNMANAGED",41,null,null,null,3,"Parmenter",29557442.216917064,null,null,null,null,null,null,null,null,null,null,null,null,null,null,null,7304,66,"Lemeno","PLAYER NOT AVAILABLE",0,"No","No","No",null,null,150,"UNMANAGED"]
["Greenbury","UNMANAGED",42,null,null,null,3,"Passfield",66889135.500382543,null,null,null,null,null,null,null,null,null,null,null,null,null,null,null,7309,14,"Treverton","Toni KROOS",7180273,"Yes","Yes","Yes",null,null,151,"Stewart Andrews"]
["H&H","MANAGED",43,null,null,null,3,"Pennymede Park",9244012.6521177385,null,null,null,null,null,null,null,null,null,null,null,null,null,null,null,7310,0,"Transfer Pool","Thomas MULLER",2266745,"No","No","Yes",4,null,152,"Transfer List"]
["Hamlet Foxes","UNMANAGED",44,null,null,null,3,"Ravensbourne",96979993.861633286,null,null,null,null,null,null,null,null,null,null,null,null,null,null,null,7313,998,"Waiting List","PLAYER NOT AVAILABLE",0,"No","No","No",null,null,153,"NOT APPLICABLE"]
["Hammersmith Celtic","MANAGED",45,null,null,null,3,"Rettendon",71292751.081103578,null,null,null,null,null,null,null,null,null,null,null,null,null,null,null,7315,998,"Waiting List","PLAYER NOT AVAILABLE",0,"No","No","No",null,null,154,"NOT APPLICABLE"]
["Harrogate Orient","MANAGED",46,null,null,null,3,"Richmond Renegades",6312301.7419170616,null,null,null,null,null,null,null,null,null,null,null,null,null,null,null,7317,37,"Old Petersfield","PLAYER NOT AVAILABLE",0,"No","No","No",null,null,155,"UNMANAGED"]
["Heythrop Cavaliers","UNMANAGED",47,null,null,null,3,"Romano",33523984.791917056,null,null,null,null,null,null,null,null,null,null,null,null,null,null,null,7320,998,"Waiting List","PLAYER NOT AVAILABLE",0,"No","No","No",null,null,156,"NOT APPLICABLE"]
["Highfield","UNMANAGED",48,null,null,null,3,"Roxwell United",43759617.841917045,null,null,null,null,null,null,null,null,null,null,null,null,null,null,null,7321,998,"Waiting List","PLAYER NOT AVAILABLE",0,"No","No","No",null,null,157,"NOT APPLICABLE"]
["Hurricane Harriers","MANAGED",49,null,null,null,3,"Saddington",3001354.5019170572,null,null,null,null,null,null,null,null,null,null,null,null,null,null,null,7324,46,"Marquis of Granby","PLAYER NOT AVAILABLE",0,"No","No","No",null,null,158,"UNMANAGED"]
["Ibursea Wolves","UNMANAGED",50,null,null,null,3,"San Michael",37377133.392233647,null,null,null,null,null,null,null,null,null,null,null,null,null,null,null,7326,82,"Riverside","Serdar AZIZ",1933047,"Yes","Yes","Yes",null,null,159,"Michael Atkinson-House"]
["Inter Normania","MANAGED",51,null,null,null,3,"Scarlet Rovers",21399037.226917062,null,null,null,null,null,null,null,null,null,null,null,null,null,null,null,7330,92,"Pantherville","PLAYER NOT AVAILABLE",0,"No","No","No",null,null,160,"UNMANAGED"]
["Intersol","UNMANAGED",52,null,null,null,3,"Sherfield Saints",52654536.830075882,null,null,null,null,null,null,null,null,null,null,null,null,null,null,null,7340,998,"Waiting List","PLAYER NOT AVAILABLE",0,"No","No","No",null,null,161,"NOT APPLICABLE"]
["IOD","UNMANAGED",53,null,null,null,3,"Sherringham",21876880.381917052,null,null,null,null,null,null,null,null,null,null,null,null,null,null,null,7344,58,"Lyonswade","PLAYER NOT AVAILABLE",0,"No","No","No",null,null,162,"UNMANAGED"]
["Jarikton","MANAGED",54,null,null,null,3,"St. Lewis",45105843.751917049,null,null,null,null,null,null,null,null,null,null,null,null,null,null,null,7345,998,"Waiting List","PLAYER NOT AVAILABLE",0,"No","No","No",null,null,163,"NOT APPLICABLE"]
["Jasonville","MANAGED",55,null,null,null,3,"St. Mary",-2083794.7530829422,null,null,null,null,null,null,null,null,null,null,null,null,null,null,null,7357,998,"Waiting List","PLAYER NOT AVAILABLE",0,"No","No","No",null,null,164,"NOT APPLICABLE"]
["Jessingborough Jets","UNMANAGED",56,null,null,null,3,"St. Vincent",204129879.92786345,null,null,null,null,null,null,null,null,null,null,null,null,null,null,null,7359,2,"Harrogate Orient","Patrick VAN AANHOLT",1332931,"Yes","Yes","Yes",null,null,165,"James House"]
["Johnsonville","UNMANAGED",57,null,null,null,3,"Stonebridge",52569667.741917059,null,null,null,null,null,null,null,null,null,null,null,null,null,null,null,7363,18,"Fairoak Foresters","Thomas DELANEY",9323736,"Yes","Yes","Yes",null,null,166,"James House"]
["Jonton","MANAGED",58,null,null,null,3,"Swifthaven",50006012.592237636,null,null,null,null,null,null,null,null,null,null,null,null,null,null,null,7369,79,"Juniper Viables","PLAYER NOT AVAILABLE",0,"No","No","No",null,null,167,"UNMANAGED"]
["JPR","MANAGED",59,null,null,null,3,"Tauntonian Celtic",61963823.600000009,null,null,null,null,null,null,null,null,null,null,null,null,null,null,null,7374,42,"Macksfield Rovers","PLAYER NOT AVAILABLE",0,"No","No","No",null,null,168,"UNMANAGED"]
["Juniper Viables","UNMANAGED",60,null,null,null,3,"Turnham Terriers",25641947.521917056,null,null,null,null,null,null,null,null,null,null,null,null,null,null,null,7380,68,"Black Diamonds","PLAYER NOT AVAILABLE",0,"No","No","No",null,null,169,"UNMANAGED"]
["Kelvedon Kickers","UNMANAGED",61,null,null,null,3,"Van Diemans United",65096056.376298472,null,null,null,null,null,null,null,null,null,null,null,null,null,null,null,7404,0,"Transfer Pool","Correira PHILIPPE COUTINHO",16345827,"No","No","Yes",1,null,170,"Transfer List"]
["Kingston Knights","UNMANAGED",62,null,null,null,3,"Wandsworth",68277986.865675792,null,null,null,null,null,null,null,null,null,null,null,null,null,null,null,7407,998,"Waiting List","PLAYER NOT AVAILABLE",0,"No","No","No",null,null,171,"NOT APPLICABLE"]
["Kraukhampton","UNMANAGED",63,null,null,null,3,"Westminster Wanderers",11603718.656917062,null,null,null,null,null,null,null,null,null,null,null,null,null,null,null,7410,96,"Stonebridge","PLAYER NOT AVAILABLE",0,"No","No","No",null,null,172,"UNMANAGED"]
["Krystle Palace","UNMANAGED",64,null,null,null,3,"Woodham Mortimer",56532354.96846167,null,null,null,null,null,null,null,null,null,null,null,null,null,null,null,7412,998,"Waiting List","PLAYER NOT AVAILABLE",0,"No","No","No",null,null,173,"NOT APPLICABLE"]
["Lemeno","UNMANAGED",65,null,null,null,3,"Wyckham Vosper",8177760.5153240226,null,null,null,null,null,null,null,null,null,null,null,null,null,null,null,7413,6,"Roymirth Rovers","Alexandre LACAZETTE",7994010,"Yes","Yes","Yes",null,null,174,"Norman House"]
["Lemmington","UNMANAGED",66,null,null,null,3,"Zanzibar Aztecs",82704779.087276772,null,null,null,null,null,null,null,null,null,null,null,null,null,null,null,7414,41,"Newcombe United","PLAYER CAN'T BE SOLD",{"$f":"\"-\"","v":"-"},"No","Yes","No",null,null,175,"Robin Slade"]
["Lyonswade","UNMANAGED",67,null,null,null,null,null,null,null,null,null,null,null,null,null,null,null,null,null,null,null,null,null,7415,53,"Essex Ruminants","PLAYER NOT AVAILABLE",0,"No","No","No",null,null,176,"UNMANAGED"]
["Macksfield Rovers","UNMANAGED",68,null,null,null,null,null,null,null,null,null,null,null,null,null,null,null,null,null,null,null,null,null,7417,31,"Nesportivo","Jordan AYEW",2008788,"Yes","Yes","Yes",null,null,177,"Ken Atkinson"]
["Markhoeven","MANAGED",69,null,null,null,null,null,null,null,null,null,null,null,null,null,null,null,null,null,null,null,null,null,7418,13,"AC Desantelakos","Cesar AZPILICUETA",4284962,"Yes","Yes","Yes",null,null,178,"Don Davern"]
["Marquis of Granby","UNMANAGED",70,null,null,null,null,null,null,null,null,null,null,null,null,null,null,null,null,null,null,null,null,null,7419,998,"Waiting List","PLAYER NOT AVAILABLE",0,"No","No","No",null,null,179,"NOT APPLICABLE"]
["Meadowside","UNMANAGED",71,null,null,null,null,null,null,null,null,null,null,null,null,null,null,null,null,null,null,null,null,null,7435,59,"Sawbo Sabres","PLAYER NOT AVAILABLE",0,"No","No","No",null,null,180,"UNMANAGED"]
["Melbourne Park","UNMANAGED",72,null,null,null,null,null,null,null,null,null,null,null,null,null,null,null,null,null,null,null,null,null,7436,11,"JPR","Stefan SAVIC",7155913,"Yes","Yes","Yes",null,null,181,"James House"]
["Mellingborough","UNMANAGED",73,null,null,null,null,null,null,null,null,null,null,null,null,null,null,null,null,null,null,null,null,null,7442,998,"Waiting List","PLAYER NOT AVAILABLE",0,"No","No","No",null,null,182,"NOT APPLICABLE"]
["Nellerton City","MANAGED",74,null,null,null,null,null,null,null,null,null,null,null,null,null,null,null,null,null,null,null,null,null,7443,86,"Ravensbourne","PLAYER NOT AVAILABLE",0,"No","No","No",null,null,183,"UNMANAGED"]
["Nempton","UNMANAGED",75,null,null,null,null,null,null,null,null,null,null,null,null,null,null,null,null,null,null,null,null,null,7444,37,"Old Petersfield","PLAYER NOT AVAILABLE",0,"No","No","No",null,null,184,"UNMANAGED"]
["Nesportivo","MANAGED",76,null,null,null,null,null,null,null,null,null,null,null,null,null,null,null,null,null,null,null,null,null,7446,14,"Treverton","Nicolas Hernan OTAMENDI",22758,"Yes","Yes","Yes",null,null,185,"Stewart Andrews"]
["Nessertoponions","MANAGED",77,null,null,null,null,null,null,null,null,null,null,null,null,null,null,null,null,null,null,null,null,null,7447,41,"Newcombe United","Josef DE SOUZA",1303889,"Yes","Yes","Yes",null,null,186,"Robin Slade"]
["Newcombe United","MANAGED",78,null,null,null,null,null,null,null,null,null,null,null,null,null,null,null,null,null,null,null,null,null,7450,998,"Waiting List","PLAYER NOT AVAILABLE",0,"No","No","No",null,null,187,"NOT APPLICABLE"]
["NONE","UNMANAGED",79,null,null,null,null,null,null,null,null,null,null,null,null,null,null,null,null,null,null,null,null,null,7452,57,"Mellingborough","PLAYER NOT AVAILABLE",0,"No","No","No",null,null,188,"UNMANAGED"]
["North Notley","MANAGED",80,null,null,null,null,null,null,null,null,null,null,null,null,null,null,null,null,null,null,null,null,null,7453,998,"Waiting List","PLAYER NOT AVAILABLE",0,"No","No","No",null,null,189,"NOT APPLICABLE"]
["Northridge Cormorants","MANAGED",81,null,null,null,null,null,null,null,null,null,null,null,null,null,null,null,null,null,null,null,null,null,7455,998,"Waiting List","PLAYER NOT AVAILABLE",0,"No","No","No",null,null,190,"NOT APPLICABLE"]
["NPA","UNMANAGED",82,null,null,null,null,null,null,null,null,null,null,null,null,null,null,null,null,null,null,null,null,null,7464,64,"Fellerton","Sergio CANALES",11144590,"Yes","Yes","Yes",null,null,191,"Don Davern"]
["Oaklea Park","UNMANAGED",83,null,null,null,null,null,null,null,null,null,null,null,null,null,null,null,null,null,null,null,null,null,7467,998,"Waiting List","PLAYER NOT AVAILABLE",0,"No","No","No",null,null,192,"NOT APPLICABLE"]
["Old Petersfield","UNMANAGED",84,null,null,null,null,null,null,null,null,null,null,null,null,null,null,null,null,null,null,null,null,null,7469,49,"AFC Ashton","PLAYER NOT AVAILABLE",0,"No","No","No",null,null,193,"UNMANAGED"]
["Olympians","MANAGED",85,null,null,null,null,null,null,null,null,null,null,null,null,null,null,null,null,null,null,null,null,null,7472,998,"Waiting List","PLAYER NOT AVAILABLE",0,"No","No","No",null,null,194,"NOT APPLICABLE"]
["Pantherville","UNMANAGED",86,null,null,null,null,null,null,null,null,null,null,null,null,null,null,null,null,null,null,null,null,null,7476,46,"Marquis of Granby","PLAYER NOT AVAILABLE",0,"No","No","No",null,null,195,"UNMANAGED"]
["Parmenter","UNMANAGED",87,null,null,null,null,null,null,null,null,null,null,null,null,null,null,null,null,null,null,null,null,null,7480,0,"Transfer Pool","Joel MATIP",7877633,"No","No","Yes",4,null,196,"Transfer List"]
["Passfield","UNMANAGED",88,null,null,null,null,null,null,null,null,null,null,null,null,null,null,null,null,null,null,null,null,null,7481,998,"Waiting List","PLAYER NOT AVAILABLE",0,"No","No","No",null,null,197,"NOT APPLICABLE"]
["Pennymede Park","UNMANAGED",89,null,null,null,null,null,null,null,null,null,null,null,null,null,null,null,null,null,null,null,null,null,7483,2,"Harrogate Orient","Ivan RAKITIC",59702,"Yes","Yes","Yes",null,null,198,"James House"]
["Port Waltham","UNMANAGED",90,null,null,null,null,null,null,null,null,null,null,null,null,null,null,null,null,null,null,null,null,null,7487,5,"Hurricane Harriers","De Souza DOUGLAS COSTA",13853699,"Yes","Yes","Yes",null,null,199,"Ken Atkinson"]
["Ravensbourne","UNMANAGED",91,null,null,null,null,null,null,null,null,null,null,null,null,null,null,null,null,null,null,null,null,null,7488,29,"Ibursea Wolves","PLAYER NOT AVAILABLE",0,"No","No","No",null,null,200,"UNMANAGED"]
["Real Danyella","MANAGED",92,null,null,null,null,null,null,null,null,null,null,null,null,null,null,null,null,null,null,null,null,null,7489,998,"Waiting List","PLAYER NOT AVAILABLE",0,"No","No","No",null,null,201,"NOT APPLICABLE"]
["Real Jameosean","UNMANAGED",93,null,null,null,null,null,null,null,null,null,null,null,null,null,null,null,null,null,null,null,null,null,7490,998,"Waiting List","PLAYER NOT AVAILABLE",0,"No","No","No",null,null,202,"NOT APPLICABLE"]
["Rettendon","UNMANAGED",94,null,null,null,null,null,null,null,null,null,null,null,null,null,null,null,null,null,null,null,null,null,7497,110,"Bridgewater","PLAYER NOT AVAILABLE",0,"No","No","No",null,null,203,"UNMANAGED"]
["Richmond Renegades","UNMANAGED",95,null,null,null,null,null,null,null,null,null,null,null,null,null,null,null,null,null,null,null,null,null,7499,998,"Waiting List","PLAYER NOT AVAILABLE",0,"No","No","No",null,null,204,"NOT APPLICABLE"]
["Riverside","MANAGED",96,null,null,null,null,null,null,null,null,null,null,null,null,null,null,null,null,null,null,null,null,null,7517,81,"Tangerinions","PLAYER NOT AVAILABLE",0,"No","No","No",null,null,205,"UNMANAGED"]
["Romano","UNMANAGED",97,null,null,null,null,null,null,null,null,null,null,null,null,null,null,null,null,null,null,null,null,null,7531,998,"Waiting List","PLAYER NOT AVAILABLE",0,"No","No","No",null,null,206,"NOT APPLICABLE"]
["Roxwell United","UNMANAGED",98,null,null,null,null,null,null,null,null,null,null,null,null,null,null,null,null,null,null,null,null,null,7533,64,"Fellerton","PLAYER CAN'T BE SOLD",{"$f":"\"-\"","v":"-"},"No","Yes","No",null,null,207,"Don Davern"]
["Roymirth Rovers","MANAGED",99,null,null,null,null,null,null,null,null,null,null,null,null,null,null,null,null,null,null,null,null,null,7539,107,"Falconetti Fire","PLAYER CAN'T BE SOLD","-","No","Yes","No",null,null,208,"Steven Dingsdale"]
["Rushleydale","MANAGED",100,null,null,null,null,null,null,null,null,null,null,null,null,null,null,null,null,null,null,null,null,null,7554,16,"Bumanchester United","Vicente GUAITA",13595,"Yes","Yes","Yes",null,null,209,"Ellie Andrews"]
["Saddington","UNMANAGED",101,null,null,null,null,null,null,null,null,null,null,null,null,null,null,null,null,null,null,null,null,null,7555,29,"Ibursea Wolves","PLAYER NOT AVAILABLE",0,"No","No","No",null,null,210,"UNMANAGED"]
["San Michael","UNMANAGED",102,null,null,null,null,null,null,null,null,null,null,null,null,null,null,null,null,null,null,null,null,null,7558,76,"Olympians","Marko ARNAUTOVIC",5125483,"Yes","Yes","Yes",null,null,211,"Michael Atkinson-House"]
["Sawbo Sabres","UNMANAGED",103,null,null,null,null,null,null,null,null,null,null,null,null,null,null,null,null,null,null,null,null,null,7572,5,"Hurricane Harriers","Martin DUBRAVKA",1075984,"Yes","Yes","Yes",null,null,212,"Ken Atkinson"]
["Scarlet Rovers","UNMANAGED",104,null,null,null,null,null,null,null,null,null,null,null,null,null,null,null,null,null,null,null,null,null,7587,59,"Sawbo Sabres","PLAYER NOT AVAILABLE",0,"No","No","No",null,null,213,"UNMANAGED"]
["Sherfield Saints","UNMANAGED",105,null,null,null,null,null,null,null,null,null,null,null,null,null,null,null,null,null,null,null,null,null,7595,21,"Christophia","Alex OXLADE-CHAMBERLAIN",7420937,"Yes","Yes","Yes",null,null,214,"Paul Newman"]
["Sherringham","UNMANAGED",106,null,null,null,null,null,null,null,null,null,null,null,null,null,null,null,null,null,null,null,null,null,7597,7,"AEK Grogan","Seamus COLEMAN",1178930,"Yes","Yes","Yes",null,null,215,"Robin Slade"]
["Skylark Santiago","UNMANAGED",107,null,null,null,null,null,null,null,null,null,null,null,null,null,null,null,null,null,null,null,null,null,7598,998,"Waiting List","PLAYER NOT AVAILABLE",0,"No","No","No",null,null,216,"NOT APPLICABLE"]
["Sparta Limarnder","MANAGED",108,null,null,null,null,null,null,null,null,null,null,null,null,null,null,null,null,null,null,null,null,null,7600,29,"Ibursea Wolves","PLAYER NOT AVAILABLE",0,"No","No","No",null,null,217,"UNMANAGED"]
["Springfield Lyons","MANAGED",109,null,null,null,null,null,null,null,null,null,null,null,null,null,null,null,null,null,null,null,null,null,7608,46,"Marquis of Granby","PLAYER NOT AVAILABLE",0,"No","No","No",null,null,218,"UNMANAGED"]
["St. Lewis","UNMANAGED",110,null,null,null,null,null,null,null,null,null,null,null,null,null,null,null,null,null,null,null,null,null,7611,998,"Waiting List","PLAYER NOT AVAILABLE",0,"No","No","No",null,null,219,"NOT APPLICABLE"]
["St. Mary","UNMANAGED",111,null,null,null,null,null,null,null,null,null,null,null,null,null,null,null,null,null,null,null,null,null,7615,6,"Roymirth Rovers","Dimitri PAYET",13497,"Yes","Yes","Yes",null,null,220,"Norman House"]
["St. Vincent","UNMANAGED",112,null,null,null,null,null,null,null,null,null,null,null,null,null,null,null,null,null,null,null,null,null,7616,128,"Yelsel Nosnikta","Kevin GAMEIRO",15469,"Yes","Yes","Yes",null,null,221,"Lesley Atkinson"]
["Stonebridge","UNMANAGED",113,null,null,null,null,null,null,null,null,null,null,null,null,null,null,null,null,null,null,null,null,null,7623,23,"Rushleydale","Emiliano THIAGO SILVA",0,"Yes","Yes","Yes",null,null,222,"Robin Slade"]
["Swifthaven","UNMANAGED",114,null,null,null,null,null,null,null,null,null,null,null,null,null,null,null,null,null,null,null,null,null,7625,1000,"RETIRED","PLAYER NOT AVAILABLE",0,"No","No","No",null,null,223,"NOT APPLICABLE"]
["Tangerinions","UNMANAGED",115,null,null,null,null,null,null,null,null,null,null,null,null,null,null,null,null,null,null,null,null,null,7634,22,"Nellerton City","Da Silva NEYMAR",32646619,"Yes","Yes","Yes",null,null,224,"Michael Atkinson-House"]
["Tauntonian Celtic","UNMANAGED",116,null,null,null,null,null,null,null,null,null,null,null,null,null,null,null,null,null,null,null,null,null,7635,0,"Transfer Pool","Alexis SANCHEZ",980031,"No","No","Yes",3,null,225,"Transfer List"]
["TRANSFER POOL","UNMANAGED",117,null,null,null,null,null,null,null,null,null,null,null,null,null,null,null,null,null,null,null,null,null,7636,59,"Sawbo Sabres","PLAYER NOT AVAILABLE",0,"No","No","No",null,null,226,"UNMANAGED"]
["Treverton","MANAGED",118,null,null,null,null,null,null,null,null,null,null,null,null,null,null,null,null,null,null,null,null,null,7641,998,"Waiting List","PLAYER NOT AVAILABLE",0,"No","No","No",null,null,227,"NOT APPLICABLE"]
["Trevmania Travellers","MANAGED",119,null,null,null,null,null,null,null,null,null,null,null,null,null,null,null,null,null,null,null,null,null,7645,0,"Transfer Pool","Iker MUNIAIN",10338725,"No","No","Yes",3,null,228,"Transfer List"]
["Turnham Terriers","UNMANAGED",120,null,null,null,null,null,null,null,null,null,null,null,null,null,null,null,null,null,null,null,null,null,7646,998,"Waiting List","PLAYER NOT AVAILABLE",0,"No","No","No",null,null,229,"NOT APPLICABLE"]
["Van Diemans United","UNMANAGED",121,null,null,null,null,null,null,null,null,null,null,null,null,null,null,null,null,null,null,null,null,null,7649,0,"Transfer Pool","Erik Manuel LAMELA",9492004,"No","No","Yes",1,null,230,"Transfer List"]
["VF Turks","MANAGED",122,null,null,null,null,null,null,null,null,null,null,null,null,null,null,null,null,null,null,null,null,null,7650,998,"Waiting List","PLAYER NOT AVAILABLE",0,"No","No","No",null,null,231,"NOT APPLICABLE"]
["Waiting list","UNMANAGED",123,null,null,null,null,null,null,null,null,null,null,null,null,null,null,null,null,null,null,null,null,null,7651,10,"Springfield Lyons","Arturo VIDAL",103004,"Yes","Yes","Yes",null,null,232,"Don Davern"]
["Wandsworth","UNMANAGED",124,null,null,null,null,null,null,null,null,null,null,null,null,null,null,null,null,null,null,null,null,null,7652,14,"Treverton","Paulo Henrique GANSO",2678418,"Yes","Yes","Yes",null,null,233,"Stewart Andrews"]
["Weslington","MANAGED",125,null,null,null,null,null,null,null,null,null,null,null,null,null,null,null,null,null,null,null,null,null,7656,1,"Bandal Borough","Daley BLIND",2323581,"Yes","Yes","Yes",null,null,234,"James House"]
["Westfield","MANAGED",126,null,null,null,null,null,null,null,null,null,null,null,null,null,null,null,null,null,null,null,null,null,7657,998,"Waiting List","PLAYER NOT AVAILABLE",0,"No","No","No",null,null,235,"NOT APPLICABLE"]
["Westminster Wanderers","UNMANAGED",127,null,null,null,null,null,null,null,null,null,null,null,null,null,null,null,null,null,null,null,null,null,7670,3,"Real Jameosean","PLAYER NOT AVAILABLE",0,"No","No","No",null,null,236,"UNMANAGED"]
["Winchelsea","MANAGED",128,null,null,null,null,null,null,null,null,null,null,null,null,null,null,null,null,null,null,null,null,null,7674,1,"Bandal Borough","David ALABA",19004536,"Yes","Yes","Yes",null,null,237,"James House"]
["Woodham Mortimer","UNMANAGED",129,null,null,null,null,null,null,null,null,null,null,null,null,null,null,null,null,null,null,null,null,null,7675,37,"Old Petersfield","PLAYER NOT AVAILABLE",0,"No","No","No",null,null,238,"UNMANAGED"]
["Wyckham Vosper","UNMANAGED",130,null,null,null,null,null,null,null,null,null,null,null,null,null,null,null,null,null,null,null,null,null,7678,3,"Real Jameosean","PLAYER NOT AVAILABLE",0,"No","No","No",null,null,239,"UNMANAGED"]
["Yelsel Nosnikta","MANAGED",131,null,null,null,null,null,null,null,null,null,null,null,null,null,null,null,null,null,null,null,null,null,7691,56,"All Saints United","PLAYER CAN'T BE SOLD",{"$f":"\"-\"","v":"-"},"No","Yes","No",null,null,240,"Paul Newman"]
["Zanzibar Aztecs","UNMANAGED",132,null,null,null,null,null,null,null,null,null,null,null,null,null,null,null,null,null,null,null,null,null,7692,4,"Markhoeven","Tim KRUL",1043378,"Yes","Yes","Yes",null,null,241,"David Bird"]
["Waiting list","UNMANAGED",133,null,null,null,null,null,null,null,null,null,null,null,null,null,null,null,null,null,null,null,null,null,7696,44,"Trevmania Travellers","Fraser FORSTER",82490,"Yes","Yes","Yes",null,null,242,"Bernie Iles"]
[null,null,null,null,null,null,null,null,null,null,null,null,null,null,null,null,null,null,null,null,null,null,null,null,7697,25,"Nempton","PLAYER NOT AVAILABLE",0,"No","No","No",null,null,524,"NOT APPLICABLE"]
[null,null,null,null,null,null,null,null,null,null,null,null,null,null,null,null,null,null,null,null,null,null,null,null,7701,3,"Real Jameosean","PLAYER NOT AVAILABLE",0,"No","No","No",null,null,525,"UNMANAGED"]
[null,null,null,null,null,null,null,null,null,null,null,null,null,null,null,null,null,null,null,null,null,null,null,null,7703,998,"Waiting List","PLAYER NOT AVAILABLE",0,"No","No","No",null,null,526,"Transfer List"]
[null,null,null,null,null,null,null,null,null,null,null,null,null,null,null,null,null,null,null,null,null,null,null,null,7716,113,"Coggeshall Colts","PLAYER NOT AVAILABLE",0,"No","No","No",null,null,527,"NOT APPLICABLE"]
[null,null,null,null,null,null,null,null,null,null,null,null,null,null,null,null,null,null,null,null,null,null,null,null,7717,126,"Weslington","Shane DUFFY",4613173,"Yes","Yes","Yes",null,null,528,"Michael Atkinson-House"]
[null,null,null,null,null,null,null,null,null,null,null,null,null,null,null,null,null,null,null,null,null,null,null,null,7722,71,"Wandsworth","PLAYER NOT AVAILABLE",0,"No","No","No",null,null,529,"Paul Newman"]
[null,null,null,null,null,null,null,null,null,null,null,null,null,null,null,null,null,null,null,null,null,null,null,null,7730,998,"Waiting List","PLAYER NOT AVAILABLE",0,"No","No","No",null,null,530,"NOT APPLICABLE"]
[null,null,null,null,null,null,null,null,null,null,null,null,null,null,null,null,null,null,null,null,null,null,null,null,7737,998,"Waiting List","PLAYER NOT AVAILABLE",0,"No","No","No",null,null,531,"Don Davern"]
[null,null,null,null,null,null,null,null,null,null,null,null,null,null,null,null,null,null,null,null,null,null,null,null,7739,1000,"RETIRED","PLAYER NOT AVAILABLE",0,"No","No","No",null,null,532,"Stewart Andrews"]
[null,null,null,null,null,null,null,null,null,null,null,null,null,null,null,null,null,null,null,null,null,null,null,null,7740,106,"Colebank","PLAYER NOT AVAILABLE",0,"No","No","No",null,null,533,"UNMANAGED"]
[null,null,null,null,null,null,null,null,null,null,null,null,null,null,null,null,null,null,null,null,null,null,null,null,7747,72,"Kraukhampton","PLAYER NOT AVAILABLE",0,"No","No","No",null,null,534,"Ken Atkinson"]
[null,null,null,null,null,null,null,null,null,null,null,null,null,null,null,null,null,null,null,null,null,null,null,null,7753,998,"Waiting List","PLAYER NOT AVAILABLE",0,"No","No","No",null,null,535,"Transfer List"]
[null,null,null,null,null,null,null,null,null,null,null,null,null,null,null,null,null,null,null,null,null,null,null,null,7762,18,"Fairoak Foresters","Simon KJAER",1643575,"Yes","Yes","Yes",null,null,536,"Stewart Andrews"]
[null,null,null,null,null,null,null,null,null,null,null,null,null,null,null,null,null,null,null,null,null,null,null,null,7764,998,"Waiting List","PLAYER NOT AVAILABLE",0,"No","No","No",null,null,537,"Paul Newman"]
[null,null,null,null,null,null,null,null,null,null,null,null,null,null,null,null,null,null,null,null,null,null,null,null,7765,11,"JPR","Axel WITSEL",1272380,"Yes","Yes","Yes",null,null,538,"UNMANAGED"]
[null,null,null,null,null,null,null,null,null,null,null,null,null,null,null,null,null,null,null,null,null,null,null,null,7766,39,"Albenotti","Moreno Machado RODRIGO",4369147,"Yes","Yes","Yes",null,null,539,"NOT APPLICABLE"]
[null,null,null,null,null,null,null,null,null,null,null,null,null,null,null,null,null,null,null,null,null,null,null,null,7770,32,"Jonton","Nicolas NKOULOU",664489,"Yes","Yes","Yes",null,null,540,"NOT APPLICABLE"]
[null,null,null,null,null,null,null,null,null,null,null,null,null,null,null,null,null,null,null,null,null,null,null,null,7772,998,"Waiting List","PLAYER NOT AVAILABLE",0,"No","No","No",null,null,541,"James House"]
[null,null,null,null,null,null,null,null,null,null,null,null,null,null,null,null,null,null,null,null,null,null,null,null,7773,38,"Broxton Bulls","Jasper CILLESSEN",2422596,"Yes","Yes","Yes",null,null,542,"Lesley Atkinson"]
[null,null,null,null,null,null,null,null,null,null,null,null,null,null,null,null,null,null,null,null,null,null,null,null,7780,998,"Waiting List","PLAYER NOT AVAILABLE",0,"No","No","No",null,null,543,"James House"]
[null,null,null,null,null,null,null,null,null,null,null,null,null,null,null,null,null,null,null,null,null,null,null,null,7784,10,"Springfield Lyons","David Rubio JAMES RODRIGUEZ",11850972,"Yes","Yes","Yes",null,null,544,"NOT APPLICABLE"]
[null,null,null,null,null,null,null,null,null,null,null,null,null,null,null,null,null,null,null,null,null,null,null,null,7788,998,"Waiting List","PLAYER NOT AVAILABLE",0,"No","No","No",null,null,545,"UNMANAGED"]
[null,null,null,null,null,null,null,null,null,null,null,null,null,null,null,null,null,null,null,null,null,null,null,null,7791,9,"Real Danyella","PLAYER CAN'T BE SOLD",{"$f":"\"-\"","v":"-"},"No","Yes","No",null,null,546,"NOT APPLICABLE"]
[null,null,null,null,null,null,null,null,null,null,null,null,null,null,null,null,null,null,null,null,null,null,null,null,7793,10,"Springfield Lyons","Raphael VARANE",22998284,"Yes","Yes","Yes",null,null,547,"NOT APPLICABLE"]
[null,null,null,null,null,null,null,null,null,null,null,null,null,null,null,null,null,null,null,null,null,null,null,null,7795,998,"Waiting List","PLAYER NOT AVAILABLE",0,"No","No","No",null,null,548,"NOT APPLICABLE"]
[null,null,null,null,null,null,null,null,null,null,null,null,null,null,null,null,null,null,null,null,null,null,null,null,7803,23,"Rushleydale","Daniel PAREJO",3866350,"Yes","Yes","Yes",null,null,549,"NOT APPLICABLE"]
[null,null,null,null,null,null,null,null,null,null,null,null,null,null,null,null,null,null,null,null,null,null,null,null,7805,998,"Waiting List","PLAYER NOT AVAILABLE",0,"No","No","No",null,null,550,"Stewart Andrews"]
[null,null,null,null,null,null,null,null,null,null,null,null,null,null,null,null,null,null,null,null,null,null,null,null,7807,50,"E&C","PLAYER NOT AVAILABLE",0,"No","No","No",null,null,551,"UNMANAGED"]
[null,null,null,null,null,null,null,null,null,null,null,null,null,null,null,null,null,null,null,null,null,null,null,null,7809,998,"Waiting List","PLAYER NOT AVAILABLE",0,"No","No","No",null,null,552,"Michael Atkinson-House"]
[null,null,null,null,null,null,null,null,null,null,null,null,null,null,null,null,null,null,null,null,null,null,null,null,7823,998,"Waiting List","PLAYER NOT AVAILABLE",0,"No","No","No",null,null,553,"Paul Newman"]
[null,null,null,null,null,null,null,null,null,null,null,null,null,null,null,null,null,null,null,null,null,null,null,null,7828,18,"Fairoak Foresters","Adam LALLANA",1194649,"Yes","Yes","Yes",null,null,554,"Transfer List"]
[null,null,null,null,null,null,null,null,null,null,null,null,null,null,null,null,null,null,null,null,null,null,null,null,7830,998,"Waiting List","PLAYER NOT AVAILABLE",0,"No","No","No",null,null,555,"Olivia Andrews"]
[null,null,null,null,null,null,null,null,null,null,null,null,null,null,null,null,null,null,null,null,null,null,null,null,7833,998,"Waiting List","PLAYER NOT AVAILABLE",0,"No","No","No",null,null,556,"Don Davern"]
[null,null,null,null,null,null,null,null,null,null,null,null,null,null,null,null,null,null,null,null,null,null,null,null,7843,1,"Bandal Borough","Kevin STROOTMAN",2266745,"Yes","Yes","Yes",null,null,557,"NOT APPLICABLE"]
[null,null,null,null,null,null,null,null,null,null,null,null,null,null,null,null,null,null,null,null,null,null,null,null,7848,998,"Waiting List","PLAYER NOT AVAILABLE",0,"No","No","No",null,null,558,"David Bird"]
[null,null,null,null,null,null,null,null,null,null,null,null,null,null,null,null,null,null,null,null,null,null,null,null,7855,22,"Nellerton City","Bernd LENO",5834234,"Yes","Yes","Yes",null,null,559,"Robin Slade"]
[null,null,null,null,null,null,null,null,null,null,null,null,null,null,null,null,null,null,null,null,null,null,null,null,7857,25,"Nempton","PLAYER NOT AVAILABLE",0,"No","No","No",null,null,560,"NOT APPLICABLE"]
[null,null,null,null,null,null,null,null,null,null,null,null,null,null,null,null,null,null,null,null,null,null,null,null,7866,6,"Roymirth Rovers","Ross BARKLEY",21570233,"Yes","Yes","Yes",null,null,561,"NOT APPLICABLE"]
[null,null,null,null,null,null,null,null,null,null,null,null,null,null,null,null,null,null,null,null,null,null,null,null,7869,13,"AC Desantelakos","Luke SHAW",33899180,"Yes","Yes","Yes",null,null,562,"Don Davern"]
[null,null,null,null,null,null,null,null,null,null,null,null,null,null,null,null,null,null,null,null,null,null,null,null,7870,70,"Northridge Cormorants","Luiz da Silva DANILO",7898515,"Yes","Yes","Yes",null,null,563,"NOT APPLICABLE"]
[null,null,null,null,null,null,null,null,null,null,null,null,null,null,null,null,null,null,null,null,null,null,null,null,7873,998,"Waiting List","PLAYER NOT AVAILABLE",0,"No","No","No",null,null,564,"NOT APPLICABLE"]
[null,null,null,null,null,null,null,null,null,null,null,null,null,null,null,null,null,null,null,null,null,null,null,null,7874,18,"Fairoak Foresters","Matt LOWTON",717854,"Yes","Yes","Yes",null,null,565,"NOT APPLICABLE"]
[null,null,null,null,null,null,null,null,null,null,null,null,null,null,null,null,null,null,null,null,null,null,null,null,7881,106,"Colebank","PLAYER NOT AVAILABLE",0,"No","No","No",null,null,566,"NOT APPLICABLE"]
[null,null,null,null,null,null,null,null,null,null,null,null,null,null,null,null,null,null,null,null,null,null,null,null,7882,0,"Transfer Pool","Jack ROBINSON",6664214,"No","No","Yes",4,null,567,"NOT APPLICABLE"]
[null,null,null,null,null,null,null,null,null,null,null,null,null,null,null,null,null,null,null,null,null,null,null,null,7886,68,"Black Diamonds","PLAYER NOT AVAILABLE",0,"No","No","No",null,null,568,"James House"]
[null,null,null,null,null,null,null,null,null,null,null,null,null,null,null,null,null,null,null,null,null,null,null,null,7888,45,"NPA","PLAYER NOT AVAILABLE",0,"No","No","No",null,null,569,"UNMANAGED"]
[null,null,null,null,null,null,null,null,null,null,null,null,null,null,null,null,null,null,null,null,null,null,null,null,7891,32,"Jonton","Andre WISDOM",619169,"Yes","Yes","Yes",null,null,570,"Transfer List"]
[null,null,null,null,null,null,null,null,null,null,null,null,null,null,null,null,null,null,null,null,null,null,null,null,7895,1,"Bandal Borough","Mats HUMMELS",2460688,"Yes","Yes","Yes",null,null,571,"NOT APPLICABLE"]
[null,null,null,null,null,null,null,null,null,null,null,null,null,null,null,null,null,null,null,null,null,null,null,null,7896,2,"Harrogate Orient","Leonardo BONUCCI",28334,"Yes","Yes","Yes",null,null,572,"Don Davern"]
[null,null,null,null,null,null,null,null,null,null,null,null,null,null,null,null,null,null,null,null,null,null,null,null,7906,5,"Hurricane Harriers","Marc BARTRA",1470824,"Yes","Yes","Yes",null,null,573,"Don Davern"]
[null,null,null,null,null,null,null,null,null,null,null,null,null,null,null,null,null,null,null,null,null,null,null,null,7912,998,"Waiting List","PLAYER NOT AVAILABLE",0,"No","No","No",null,null,574,"Michael Atkinson-House"]
[null,null,null,null,null,null,null,null,null,null,null,null,null,null,null,null,null,null,null,null,null,null,null,null,7913,998,"Waiting List","PLAYER NOT AVAILABLE",0,"No","No","No",null,null,575,"NOT APPLICABLE"]
[null,null,null,null,null,null,null,null,null,null,null,null,null,null,null,null,null,null,null,null,null,null,null,null,7914,82,"Riverside","Ryan BENNETT",697914,"Yes","Yes","Yes",null,null,576,"James House"]
[null,null,null,null,null,null,null,null,null,null,null,null,null,null,null,null,null,null,null,null,null,null,null,null,7922,45,"NPA","PLAYER NOT AVAILABLE",0,"No","No","No",null,null,577,"NOT APPLICABLE"]
[null,null,null,null,null,null,null,null,null,null,null,null,null,null,null,null,null,null,null,null,null,null,null,null,7931,998,"Waiting List","PLAYER NOT AVAILABLE",0,"No","No","No",null,null,578,"Bernie Iles"]
[null,null,null,null,null,null,null,null,null,null,null,null,null,null,null,null,null,null,null,null,null,null,null,null,7933,59,"Sawbo Sabres","PLAYER NOT AVAILABLE",0,"No","No","No",null,null,579,"Norman House"]
[null,null,null,null,null,null,null,null,null,null,null,null,null,null,null,null,null,null,null,null,null,null,null,null,7936,35,"Fraserborough","Fabian SCHAR",14944971,"Yes","Yes","Yes",null,null,580,"Robin Slade"]
[null,null,null,null,null,null,null,null,null,null,null,null,null,null,null,null,null,null,null,null,null,null,null,null,7940,46,"Marquis of Granby","PLAYER NOT AVAILABLE",0,"No","No","No",null,null,581,"Lesley Atkinson"]
[null,null,null,null,null,null,null,null,null,null,null,null,null,null,null,null,null,null,null,null,null,null,null,null,7941,128,"Yelsel Nosnikta","Marco REUS",4019883,"Yes","Yes","Yes",null,null,582,"Don Davern"]
[null,null,null,null,null,null,null,null,null,null,null,null,null,null,null,null,null,null,null,null,null,null,null,null,7947,998,"Waiting List","PLAYER NOT AVAILABLE",0,"No","No","No",null,null,583,"NOT APPLICABLE"]
[null,null,null,null,null,null,null,null,null,null,null,null,null,null,null,null,null,null,null,null,null,null,null,null,7948,114,"Great Baddow Ridge","PLAYER NOT AVAILABLE",0,"No","No","No",null,null,584,"Robin Slade"]
[null,null,null,null,null,null,null,null,null,null,null,null,null,null,null,null,null,null,null,null,null,null,null,null,7949,36,"VF Turks","Raheem STERLING",13973802,"Yes","Yes","Yes",null,null,585,"UNMANAGED"]
[null,null,null,null,null,null,null,null,null,null,null,null,null,null,null,null,null,null,null,null,null,null,null,null,7950,105,"Heythrop Cavaliers","PLAYER NOT AVAILABLE",0,"No","No","No",null,null,586,"Ellie Andrews"]
[null,null,null,null,null,null,null,null,null,null,null,null,null,null,null,null,null,null,null,null,null,null,null,null,7954,107,"Falconetti Fire","Lorenzo INSIGNE",14434748,"Yes","Yes","Yes",null,null,587,"NOT APPLICABLE"]
[null,null,null,null,null,null,null,null,null,null,null,null,null,null,null,null,null,null,null,null,null,null,null,null,7955,25,"Nempton","PLAYER NOT AVAILABLE",0,"No","No","No",null,null,588,"Bernie Iles"]
[null,null,null,null,null,null,null,null,null,null,null,null,null,null,null,null,null,null,null,null,null,null,null,null,7959,998,"Waiting List","PLAYER NOT AVAILABLE",0,"No","No","No",null,null,589,"NOT APPLICABLE"]
[null,null,null,null,null,null,null,null,null,null,null,null,null,null,null,null,null,null,null,null,null,null,null,null,7967,998,"Waiting List","PLAYER NOT AVAILABLE",0,"No","No","No",null,null,590,"NOT APPLICABLE"]
[null,null,null,null,null,null,null,null,null,null,null,null,null,null,null,null,null,null,null,null,null,null,null,null,7975,108,"Dover Court","PLAYER NOT AVAILABLE",0,"No","No","No",null,null,591,"UNMANAGED"]
[null,null,null,null,null,null,null,null,null,null,null,null,null,null,null,null,null,null,null,null,null,null,null,null,7976,0,"Transfer Pool","Younes BELHANDA",1695652,"No","No","Yes",1,null,592,"UNMANAGED"]
[null,null,null,null,null,null,null,null,null,null,null,null,null,null,null,null,null,null,null,null,null,null,null,null,7980,25,"Nempton","PLAYER NOT AVAILABLE",0,"No","No","No",null,null,593,"Paul Newman"]
[null,null,null,null,null,null,null,null,null,null,null,null,null,null,null,null,null,null,null,null,null,null,null,null,7981,998,"Waiting List","PLAYER NOT AVAILABLE",0,"No","No","No",null,null,594,"Transfer List"]
[null,null,null,null,null,null,null,null,null,null,null,null,null,null,null,null,null,null,null,null,null,null,null,null,7986,82,"Riverside","Andres GUARDADO",4782,"Yes","Yes","Yes",null,null,595,"NOT APPLICABLE"]
[null,null,null,null,null,null,null,null,null,null,null,null,null,null,null,null,null,null,null,null,null,null,null,null,7988,998,"Waiting List","PLAYER NOT AVAILABLE",0,"No","No","No",null,null,596,"UNMANAGED"]
[null,null,null,null,null,null,null,null,null,null,null,null,null,null,null,null,null,null,null,null,null,null,null,null,7989,50,"E&C","PLAYER NOT AVAILABLE",0,"No","No","No",null,null,597,"UNMANAGED"]
[null,null,null,null,null,null,null,null,null,null,null,null,null,null,null,null,null,null,null,null,null,null,null,null,8000,1000,"RETIRED","PLAYER NOT AVAILABLE",0,"No","No","No",null,null,598,"James House"]
[null,null,null,null,null,null,null,null,null,null,null,null,null,null,null,null,null,null,null,null,null,null,null,null,8004,64,"Fellerton","Ilkay GUNDOGAN",10442317,"Yes","Yes","Yes",null,null,599,"NOT APPLICABLE"]
[null,null,null,null,null,null,null,null,null,null,null,null,null,null,null,null,null,null,null,null,null,null,null,null,8005,45,"NPA","PLAYER NOT AVAILABLE",0,"No","No","No",null,null,600,"James House"]
[null,null,null,null,null,null,null,null,null,null,null,null,null,null,null,null,null,null,null,null,null,null,null,null,8008,39,"Albenotti","Taras STEPANENKO",1800481,"Yes","Yes","Yes",null,null,601,"James House"]
[null,null,null,null,null,null,null,null,null,null,null,null,null,null,null,null,null,null,null,null,null,null,null,null,8009,44,"Trevmania Travellers","Victor WANYAMA",9742711,"Yes","Yes","Yes",null,null,602,"UNMANAGED"]
[null,null,null,null,null,null,null,null,null,null,null,null,null,null,null,null,null,null,null,null,null,null,null,null,8010,67,"Parmenter","PLAYER NOT AVAILABLE",0,"No","No","No",null,null,603,"NOT APPLICABLE"]
[null,null,null,null,null,null,null,null,null,null,null,null,null,null,null,null,null,null,null,null,null,null,null,null,8016,82,"Riverside","Luca CIGARINI",2128,"Yes","Yes","Yes",null,null,604,"Stewart Andrews"]
[null,null,null,null,null,null,null,null,null,null,null,null,null,null,null,null,null,null,null,null,null,null,null,null,8023,82,"Riverside","Moussa SISSOKO",622517,"Yes","Yes","Yes",null,null,605,"UNMANAGED"]
[null,null,null,null,null,null,null,null,null,null,null,null,null,null,null,null,null,null,null,null,null,null,null,null,8028,81,"Tangerinions","PLAYER NOT AVAILABLE",0,"No","No","No",null,null,606,"UNMANAGED"]
[null,null,null,null,null,null,null,null,null,null,null,null,null,null,null,null,null,null,null,null,null,null,null,null,8031,127,"Woodham Mortimer","PLAYER NOT AVAILABLE",0,"No","No","No",null,null,607,"Transfer List"]
[null,null,null,null,null,null,null,null,null,null,null,null,null,null,null,null,null,null,null,null,null,null,null,null,8034,998,"Waiting List","PLAYER NOT AVAILABLE",0,"No","No","No",null,null,608,"Bernie Iles"]
[null,null,null,null,null,null,null,null,null,null,null,null,null,null,null,null,null,null,null,null,null,null,null,null,8037,5,"Hurricane Harriers","Jorge Resurrecion KOKE",19303581,"Yes","Yes","Yes",null,null,609,"Bernie Iles"]
[null,null,null,null,null,null,null,null,null,null,null,null,null,null,null,null,null,null,null,null,null,null,null,null,8041,32,"Jonton","Alexander BUTTNER",245077,"Yes","Yes","Yes",null,null,610,"UNMANAGED"]
[null,null,null,null,null,null,null,null,null,null,null,null,null,null,null,null,null,null,null,null,null,null,null,null,8049,96,"Stonebridge","PLAYER NOT AVAILABLE",0,"No","No","No",null,null,611,"UNMANAGED"]
[null,null,null,null,null,null,null,null,null,null,null,null,null,null,null,null,null,null,null,null,null,null,null,null,8051,998,"Waiting List","PLAYER NOT AVAILABLE",0,"No","No","No",null,null,612,"UNMANAGED"]
[null,null,null,null,null,null,null,null,null,null,null,null,null,null,null,null,null,null,null,null,null,null,null,null,8052,36,"VF Turks","Emre CAN",16992519,"Yes","Yes","Yes",null,null,613,"NOT APPLICABLE"]
[null,null,null,null,null,null,null,null,null,null,null,null,null,null,null,null,null,null,null,null,null,null,null,null,8053,17,"Bishops Burghclere","James WARD-PROWSE",24552791,"Yes","Yes","Yes",null,null,614,"UNMANAGED"]
[null,null,null,null,null,null,null,null,null,null,null,null,null,null,null,null,null,null,null,null,null,null,null,null,8056,28,"Tauntonian Celtic","PLAYER NOT AVAILABLE",0,"No","No","No",null,null,615,"UNMANAGED"]
[null,null,null,null,null,null,null,null,null,null,null,null,null,null,null,null,null,null,null,null,null,null,null,null,8062,0,"Transfer Pool","Mario GOTZE",5909848,"No","No","Yes",1,null,616,"Bernie Iles"]
[null,null,null,null,null,null,null,null,null,null,null,null,null,null,null,null,null,null,null,null,null,null,null,null,8063,54,"Skylark Santiago","PLAYER NOT AVAILABLE",0,"No","No","No",null,null,617,"Norman House"]
[null,null,null,null,null,null,null,null,null,null,null,null,null,null,null,null,null,null,null,null,null,null,null,null,8064,998,"Waiting List","PLAYER NOT AVAILABLE",0,"No","No","No",null,null,618,"NOT APPLICABLE"]
[null,null,null,null,null,null,null,null,null,null,null,null,null,null,null,null,null,null,null,null,null,null,null,null,8065,0,"Transfer Pool","Romain Alarcon ISCO",16668891,"No","No","Yes",2,null,619,"NOT APPLICABLE"]
[null,null,null,null,null,null,null,null,null,null,null,null,null,null,null,null,null,null,null,null,null,null,null,null,8066,998,"Waiting List","PLAYER NOT AVAILABLE",0,"No","No","No",null,null,620,"NOT APPLICABLE"]
[null,null,null,null,null,null,null,null,null,null,null,null,null,null,null,null,null,null,null,null,null,null,null,null,8067,0,"Transfer Pool","Lucas MOURA",3084047,"No","No","Yes",3,null,621,"Stewart Andrews"]
[null,null,null,null,null,null,null,null,null,null,null,null,null,null,null,null,null,null,null,null,null,null,null,null,8068,0,"Transfer Pool","Javier PASTORE",6405760,"No","No","Yes",3,null,622,"UNMANAGED"]
[null,null,null,null,null,null,null,null,null,null,null,null,null,null,null,null,null,null,null,null,null,null,null,null,8075,998,"Waiting List","PLAYER NOT AVAILABLE",0,"No","No","No",null,null,623,"James House"]
[null,null,null,null,null,null,null,null,null,null,null,null,null,null,null,null,null,null,null,null,null,null,null,null,8076,9,"Real Danyella","Stephan EL SHAARAWY",7556723,"Yes","Yes","Yes",null,null,624,"UNMANAGED"]
[null,null,null,null,null,null,null,null,null,null,null,null,null,null,null,null,null,null,null,null,null,null,null,null,8083,998,"Waiting List","PLAYER NOT AVAILABLE",0,"No","No","No",null,null,625,"Norman House"]
[null,null,null,null,null,null,null,null,null,null,null,null,null,null,null,null,null,null,null,null,null,null,null,null,8084,998,"Waiting List","PLAYER NOT AVAILABLE",0,"No","No","No",null,null,626,"UNMANAGED"]
[null,null,null,null,null,null,null,null,null,null,null,null,null,null,null,null,null,null,null,null,null,null,null,null,8087,998,"Waiting List","PLAYER NOT AVAILABLE",0,"No","No","No",null,null,627,"NOT APPLICABLE"]
[null,null,null,null,null,null,null,null,null,null,null,null,null,null,null,null,null,null,null,null,null,null,null,null,8091,998,"Waiting List","PLAYER NOT AVAILABLE",0,"No","No","No",null,null,628,"UNMANAGED"]
[null,null,null,null,null,null,null,null,null,null,null,null,null,null,null,null,null,null,null,null,null,null,null,null,8095,998,"Waiting List","PLAYER NOT AVAILABLE",0,"No","No","No",null,null,629,"Paul Newman"]
[null,null,null,null,null,null,null,null,null,null,null,null,null,null,null,null,null,null,null,null,null,null,null,null,8096,102,"Dukes Park","PLAYER NOT AVAILABLE",0,"No","No","No",null,null,630,"UNMANAGED"]
[null,null,null,null,null,null,null,null,null,null,null,null,null,null,null,null,null,null,null,null,null,null,null,null,8098,39,"Albenotti","Robert LEWANDOWSKI",6151393,"Yes","Yes","Yes",null,null,631,"NOT APPLICABLE"]
[null,null,null,null,null,null,null,null,null,null,null,null,null,null,null,null,null,null,null,null,null,null,null,null,8102,33,"Jarikton","Olivier GIROUD",37849,"Yes","Yes","Yes",null,null,632,"UNMANAGED"]
[null,null,null,null,null,null,null,null,null,null,null,null,null,null,null,null,null,null,null,null,null,null,null,null,8104,31,"Nesportivo","Salomon RONDON",2376237,"Yes","Yes","Yes",null,null,633,"UNMANAGED"]
[null,null,null,null,null,null,null,null,null,null,null,null,null,null,null,null,null,null,null,null,null,null,null,null,8105,1,"Bandal Borough","Pierre-Emerick AUBAMEYANG",1979815,"Yes","Yes","Yes",null,null,634,"NOT APPLICABLE"]
[null,null,null,null,null,null,null,null,null,null,null,null,null,null,null,null,null,null,null,null,null,null,null,null,8108,0,"Transfer Pool","Christian BENTEKE",1780310,"No","No","Yes",4,null,635,"NOT APPLICABLE"]
[null,null,null,null,null,null,null,null,null,null,null,null,null,null,null,null,null,null,null,null,null,null,null,null,8117,85,"Krystle Palace","PLAYER NOT AVAILABLE",0,"No","No","No",null,null,636,"NOT APPLICABLE"]
[null,null,null,null,null,null,null,null,null,null,null,null,null,null,null,null,null,null,null,null,null,null,null,null,8119,37,"Old Petersfield","PLAYER NOT AVAILABLE",0,"No","No","No",null,null,637,"UNMANAGED"]
[null,null,null,null,null,null,null,null,null,null,null,null,null,null,null,null,null,null,null,null,null,null,null,null,8132,122,"Sherringham","PLAYER NOT AVAILABLE",0,"No","No","No",null,null,638,"Transfer List"]
[null,null,null,null,null,null,null,null,null,null,null,null,null,null,null,null,null,null,null,null,null,null,null,null,8135,5,"Hurricane Harriers","Harry KANE",59861891,"Yes","Yes","Yes",null,null,639,"Robin Slade"]
[null,null,null,null,null,null,null,null,null,null,null,null,null,null,null,null,null,null,null,null,null,null,null,null,8144,11,"JPR","Emiliano MARTINEZ",13958141,"Yes","Yes","Yes",null,null,640,"Paul Newman"]
[null,null,null,null,null,null,null,null,null,null,null,null,null,null,null,null,null,null,null,null,null,null,null,null,8145,0,"Transfer Pool","Benjamin SIEGRIST",1892337,"No","No","Yes",2,null,641,"James House"]
[null,null,null,null,null,null,null,null,null,null,null,null,null,null,null,null,null,null,null,null,null,null,null,null,8148,20,"Nessertoponions","Sam JOHNSTONE",6430142,"Yes","Yes","Yes",null,null,642,"NOT APPLICABLE"]
[null,null,null,null,null,null,null,null,null,null,null,null,null,null,null,null,null,null,null,null,null,null,null,null,8149,100,"East Hanningfield","PLAYER NOT AVAILABLE",0,"No","No","No",null,null,643,"UNMANAGED"]
[null,null,null,null,null,null,null,null,null,null,null,null,null,null,null,null,null,null,null,null,null,null,null,null,8150,26,"Westfield","Alex MCCARTHY",859928,"Yes","Yes","Yes",null,null,644,"Norman House"]
[null,null,null,null,null,null,null,null,null,null,null,null,null,null,null,null,null,null,null,null,null,null,null,null,8151,47,"Port Waltham","PLAYER NOT AVAILABLE",0,"No","No","No",null,null,645,"Robin Slade"]
[null,null,null,null,null,null,null,null,null,null,null,null,null,null,null,null,null,null,null,null,null,null,null,null,8153,81,"Tangerinions","PLAYER NOT AVAILABLE",0,"No","No","No",null,null,646,"NOT APPLICABLE"]
[null,null,null,null,null,null,null,null,null,null,null,null,null,null,null,null,null,null,null,null,null,null,null,null,8154,23,"Rushleydale","Ralf FAHRMANN",327270,"Yes","Yes","Yes",null,null,647,"UNMANAGED"]
[null,null,null,null,null,null,null,null,null,null,null,null,null,null,null,null,null,null,null,null,null,null,null,null,8155,93,"Kingston Knights","PLAYER NOT AVAILABLE",0,"No","No","No",null,null,648,"Transfer List"]
[null,null,null,null,null,null,null,null,null,null,null,null,null,null,null,null,null,null,null,null,null,null,null,null,8156,96,"Stonebridge","PLAYER NOT AVAILABLE",0,"No","No","No",null,null,649,"UNMANAGED"]
[null,null,null,null,null,null,null,null,null,null,null,null,null,null,null,null,null,null,null,null,null,null,null,null,8158,998,"Waiting List","PLAYER NOT AVAILABLE",0,"No","No","No",null,null,650,"NOT APPLICABLE"]
[null,null,null,null,null,null,null,null,null,null,null,null,null,null,null,null,null,null,null,null,null,null,null,null,8162,998,"Waiting List","PLAYER NOT AVAILABLE",0,"No","No","No",null,null,651,"UNMANAGED"]
[null,null,null,null,null,null,null,null,null,null,null,null,null,null,null,null,null,null,null,null,null,null,null,null,8165,998,"Waiting List","PLAYER NOT AVAILABLE",0,"No","No","No",null,null,652,"NOT APPLICABLE"]
[null,null,null,null,null,null,null,null,null,null,null,null,null,null,null,null,null,null,null,null,null,null,null,null,8170,123,"San Michael","PLAYER NOT AVAILABLE",0,"No","No","No",null,null,653,"Transfer List"]
[null,null,null,null,null,null,null,null,null,null,null,null,null,null,null,null,null,null,null,null,null,null,null,null,8177,0,"Transfer Pool","Andreas CORNELIUS",11738059,"No","No","Yes",1,null,654,"UNMANAGED"]
[null,null,null,null,null,null,null,null,null,null,null,null,null,null,null,null,null,null,null,null,null,null,null,null,8179,1,"Bandal Borough","Kevin DE BRUYNE",37456034,"Yes","Yes","Yes",null,null,655,"Ellie Andrews"]
[null,null,null,null,null,null,null,null,null,null,null,null,null,null,null,null,null,null,null,null,null,null,null,null,8180,25,"Nempton","PLAYER NOT AVAILABLE",0,"No","No","No",null,null,656,"UNMANAGED"]
[null,null,null,null,null,null,null,null,null,null,null,null,null,null,null,null,null,null,null,null,null,null,null,null,8192,998,"Waiting List","PLAYER NOT AVAILABLE",0,"No","No","No",null,null,657,"Robin Slade"]
[null,null,null,null,null,null,null,null,null,null,null,null,null,null,null,null,null,null,null,null,null,null,null,null,8193,998,"Waiting List","PLAYER NOT AVAILABLE",0,"No","No","No",null,null,658,"Stewart Andrews"]
[null,null,null,null,null,null,null,null,null,null,null,null,null,null,null,null,null,null,null,null,null,null,null,null,8210,90,"Saddington","PLAYER NOT AVAILABLE",0,"No","No","No",null,null,659,"UNMANAGED"]
[null,null,null,null,null,null,null,null,null,null,null,null,null,null,null,null,null,null,null,null,null,null,null,null,8216,82,"Riverside","Juncal IAGO ASPAS",49578,"Yes","Yes","Yes",null,null,660,"NOT APPLICABLE"]
[null,null,null,null,null,null,null,null,null,null,null,null,null,null,null,null,null,null,null,null,null,null,null,null,8217,17,"Bishops Burghclere","Wilfried ZAHA",10197099,"Yes","Yes","Yes",null,null,661,"Paul Newman"]
[null,null,null,null,null,null,null,null,null,null,null,null,null,null,null,null,null,null,null,null,null,null,null,null,8218,107,"Falconetti Fire","Michael KEANE",2618092,"Yes","Yes","Yes",null,null,662,"Paul Newman"]
[null,null,null,null,null,null,null,null,null,null,null,null,null,null,null,null,null,null,null,null,null,null,null,null,8219,998,"Waiting List","PLAYER NOT AVAILABLE",0,"No","No","No",null,null,663,"NOT APPLICABLE"]
[null,null,null,null,null,null,null,null,null,null,null,null,null,null,null,null,null,null,null,null,null,null,null,null,8221,126,"Weslington","Jack BUTLAND",4820421,"Yes","Yes","Yes",null,null,664,"NOT APPLICABLE"]
[null,null,null,null,null,null,null,null,null,null,null,null,null,null,null,null,null,null,null,null,null,null,null,null,8222,54,"Skylark Santiago","PLAYER NOT AVAILABLE",0,"No","No","No",null,null,665,"Transfer List"]
[null,null,null,null,null,null,null,null,null,null,null,null,null,null,null,null,null,null,null,null,null,null,null,null,8226,57,"Mellingborough","PLAYER NOT AVAILABLE",0,"No","No","No",null,null,666,"UNMANAGED"]
[null,null,null,null,null,null,null,null,null,null,null,null,null,null,null,null,null,null,null,null,null,null,null,null,8227,123,"San Michael","PLAYER NOT AVAILABLE",0,"No","No","No",null,null,667,"Norman House"]
[null,null,null,null,null,null,null,null,null,null,null,null,null,null,null,null,null,null,null,null,null,null,null,null,8228,998,"Waiting List","PLAYER NOT AVAILABLE",0,"No","No","No",null,null,668,"David Bird"]
[null,null,null,null,null,null,null,null,null,null,null,null,null,null,null,null,null,null,null,null,null,null,null,null,8229,32,"Jonton","Nathan AKE",36805410,"Yes","Yes","Yes",null,null,669,"Transfer List"]
[null,null,null,null,null,null,null,null,null,null,null,null,null,null,null,null,null,null,null,null,null,null,null,null,8230,998,"Waiting List","PLAYER NOT AVAILABLE",0,"No","No","No",null,null,670,"NOT APPLICABLE"]
[null,null,null,null,null,null,null,null,null,null,null,null,null,null,null,null,null,null,null,null,null,null,null,null,8235,20,"Nessertoponions","Alvaro MORATA",19164445,"Yes","Yes","Yes",null,null,671,"UNMANAGED"]
[null,null,null,null,null,null,null,null,null,null,null,null,null,null,null,null,null,null,null,null,null,null,null,null,8236,18,"Fairoak Foresters","Gerard DEULOFEU",10308065,"Yes","Yes","Yes",null,null,672,"Olivia Andrews"]
[null,null,null,null,null,null,null,null,null,null,null,null,null,null,null,null,null,null,null,null,null,null,null,null,8237,30,"Bigglesea Albion","PLAYER CAN'T BE SOLD",{"$f":"\"-\"","v":"-"},"No","Yes","No",null,null,673,"Transfer List"]
[null,null,null,null,null,null,null,null,null,null,null,null,null,null,null,null,null,null,null,null,null,null,null,null,8241,998,"Waiting List","PLAYER NOT AVAILABLE",0,"No","No","No",null,null,674,"UNMANAGED"]
[null,null,null,null,null,null,null,null,null,null,null,null,null,null,null,null,null,null,null,null,null,null,null,null,8243,26,"Westfield","Antoine GRIEZMANN",13293343,"Yes","Yes","Yes",null,null,675,"Robin Slade"]
[null,null,null,null,null,null,null,null,null,null,null,null,null,null,null,null,null,null,null,null,null,null,null,null,8244,998,"Waiting List","PLAYER NOT AVAILABLE",0,"No","No","No",null,null,676,"James House"]
[null,null,null,null,null,null,null,null,null,null,null,null,null,null,null,null,null,null,null,null,null,null,null,null,8246,56,"All Saints United","Sergio ASENJO",4028164,"Yes","Yes","Yes",null,null,677,"UNMANAGED"]
[null,null,null,null,null,null,null,null,null,null,null,null,null,null,null,null,null,null,null,null,null,null,null,null,8248,998,"Waiting List","PLAYER NOT AVAILABLE",0,"No","No","No",null,null,678,"James House"]
[null,null,null,null,null,null,null,null,null,null,null,null,null,null,null,null,null,null,null,null,null,null,null,null,8249,998,"Waiting List","PLAYER NOT AVAILABLE",0,"No","No","No",null,null,679,"Mick Sims"]
[null,null,null,null,null,null,null,null,null,null,null,null,null,null,null,null,null,null,null,null,null,null,null,null,8251,69,"Gainsborough Hamlet","Serge GNABRY",28477092,"Yes","Yes","Yes",null,null,680,"Robin Slade"]
[null,null,null,null,null,null,null,null,null,null,null,null,null,null,null,null,null,null,null,null,null,null,null,null,8252,21,"Christophia","Emiliano VIVIANO",0,"Yes","Yes","Yes",null,null,681,"UNMANAGED"]
[null,null,null,null,null,null,null,null,null,null,null,null,null,null,null,null,null,null,null,null,null,null,null,null,8253,998,"Waiting List","PLAYER NOT AVAILABLE",0,"No","No","No",null,null,682,"Bernie Iles"]
[null,null,null,null,null,null,null,null,null,null,null,null,null,null,null,null,null,null,null,null,null,null,null,null,8254,54,"Skylark Santiago","PLAYER NOT AVAILABLE",0,"No","No","No",null,null,683,"Paul Newman"]
[null,null,null,null,null,null,null,null,null,null,null,null,null,null,null,null,null,null,null,null,null,null,null,null,8255,76,"Olympians","Ben MEE",4502073,"Yes","Yes","Yes",null,null,684,"UNMANAGED"]
[null,null,null,null,null,null,null,null,null,null,null,null,null,null,null,null,null,null,null,null,null,null,null,null,8258,45,"NPA","PLAYER NOT AVAILABLE",0,"No","No","No",null,null,685,"Michael Atkinson-House"]
[null,null,null,null,null,null,null,null,null,null,null,null,null,null,null,null,null,null,null,null,null,null,null,null,8259,80,"Winchelsea","Tom HEATON",2914,"Yes","Yes","Yes",null,null,686,"Transfer List"]
[null,null,null,null,null,null,null,null,null,null,null,null,null,null,null,null,null,null,null,null,null,null,null,null,8260,35,"Fraserborough","PLAYER CAN'T BE SOLD",{"$f":"\"-\"","v":"-"},"No","Yes","No",null,null,687,"Bernie Iles"]
[null,null,null,null,null,null,null,null,null,null,null,null,null,null,null,null,null,null,null,null,null,null,null,null,8261,76,"Olympians","Kurt ZOUMA",23357802,"Yes","Yes","Yes",null,null,688,"UNMANAGED"]
[null,null,null,null,null,null,null,null,null,null,null,null,null,null,null,null,null,null,null,null,null,null,null,null,8263,0,"Transfer Pool","Patrick BAMFORD",9972959,"No","No","Yes",2,null,689,"NOT APPLICABLE"]
[null,null,null,null,null,null,null,null,null,null,null,null,null,null,null,null,null,null,null,null,null,null,null,null,8268,2,"Harrogate Orient","Romero LUIS ALBERTO",24079085,"Yes","Yes","Yes",null,null,690,"NOT APPLICABLE"]
[null,null,null,null,null,null,null,null,null,null,null,null,null,null,null,null,null,null,null,null,null,null,null,null,8269,998,"Waiting List","PLAYER NOT AVAILABLE",0,"No","No","No",null,null,691,"NOT APPLICABLE"]
[null,null,null,null,null,null,null,null,null,null,null,null,null,null,null,null,null,null,null,null,null,null,null,null,8270,998,"Waiting List","PLAYER NOT AVAILABLE",0,"No","No","No",null,null,692,"UNMANAGED"]
[null,null,null,null,null,null,null,null,null,null,null,null,null,null,null,null,null,null,null,null,null,null,null,null,8273,84,"Oaklea Park","PLAYER NOT AVAILABLE",0,"No","No","No",null,null,693,"NOT APPLICABLE"]
[null,null,null,null,null,null,null,null,null,null,null,null,null,null,null,null,null,null,null,null,null,null,null,null,8276,81,"Tangerinions","PLAYER NOT AVAILABLE",0,"No","No","No",null,null,694,"UNMANAGED"]
[null,null,null,null,null,null,null,null,null,null,null,null,null,null,null,null,null,null,null,null,null,null,null,null,8279,20,"Nessertoponions","Ivan RICARDO RODRIGUEZ",7064716,"Yes","Yes","Yes",null,null,695,"NOT APPLICABLE"]
[null,null,null,null,null,null,null,null,null,null,null,null,null,null,null,null,null,null,null,null,null,null,null,null,8282,70,"Northridge Cormorants","PLAYER CAN'T BE SOLD",{"$f":"\"-\"","v":"-"},"No","Yes","No",null,null,696,"UNMANAGED"]
[null,null,null,null,null,null,null,null,null,null,null,null,null,null,null,null,null,null,null,null,null,null,null,null,8283,0,"Transfer Pool","Alberto MORENO",3089772,"No","No","Yes",1,null,697,"NOT APPLICABLE"]
[null,null,null,null,null,null,null,null,null,null,null,null,null,null,null,null,null,null,null,null,null,null,null,null,8284,998,"Waiting List","PLAYER NOT AVAILABLE",0,"No","No","No",null,null,698,"Robin Slade"]
[null,null,null,null,null,null,null,null,null,null,null,null,null,null,null,null,null,null,null,null,null,null,null,null,8285,18,"Fairoak Foresters","Kostas MANOLAS",6667697,"Yes","Yes","Yes",null,null,699,"NOT APPLICABLE"]
[null,null,null,null,null,null,null,null,null,null,null,null,null,null,null,null,null,null,null,null,null,null,null,null,8286,3,"Real Jameosean","PLAYER NOT AVAILABLE",0,"No","No","No",null,null,700,"NOT APPLICABLE"]
[null,null,null,null,null,null,null,null,null,null,null,null,null,null,null,null,null,null,null,null,null,null,null,null,8287,52,"Applegate Manor","Anicio Caldeira Duarte BERNARD",2476574,"Yes","Yes","Yes",null,null,701,"UNMANAGED"]
[null,null,null,null,null,null,null,null,null,null,null,null,null,null,null,null,null,null,null,null,null,null,null,null,8288,124,"Belize Gonagecha","PLAYER NOT AVAILABLE",0,"No","No","No",null,null,702,"Stewart Andrews"]
[null,null,null,null,null,null,null,null,null,null,null,null,null,null,null,null,null,null,null,null,null,null,null,null,8292,0,"Transfer Pool","Hector BELLERIN",4955762,"No","No","Yes",3,null,703,"UNMANAGED"]
[null,null,null,null,null,null,null,null,null,null,null,null,null,null,null,null,null,null,null,null,null,null,null,null,8294,31,"Nesportivo","Jack GREALISH",34760736,"Yes","Yes","Yes",null,null,704,"Bernie Iles"]
[null,null,null,null,null,null,null,null,null,null,null,null,null,null,null,null,null,null,null,null,null,null,null,null,8299,31,"Nesportivo","Barbosa RAFAEL CABRAL",1540835,"Yes","Yes","Yes",null,null,705,"NOT APPLICABLE"]
[null,null,null,null,null,null,null,null,null,null,null,null,null,null,null,null,null,null,null,null,null,null,null,null,8300,21,"Christophia","Aoas Correa MARQUINHOS",31718031,"Yes","Yes","Yes",null,null,706,"Lesley Atkinson"]
[null,null,null,null,null,null,null,null,null,null,null,null,null,null,null,null,null,null,null,null,null,null,null,null,8301,998,"Waiting List","PLAYER NOT AVAILABLE",0,"No","No","No",null,null,707,"NOT APPLICABLE"]
[null,null,null,null,null,null,null,null,null,null,null,null,null,null,null,null,null,null,null,null,null,null,null,null,8302,998,"Waiting List","PLAYER NOT AVAILABLE",0,"No","No","No",null,null,708,"Bernie Iles"]
[null,null,null,null,null,null,null,null,null,null,null,null,null,null,null,null,null,null,null,null,null,null,null,null,8305,0,"Transfer Pool","Davy KLAASSEN",4571212,"No","No","Yes",3,null,709,"UNMANAGED"]
[null,null,null,null,null,null,null,null,null,null,null,null,null,null,null,null,null,null,null,null,null,null,null,null,8306,126,"Weslington","Arkadiusz MILIK",18802705,"Yes","Yes","Yes",null,null,710,"Bernie Iles"]
[null,null,null,null,null,null,null,null,null,null,null,null,null,null,null,null,null,null,null,null,null,null,null,null,8308,37,"Old Petersfield","PLAYER NOT AVAILABLE",0,"No","No","No",null,null,711,"Robin Slade"]
[null,null,null,null,null,null,null,null,null,null,null,null,null,null,null,null,null,null,null,null,null,null,null,null,8309,127,"Woodham Mortimer","PLAYER NOT AVAILABLE",0,"No","No","No",null,null,712,"Paul Newman"]
[null,null,null,null,null,null,null,null,null,null,null,null,null,null,null,null,null,null,null,null,null,null,null,null,8310,62,"Highfield","PLAYER NOT AVAILABLE",0,"No","No","No",null,null,713,"Norman House"]
[null,null,null,null,null,null,null,null,null,null,null,null,null,null,null,null,null,null,null,null,null,null,null,null,8312,109,"Bayswater Kings","PLAYER NOT AVAILABLE",0,"No","No","No",null,null,714,"NOT APPLICABLE"]
[null,null,null,null,null,null,null,null,null,null,null,null,null,null,null,null,null,null,null,null,null,null,null,null,8315,41,"Newcombe United","Leander DENDONCKER",8292568,"Yes","Yes","Yes",null,null,715,"NOT APPLICABLE"]
[null,null,null,null,null,null,null,null,null,null,null,null,null,null,null,null,null,null,null,null,null,null,null,null,8319,0,"Transfer Pool","Chancel MBEMBA MANGULU",5939613,"No","No","Yes",3,null,716,"UNMANAGED"]
[null,null,null,null,null,null,null,null,null,null,null,null,null,null,null,null,null,null,null,null,null,null,null,null,8320,76,"Olympians","Aleksandar MITROVIC",25932682,"Yes","Yes","Yes",null,null,717,"David Bird"]
[null,null,null,null,null,null,null,null,null,null,null,null,null,null,null,null,null,null,null,null,null,null,null,null,8322,81,"Tangerinions","PLAYER NOT AVAILABLE",0,"No","No","No",null,null,718,"Norman House"]
[null,null,null,null,null,null,null,null,null,null,null,null,null,null,null,null,null,null,null,null,null,null,null,null,8324,0,"Transfer Pool","Dennis PRAET",3722864,"No","No","Yes",3,null,719,"UNMANAGED"]
[null,null,null,null,null,null,null,null,null,null,null,null,null,null,null,null,null,null,null,null,null,null,null,null,8325,998,"Waiting List","PLAYER NOT AVAILABLE",0,"No","No","No",null,null,720,"David Bird"]
[null,null,null,null,null,null,null,null,null,null,null,null,null,null,null,null,null,null,null,null,null,null,null,null,8326,998,"Waiting List","PLAYER NOT AVAILABLE",0,"No","No","No",null,null,721,"NOT APPLICABLE"]
[null,null,null,null,null,null,null,null,null,null,null,null,null,null,null,null,null,null,null,null,null,null,null,null,8327,32,"Jonton","Mikel BALENZIAGA",3928,"Yes","Yes","Yes",null,null,722,"NOT APPLICABLE"]
[null,null,null,null,null,null,null,null,null,null,null,null,null,null,null,null,null,null,null,null,null,null,null,null,8328,27,"Blackwater","Unai BUSTINZA",2098525,"Yes","Yes","Yes",null,null,723,"Norman House"]
[null,null,null,null,null,null,null,null,null,null,null,null,null,null,null,null,null,null,null,null,null,null,null,null,8329,84,"Oaklea Park","PLAYER NOT AVAILABLE",0,"No","No","No",null,null,724,"Transfer List"]
[null,null,null,null,null,null,null,null,null,null,null,null,null,null,null,null,null,null,null,null,null,null,null,null,8330,30,"Bigglesea Albion","Xabi ETXEITA",13595,"Yes","Yes","Yes",null,null,725,"Transfer List"]
[null,null,null,null,null,null,null,null,null,null,null,null,null,null,null,null,null,null,null,null,null,null,null,null,8333,998,"Waiting List","PLAYER NOT AVAILABLE",0,"No","No","No",null,null,726,"Olivia Andrews"]
[null,null,null,null,null,null,null,null,null,null,null,null,null,null,null,null,null,null,null,null,null,null,null,null,8336,3,"Real Jameosean","PLAYER NOT AVAILABLE",0,"No","No","No",null,null,727,"Bernie Iles"]
[null,null,null,null,null,null,null,null,null,null,null,null,null,null,null,null,null,null,null,null,null,null,null,null,8337,998,"Waiting List","PLAYER NOT AVAILABLE",0,"No","No","No",null,null,728,"Don Davern"]
[null,null,null,null,null,null,null,null,null,null,null,null,null,null,null,null,null,null,null,null,null,null,null,null,8341,36,"VF Turks","Jose Maria GIMENEZ",21237380,"Yes","Yes","Yes",null,null,729,"UNMANAGED"]
[null,null,null,null,null,null,null,null,null,null,null,null,null,null,null,null,null,null,null,null,null,null,null,null,8342,36,"VF Turks","Esclapez SAUL NIGUEZ",15677255,"Yes","Yes","Yes",null,null,730,"Michael Atkinson-House"]
[null,null,null,null,null,null,null,null,null,null,null,null,null,null,null,null,null,null,null,null,null,null,null,null,8343,1,"Bandal Borough","Jan OBLAK",30009236,"Yes","Yes","Yes",null,null,731,"NOT APPLICABLE"]
[null,null,null,null,null,null,null,null,null,null,null,null,null,null,null,null,null,null,null,null,null,null,null,null,8345,25,"Nempton","PLAYER NOT AVAILABLE",0,"No","No","No",null,null,732,"UNMANAGED"]
[null,null,null,null,null,null,null,null,null,null,null,null,null,null,null,null,null,null,null,null,null,null,null,null,8349,0,"Transfer Pool","Mohamed ELNENY",9130973,"No","No","Yes",1,null,733,"UNMANAGED"]
[null,null,null,null,null,null,null,null,null,null,null,null,null,null,null,null,null,null,null,null,null,null,null,null,8350,126,"Weslington","Breel Donald EMBOLO",15510114,"Yes","Yes","Yes",null,null,734,"NOT APPLICABLE"]
[null,null,null,null,null,null,null,null,null,null,null,null,null,null,null,null,null,null,null,null,null,null,null,null,8352,2,"Harrogate Orient","Tomas VACLIK",580924,"Yes","Yes","Yes",null,null,735,"Ken Atkinson"]
[null,null,null,null,null,null,null,null,null,null,null,null,null,null,null,null,null,null,null,null,null,null,null,null,8354,37,"Old Petersfield","PLAYER NOT AVAILABLE",0,"No","No","No",null,null,736,"Michael Atkinson-House"]
[null,null,null,null,null,null,null,null,null,null,null,null,null,null,null,null,null,null,null,null,null,null,null,null,8356,27,"Blackwater","Heung-Min SON",19309644,"Yes","Yes","Yes",null,null,737,"Ken Atkinson"]
[null,null,null,null,null,null,null,null,null,null,null,null,null,null,null,null,null,null,null,null,null,null,null,null,8358,0,"Transfer Pool","Nascimento Borges WENDELL",4867739,"No","No","Yes",4,null,738,"Bernie Iles"]
[null,null,null,null,null,null,null,null,null,null,null,null,null,null,null,null,null,null,null,null,null,null,null,null,8359,998,"Waiting List","PLAYER NOT AVAILABLE",0,"No","No","No",null,null,739,"Paul Newman"]
[null,null,null,null,null,null,null,null,null,null,null,null,null,null,null,null,null,null,null,null,null,null,null,null,8360,52,"Applegate Manor","Jason DENAYER",3230346,"Yes","Yes","Yes",null,null,740,"Norman House"]
[null,null,null,null,null,null,null,null,null,null,null,null,null,null,null,null,null,null,null,null,null,null,null,null,8361,998,"Waiting List","PLAYER NOT AVAILABLE",0,"No","No","No",null,null,741,"Norman House"]
[null,null,null,null,null,null,null,null,null,null,null,null,null,null,null,null,null,null,null,null,null,null,null,null,8362,998,"Waiting List","PLAYER NOT AVAILABLE",0,"No","No","No",null,null,742,"Transfer List"]
[null,null,null,null,null,null,null,null,null,null,null,null,null,null,null,null,null,null,null,null,null,null,null,null,8364,11,"JPR","PLAYER CAN'T BE SOLD",{"$f":"\"-\"","v":"-"},"No","Yes","No",null,null,743,"Transfer List"]
[null,null,null,null,null,null,null,null,null,null,null,null,null,null,null,null,null,null,null,null,null,null,null,null,8365,44,"Trevmania Travellers","Virgil VAN DIJK",27916265,"Yes","Yes","Yes",null,null,744,"Transfer List"]
[null,null,null,null,null,null,null,null,null,null,null,null,null,null,null,null,null,null,null,null,null,null,null,null,8367,82,"Riverside","Mario FERNANDES",1435709,"Yes","Yes","Yes",null,null,745,"Bernie Iles"]
[null,null,null,null,null,null,null,null,null,null,null,null,null,null,null,null,null,null,null,null,null,null,null,null,8371,29,"Ibursea Wolves","PLAYER NOT AVAILABLE",0,"No","No","No",null,null,746,"Bernie Iles"]
[null,null,null,null,null,null,null,null,null,null,null,null,null,null,null,null,null,null,null,null,null,null,null,null,8374,47,"Port Waltham","PLAYER NOT AVAILABLE",0,"No","No","No",null,null,747,"NOT APPLICABLE"]
[null,null,null,null,null,null,null,null,null,null,null,null,null,null,null,null,null,null,null,null,null,null,null,null,8378,998,"Waiting List","PLAYER NOT AVAILABLE",0,"No","No","No",null,null,748,"UNMANAGED"]
[null,null,null,null,null,null,null,null,null,null,null,null,null,null,null,null,null,null,null,null,null,null,null,null,8379,40,"H&H","Ciprian TATARUSANU",0,"Yes","Yes","Yes",null,null,749,"Paul Newman"]
[null,null,null,null,null,null,null,null,null,null,null,null,null,null,null,null,null,null,null,null,null,null,null,null,8380,12,"Inter Normania","Kingsley COMAN",29058750,"Yes","Yes","Yes",null,null,750,"UNMANAGED"]
[null,null,null,null,null,null,null,null,null,null,null,null,null,null,null,null,null,null,null,null,null,null,null,null,8381,0,"Transfer Pool","Angelo OGBONNA",627242,"No","No","Yes",1,null,751,"Transfer List"]
[null,null,null,null,null,null,null,null,null,null,null,null,null,null,null,null,null,null,null,null,null,null,null,null,8382,7,"AEK Grogan","Roberto PEREYRA",1787037,"Yes","Yes","Yes",null,null,752,"NOT APPLICABLE"]
[null,null,null,null,null,null,null,null,null,null,null,null,null,null,null,null,null,null,null,null,null,null,null,null,8383,39,"Albenotti","Tiemoue BAKAYOKO",5614102,"Yes","Yes","Yes",null,null,753,"Paul Newman"]
[null,null,null,null,null,null,null,null,null,null,null,null,null,null,null,null,null,null,null,null,null,null,null,null,8385,0,"Transfer Pool","Fabio Henrique FABINHO",15387835,"No","No","Yes",2,null,754,"NOT APPLICABLE"]
[null,null,null,null,null,null,null,null,null,null,null,null,null,null,null,null,null,null,null,null,null,null,null,null,8386,0,"Transfer Pool","Yannick Ferreira CARRASCO",6109337,"No","No","Yes",3,null,755,"NOT APPLICABLE"]
[null,null,null,null,null,null,null,null,null,null,null,null,null,null,null,null,null,null,null,null,null,null,null,null,8388,110,"Bridgewater","PLAYER NOT AVAILABLE",0,"No","No","No",null,null,756,"Bernie Iles"]
[null,null,null,null,null,null,null,null,null,null,null,null,null,null,null,null,null,null,null,null,null,null,null,null,8389,22,"Nellerton City","Geoffrey KONDOGBIA",17400774,"Yes","Yes","Yes",null,null,757,"UNMANAGED"]
[null,null,null,null,null,null,null,null,null,null,null,null,null,null,null,null,null,null,null,null,null,null,null,null,8390,2,"Harrogate Orient","Layvin KURZAWA",2788279,"Yes","Yes","Yes",null,null,758,"Paul Newman"]
[null,null,null,null,null,null,null,null,null,null,null,null,null,null,null,null,null,null,null,null,null,null,null,null,8391,16,"Bumanchester United","Anthony MARTIAL",16401124,"Yes","Yes","Yes",null,null,759,"Michael Atkinson-House"]
[null,null,null,null,null,null,null,null,null,null,null,null,null,null,null,null,null,null,null,null,null,null,null,null,8392,15,"North Notley","PLAYER CAN'T BE SOLD",{"$f":"\"-\"","v":"-"},"No","Yes","No",null,null,760,"Don Davern"]
[null,null,null,null,null,null,null,null,null,null,null,null,null,null,null,null,null,null,null,null,null,null,null,null,8394,10,"Springfield Lyons","Mota Veiga BERNARDO SILVA",35659992,"Yes","Yes","Yes",null,null,761,"NOT APPLICABLE"]
[null,null,null,null,null,null,null,null,null,null,null,null,null,null,null,null,null,null,null,null,null,null,null,null,8396,31,"Nesportivo","Luiz Frello JORGINHO",12158789,"Yes","Yes","Yes",null,null,762,"Norman House"]
[null,null,null,null,null,null,null,null,null,null,null,null,null,null,null,null,null,null,null,null,null,null,null,null,8397,998,"Waiting List","PLAYER NOT AVAILABLE",0,"No","No","No",null,null,763,"UNMANAGED"]
[null,null,null,null,null,null,null,null,null,null,null,null,null,null,null,null,null,null,null,null,null,null,null,null,8398,26,"Westfield","PLAYER CAN'T BE SOLD",{"$f":"\"-\"","v":"-"},"No","Yes","No",null,null,764,"Steven Dingsdale"]
[null,null,null,null,null,null,null,null,null,null,null,null,null,null,null,null,null,null,null,null,null,null,null,null,8401,38,"Broxton Bulls","Duvan ZAPATA",13098713,"Yes","Yes","Yes",null,null,765,"Paul Newman"]
[null,null,null,null,null,null,null,null,null,null,null,null,null,null,null,null,null,null,null,null,null,null,null,null,8402,5,"Hurricane Harriers","Kalidou KOULIBALY",19095237,"Yes","Yes","Yes",null,null,766,"Transfer List"]
[null,null,null,null,null,null,null,null,null,null,null,null,null,null,null,null,null,null,null,null,null,null,null,null,8406,56,"All Saints United","Diego Javier LLORENTE",7014310,"Yes","Yes","Yes",null,null,767,"NOT APPLICABLE"]
[null,null,null,null,null,null,null,null,null,null,null,null,null,null,null,null,null,null,null,null,null,null,null,null,8407,998,"Waiting List","PLAYER NOT AVAILABLE",0,"No","No","No",null,null,768,"Paul Newman"]
[null,null,null,null,null,null,null,null,null,null,null,null,null,null,null,null,null,null,null,null,null,null,null,null,8410,7,"AEK Grogan","Mattia DESTRO",955948,"Yes","Yes","Yes",null,null,769,"James House"]
[null,null,null,null,null,null,null,null,null,null,null,null,null,null,null,null,null,null,null,null,null,null,null,null,8411,15,"North Notley","PLAYER CAN'T BE SOLD",{"$f":"\"-\"","v":"-"},"No","Yes","No",null,null,770,"Transfer List"]
[null,null,null,null,null,null,null,null,null,null,null,null,null,null,null,null,null,null,null,null,null,null,null,null,8413,52,"Applegate Manor","Lukasz SKORUPSKI",1455194,"Yes","Yes","Yes",null,null,771,"Michael Atkinson-House"]
[null,null,null,null,null,null,null,null,null,null,null,null,null,null,null,null,null,null,null,null,null,null,null,null,8415,998,"Waiting List","PLAYER NOT AVAILABLE",0,"No","No","No",null,null,772,"Stewart Andrews"]
[null,null,null,null,null,null,null,null,null,null,null,null,null,null,null,null,null,null,null,null,null,null,null,null,8418,46,"Marquis of Granby","PLAYER NOT AVAILABLE",0,"No","No","No",null,null,773,"UNMANAGED"]
[null,null,null,null,null,null,null,null,null,null,null,null,null,null,null,null,null,null,null,null,null,null,null,null,8419,998,"Waiting List","PLAYER NOT AVAILABLE",0,"No","No","No",null,null,774,"Paul Newman"]
[null,null,null,null,null,null,null,null,null,null,null,null,null,null,null,null,null,null,null,null,null,null,null,null,8420,21,"Christophia","Leandro CABRERA",5320171,"Yes","Yes","Yes",null,null,775,"Robin Slade"]
[null,null,null,null,null,null,null,null,null,null,null,null,null,null,null,null,null,null,null,null,null,null,null,null,8422,998,"Waiting List","PLAYER NOT AVAILABLE",0,"No","No","No",null,null,776,"UNMANAGED"]
[null,null,null,null,null,null,null,null,null,null,null,null,null,null,null,null,null,null,null,null,null,null,null,null,8423,998,"Waiting List","PLAYER NOT AVAILABLE",0,"No","No","No",null,null,777,"NOT APPLICABLE"]
[null,null,null,null,null,null,null,null,null,null,null,null,null,null,null,null,null,null,null,null,null,null,null,null,8424,0,"Transfer Pool","Torres Munoz OLIVER",6473865,"No","No","Yes",4,null,778,"Transfer List"]
[null,null,null,null,null,null,null,null,null,null,null,null,null,null,null,null,null,null,null,null,null,null,null,null,8425,59,"Sawbo Sabres","PLAYER NOT AVAILABLE",0,"No","No","No",null,null,779,"Transfer List"]
[null,null,null,null,null,null,null,null,null,null,null,null,null,null,null,null,null,null,null,null,null,null,null,null,8427,29,"Ibursea Wolves","PLAYER NOT AVAILABLE",0,"No","No","No",null,null,780,"UNMANAGED"]
[null,null,null,null,null,null,null,null,null,null,null,null,null,null,null,null,null,null,null,null,null,null,null,null,8434,998,"Waiting List","PLAYER NOT AVAILABLE",0,"No","No","No",null,null,781,"Transfer List"]
[null,null,null,null,null,null,null,null,null,null,null,null,null,null,null,null,null,null,null,null,null,null,null,null,8435,16,"Bumanchester United","Islam SLIMANI",875910,"Yes","Yes","Yes",null,null,782,"Don Davern"]
[null,null,null,null,null,null,null,null,null,null,null,null,null,null,null,null,null,null,null,null,null,null,null,null,8436,44,"Trevmania Travellers","Angel Martin CORREA",11664998,"Yes","Yes","Yes",null,null,783,"NOT APPLICABLE"]
[null,null,null,null,null,null,null,null,null,null,null,null,null,null,null,null,null,null,null,null,null,null,null,null,8437,998,"Waiting List","PLAYER NOT AVAILABLE",0,"No","No","No",null,null,784,"NOT APPLICABLE"]
[null,null,null,null,null,null,null,null,null,null,null,null,null,null,null,null,null,null,null,null,null,null,null,null,8438,87,"Zanzibar Aztecs","PLAYER NOT AVAILABLE",0,"No","No","No",null,null,785,"NOT APPLICABLE"]
[null,null,null,null,null,null,null,null,null,null,null,null,null,null,null,null,null,null,null,null,null,null,null,null,8439,998,"Waiting List","PLAYER NOT AVAILABLE",0,"No","No","No",null,null,786,"Transfer List"]
[null,null,null,null,null,null,null,null,null,null,null,null,null,null,null,null,null,null,null,null,null,null,null,null,8440,37,"Old Petersfield","PLAYER NOT AVAILABLE",0,"No","No","No",null,null,787,"Norman House"]
[null,null,null,null,null,null,null,null,null,null,null,null,null,null,null,null,null,null,null,null,null,null,null,null,8441,7,"AEK Grogan","PLAYER CAN'T BE SOLD",{"$f":"\"-\"","v":"-"},"No","Yes","No",null,null,788,"Transfer List"]
[null,null,null,null,null,null,null,null,null,null,null,null,null,null,null,null,null,null,null,null,null,null,null,null,8442,16,"Bumanchester United","Jonathan TAH",34760736,"Yes","Yes","Yes",null,null,789,"NOT APPLICABLE"]
[null,null,null,null,null,null,null,null,null,null,null,null,null,null,null,null,null,null,null,null,null,null,null,null,8443,82,"Riverside","Julian BRANDT",27743962,"Yes","Yes","Yes",null,null,790,"Robin Slade"]
[null,null,null,null,null,null,null,null,null,null,null,null,null,null,null,null,null,null,null,null,null,null,null,null,8444,52,"Applegate Manor","Vladlen YURCHENKO",5948574,"Yes","Yes","Yes",null,null,791,"Don Davern"]
[null,null,null,null,null,null,null,null,null,null,null,null,null,null,null,null,null,null,null,null,null,null,null,null,8446,52,"Applegate Manor","Kevin KAMPL",3448449,"Yes","Yes","Yes",null,null,792,"NOT APPLICABLE"]
[null,null,null,null,null,null,null,null,null,null,null,null,null,null,null,null,null,null,null,null,null,null,null,null,8449,0,"Transfer Pool","Jonas HOFMANN",15089718,"No","No","Yes",1,null,793,"Bernie Iles"]
[null,null,null,null,null,null,null,null,null,null,null,null,null,null,null,null,null,null,null,null,null,null,null,null,8451,10,"Springfield Lyons","Julian WEIGL",18794169,"Yes","Yes","Yes",null,null,794,"Bernie Iles"]
[null,null,null,null,null,null,null,null,null,null,null,null,null,null,null,null,null,null,null,null,null,null,null,null,8452,53,"Essex Ruminants","PLAYER NOT AVAILABLE",0,"No","No","No",null,null,795,"UNMANAGED"]
[null,null,null,null,null,null,null,null,null,null,null,null,null,null,null,null,null,null,null,null,null,null,null,null,8456,998,"Waiting List","PLAYER NOT AVAILABLE",0,"No","No","No",null,null,796,"NOT APPLICABLE"]
[null,null,null,null,null,null,null,null,null,null,null,null,null,null,null,null,null,null,null,null,null,null,null,null,8457,1000,"RETIRED","PLAYER NOT AVAILABLE",0,"No","No","No",null,null,797,"UNMANAGED"]
[null,null,null,null,null,null,null,null,null,null,null,null,null,null,null,null,null,null,null,null,null,null,null,null,8459,34,"St. Vincent","PLAYER NOT AVAILABLE",0,"No","No","No",null,null,798,"Olivia Andrews"]
[null,null,null,null,null,null,null,null,null,null,null,null,null,null,null,null,null,null,null,null,null,null,null,null,8462,56,"All Saints United","PLAYER CAN'T BE SOLD",{"$f":"\"-\"","v":"-"},"No","Yes","No",null,null,799,"UNMANAGED"]
[null,null,null,null,null,null,null,null,null,null,null,null,null,null,null,null,null,null,null,null,null,null,null,null,8465,998,"Waiting List","PLAYER NOT AVAILABLE",0,"No","No","No",null,null,800,"Paul Newman"]
[null,null,null,null,null,null,null,null,null,null,null,null,null,null,null,null,null,null,null,null,null,null,null,null,8468,44,"Trevmania Travellers","Tyrone MINGS",21290100,"Yes","Yes","Yes",null,null,801,"UNMANAGED"]
[null,null,null,null,null,null,null,null,null,null,null,null,null,null,null,null,null,null,null,null,null,null,null,null,8470,45,"NPA","PLAYER NOT AVAILABLE",0,"No","No","No",null,null,802,"NOT APPLICABLE"]
[null,null,null,null,null,null,null,null,null,null,null,null,null,null,null,null,null,null,null,null,null,null,null,null,8472,998,"Waiting List","PLAYER NOT AVAILABLE",0,"No","No","No",null,null,803,"Norman House"]
[null,null,null,null,null,null,null,null,null,null,null,null,null,null,null,null,null,null,null,null,null,null,null,null,8473,998,"Waiting List","PLAYER NOT AVAILABLE",0,"No","No","No",null,null,804,"Paul Newman"]
[null,null,null,null,null,null,null,null,null,null,null,null,null,null,null,null,null,null,null,null,null,null,null,null,8474,998,"Waiting List","PLAYER NOT AVAILABLE",0,"No","No","No",null,null,805,"NOT APPLICABLE"]
[null,null,null,null,null,null,null,null,null,null,null,null,null,null,null,null,null,null,null,null,null,null,null,null,8475,37,"Old Petersfield","PLAYER NOT AVAILABLE",0,"No","No","No",null,null,806,"Transfer List"]
[null,null,null,null,null,null,null,null,null,null,null,null,null,null,null,null,null,null,null,null,null,null,null,null,8476,0,"Transfer Pool","Bertrand TRAORE",4821823,"No","No","Yes",4,null,807,"NOT APPLICABLE"]
[null,null,null,null,null,null,null,null,null,null,null,null,null,null,null,null,null,null,null,null,null,null,null,null,8477,998,"Waiting List","PLAYER NOT AVAILABLE",0,"No","No","No",null,null,808,"James House"]
[null,null,null,null,null,null,null,null,null,null,null,null,null,null,null,null,null,null,null,null,null,null,null,null,8478,22,"Nellerton City","Ruben LOFTUS-CHEEK",17398575,"Yes","Yes","Yes",null,null,809,"Don Davern"]
[null,null,null,null,null,null,null,null,null,null,null,null,null,null,null,null,null,null,null,null,null,null,null,null,8479,126,"Weslington","Guilherme Nunes JUAN JESUS",6936080,"Yes","Yes","Yes",null,null,810,"UNMANAGED"]
[null,null,null,null,null,null,null,null,null,null,null,null,null,null,null,null,null,null,null,null,null,null,null,null,8480,998,"Waiting List","PLAYER NOT AVAILABLE",0,"No","No","No",null,null,811,"Transfer List"]
[null,null,null,null,null,null,null,null,null,null,null,null,null,null,null,null,null,null,null,null,null,null,null,null,8481,10,"Springfield Lyons","Mauro Emanuel ICARDI",17435141,"Yes","Yes","Yes",null,null,812,"Robin Slade"]
[null,null,null,null,null,null,null,null,null,null,null,null,null,null,null,null,null,null,null,null,null,null,null,null,8482,14,"Treverton","Jeison Fabian MURILLO",2153564,"Yes","Yes","Yes",null,null,813,"Transfer List"]
[null,null,null,null,null,null,null,null,null,null,null,null,null,null,null,null,null,null,null,null,null,null,null,null,8484,34,"St. Vincent","PLAYER NOT AVAILABLE",0,"No","No","No",null,null,814,"Mick Sims"]
[null,null,null,null,null,null,null,null,null,null,null,null,null,null,null,null,null,null,null,null,null,null,null,null,8485,5,"Hurricane Harriers","Marcelo BROZOVIC",14959928,"Yes","Yes","Yes",null,null,815,"Paul Newman"]
[null,null,null,null,null,null,null,null,null,null,null,null,null,null,null,null,null,null,null,null,null,null,null,null,8486,0,"Transfer Pool","Stefano STURARO",4596159,"No","No","Yes",4,null,816,"James House"]
[null,null,null,null,null,null,null,null,null,null,null,null,null,null,null,null,null,null,null,null,null,null,null,null,8487,14,"Treverton","Mario LEMINA",15083055,"Yes","Yes","Yes",null,null,817,"UNMANAGED"]
[null,null,null,null,null,null,null,null,null,null,null,null,null,null,null,null,null,null,null,null,null,null,null,null,8489,20,"Nessertoponions","Daniele RUGANI",6412153,"Yes","Yes","Yes",null,null,818,"UNMANAGED"]
[null,null,null,null,null,null,null,null,null,null,null,null,null,null,null,null,null,null,null,null,null,null,null,null,8490,87,"Zanzibar Aztecs","PLAYER NOT AVAILABLE",0,"No","No","No",null,null,819,"NOT APPLICABLE"]
[null,null,null,null,null,null,null,null,null,null,null,null,null,null,null,null,null,null,null,null,null,null,null,null,8491,998,"Waiting List","PLAYER NOT AVAILABLE",0,"No","No","No",null,null,820,"UNMANAGED"]
[null,null,null,null,null,null,null,null,null,null,null,null,null,null,null,null,null,null,null,null,null,null,null,null,8492,998,"Waiting List","PLAYER NOT AVAILABLE",0,"No","No","No",null,null,821,"Don Davern"]
[null,null,null,null,null,null,null,null,null,null,null,null,null,null,null,null,null,null,null,null,null,null,null,null,8495,27,"Blackwater","Benjamin STAMBOULI",922389,"Yes","Yes","Yes",null,null,822,"Norman House"]
[null,null,null,null,null,null,null,null,null,null,null,null,null,null,null,null,null,null,null,null,null,null,null,null,8496,128,"Yelsel Nosnikta","Kevin TRAPP",5301290,"Yes","Yes","Yes",null,null,823,"NOT APPLICABLE"]
[null,null,null,null,null,null,null,null,null,null,null,null,null,null,null,null,null,null,null,null,null,null,null,null,8497,11,"JPR","Adrien RABIOT",27607927,"Yes","Yes","Yes",null,null,824,"Paul Newman"]
[null,null,null,null,null,null,null,null,null,null,null,null,null,null,null,null,null,null,null,null,null,null,null,null,8498,998,"Waiting List","PLAYER NOT AVAILABLE",0,"No","No","No",null,null,825,"Michael Atkinson-House"]
[null,null,null,null,null,null,null,null,null,null,null,null,null,null,null,null,null,null,null,null,null,null,null,null,8499,46,"Marquis of Granby","PLAYER NOT AVAILABLE",0,"No","No","No",null,null,826,"Transfer List"]
[null,null,null,null,null,null,null,null,null,null,null,null,null,null,null,null,null,null,null,null,null,null,null,null,8501,998,"Waiting List","PLAYER NOT AVAILABLE",0,"No","No","No",null,null,827,"NOT APPLICABLE"]
[null,null,null,null,null,null,null,null,null,null,null,null,null,null,null,null,null,null,null,null,null,null,null,null,8502,998,"Waiting List","PLAYER NOT AVAILABLE",0,"No","No","No",null,null,828,"UNMANAGED"]
[null,null,null,null,null,null,null,null,null,null,null,null,null,null,null,null,null,null,null,null,null,null,null,null,8503,998,"Waiting List","PLAYER NOT AVAILABLE",0,"No","No","No",null,null,829,"Norman House"]
[null,null,null,null,null,null,null,null,null,null,null,null,null,null,null,null,null,null,null,null,null,null,null,null,8504,998,"Waiting List","PLAYER NOT AVAILABLE",0,"No","No","No",null,null,830,"UNMANAGED"]
[null,null,null,null,null,null,null,null,null,null,null,null,null,null,null,null,null,null,null,null,null,null,null,null,8506,14,"Treverton","Joshua BRENET",1248164,"Yes","Yes","Yes",null,null,831,"UNMANAGED"]
[null,null,null,null,null,null,null,null,null,null,null,null,null,null,null,null,null,null,null,null,null,null,null,null,8507,74,"Scarlet Rovers","PLAYER NOT AVAILABLE",0,"No","No","No",null,null,832,"James House"]
[null,null,null,null,null,null,null,null,null,null,null,null,null,null,null,null,null,null,null,null,null,null,null,null,8508,82,"Riverside","Jorrit HENDRIX",973567,"Yes","Yes","Yes",null,null,833,"NOT APPLICABLE"]
[null,null,null,null,null,null,null,null,null,null,null,null,null,null,null,null,null,null,null,null,null,null,null,null,8510,38,"Broxton Bulls","Mateo KOVACIC",23246854,"Yes","Yes","Yes",null,null,834,"UNMANAGED"]
[null,null,null,null,null,null,null,null,null,null,null,null,null,null,null,null,null,null,null,null,null,null,null,null,8511,0,"Transfer Pool","Lucas VAZQUEZ",8642091,"No","No","Yes",3,null,835,"Norman House"]
[null,null,null,null,null,null,null,null,null,null,null,null,null,null,null,null,null,null,null,null,null,null,null,null,8514,36,"VF Turks","Antonio RUDIGER",22155572,"Yes","Yes","Yes",null,null,836,"NOT APPLICABLE"]
[null,null,null,null,null,null,null,null,null,null,null,null,null,null,null,null,null,null,null,null,null,null,null,null,8516,10,"Springfield Lyons","Alphonse AREOLA",3045632,"Yes","Yes","Yes",null,null,837,"Ken Atkinson"]
[null,null,null,null,null,null,null,null,null,null,null,null,null,null,null,null,null,null,null,null,null,null,null,null,8517,998,"Waiting List","PLAYER NOT AVAILABLE",0,"No","No","No",null,null,838,"Robin Slade"]
[null,null,null,null,null,null,null,null,null,null,null,null,null,null,null,null,null,null,null,null,null,null,null,null,8518,4,"Markhoeven","Umar SADIQ",11679082,"Yes","Yes","Yes",null,null,839,"UNMANAGED"]
[null,null,null,null,null,null,null,null,null,null,null,null,null,null,null,null,null,null,null,null,null,null,null,null,8520,26,"Westfield","Vicente IBORRA",20538,"Yes","Yes","Yes",null,null,840,"UNMANAGED"]
[null,null,null,null,null,null,null,null,null,null,null,null,null,null,null,null,null,null,null,null,null,null,null,null,8521,1000,"RETIRED","PLAYER NOT AVAILABLE",0,"No","No","No",null,null,841,"NOT APPLICABLE"]
[null,null,null,null,null,null,null,null,null,null,null,null,null,null,null,null,null,null,null,null,null,null,null,null,8522,1000,"RETIRED","PLAYER NOT AVAILABLE",0,"No","No","No",null,null,842,"NOT APPLICABLE"]
[null,null,null,null,null,null,null,null,null,null,null,null,null,null,null,null,null,null,null,null,null,null,null,null,8523,52,"Applegate Manor","Jorge Andujar COKE",4990,"Yes","Yes","Yes",null,null,843,"Robin Slade"]
[null,null,null,null,null,null,null,null,null,null,null,null,null,null,null,null,null,null,null,null,null,null,null,null,8525,998,"Waiting List","PLAYER NOT AVAILABLE",0,"No","No","No",null,null,844,"Transfer List"]
[null,null,null,null,null,null,null,null,null,null,null,null,null,null,null,null,null,null,null,null,null,null,null,null,8527,998,"Waiting List","PLAYER NOT AVAILABLE",0,"No","No","No",null,null,845,"Michael Atkinson-House"]
[null,null,null,null,null,null,null,null,null,null,null,null,null,null,null,null,null,null,null,null,null,null,null,null,8529,998,"Waiting List","PLAYER NOT AVAILABLE",0,"No","No","No",null,null,846,"UNMANAGED"]
[null,null,null,null,null,null,null,null,null,null,null,null,null,null,null,null,null,null,null,null,null,null,null,null,8530,998,"Waiting List","PLAYER NOT AVAILABLE",0,"No","No","No",null,null,847,"David Bird"]
[null,null,null,null,null,null,null,null,null,null,null,null,null,null,null,null,null,null,null,null,null,null,null,null,8531,998,"Waiting List","PLAYER NOT AVAILABLE",0,"No","No","No",null,null,848,"Olivia Andrews"]
[null,null,null,null,null,null,null,null,null,null,null,null,null,null,null,null,null,null,null,null,null,null,null,null,8535,11,"JPR","Alessio ROMAGNOLI",12622121,"Yes","Yes","Yes",null,null,849,"Stewart Andrews"]
[null,null,null,null,null,null,null,null,null,null,null,null,null,null,null,null,null,null,null,null,null,null,null,null,8536,81,"Tangerinions","PLAYER NOT AVAILABLE",0,"No","No","No",null,null,850,"Paul Newman"]
[null,null,null,null,null,null,null,null,null,null,null,null,null,null,null,null,null,null,null,null,null,null,null,null,8537,0,"Transfer Pool","M'baye Babacar NIANG",5256894,"No","No","Yes",3,null,851,"Robin Slade"]
[null,null,null,null,null,null,null,null,null,null,null,null,null,null,null,null,null,null,null,null,null,null,null,null,8538,998,"Waiting List","PLAYER NOT AVAILABLE",0,"No","No","No",null,null,852,"Ken Atkinson"]
[null,null,null,null,null,null,null,null,null,null,null,null,null,null,null,null,null,null,null,null,null,null,null,null,8541,69,"Gainsborough Hamlet","Gianluigi DONNARUMMA",40587011,"Yes","Yes","Yes",null,null,853,"James House"]
[null,null,null,null,null,null,null,null,null,null,null,null,null,null,null,null,null,null,null,null,null,null,null,null,8542,10,"Springfield Lyons","Joao CANCELO",20804123,"Yes","Yes","Yes",null,null,854,"Don Davern"]
[null,null,null,null,null,null,null,null,null,null,null,null,null,null,null,null,null,null,null,null,null,null,null,null,8546,76,"Olympians","Paco ALCACER",20819502,"Yes","Yes","Yes",null,null,855,"UNMANAGED"]
[null,null,null,null,null,null,null,null,null,null,null,null,null,null,null,null,null,null,null,null,null,null,null,null,8547,998,"Waiting List","PLAYER NOT AVAILABLE",0,"No","No","No",null,null,856,"James House"]
[null,null,null,null,null,null,null,null,null,null,null,null,null,null,null,null,null,null,null,null,null,null,null,null,8548,1,"Bandal Borough","Jose Luis GAYA",18590258,"Yes","Yes","Yes",null,null,857,"UNMANAGED"]
[null,null,null,null,null,null,null,null,null,null,null,null,null,null,null,null,null,null,null,null,null,null,null,null,8549,998,"Waiting List","PLAYER NOT AVAILABLE",0,"No","No","No",null,null,858,"Ken Atkinson"]
[null,null,null,null,null,null,null,null,null,null,null,null,null,null,null,null,null,null,null,null,null,null,null,null,8551,44,"Trevmania Travellers","Jaume DOMENECH",848383,"Yes","Yes","Yes",null,null,859,"James House"]
[null,null,null,null,null,null,null,null,null,null,null,null,null,null,null,null,null,null,null,null,null,null,null,null,8552,12,"Inter Normania","Mathew RYAN",4151272,"Yes","Yes","Yes",null,null,860,"Bernie Iles"]
[null,null,null,null,null,null,null,null,null,null,null,null,null,null,null,null,null,null,null,null,null,null,null,null,8553,70,"Northridge Cormorants","Rodrigo Javier DE PAUL",24396757,"Yes","Yes","Yes",null,null,861,"NOT APPLICABLE"]
[null,null,null,null,null,null,null,null,null,null,null,null,null,null,null,null,null,null,null,null,null,null,null,null,8555,39,"Albenotti","Santana de Moraes EDERSON",32783788,"Yes","Yes","Yes",null,null,862,"NOT APPLICABLE"]
[null,null,null,null,null,null,null,null,null,null,null,null,null,null,null,null,null,null,null,null,null,null,null,null,8556,64,"Fellerton","Cabral NELSON SEMEDO",10160807,"Yes","Yes","Yes",null,null,863,"UNMANAGED"]
[null,null,null,null,null,null,null,null,null,null,null,null,null,null,null,null,null,null,null,null,null,null,null,null,8557,998,"Waiting List","PLAYER NOT AVAILABLE",0,"No","No","No",null,null,864,"NOT APPLICABLE"]
[null,null,null,null,null,null,null,null,null,null,null,null,null,null,null,null,null,null,null,null,null,null,null,null,8558,23,"Rushleydale","Bryan CRISTANTE",18495004,"Yes","Yes","Yes",null,null,865,"Bernie Iles"]
[null,null,null,null,null,null,null,null,null,null,null,null,null,null,null,null,null,null,null,null,null,null,null,null,8559,43,"IOD","PLAYER NOT AVAILABLE",0,"No","No","No",null,null,866,"NOT APPLICABLE"]
[null,null,null,null,null,null,null,null,null,null,null,null,null,null,null,null,null,null,null,null,null,null,null,null,8560,16,"Bumanchester United","Renato SANCHES",13150180,"Yes","Yes","Yes",null,null,867,"Robin Slade"]
[null,null,null,null,null,null,null,null,null,null,null,null,null,null,null,null,null,null,null,null,null,null,null,null,8561,998,"Waiting List","PLAYER NOT AVAILABLE",0,"No","No","No",null,null,868,"Michael Atkinson-House"]
[null,null,null,null,null,null,null,null,null,null,null,null,null,null,null,null,null,null,null,null,null,null,null,null,8562,40,"H&H","Goncalo GUEDES",5328281,"Yes","Yes","Yes",null,null,869,"Steven Dingsdale"]
[null,null,null,null,null,null,null,null,null,null,null,null,null,null,null,null,null,null,null,null,null,null,null,null,8563,998,"Waiting List","PLAYER NOT AVAILABLE",0,"No","No","No",null,null,870,"Don Davern"]
[null,null,null,null,null,null,null,null,null,null,null,null,null,null,null,null,null,null,null,null,null,null,null,null,8566,998,"Waiting List","PLAYER NOT AVAILABLE",0,"No","No","No",null,null,871,"UNMANAGED"]
[null,null,null,null,null,null,null,null,null,null,null,null,null,null,null,null,null,null,null,null,null,null,null,null,8567,50,"E&C","PLAYER NOT AVAILABLE",0,"No","No","No",null,null,872,"NOT APPLICABLE"]
[null,null,null,null,null,null,null,null,null,null,null,null,null,null,null,null,null,null,null,null,null,null,null,null,8569,116,"FC Invincible","PLAYER NOT AVAILABLE",0,"No","No","No",null,null,873,"UNMANAGED"]
[null,null,null,null,null,null,null,null,null,null,null,null,null,null,null,null,null,null,null,null,null,null,null,null,8571,48,"Hammersmith Celtic","Matz SELS",1926043,"Yes","Yes","Yes",null,null,874,"NOT APPLICABLE"]
[null,null,null,null,null,null,null,null,null,null,null,null,null,null,null,null,null,null,null,null,null,null,null,null,8574,0,"Transfer Pool","Stefan MITROVIC",2738393,"No","No","Yes",1,null,875,"Transfer List"]
[null,null,null,null,null,null,null,null,null,null,null,null,null,null,null,null,null,null,null,null,null,null,null,null,8577,998,"Waiting List","PLAYER NOT AVAILABLE",0,"No","No","No",null,null,876,"UNMANAGED"]
[null,null,null,null,null,null,null,null,null,null,null,null,null,null,null,null,null,null,null,null,null,null,null,null,8579,37,"Old Petersfield","PLAYER NOT AVAILABLE",0,"No","No","No",null,null,877,"Robin Slade"]
[null,null,null,null,null,null,null,null,null,null,null,null,null,null,null,null,null,null,null,null,null,null,null,null,8580,89,"Melbourne Park","PLAYER NOT AVAILABLE",0,"No","No","No",null,null,878,"NOT APPLICABLE"]
[null,null,null,null,null,null,null,null,null,null,null,null,null,null,null,null,null,null,null,null,null,null,null,null,8586,19,"Jasonville","Benito RAMAN",1671627,"Yes","Yes","Yes",null,null,879,"UNMANAGED"]
[null,null,null,null,null,null,null,null,null,null,null,null,null,null,null,null,null,null,null,null,null,null,null,null,8587,998,"Waiting List","PLAYER NOT AVAILABLE",0,"No","No","No",null,null,880,"Paul Newman"]
[null,null,null,null,null,null,null,null,null,null,null,null,null,null,null,null,null,null,null,null,null,null,null,null,8590,27,"Blackwater","Simone ZAZA",4501204,"Yes","Yes","Yes",null,null,881,"Norman House"]
[null,null,null,null,null,null,null,null,null,null,null,null,null,null,null,null,null,null,null,null,null,null,null,null,8591,11,"JPR","PLAYER CAN'T BE SOLD",{"$f":"\"-\"","v":"-"},"No","Yes","No",null,null,882,"Transfer List"]
[null,null,null,null,null,null,null,null,null,null,null,null,null,null,null,null,null,null,null,null,null,null,null,null,8592,45,"NPA","PLAYER NOT AVAILABLE",0,"No","No","No",null,null,883,"Norman House"]
[null,null,null,null,null,null,null,null,null,null,null,null,null,null,null,null,null,null,null,null,null,null,null,null,8594,998,"Waiting List","PLAYER NOT AVAILABLE",0,"No","No","No",null,null,884,"Lesley Atkinson"]
[null,null,null,null,null,null,null,null,null,null,null,null,null,null,null,null,null,null,null,null,null,null,null,null,8595,14,"Treverton","Maximilian ARNOLD",8829608,"Yes","Yes","Yes",null,null,885,"UNMANAGED"]
[null,null,null,null,null,null,null,null,null,null,null,null,null,null,null,null,null,null,null,null,null,null,null,null,8596,54,"Skylark Santiago","PLAYER NOT AVAILABLE",0,"No","No","No",null,null,886,"Olivia Andrews"]
[null,null,null,null,null,null,null,null,null,null,null,null,null,null,null,null,null,null,null,null,null,null,null,null,8598,59,"Sawbo Sabres","PLAYER NOT AVAILABLE",0,"No","No","No",null,null,887,"UNMANAGED"]
[null,null,null,null,null,null,null,null,null,null,null,null,null,null,null,null,null,null,null,null,null,null,null,null,8599,0,"Transfer Pool","Thomas LEMAR",7980696,"No","No","Yes",2,null,888,"Steven Dingsdale"]
[null,null,null,null,null,null,null,null,null,null,null,null,null,null,null,null,null,null,null,null,null,null,null,null,8604,9,"Real Danyella","Pereira Gomes FELIPE ANDERSON",14826427,"Yes","Yes","Yes",null,null,889,"Robin Slade"]
[null,null,null,null,null,null,null,null,null,null,null,null,null,null,null,null,null,null,null,null,null,null,null,null,8605,44,"Trevmania Travellers","PLAYER CAN'T BE SOLD",{"$f":"\"-\"","v":"-"},"No","Yes","No",null,null,890,"NOT APPLICABLE"]
[null,null,null,null,null,null,null,null,null,null,null,null,null,null,null,null,null,null,null,null,null,null,null,null,8607,61,"Culmore Crusaders","PLAYER NOT AVAILABLE",0,"No","No","No",null,null,891,"Norman House"]
[null,null,null,null,null,null,null,null,null,null,null,null,null,null,null,null,null,null,null,null,null,null,null,null,8608,62,"Highfield","PLAYER NOT AVAILABLE",0,"No","No","No",null,null,892,"NOT APPLICABLE"]
[null,null,null,null,null,null,null,null,null,null,null,null,null,null,null,null,null,null,null,null,null,null,null,null,8609,111,"Cavendish","PLAYER NOT AVAILABLE",0,"No","No","No",null,null,893,"Don Davern"]
[null,null,null,null,null,null,null,null,null,null,null,null,null,null,null,null,null,null,null,null,null,null,null,null,8610,998,"Waiting List","PLAYER NOT AVAILABLE",0,"No","No","No",null,null,894,"Michael Atkinson-House"]
[null,null,null,null,null,null,null,null,null,null,null,null,null,null,null,null,null,null,null,null,null,null,null,null,8611,29,"Ibursea Wolves","PLAYER NOT AVAILABLE",0,"No","No","No",null,null,895,"NOT APPLICABLE"]
[null,null,null,null,null,null,null,null,null,null,null,null,null,null,null,null,null,null,null,null,null,null,null,null,8612,54,"Skylark Santiago","PLAYER NOT AVAILABLE",0,"No","No","No",null,11,896,"Olivia Andrews"]
[null,null,null,null,null,null,null,null,null,null,null,null,null,null,null,null,null,null,null,null,null,null,null,null,8613,40,"H&H","Kelechi IHEANACHO",4822252,"Yes","Yes","Yes",null,null,897,"NOT APPLICABLE"]
[null,null,null,null,null,null,null,null,null,null,null,null,null,null,null,null,null,null,null,null,null,null,null,null,8614,33,"Jarikton","Patrick ROBERTS",1342325,"Yes","Yes","Yes",null,null,898,"Robin Slade"]
[null,null,null,null,null,null,null,null,null,null,null,null,null,null,null,null,null,null,null,null,null,null,null,null,8615,998,"Waiting List","PLAYER NOT AVAILABLE",0,"No","No","No",null,null,899,"Paul Newman"]
[null,null,null,null,null,null,null,null,null,null,null,null,null,null,null,null,null,null,null,null,null,null,null,null,8617,998,"Waiting List","PLAYER NOT AVAILABLE",0,"No","No","No",null,null,900,"Steven Dingsdale"]
[null,null,null,null,null,null,null,null,null,null,null,null,null,null,null,null,null,null,null,null,null,null,null,null,8620,998,"Waiting List","PLAYER NOT AVAILABLE",0,"No","No","No",null,null,901,"Paul Newman"]
[null,null,null,null,null,null,null,null,null,null,null,null,null,null,null,null,null,null,null,null,null,null,null,null,8623,14,"Treverton","Benjamin MENDY",4828136,"Yes","Yes","Yes",null,null,902,"Robin Slade"]
[null,null,null,null,null,null,null,null,null,null,null,null,null,null,null,null,null,null,null,null,null,null,null,null,8625,46,"Marquis of Granby","PLAYER NOT AVAILABLE",0,"No","No","No",null,null,903,"Paul Newman"]
[null,null,null,null,null,null,null,null,null,null,null,null,null,null,null,null,null,null,null,null,null,null,null,null,8626,1,"Bandal Borough","Marques Loureiro ALLAN",12379163,"Yes","Yes","Yes",null,null,904,"Olivia Andrews"]
[null,null,null,null,null,null,null,null,null,null,null,null,null,null,null,null,null,null,null,null,null,null,null,null,8628,37,"Old Petersfield","PLAYER NOT AVAILABLE",0,"No","No","No",null,null,905,"NOT APPLICABLE"]
[null,null,null,null,null,null,null,null,null,null,null,null,null,null,null,null,null,null,null,null,null,null,null,null,8630,35,"Fraserborough","Luka MILIVOJEVIC",1640121,"Yes","Yes","Yes",null,null,906,"UNMANAGED"]
[null,null,null,null,null,null,null,null,null,null,null,null,null,null,null,null,null,null,null,null,null,null,null,null,8631,95,"Roxwell United","PLAYER NOT AVAILABLE",0,"No","No","No",null,null,907,"NOT APPLICABLE"]
[null,null,null,null,null,null,null,null,null,null,null,null,null,null,null,null,null,null,null,null,null,null,null,null,8632,998,"Waiting List","PLAYER NOT AVAILABLE",0,"No","No","No",null,null,908,"Mick Sims"]
[null,null,null,null,null,null,null,null,null,null,null,null,null,null,null,null,null,null,null,null,null,null,null,null,8633,116,"FC Invincible","PLAYER NOT AVAILABLE",0,"No","No","No",null,null,909,"NOT APPLICABLE"]
[null,null,null,null,null,null,null,null,null,null,null,null,null,null,null,null,null,null,null,null,null,null,null,null,8634,21,"Christophia","Omar ELABDELLAOUI",755720,"Yes","Yes","Yes",null,null,910,"NOT APPLICABLE"]
[null,null,null,null,null,null,null,null,null,null,null,null,null,null,null,null,null,null,null,null,null,null,null,null,8635,124,"Belize Gonagecha","PLAYER NOT AVAILABLE",0,"No","No","No",null,null,911,"Paul Newman"]
[null,null,null,null,null,null,null,null,null,null,null,null,null,null,null,null,null,null,null,null,null,null,null,null,8636,998,"Waiting List","PLAYER NOT AVAILABLE",0,"No","No","No",null,null,912,"UNMANAGED"]
[null,null,null,null,null,null,null,null,null,null,null,null,null,null,null,null,null,null,null,null,null,null,null,null,8637,46,"Marquis of Granby","PLAYER NOT AVAILABLE",0,"No","No","No",null,null,913,"UNMANAGED"]
[null,null,null,null,null,null,null,null,null,null,null,null,null,null,null,null,null,null,null,null,null,null,null,null,8638,34,"St. Vincent","PLAYER NOT AVAILABLE",0,"No","No","No",null,null,914,"NOT APPLICABLE"]
[null,null,null,null,null,null,null,null,null,null,null,null,null,null,null,null,null,null,null,null,null,null,null,null,8639,998,"Waiting List","PLAYER NOT AVAILABLE",0,"No","No","No",null,null,915,"NOT APPLICABLE"]
[null,null,null,null,null,null,null,null,null,null,null,null,null,null,null,null,null,null,null,null,null,null,null,null,8640,998,"Waiting List","PLAYER NOT AVAILABLE",0,"No","No","No",null,null,916,"Paul Newman"]
[null,null,null,null,null,null,null,null,null,null,null,null,null,null,null,null,null,null,null,null,null,null,null,null,8641,998,"Waiting List","PLAYER NOT AVAILABLE",0,"No","No","No",null,null,917,"NOT APPLICABLE"]
[null,null,null,null,null,null,null,null,null,null,null,null,null,null,null,null,null,null,null,null,null,null,null,null,8642,37,"Old Petersfield","PLAYER NOT AVAILABLE",0,"No","No","No",null,null,918,"Bernie Iles"]
[null,null,null,null,null,null,null,null,null,null,null,null,null,null,null,null,null,null,null,null,null,null,null,null,8644,0,"Transfer Pool","N'Golo KANTE",2413834,"No","No","Yes",4,null,919,"NOT APPLICABLE"]
[null,null,null,null,null,null,null,null,null,null,null,null,null,null,null,null,null,null,null,null,null,null,null,null,8645,41,"Newcombe United","Andrej KRAMARIC",7259356,"Yes","Yes","Yes",null,null,920,"Transfer List"]
[null,null,null,null,null,null,null,null,null,null,null,null,null,null,null,null,null,null,null,null,null,null,null,null,8648,56,"All Saints United","Joe GOMEZ",12503054,"Yes","Yes","Yes",null,null,921,"Transfer List"]
[null,null,null,null,null,null,null,null,null,null,null,null,null,null,null,null,null,null,null,null,null,null,null,null,8772,1,"Bandal Borough","Roberto FIRMINO",17709634,"Yes","Yes","Yes",null,null,922,"Norman House"]
[null,null,null,null,null,null,null,null,null,null,null,null,null,null,null,null,null,null,null,null,null,null,null,null,8835,998,"Waiting List","PLAYER NOT AVAILABLE",0,"No","No","No",null,null,923,"Don Davern"]
[null,null,null,null,null,null,null,null,null,null,null,null,null,null,null,null,null,null,null,null,null,null,null,null,8837,54,"Skylark Santiago","PLAYER NOT AVAILABLE",0,"No","No","No",null,null,924,"Norman House"]
[null,null,null,null,null,null,null,null,null,null,null,null,null,null,null,null,null,null,null,null,null,null,null,null,8859,33,"Jarikton","Reece OXFORD",2262252,"Yes","Yes","Yes",null,null,925,"James House"]
[null,null,null,null,null,null,null,null,null,null,null,null,null,null,null,null,null,null,null,null,null,null,null,null,8883,70,"Northridge Cormorants","PLAYER CAN'T BE SOLD",{"$f":"\"-\"","v":"-"},"No","Yes","No",null,null,926,"Mick Sims"]
[null,null,null,null,null,null,null,null,null,null,null,null,null,null,null,null,null,null,null,null,null,null,null,null,8886,998,"Waiting List","PLAYER NOT AVAILABLE",0,"No","No","No",null,null,927,"James House"]
[null,null,null,null,null,null,null,null,null,null,null,null,null,null,null,null,null,null,null,null,null,null,null,null,8956,51,"Wyckham Vosper","PLAYER NOT AVAILABLE",0,"No","No","No",null,null,928,"NOT APPLICABLE"]
[null,null,null,null,null,null,null,null,null,null,null,null,null,null,null,null,null,null,null,null,null,null,null,null,8965,0,"Transfer Pool","Ramiro FUNES MORI",3483636,"No","No","Yes",1,null,929,"UNMANAGED"]
[null,null,null,null,null,null,null,null,null,null,null,null,null,null,null,null,null,null,null,null,null,null,null,null,9023,106,"Colebank","PLAYER NOT AVAILABLE",0,"No","No","No",null,null,930,"NOT APPLICABLE"]
[null,null,null,null,null,null,null,null,null,null,null,null,null,null,null,null,null,null,null,null,null,null,null,null,9029,998,"Waiting List","PLAYER NOT AVAILABLE",0,"No","No","No",null,null,931,"Transfer List"]
[null,null,null,null,null,null,null,null,null,null,null,null,null,null,null,null,null,null,null,null,null,null,null,null,9068,84,"Oaklea Park","PLAYER NOT AVAILABLE",0,"No","No","No",null,null,932,"Michael Atkinson-House"]
[null,null,null,null,null,null,null,null,null,null,null,null,null,null,null,null,null,null,null,null,null,null,null,null,9079,998,"Waiting List","PLAYER NOT AVAILABLE",0,"No","No","No",null,null,933,"UNMANAGED"]
[null,null,null,null,null,null,null,null,null,null,null,null,null,null,null,null,null,null,null,null,null,null,null,null,9081,0,"Transfer Pool","Allan-Romeo NYOM",602727,"No","No","Yes",1,null,934,"James House"]
[null,null,null,null,null,null,null,null,null,null,null,null,null,null,null,null,null,null,null,null,null,null,null,null,9084,113,"Coggeshall Colts","PLAYER NOT AVAILABLE",0,"No","No","No",null,null,935,"James House"]
[null,null,null,null,null,null,null,null,null,null,null,null,null,null,null,null,null,null,null,null,null,null,null,null,9085,16,"Bumanchester United","Troy DEENEY",983860,"Yes","Yes","Yes",null,null,936,"Bernie Iles"]
[null,null,null,null,null,null,null,null,null,null,null,null,null,null,null,null,null,null,null,null,null,null,null,null,9086,45,"NPA","PLAYER NOT AVAILABLE",0,"No","No","No",null,null,937,"UNMANAGED"]
[null,null,null,null,null,null,null,null,null,null,null,null,null,null,null,null,null,null,null,null,null,null,null,null,9088,7,"AEK Grogan","PLAYER CAN'T BE SOLD",{"$f":"\"-\"","v":"-"},"No","Yes","No",null,null,938,"UNMANAGED"]
[null,null,null,null,null,null,null,null,null,null,null,null,null,null,null,null,null,null,null,null,null,null,null,null,9091,14,"Treverton","DeAndre YEDLIN",1577314,"Yes","Yes","Yes",null,null,939,"UNMANAGED"]
[null,null,null,null,null,null,null,null,null,null,null,null,null,null,null,null,null,null,null,null,null,null,null,null,9092,51,"Wyckham Vosper","PLAYER NOT AVAILABLE",0,"No","No","No",null,null,940,"Ken Atkinson"]
[null,null,null,null,null,null,null,null,null,null,null,null,null,null,null,null,null,null,null,null,null,null,null,null,9093,998,"Waiting List","PLAYER NOT AVAILABLE",0,"No","No","No",null,null,941,"Michael Atkinson-House"]
[null,null,null,null,null,null,null,null,null,null,null,null,null,null,null,null,null,null,null,null,null,null,null,null,9094,38,"Broxton Bulls","Jamaal LASCELLES",11614970,"Yes","Yes","Yes",null,null,942,"NOT APPLICABLE"]
[null,null,null,null,null,null,null,null,null,null,null,null,null,null,null,null,null,null,null,null,null,null,null,null,9095,48,"Hammersmith Celtic","Kevin MBABU",3828975,"Yes","Yes","Yes",null,null,943,"UNMANAGED"]
[null,null,null,null,null,null,null,null,null,null,null,null,null,null,null,null,null,null,null,null,null,null,null,null,9097,998,"Waiting List","PLAYER NOT AVAILABLE",0,"No","No","No",null,null,944,"Mick Sims"]
[null,null,null,null,null,null,null,null,null,null,null,null,null,null,null,null,null,null,null,null,null,null,null,null,9098,998,"Waiting List","PLAYER NOT AVAILABLE",0,"No","No","No",null,null,945,"Don Davern"]
[null,null,null,null,null,null,null,null,null,null,null,null,null,null,null,null,null,null,null,null,null,null,null,null,9099,0,"Transfer Pool","Idrissa GUEYE",2386728,"No","No","Yes",4,null,946,"UNMANAGED"]
[null,null,null,null,null,null,null,null,null,null,null,null,null,null,null,null,null,null,null,null,null,null,null,null,9100,123,"San Michael","PLAYER NOT AVAILABLE",0,"No","No","No",null,null,947,"NOT APPLICABLE"]
[null,null,null,null,null,null,null,null,null,null,null,null,null,null,null,null,null,null,null,null,null,null,null,null,9101,6,"Roymirth Rovers","Jordan VERETOUT",12298386,"Yes","Yes","Yes",null,null,948,"NOT APPLICABLE"]
[null,null,null,null,null,null,null,null,null,null,null,null,null,null,null,null,null,null,null,null,null,null,null,null,9102,4,"Markhoeven","Adama Diarra TRAORE",22953530,"Yes","Yes","Yes",null,null,949,"UNMANAGED"]
[null,null,null,null,null,null,null,null,null,null,null,null,null,null,null,null,null,null,null,null,null,null,null,null,9103,0,"Transfer Pool","Will HUGHES",5018254,"No","No","Yes",4,null,950,"UNMANAGED"]
[null,null,null,null,null,null,null,null,null,null,null,null,null,null,null,null,null,null,null,null,null,null,null,null,9104,998,"Waiting List","PLAYER NOT AVAILABLE",0,"No","No","No",null,null,951,"Ken Atkinson"]
[null,null,null,null,null,null,null,null,null,null,null,null,null,null,null,null,null,null,null,null,null,null,null,null,9106,59,"Sawbo Sabres","PLAYER NOT AVAILABLE",0,"No","No","No",null,null,952,"NOT APPLICABLE"]
[null,null,null,null,null,null,null,null,null,null,null,null,null,null,null,null,null,null,null,null,null,null,null,null,9107,36,"VF Turks","Aleix VIDAL",189710,"Yes","Yes","Yes",null,null,953,"Transfer List"]
[null,null,null,null,null,null,null,null,null,null,null,null,null,null,null,null,null,null,null,null,null,null,null,null,9108,0,"Transfer Pool","Demarai GRAY",2821451,"No","No","Yes",4,null,954,"David Bird"]
[null,null,null,null,null,null,null,null,null,null,null,null,null,null,null,null,null,null,null,null,null,null,null,null,9109,124,"Belize Gonagecha","PLAYER NOT AVAILABLE",0,"No","No","No",null,null,955,"James House"]
[null,null,null,null,null,null,null,null,null,null,null,null,null,null,null,null,null,null,null,null,null,null,null,null,9111,70,"Northridge Cormorants","Ruben NEVES",28351738,"Yes","Yes","Yes",null,null,956,"Norman House"]
[null,null,null,null,null,null,null,null,null,null,null,null,null,null,null,null,null,null,null,null,null,null,null,null,9112,18,"Fairoak Foresters","Luis Helio DANILO PEREIRA",10441205,"Yes","Yes","Yes",null,null,957,"UNMANAGED"]
[null,null,null,null,null,null,null,null,null,null,null,null,null,null,null,null,null,null,null,null,null,null,null,null,9114,37,"Old Petersfield","PLAYER NOT AVAILABLE",0,"No","No","No",null,null,958,"Don Davern"]
[null,null,null,null,null,null,null,null,null,null,null,null,null,null,null,null,null,null,null,null,null,null,null,null,9115,27,"Blackwater","Andre Felipe Bras ANDRE",378531,"Yes","Yes","Yes",null,null,959,"Norman House"]
[null,null,null,null,null,null,null,null,null,null,null,null,null,null,null,null,null,null,null,null,null,null,null,null,9117,32,"Jonton","Abel HERNANDEZ",472545,"Yes","Yes","Yes",null,null,960,"Don Davern"]
[null,null,null,null,null,null,null,null,null,null,null,null,null,null,null,null,null,null,null,null,null,null,null,null,9118,26,"Westfield","Chuba AKPOM",3089978,"Yes","Yes","Yes",null,null,961,"NOT APPLICABLE"]
[null,null,null,null,null,null,null,null,null,null,null,null,null,null,null,null,null,null,null,null,null,null,null,null,9119,85,"Krystle Palace","PLAYER NOT AVAILABLE",0,"No","No","No",null,null,962,"UNMANAGED"]
[null,null,null,null,null,null,null,null,null,null,null,null,null,null,null,null,null,null,null,null,null,null,null,null,9120,44,"Trevmania Travellers","PLAYER CAN'T BE SOLD",{"$f":"\"-\"","v":"-"},"No","Yes","No",null,null,963,"Don Davern"]
[null,null,null,null,null,null,null,null,null,null,null,null,null,null,null,null,null,null,null,null,null,null,null,null,9121,48,"Hammersmith Celtic","Moraes Junior GILBERTO",5057707,"Yes","Yes","Yes",null,null,964,"NOT APPLICABLE"]
[null,null,null,null,null,null,null,null,null,null,null,null,null,null,null,null,null,null,null,null,null,null,null,null,9122,84,"Oaklea Park","PLAYER NOT AVAILABLE",0,"No","No","No",null,null,965,"UNMANAGED"]
[null,null,null,null,null,null,null,null,null,null,null,null,null,null,null,null,null,null,null,null,null,null,null,null,9123,76,"Olympians","Federico BERNARDESCHI",1219880,"Yes","Yes","Yes",null,null,966,"Ken Atkinson"]
[null,null,null,null,null,null,null,null,null,null,null,null,null,null,null,null,null,null,null,null,null,null,null,null,9124,0,"Transfer Pool","Ante REBIC",8923174,"No","No","Yes",3,null,967,"Transfer List"]
[null,null,null,null,null,null,null,null,null,null,null,null,null,null,null,null,null,null,null,null,null,null,null,null,9125,40,"H&H","Luigi SEPE",1432457,"Yes","Yes","Yes",null,null,968,"NOT APPLICABLE"]
[null,null,null,null,null,null,null,null,null,null,null,null,null,null,null,null,null,null,null,null,null,null,null,null,9128,37,"Old Petersfield","PLAYER NOT AVAILABLE",0,"No","No","No",null,null,969,"NOT APPLICABLE"]
[null,null,null,null,null,null,null,null,null,null,null,null,null,null,null,null,null,null,null,null,null,null,null,null,9129,998,"Waiting List","PLAYER NOT AVAILABLE",0,"No","No","No",null,null,970,"Robin Slade"]
[null,null,null,null,null,null,null,null,null,null,null,null,null,null,null,null,null,null,null,null,null,null,null,null,9134,998,"Waiting List","PLAYER NOT AVAILABLE",0,"No","No","No",null,null,971,"Michael Atkinson-House"]
[null,null,null,null,null,null,null,null,null,null,null,null,null,null,null,null,null,null,null,null,null,null,null,null,9136,998,"Waiting List","PLAYER NOT AVAILABLE",0,"No","No","No",null,null,972,"Ken Atkinson"]
[null,null,null,null,null,null,null,null,null,null,null,null,null,null,null,null,null,null,null,null,null,null,null,null,9137,81,"Tangerinions","PLAYER NOT AVAILABLE",0,"No","No","No",null,null,973,"Ken Atkinson"]
[null,null,null,null,null,null,null,null,null,null,null,null,null,null,null,null,null,null,null,null,null,null,null,null,9138,998,"Waiting List","PLAYER NOT AVAILABLE",0,"No","No","No",null,null,974,"NOT APPLICABLE"]
[null,null,null,null,null,null,null,null,null,null,null,null,null,null,null,null,null,null,null,null,null,null,null,null,9140,124,"Belize Gonagecha","PLAYER NOT AVAILABLE",0,"No","No","No",null,null,975,"UNMANAGED"]
[null,null,null,null,null,null,null,null,null,null,null,null,null,null,null,null,null,null,null,null,null,null,null,null,9146,998,"Waiting List","PLAYER NOT AVAILABLE",0,"No","No","No",null,null,976,"NOT APPLICABLE"]
[null,null,null,null,null,null,null,null,null,null,null,null,null,null,null,null,null,null,null,null,null,null,null,null,9150,51,"Wyckham Vosper","PLAYER NOT AVAILABLE",0,"No","No","No",null,null,977,"NOT APPLICABLE"]
[null,null,null,null,null,null,null,null,null,null,null,null,null,null,null,null,null,null,null,null,null,null,null,null,9152,998,"Waiting List","PLAYER NOT AVAILABLE",0,"No","No","No",null,null,978,"NOT APPLICABLE"]
[null,null,null,null,null,null,null,null,null,null,null,null,null,null,null,null,null,null,null,null,null,null,null,null,9153,70,"Northridge Cormorants","Sergej MILINKOVIC-SAVIC",22486763,"Yes","Yes","Yes",null,null,979,"NOT APPLICABLE"]
[null,null,null,null,null,null,null,null,null,null,null,null,null,null,null,null,null,null,null,null,null,null,null,null,9154,998,"Waiting List","PLAYER NOT AVAILABLE",0,"No","No","No",null,null,980,"Michael Atkinson-House"]
[null,null,null,null,null,null,null,null,null,null,null,null,null,null,null,null,null,null,null,null,null,null,null,null,9155,998,"Waiting List","PLAYER NOT AVAILABLE",0,"No","No","No",null,null,981,"NOT APPLICABLE"]
[null,null,null,null,null,null,null,null,null,null,null,null,null,null,null,null,null,null,null,null,null,null,null,null,9156,29,"Ibursea Wolves","PLAYER NOT AVAILABLE",0,"No","No","No",null,null,982,"NOT APPLICABLE"]
[null,null,null,null,null,null,null,null,null,null,null,null,null,null,null,null,null,null,null,null,null,null,null,null,9157,14,"Treverton","Sead KOLASINAC",6120997,"Yes","Yes","Yes",null,null,983,"UNMANAGED"]
[null,null,null,null,null,null,null,null,null,null,null,null,null,null,null,null,null,null,null,null,null,null,null,null,9158,91,"Goldhanger","PLAYER NOT AVAILABLE",0,"No","No","No",null,null,984,"Robin Slade"]
[null,null,null,null,null,null,null,null,null,null,null,null,null,null,null,null,null,null,null,null,null,null,null,null,9160,44,"Trevmania Travellers","Leroy SANE",29805815,"Yes","Yes","Yes",null,null,985,"UNMANAGED"]
[null,null,null,null,null,null,null,null,null,null,null,null,null,null,null,null,null,null,null,null,null,null,null,null,9162,998,"Waiting List","PLAYER NOT AVAILABLE",0,"No","No","No",null,null,986,"Michael Atkinson-House"]
[null,null,null,null,null,null,null,null,null,null,null,null,null,null,null,null,null,null,null,null,null,null,null,null,9163,128,"Yelsel Nosnikta","Fortuna dos Santos WALLACE",11752577,"Yes","Yes","Yes",null,null,987,"James House"]
[null,null,null,null,null,null,null,null,null,null,null,null,null,null,null,null,null,null,null,null,null,null,null,null,9164,998,"Waiting List","PLAYER NOT AVAILABLE",0,"No","No","No",null,null,988,"Steven Dingsdale"]
[null,null,null,null,null,null,null,null,null,null,null,null,null,null,null,null,null,null,null,null,null,null,null,null,9165,17,"Bishops Burghclere","Moussa DEMBELE",18330668,"Yes","Yes","Yes",null,null,989,"Michael Atkinson-House"]
[null,null,null,null,null,null,null,null,null,null,null,null,null,null,null,null,null,null,null,null,null,null,null,null,9167,63,"Davemoor","PLAYER NOT AVAILABLE",0,"No","No","No",null,null,990,"Lesley Atkinson"]
[null,null,null,null,null,null,null,null,null,null,null,null,null,null,null,null,null,null,null,null,null,null,null,null,9168,17,"Bishops Burghclere","Callum WILSON",11235337,"Yes","Yes","Yes",null,null,991,"Transfer List"]
[null,null,null,null,null,null,null,null,null,null,null,null,null,null,null,null,null,null,null,null,null,null,null,null,9169,70,"Northridge Cormorants","Marcus RASHFORD",29617459,"Yes","Yes","Yes",null,null,992,"Bernie Iles"]
[null,null,null,null,null,null,null,null,null,null,null,null,null,null,null,null,null,null,null,null,null,null,null,null,9170,48,"Hammersmith Celtic","Eric BAILLY",8477450,"Yes","Yes","Yes",null,null,993,"NOT APPLICABLE"]
[null,null,null,null,null,null,null,null,null,null,null,null,null,null,null,null,null,null,null,null,null,null,null,null,9172,35,"Fraserborough","Cedric BAKAMBU",2846215,"Yes","Yes","Yes",null,null,994,"NOT APPLICABLE"]
[null,null,null,null,null,null,null,null,null,null,null,null,null,null,null,null,null,null,null,null,null,null,null,null,9173,998,"Waiting List","PLAYER NOT AVAILABLE",0,"No","No","No",null,null,995,"Transfer List"]
[null,null,null,null,null,null,null,null,null,null,null,null,null,null,null,null,null,null,null,null,null,null,null,null,9175,998,"Waiting List","PLAYER NOT AVAILABLE",0,"No","No","No",null,null,996,"UNMANAGED"]
[null,null,null,null,null,null,null,null,null,null,null,null,null,null,null,null,null,null,null,null,null,null,null,null,9178,45,"NPA","PLAYER NOT AVAILABLE",0,"No","No","No",null,null,997,"Lesley Atkinson"]
[null,null,null,null,null,null,null,null,null,null,null,null,null,null,null,null,null,null,null,null,null,null,null,null,9180,4,"Markhoeven","Oleksandr ZINCHENKO",31262873,"Yes","Yes","Yes",null,null,998,"Transfer List"]
[null,null,null,null,null,null,null,null,null,null,null,null,null,null,null,null,null,null,null,null,null,null,null,null,9181,33,"Jarikton","Nampalys MENDY",3178051,"Yes","Yes","Yes",null,null,999,"UNMANAGED"]
[null,null,null,null,null,null,null,null,null,null,null,null,null,null,null,null,null,null,null,null,null,null,null,null,9182,45,"NPA","PLAYER NOT AVAILABLE",0,"No","No","No",null,null,1000,"UNMANAGED"]
[null,null,null,null,null,null,null,null,null,null,null,null,null,null,null,null,null,null,null,null,null,null,null,null,9183,4,"Markhoeven","Thomas MEUNIER",5155445,"Yes","Yes","Yes",null,null,1001,"NOT APPLICABLE"]
[null,null,null,null,null,null,null,null,null,null,null,null,null,null,null,null,null,null,null,null,null,null,null,null,9184,998,"Waiting List","PLAYER NOT AVAILABLE",0,"No","No","No",null,null,1002,"UNMANAGED"]
[null,null,null,null,null,null,null,null,null,null,null,null,null,null,null,null,null,null,null,null,null,null,null,null,9185,998,"Waiting List","PLAYER NOT AVAILABLE",0,"No","No","No",null,null,1003,"James House"]
[null,null,null,null,null,null,null,null,null,null,null,null,null,null,null,null,null,null,null,null,null,null,null,null,9187,33,"Jarikton","Papy DJILOBODJI",1072607,"Yes","Yes","Yes",null,null,1004,"Michael Atkinson-House"]
[null,null,null,null,null,null,null,null,null,null,null,null,null,null,null,null,null,null,null,null,null,null,null,null,9189,0,"Transfer Pool","Rob HOLDING",7311154,"No","No","Yes",4,null,1005,"NOT APPLICABLE"]
[null,null,null,null,null,null,null,null,null,null,null,null,null,null,null,null,null,null,null,null,null,null,null,null,9191,0,"Transfer Pool","Samuel UMTITI",8752138,"No","No","Yes",2,null,1006,"NOT APPLICABLE"]
[null,null,null,null,null,null,null,null,null,null,null,null,null,null,null,null,null,null,null,null,null,null,null,null,9192,36,"VF Turks","Isaac HAYDEN",1241900,"Yes","Yes","Yes",null,null,1007,"NOT APPLICABLE"]
[null,null,null,null,null,null,null,null,null,null,null,null,null,null,null,null,null,null,null,null,null,null,null,null,9193,17,"Bishops Burghclere","Pierre-Emile HOJBJERG",23922869,"Yes","Yes","Yes",null,null,1008,"NOT APPLICABLE"]
[null,null,null,null,null,null,null,null,null,null,null,null,null,null,null,null,null,null,null,null,null,null,null,null,9194,10,"Springfield Lyons","Fernando GABRIEL JESUS",32623599,"Yes","Yes","Yes",null,null,1009,"Bernie Iles"]
[null,null,null,null,null,null,null,null,null,null,null,null,null,null,null,null,null,null,null,null,null,null,null,null,9196,3,"Real Jameosean","PLAYER NOT AVAILABLE",0,"No","No","No",null,null,1010,"Paul Newman"]
[null,null,null,null,null,null,null,null,null,null,null,null,null,null,null,null,null,null,null,null,null,null,null,null,9199,76,"Olympians","Mattia PERIN",10327921,"Yes","Yes","Yes",null,null,1011,"UNMANAGED"]
[null,null,null,null,null,null,null,null,null,null,null,null,null,null,null,null,null,null,null,null,null,null,null,null,9200,998,"Waiting List","PLAYER NOT AVAILABLE",0,"No","No","No",null,null,1012,"NOT APPLICABLE"]
[null,null,null,null,null,null,null,null,null,null,null,null,null,null,null,null,null,null,null,null,null,null,null,null,9201,54,"Skylark Santiago","PLAYER NOT AVAILABLE",0,"No","No","No",null,null,1013,"NOT APPLICABLE"]
[null,null,null,null,null,null,null,null,null,null,null,null,null,null,null,null,null,null,null,null,null,null,null,null,9202,25,"Nempton","PLAYER NOT AVAILABLE",0,"No","No","No",null,null,1014,"UNMANAGED"]
[null,null,null,null,null,null,null,null,null,null,null,null,null,null,null,null,null,null,null,null,null,null,null,null,9205,998,"Waiting List","PLAYER NOT AVAILABLE",0,"No","No","No",null,null,1015,"Don Davern"]
[null,null,null,null,null,null,null,null,null,null,null,null,null,null,null,null,null,null,null,null,null,null,null,null,9206,5,"Hurricane Harriers","Tammy ABRAHAM",26197427,"Yes","Yes","Yes",null,null,1016,"Don Davern"]
[null,null,null,null,null,null,null,null,null,null,null,null,null,null,null,null,null,null,null,null,null,null,null,null,9207,82,"Riverside","Lucas ALARIO",10319769,"Yes","Yes","Yes",null,null,1017,"UNMANAGED"]
[null,null,null,null,null,null,null,null,null,null,null,null,null,null,null,null,null,null,null,null,null,null,null,null,9208,31,"Nesportivo","Carles ALENA",8944186,"Yes","Yes","Yes",null,null,1018,"Transfer List"]
[null,null,null,null,null,null,null,null,null,null,null,null,null,null,null,null,null,null,null,null,null,null,null,null,9210,17,"Bishops Burghclere","Lopez YERAY ALVAREZ",9792501,"Yes","Yes","Yes",null,null,1019,"NOT APPLICABLE"]
[null,null,null,null,null,null,null,null,null,null,null,null,null,null,null,null,null,null,null,null,null,null,null,null,9212,48,"Hammersmith Celtic","Miguel Valente ANDRE SILVA",10185962,"Yes","Yes","Yes",null,null,1020,"UNMANAGED"]
[null,null,null,null,null,null,null,null,null,null,null,null,null,null,null,null,null,null,null,null,null,null,null,null,9216,12,"Inter Normania","Marco ASENSIO",34093089,"Yes","Yes","Yes",null,null,1021,"NOT APPLICABLE"]
[null,null,null,null,null,null,null,null,null,null,null,null,null,null,null,null,null,null,null,null,null,null,null,null,9218,6,"Roymirth Rovers","PLAYER CAN'T BE SOLD",{"$f":"\"-\"","v":"-"},"No","Yes","No",null,null,1022,"Michael Atkinson-House"]
[null,null,null,null,null,null,null,null,null,null,null,null,null,null,null,null,null,null,null,null,null,null,null,null,9222,0,"Transfer Pool","Barthomolew Jacinto Quissanga BASTOS",7171020,"No","No","Yes",3,null,1023,"UNMANAGED"]
[null,null,null,null,null,null,null,null,null,null,null,null,null,null,null,null,null,null,null,null,null,null,null,null,9223,0,"Transfer Pool","Oliver BAUMANN",1563832,"No","No","Yes",4,null,1024,"Transfer List"]
[null,null,null,null,null,null,null,null,null,null,null,null,null,null,null,null,null,null,null,null,null,null,null,null,9225,0,"Transfer Pool","Ramses Becker ALISSON",31304495,"No","No","Yes",2,null,1025,"James House"]
[null,null,null,null,null,null,null,null,null,null,null,null,null,null,null,null,null,null,null,null,null,null,null,null,9226,40,"H&H","Jan BEDNAREK",8765028,"Yes","Yes","Yes",null,null,1026,"James House"]
[null,null,null,null,null,null,null,null,null,null,null,null,null,null,null,null,null,null,null,null,null,null,null,null,9228,44,"Trevmania Travellers","Wissam BEN YEDDER",8050482,"Yes","Yes","Yes",null,null,1027,"UNMANAGED"]
[null,null,null,null,null,null,null,null,null,null,null,null,null,null,null,null,null,null,null,null,null,null,null,null,9230,998,"Waiting List","PLAYER NOT AVAILABLE",0,"No","No","No",null,null,1028,"UNMANAGED"]
[null,null,null,null,null,null,null,null,null,null,null,null,null,null,null,null,null,null,null,null,null,null,null,null,9231,37,"Old Petersfield","PLAYER NOT AVAILABLE",0,"No","No","No",null,null,1029,"Paul Newman"]
[null,null,null,null,null,null,null,null,null,null,null,null,null,null,null,null,null,null,null,null,null,null,null,null,9232,21,"Christophia","PLAYER CAN'T BE SOLD",{"$f":"\"-\"","v":"-"},"No","Yes","No",null,null,1030,"Ken Atkinson"]
[null,null,null,null,null,null,null,null,null,null,null,null,null,null,null,null,null,null,null,null,null,null,null,null,9233,45,"NPA","PLAYER NOT AVAILABLE",0,"No","No","No",null,null,1031,"Transfer List"]
[null,null,null,null,null,null,null,null,null,null,null,null,null,null,null,null,null,null,null,null,null,null,null,null,9234,0,"Transfer Pool","Jeremie BOGA",16488968,"No","No","Yes",2,null,1032,"James House"]
[null,null,null,null,null,null,null,null,null,null,null,null,null,null,null,null,null,null,null,null,null,null,null,null,9238,998,"Waiting List","PLAYER NOT AVAILABLE",0,"No","No","No",null,null,1033,"NOT APPLICABLE"]
[null,null,null,null,null,null,null,null,null,null,null,null,null,null,null,null,null,null,null,null,null,null,null,null,9239,126,"Weslington","Sofiane BOUFAL",4466455,"Yes","Yes","Yes",null,null,1034,"NOT APPLICABLE"]
[null,null,null,null,null,null,null,null,null,null,null,null,null,null,null,null,null,null,null,null,null,null,null,null,9241,998,"Waiting List","PLAYER NOT AVAILABLE",0,"No","No","No",null,null,1035,"Paul Newman"]
[null,null,null,null,null,null,null,null,null,null,null,null,null,null,null,null,null,null,null,null,null,null,null,null,9242,998,"Waiting List","PLAYER NOT AVAILABLE",0,"No","No","No",null,null,1036,"NOT APPLICABLE"]
[null,null,null,null,null,null,null,null,null,null,null,null,null,null,null,null,null,null,null,null,null,null,null,null,9246,40,"H&H","Dani CEBALLOS",7974431,"Yes","Yes","Yes",null,null,1037,"Steven Dingsdale"]
[null,null,null,null,null,null,null,null,null,null,null,null,null,null,null,null,null,null,null,null,null,null,null,null,9247,54,"Skylark Santiago","PLAYER NOT AVAILABLE",0,"No","No","No",null,null,1038,"Paul Newman"]
[null,null,null,null,null,null,null,null,null,null,null,null,null,null,null,null,null,null,null,null,null,null,null,null,9248,20,"Nessertoponions","PLAYER CAN'T BE SOLD",{"$f":"\"-\"","v":"-"},"No","Yes","No",null,null,1039,"Olivia Andrews"]
[null,null,null,null,null,null,null,null,null,null,null,null,null,null,null,null,null,null,null,null,null,null,null,null,9253,22,"Nellerton City","Andrea CONTI",1142191,"Yes","Yes","Yes",null,null,1040,"Norman House"]
[null,null,null,null,null,null,null,null,null,null,null,null,null,null,null,null,null,null,null,null,null,null,null,null,9256,13,"AC Desantelakos","Joaquin CORREA",9661885,"Yes","Yes","Yes",null,null,1041,"UNMANAGED"]
[null,null,null,null,null,null,null,null,null,null,null,null,null,null,null,null,null,null,null,null,null,null,null,null,9258,998,"Waiting List","PLAYER NOT AVAILABLE",0,"No","No","No",null,null,1042,"UNMANAGED"]
[null,null,null,null,null,null,null,null,null,null,null,null,null,null,null,null,null,null,null,null,null,null,null,null,9259,6,"Roymirth Rovers","Mahmoud DAHOUD",5175232,"Yes","Yes","Yes",null,null,1043,"Steven Dingsdale"]
[null,null,null,null,null,null,null,null,null,null,null,null,null,null,null,null,null,null,null,null,null,null,null,null,9260,63,"Davemoor","PLAYER NOT AVAILABLE",0,"No","No","No",null,null,1044,"Paul Newman"]
[null,null,null,null,null,null,null,null,null,null,null,null,null,null,null,null,null,null,null,null,null,null,null,null,9261,107,"Falconetti Fire","Tom DAVIES",8497964,"Yes","Yes","Yes",null,null,1045,"UNMANAGED"]
[null,null,null,null,null,null,null,null,null,null,null,null,null,null,null,null,null,null,null,null,null,null,null,null,9263,48,"Hammersmith Celtic","Marten DE ROON",6727924,"Yes","Yes","Yes",null,null,1046,"NOT APPLICABLE"]
[null,null,null,null,null,null,null,null,null,null,null,null,null,null,null,null,null,null,null,null,null,null,null,null,9264,0,"Transfer Pool","Ousmane DEMBELE",46282902,"No","No","Yes",3,null,1047,"Transfer List"]
[null,null,null,null,null,null,null,null,null,null,null,null,null,null,null,null,null,null,null,null,null,null,null,null,9265,998,"Waiting List","PLAYER NOT AVAILABLE",0,"No","No","No",null,null,1048,"Steven Dingsdale"]
[null,null,null,null,null,null,null,null,null,null,null,null,null,null,null,null,null,null,null,null,null,null,null,null,9270,38,"Broxton Bulls","Matias VECINO",15425759,"Yes","Yes","Yes",null,null,1049,"UNMANAGED"]
[null,null,null,null,null,null,null,null,null,null,null,null,null,null,null,null,null,null,null,null,null,null,null,null,9271,2,"Harrogate Orient","Marko ROG",1782695,"Yes","Yes","Yes",null,null,1050,"Transfer List"]
[null,null,null,null,null,null,null,null,null,null,null,null,null,null,null,null,null,null,null,null,null,null,null,null,9273,0,"Transfer Pool","Haris SEFEROVIC",3175515,"No","No","Yes",3,null,1051,"Bernie Iles"]
[null,null,null,null,null,null,null,null,null,null,null,null,null,null,null,null,null,null,null,null,null,null,null,null,9274,22,"Nellerton City","Granit XHAKA",25133163,"Yes","Yes","Yes",null,null,1052,"James House"]
[null,null,null,null,null,null,null,null,null,null,null,null,null,null,null,null,null,null,null,null,null,null,null,null,9277,14,"Treverton","Roman BURKI",4445131,"Yes","Yes","Yes",null,null,1053,"Paul Newman"]
[null,null,null,null,null,null,null,null,null,null,null,null,null,null,null,null,null,null,null,null,null,null,null,null,9278,96,"Stonebridge","PLAYER NOT AVAILABLE",0,"No","No","No",null,null,1054,"Transfer List"]
[null,null,null,null,null,null,null,null,null,null,null,null,null,null,null,null,null,null,null,null,null,null,null,null,9279,21,"Christophia","Aleksandr KOKORIN",556340,"Yes","Yes","Yes",null,null,1055,"UNMANAGED"]
[null,null,null,null,null,null,null,null,null,null,null,null,null,null,null,null,null,null,null,null,null,null,null,null,9280,41,"Newcombe United","Yury GAZINSKIY",239931,"Yes","Yes","Yes",null,null,1056,"Transfer List"]
[null,null,null,null,null,null,null,null,null,null,null,null,null,null,null,null,null,null,null,null,null,null,null,null,9281,99,"Hamlet Foxes","PLAYER NOT AVAILABLE",0,"No","No","No",null,null,1057,"James House"]
[null,null,null,null,null,null,null,null,null,null,null,null,null,null,null,null,null,null,null,null,null,null,null,null,9285,998,"Waiting List","PLAYER NOT AVAILABLE",0,"No","No","No",null,null,1058,"Bernie Iles"]
[null,null,null,null,null,null,null,null,null,null,null,null,null,null,null,null,null,null,null,null,null,null,null,null,9286,0,"Transfer Pool","Gonzalo Nicolas PITY MARTINEZ",9200562,"No","No","Yes",2,null,1059,"UNMANAGED"]
[null,null,null,null,null,null,null,null,null,null,null,null,null,null,null,null,null,null,null,null,null,null,null,null,9287,0,"Transfer Pool","Odsonne EDOUARD",9404577,"No","No","Yes",2,null,1060,"Norman House"]
[null,null,null,null,null,null,null,null,null,null,null,null,null,null,null,null,null,null,null,null,null,null,null,null,9289,3,"Real Jameosean","PLAYER NOT AVAILABLE",0,"No","No","No",null,null,1061,"James House"]
[null,null,null,null,null,null,null,null,null,null,null,null,null,null,null,null,null,null,null,null,null,null,null,null,9290,0,"Transfer Pool","Ryan SESSEGNON",1605451,"No","No","Yes",3,null,1062,"UNMANAGED"]
[null,null,null,null,null,null,null,null,null,null,null,null,null,null,null,null,null,null,null,null,null,null,null,null,9292,64,"Fellerton","Sadio MANE",17493863,"Yes","Yes","Yes",null,null,1063,"Don Davern"]
[null,null,null,null,null,null,null,null,null,null,null,null,null,null,null,null,null,null,null,null,null,null,null,null,9293,998,"Waiting List","PLAYER NOT AVAILABLE",0,"No","No","No",null,null,1064,"James House"]
[null,null,null,null,null,null,null,null,null,null,null,null,null,null,null,null,null,null,null,null,null,null,null,null,9295,998,"Waiting List","PLAYER NOT AVAILABLE",0,"No","No","No",null,null,1065,"UNMANAGED"]
[null,null,null,null,null,null,null,null,null,null,null,null,null,null,null,null,null,null,null,null,null,null,null,null,9296,998,"Waiting List","PLAYER NOT AVAILABLE",0,"No","No","No",null,null,1066,"NOT APPLICABLE"]
[null,null,null,null,null,null,null,null,null,null,null,null,null,null,null,null,null,null,null,null,null,null,null,null,9298,0,"Transfer Pool","Nikola VLASIC",9583057,"No","No","Yes",3,null,1067,"Ken Atkinson"]
[null,null,null,null,null,null,null,null,null,null,null,null,null,null,null,null,null,null,null,null,null,null,null,null,9302,35,"Fraserborough","PLAYER CAN'T BE SOLD",{"$f":"\"-\"","v":"-"},"No","Yes","No",null,null,1068,"Bernie Iles"]
[null,null,null,null,null,null,null,null,null,null,null,null,null,null,null,null,null,null,null,null,null,null,null,null,9303,0,"Transfer Pool","Antonio DONNARUMMA",679459,"No","No","Yes",1,null,1069,"NOT APPLICABLE"]
[null,null,null,null,null,null,null,null,null,null,null,null,null,null,null,null,null,null,null,null,null,null,null,null,9305,998,"Waiting List","PLAYER NOT AVAILABLE",0,"No","No","No",null,null,1070,"NOT APPLICABLE"]
[null,null,null,null,null,null,null,null,null,null,null,null,null,null,null,null,null,null,null,null,null,null,null,null,9306,23,"Rushleydale","Soares de Paulo DOUGLAS LUIZ",32113471,"Yes","Yes","Yes",null,null,1071,"Bernie Iles"]
[null,null,null,null,null,null,null,null,null,null,null,null,null,null,null,null,null,null,null,null,null,null,null,null,9307,73,"Sparta Limarnder","Bartlomiej DRAGOWSKI",3773827,"Yes","Yes","Yes",null,null,1072,"Norman House"]
[null,null,null,null,null,null,null,null,null,null,null,null,null,null,null,null,null,null,null,null,null,null,null,null,9309,998,"Waiting List","PLAYER NOT AVAILABLE",0,"No","No","No",null,null,1073,"NOT APPLICABLE"]
[null,null,null,null,null,null,null,null,null,null,null,null,null,null,null,null,null,null,null,null,null,null,null,null,9310,44,"Trevmania Travellers","Lewis DUNK",14725625,"Yes","Yes","Yes",null,null,1074,"NOT APPLICABLE"]
[null,null,null,null,null,null,null,null,null,null,null,null,null,null,null,null,null,null,null,null,null,null,null,null,9312,40,"H&H","Nico ELVEDI",11322579,"Yes","Yes","Yes",null,null,1075,"NOT APPLICABLE"]
[null,null,null,null,null,null,null,null,null,null,null,null,null,null,null,null,null,null,null,null,null,null,null,null,9313,65,"Lemmington","PLAYER NOT AVAILABLE",0,"No","No","No",null,null,1076,"UNMANAGED"]
[null,null,null,null,null,null,null,null,null,null,null,null,null,null,null,null,null,null,null,null,null,null,null,null,9314,998,"Waiting List","PLAYER NOT AVAILABLE",0,"No","No","No",null,null,1077,"Robin Slade"]
[null,null,null,null,null,null,null,null,null,null,null,null,null,null,null,null,null,null,null,null,null,null,null,null,9315,8,"Intersol","PLAYER NOT AVAILABLE",0,"No","No","No",null,null,1078,"UNMANAGED"]
[null,null,null,null,null,null,null,null,null,null,null,null,null,null,null,null,null,null,null,null,null,null,null,null,9316,36,"VF Turks","Pablo FORNALS",7759010,"Yes","Yes","Yes",null,null,1079,"NOT APPLICABLE"]
[null,null,null,null,null,null,null,null,null,null,null,null,null,null,null,null,null,null,null,null,null,null,null,null,9317,46,"Marquis of Granby","PLAYER NOT AVAILABLE",0,"No","No","No",null,null,1080,"Transfer List"]
[null,null,null,null,null,null,null,null,null,null,null,null,null,null,null,null,null,null,null,null,null,null,null,null,9318,38,"Broxton Bulls","Ryan FRASER",1306712,"Yes","Yes","Yes",null,null,1081,"Olivia Andrews"]
[null,null,null,null,null,null,null,null,null,null,null,null,null,null,null,null,null,null,null,null,null,null,null,null,9319,65,"Lemmington","PLAYER NOT AVAILABLE",0,"No","No","No",null,null,1082,"Robin Slade"]
[null,null,null,null,null,null,null,null,null,null,null,null,null,null,null,null,null,null,null,null,null,null,null,null,9320,998,"Waiting List","PLAYER NOT AVAILABLE",0,"No","No","No",null,null,1083,"UNMANAGED"]
[null,null,null,null,null,null,null,null,null,null,null,null,null,null,null,null,null,null,null,null,null,null,null,null,9321,35,"Fraserborough","Vasconcelos Ferreira GABRIEL",1114169,"Yes","Yes","Yes",null,null,1084,"Lesley Atkinson"]
[null,null,null,null,null,null,null,null,null,null,null,null,null,null,null,null,null,null,null,null,null,null,null,null,9322,56,"All Saints United","Roberto GAGLIARDINI",14011710,"Yes","Yes","Yes",null,null,1085,"Transfer List"]
[null,null,null,null,null,null,null,null,null,null,null,null,null,null,null,null,null,null,null,null,null,null,null,null,9323,998,"Waiting List","PLAYER NOT AVAILABLE",0,"No","No","No",null,null,1086,"Bernie Iles"]
[null,null,null,null,null,null,null,null,null,null,null,null,null,null,null,null,null,null,null,null,null,null,null,null,9324,0,"Transfer Pool","Rachid GHEZZAL",10197099,"No","No","Yes",3,null,1087,"James House"]
[null,null,null,null,null,null,null,null,null,null,null,null,null,null,null,null,null,null,null,null,null,null,null,null,9325,998,"Waiting List","PLAYER NOT AVAILABLE",0,"No","No","No",null,null,1088,"UNMANAGED"]
[null,null,null,null,null,null,null,null,null,null,null,null,null,null,null,null,null,null,null,null,null,null,null,null,9326,11,"JPR","Kamil GLIK",44362,"Yes","Yes","Yes",null,null,1089,"UNMANAGED"]
[null,null,null,null,null,null,null,null,null,null,null,null,null,null,null,null,null,null,null,null,null,null,null,null,9328,10,"Springfield Lyons","Leon GORETZKA",31596432,"Yes","Yes","Yes",null,null,1090,"Bernie Iles"]
[null,null,null,null,null,null,null,null,null,null,null,null,null,null,null,null,null,null,null,null,null,null,null,null,9329,120,"Sherfield Saints","PLAYER NOT AVAILABLE",0,"No","No","No",null,null,1091,"Robin Slade"]
[null,null,null,null,null,null,null,null,null,null,null,null,null,null,null,null,null,null,null,null,null,null,null,null,9331,0,"Transfer Pool","Florian GRILLITSCH",6226909,"No","No","Yes",4,null,1092,"NOT APPLICABLE"]
[null,null,null,null,null,null,null,null,null,null,null,null,null,null,null,null,null,null,null,null,null,null,null,null,9332,41,"Newcombe United","Pascal GROSS",14166987,"Yes","Yes","Yes",null,null,1093,"Paul Newman"]
[null,null,null,null,null,null,null,null,null,null,null,null,null,null,null,null,null,null,null,null,null,null,null,null,9333,0,"Transfer Pool","Johann GUDMUNDSSON",2483133,"No","No","Yes",1,null,1094,"Bernie Iles"]
[null,null,null,null,null,null,null,null,null,null,null,null,null,null,null,null,null,null,null,null,null,null,null,null,9334,32,"Jonton","Raphael GUERREIRO",16401546,"Yes","Yes","Yes",null,null,1095,"NOT APPLICABLE"]
[null,null,null,null,null,null,null,null,null,null,null,null,null,null,null,null,null,null,null,null,null,null,null,null,9337,20,"Nessertoponions","Serhou GUIRASSY",21493008,"Yes","Yes","Yes",null,null,1096,"NOT APPLICABLE"]
[null,null,null,null,null,null,null,null,null,null,null,null,null,null,null,null,null,null,null,null,null,null,null,null,9338,18,"Fairoak Foresters","Raul GUSTAVO GOMEZ",5541734,"Yes","Yes","Yes",null,null,1097,"UNMANAGED"]
[null,null,null,null,null,null,null,null,null,null,null,null,null,null,null,null,null,null,null,null,null,null,null,null,9339,29,"Ibursea Wolves","PLAYER NOT AVAILABLE",0,"No","No","No",null,null,1098,"Stewart Andrews"]
[null,null,null,null,null,null,null,null,null,null,null,null,null,null,null,null,null,null,null,null,null,null,null,null,9340,60,"Chelmersdale","PLAYER NOT AVAILABLE",0,"No","No","No",null,null,1099,"NOT APPLICABLE"]
[null,null,null,null,null,null,null,null,null,null,null,null,null,null,null,null,null,null,null,null,null,null,null,null,9341,998,"Waiting List","PLAYER NOT AVAILABLE",0,"No","No","No",null,null,1100,"Robin Slade"]
[null,null,null,null,null,null,null,null,null,null,null,null,null,null,null,null,null,null,null,null,null,null,null,null,9342,90,"Saddington","PLAYER NOT AVAILABLE",0,"No","No","No",null,null,1101,"Robin Slade"]
[null,null,null,null,null,null,null,null,null,null,null,null,null,null,null,null,null,null,null,null,null,null,null,null,9343,69,"Gainsborough Hamlet","Kai HAVERTZ",25026216,"Yes","Yes","Yes",null,null,1102,"UNMANAGED"]
[null,null,null,null,null,null,null,null,null,null,null,null,null,null,null,null,null,null,null,null,null,null,null,null,9345,35,"Fraserborough","Dominique HEINTZ",2652074,"Yes","Yes","Yes",null,null,1103,"UNMANAGED"]
[null,null,null,null,null,null,null,null,null,null,null,null,null,null,null,null,null,null,null,null,null,null,null,null,9347,998,"Waiting List","PLAYER NOT AVAILABLE",0,"No","No","No",null,null,1104,"UNMANAGED"]
[null,null,null,null,null,null,null,null,null,null,null,null,null,null,null,null,null,null,null,null,null,null,null,null,9348,38,"Broxton Bulls","Benjamin HENRICHS",20319072,"Yes","Yes","Yes",null,null,1105,"Transfer List"]
[null,null,null,null,null,null,null,null,null,null,null,null,null,null,null,null,null,null,null,null,null,null,null,null,9349,22,"Nellerton City","Francois Bernard LUCAS HERNANDEZ",30551560,"Yes","Yes","Yes",null,null,1106,"UNMANAGED"]
[null,null,null,null,null,null,null,null,null,null,null,null,null,null,null,null,null,null,null,null,null,null,null,null,9351,0,"Transfer Pool","Davide ZAPPACOSTA",3571498,"No","No","Yes",4,null,1107,"UNMANAGED"]
[null,null,null,null,null,null,null,null,null,null,null,null,null,null,null,null,null,null,null,null,null,null,null,null,9352,998,"Waiting List","PLAYER NOT AVAILABLE",0,"No","No","No",null,null,1108,"Don Davern"]
[null,null,null,null,null,null,null,null,null,null,null,null,null,null,null,null,null,null,null,null,null,null,null,null,9353,119,"Jessingborough Jets","PLAYER NOT AVAILABLE",0,"No","No","No",null,null,1109,"Paul Newman"]
[null,null,null,null,null,null,null,null,null,null,null,null,null,null,null,null,null,null,null,null,null,null,null,null,9354,35,"Fraserborough","Timo HORN",5705580,"Yes","Yes","Yes",null,null,1110,"UNMANAGED"]
[null,null,null,null,null,null,null,null,null,null,null,null,null,null,null,null,null,null,null,null,null,null,null,null,9356,54,"Skylark Santiago","PLAYER NOT AVAILABLE",0,"No","No","No",null,null,1111,"NOT APPLICABLE"]
[null,null,null,null,null,null,null,null,null,null,null,null,null,null,null,null,null,null,null,null,null,null,null,null,9358,46,"Marquis of Granby","PLAYER NOT AVAILABLE",0,"No","No","No",null,null,1112,"UNMANAGED"]
[null,null,null,null,null,null,null,null,null,null,null,null,null,null,null,null,null,null,null,null,null,null,null,null,9363,1,"Bandal Borough","PLAYER CAN'T BE SOLD",{"$f":"\"-\"","v":"-"},"No","Yes","No",null,null,1113,"Transfer List"]
[null,null,null,null,null,null,null,null,null,null,null,null,null,null,null,null,null,null,null,null,null,null,null,null,9365,998,"Waiting List","PLAYER NOT AVAILABLE",0,"No","No","No",null,null,1114,"NOT APPLICABLE"]
[null,null,null,null,null,null,null,null,null,null,null,null,null,null,null,null,null,null,null,null,null,null,null,null,9366,47,"Port Waltham","PLAYER NOT AVAILABLE",0,"No","No","No",null,null,1115,"UNMANAGED"]
[null,null,null,null,null,null,null,null,null,null,null,null,null,null,null,null,null,null,null,null,null,null,null,null,9367,35,"Fraserborough","Elseid HYSAJ",10084652,"Yes","Yes","Yes",null,null,1116,"NOT APPLICABLE"]
[null,null,null,null,null,null,null,null,null,null,null,null,null,null,null,null,null,null,null,null,null,null,null,null,9373,998,"Waiting List","PLAYER NOT AVAILABLE",0,"No","No","No",null,null,1117,"NOT APPLICABLE"]
[null,null,null,null,null,null,null,null,null,null,null,null,null,null,null,null,null,null,null,null,null,null,null,null,9375,5,"Hurricane Harriers","Lucas DIGNE",8117468,"Yes","Yes","Yes",null,null,1118,"Transfer List"]
[null,null,null,null,null,null,null,null,null,null,null,null,null,null,null,null,null,null,null,null,null,null,null,null,9379,7,"AEK Grogan","Nabil BENTALEB",5648717,"Yes","Yes","Yes",null,null,1119,"James House"]
[null,null,null,null,null,null,null,null,null,null,null,null,null,null,null,null,null,null,null,null,null,null,null,null,9380,58,"Lyonswade","PLAYER NOT AVAILABLE",0,"No","No","No",null,null,1120,"UNMANAGED"]
[null,null,null,null,null,null,null,null,null,null,null,null,null,null,null,null,null,null,null,null,null,null,null,null,9382,34,"St. Vincent","PLAYER NOT AVAILABLE",0,"No","No","No",null,null,1121,"UNMANAGED"]
[null,null,null,null,null,null,null,null,null,null,null,null,null,null,null,null,null,null,null,null,null,null,null,null,9387,998,"Waiting List","PLAYER NOT AVAILABLE",0,"No","No","No",null,null,1122,"Transfer List"]
[null,null,null,null,null,null,null,null,null,null,null,null,null,null,null,null,null,null,null,null,null,null,null,null,9389,998,"Waiting List","PLAYER NOT AVAILABLE",0,"No","No","No",null,null,1123,"Bernie Iles"]
[null,null,null,null,null,null,null,null,null,null,null,null,null,null,null,null,null,null,null,null,null,null,null,null,9390,7,"AEK Grogan","PLAYER CAN'T BE SOLD",{"$f":"\"-\"","v":"-"},"No","Yes","No",null,null,1124,"NOT APPLICABLE"]
[null,null,null,null,null,null,null,null,null,null,null,null,null,null,null,null,null,null,null,null,null,null,null,null,9392,0,"Transfer Pool","Bruno ZUCULINI",3702347,"No","No","Yes",4,null,1125,"UNMANAGED"]
[null,null,null,null,null,null,null,null,null,null,null,null,null,null,null,null,null,null,null,null,null,null,null,null,9393,76,"Olympians","Dani CARVAJAL",21375826,"Yes","Yes","Yes",null,null,1126,"UNMANAGED"]
[null,null,null,null,null,null,null,null,null,null,null,null,null,null,null,null,null,null,null,null,null,null,null,null,9394,37,"Old Petersfield","PLAYER NOT AVAILABLE",0,"No","No","No",null,null,1127,"Robin Slade"]
[null,null,null,null,null,null,null,null,null,null,null,null,null,null,null,null,null,null,null,null,null,null,null,null,9395,4,"Markhoeven","Dusan TADIC",1161790,"Yes","Yes","Yes",null,null,1128,"NOT APPLICABLE"]
[null,null,null,null,null,null,null,null,null,null,null,null,null,null,null,null,null,null,null,null,null,null,null,null,9396,36,"VF Turks","Sebastian RODE",2606967,"Yes","Yes","Yes",null,null,1129,"Lesley Atkinson"]
[null,null,null,null,null,null,null,null,null,null,null,null,null,null,null,null,null,null,null,null,null,null,null,null,9400,14,"Treverton","Ciro IMMOBILE",1820774,"Yes","Yes","Yes",null,null,1130,"Michael Atkinson-House"]
[null,null,null,null,null,null,null,null,null,null,null,null,null,null,null,null,null,null,null,null,null,null,null,null,9403,20,"Nessertoponions","Carlos Henrique CASEMIRO",21375826,"Yes","Yes","Yes",null,null,1131,"Robin Slade"]
[null,null,null,null,null,null,null,null,null,null,null,null,null,null,null,null,null,null,null,null,null,null,null,null,9405,26,"Westfield","Marc-Andre TER STEGEN",26300383,"Yes","Yes","Yes",null,null,1132,"NOT APPLICABLE"]
[null,null,null,null,null,null,null,null,null,null,null,null,null,null,null,null,null,null,null,null,null,null,null,null,9406,31,"Nesportivo","John STONES",41482745,"Yes","Yes","Yes",null,null,1133,"David Bird"]
[null,null,null,null,null,null,null,null,null,null,null,null,null,null,null,null,null,null,null,null,null,null,null,null,9407,18,"Fairoak Foresters","Andres CLAUDIO BRAVO",0,"Yes","Yes","Yes",null,null,1134,"Don Davern"]
[null,null,null,null,null,null,null,null,null,null,null,null,null,null,null,null,null,null,null,null,null,null,null,null,9408,10,"Springfield Lyons","Carnicer SERGI ROBERTO",6936080,"Yes","Yes","Yes",null,null,1135,"Bernie Iles"]
[null,null,null,null,null,null,null,null,null,null,null,null,null,null,null,null,null,null,null,null,null,null,null,null,9409,120,"Sherfield Saints","PLAYER NOT AVAILABLE",0,"No","No","No",null,null,1136,"Paul Newman"]
[null,null,null,null,null,null,null,null,null,null,null,null,null,null,null,null,null,null,null,null,null,null,null,null,9411,11,"JPR","Jamie VARDY",10746,"Yes","Yes","Yes",null,null,1137,"Transfer List"]
[null,null,null,null,null,null,null,null,null,null,null,null,null,null,null,null,null,null,null,null,null,null,null,null,9413,123,"San Michael","PLAYER NOT AVAILABLE",0,"No","No","No",null,null,1138,"NOT APPLICABLE"]
[null,null,null,null,null,null,null,null,null,null,null,null,null,null,null,null,null,null,null,null,null,null,null,null,9414,31,"Nesportivo","Blazquez JOEL ROBLES",992938,"Yes","Yes","Yes",null,null,1139,"Transfer List"]
[null,null,null,null,null,null,null,null,null,null,null,null,null,null,null,null,null,null,null,null,null,null,null,null,9416,11,"JPR","Harry MAGUIRE",17523663,"Yes","Yes","Yes",null,null,1140,"NOT APPLICABLE"]
[null,null,null,null,null,null,null,null,null,null,null,null,null,null,null,null,null,null,null,null,null,null,null,null,9417,17,"Bishops Burghclere","Andrew ROBERTSON",21413282,"Yes","Yes","Yes",null,null,1141,"NOT APPLICABLE"]
[null,null,null,null,null,null,null,null,null,null,null,null,null,null,null,null,null,null,null,null,null,null,null,null,9418,998,"Waiting List","PLAYER NOT AVAILABLE",0,"No","No","No",null,null,1142,"NOT APPLICABLE"]
[null,null,null,null,null,null,null,null,null,null,null,null,null,null,null,null,null,null,null,null,null,null,null,null,9420,998,"Waiting List","PLAYER NOT AVAILABLE",0,"No","No","No",null,null,1143,"UNMANAGED"]
[null,null,null,null,null,null,null,null,null,null,null,null,null,null,null,null,null,null,null,null,null,null,null,null,9421,29,"Ibursea Wolves","PLAYER NOT AVAILABLE",0,"No","No","No",null,null,1144,"Robin Slade"]
[null,null,null,null,null,null,null,null,null,null,null,null,null,null,null,null,null,null,null,null,null,null,null,null,9422,998,"Waiting List","PLAYER NOT AVAILABLE",0,"No","No","No",null,null,1145,"Transfer List"]
[null,null,null,null,null,null,null,null,null,null,null,null,null,null,null,null,null,null,null,null,null,null,null,null,9424,40,"H&H","David OSPINA",1006248,"Yes","Yes","Yes",null,null,1146,"Robin Slade"]
[null,null,null,null,null,null,null,null,null,null,null,null,null,null,null,null,null,null,null,null,null,null,null,null,9426,998,"Waiting List","PLAYER NOT AVAILABLE",0,"No","No","No",null,null,1147,"NOT APPLICABLE"]
[null,null,null,null,null,null,null,null,null,null,null,null,null,null,null,null,null,null,null,null,null,null,null,null,9428,7,"AEK Grogan","Andrea POLI",449066,"Yes","Yes","Yes",null,null,1148,"UNMANAGED"]
[null,null,null,null,null,null,null,null,null,null,null,null,null,null,null,null,null,null,null,null,null,null,null,null,9430,22,"Nellerton City","Calum CHAMBERS",5772246,"Yes","Yes","Yes",null,null,1149,"Transfer List"]
[null,null,null,null,null,null,null,null,null,null,null,null,null,null,null,null,null,null,null,null,null,null,null,null,9431,107,"Falconetti Fire","Joel WARD",757347,"Yes","Yes","Yes",null,null,1150,"UNMANAGED"]
[null,null,null,null,null,null,null,null,null,null,null,null,null,null,null,null,null,null,null,null,null,null,null,null,9432,52,"Applegate Manor","Javi MANQUILLO",3228755,"Yes","Yes","Yes",null,null,1151,"UNMANAGED"]
[null,null,null,null,null,null,null,null,null,null,null,null,null,null,null,null,null,null,null,null,null,null,null,null,9433,99,"Hamlet Foxes","PLAYER NOT AVAILABLE",0,"No","No","No",null,null,1152,"Robin Slade"]
[null,null,null,null,null,null,null,null,null,null,null,null,null,null,null,null,null,null,null,null,null,null,null,null,9436,998,"Waiting List","PLAYER NOT AVAILABLE",0,"No","No","No",null,null,1153,"James House"]
[null,null,null,null,null,null,null,null,null,null,null,null,null,null,null,null,null,null,null,null,null,null,null,null,9438,104,"Beaumont Belvedere","PLAYER NOT AVAILABLE",0,"No","No","No",null,null,1154,"Transfer List"]
[null,null,null,null,null,null,null,null,null,null,null,null,null,null,null,null,null,null,null,null,null,null,null,null,9439,998,"Waiting List","PLAYER NOT AVAILABLE",0,"No","No","No",null,null,1155,"Paul Newman"]
[null,null,null,null,null,null,null,null,null,null,null,null,null,null,null,null,null,null,null,null,null,null,null,null,9440,0,"Transfer Pool","Divock ORIGI",7497390,"No","No","Yes",1,null,1156,"Norman House"]
[null,null,null,null,null,null,null,null,null,null,null,null,null,null,null,null,null,null,null,null,null,null,null,null,9441,96,"Stonebridge","PLAYER NOT AVAILABLE",0,"No","No","No",null,null,1157,"Robin Slade"]
[null,null,null,null,null,null,null,null,null,null,null,null,null,null,null,null,null,null,null,null,null,null,null,null,9442,26,"Westfield","Riyad MAHREZ",12776824,"Yes","Yes","Yes",null,null,1158,"James House"]
[null,null,null,null,null,null,null,null,null,null,null,null,null,null,null,null,null,null,null,null,null,null,null,null,9444,998,"Waiting List","PLAYER NOT AVAILABLE",0,"No","No","No",null,null,1159,"Paul Newman"]
[null,null,null,null,null,null,null,null,null,null,null,null,null,null,null,null,null,null,null,null,null,null,null,null,9449,29,"Ibursea Wolves","PLAYER NOT AVAILABLE",0,"No","No","No",null,null,1160,"Robin Slade"]
[null,null,null,null,null,null,null,null,null,null,null,null,null,null,null,null,null,null,null,null,null,null,null,null,9450,21,"Christophia","Serge AURIER",4671446,"Yes","Yes","Yes",null,null,1161,"NOT APPLICABLE"]
[null,null,null,null,null,null,null,null,null,null,null,null,null,null,null,null,null,null,null,null,null,null,null,null,9454,35,"Fraserborough","Amadou DIAWARA",2650282,"Yes","Yes","Yes",null,null,1162,"Transfer List"]
[null,null,null,null,null,null,null,null,null,null,null,null,null,null,null,null,null,null,null,null,null,null,null,null,9456,0,"Transfer Pool","Aaron CRESSWELL",1288390,"No","No","Yes",4,null,1163,"NOT APPLICABLE"]
[null,null,null,null,null,null,null,null,null,null,null,null,null,null,null,null,null,null,null,null,null,null,null,null,9458,33,"Jarikton","Enner VALENCIA",1253041,"Yes","Yes","Yes",null,null,1164,"Paul Newman"]
[null,null,null,null,null,null,null,null,null,null,null,null,null,null,null,null,null,null,null,null,null,null,null,null,9459,39,"Albenotti","Bas DOST",5576103,"Yes","Yes","Yes",null,null,1165,"Norman House"]
[null,null,null,null,null,null,null,null,null,null,null,null,null,null,null,null,null,null,null,null,null,null,null,null,9461,72,"Kraukhampton","PLAYER NOT AVAILABLE",0,"No","No","No",null,null,1166,"Ken Atkinson"]
[null,null,null,null,null,null,null,null,null,null,null,null,null,null,null,null,null,null,null,null,null,null,null,null,9464,36,"VF Turks","Panagiotis RETSOS",947905,"Yes","Yes","Yes",null,null,1167,"UNMANAGED"]
[null,null,null,null,null,null,null,null,null,null,null,null,null,null,null,null,null,null,null,null,null,null,null,null,9465,62,"Highfield","PLAYER NOT AVAILABLE",0,"No","No","No",null,null,1168,"UNMANAGED"]
[null,null,null,null,null,null,null,null,null,null,null,null,null,null,null,null,null,null,null,null,null,null,null,null,9466,107,"Falconetti Fire","Dominic CALVERT-LEWIN",24460771,"Yes","Yes","Yes",null,null,1169,"Robin Slade"]
[null,null,null,null,null,null,null,null,null,null,null,null,null,null,null,null,null,null,null,null,null,null,null,null,9469,70,"Northridge Cormorants","Ron-Robert ZIELER",412351,"Yes","Yes","Yes",null,null,1170,"Robin Slade"]
[null,null,null,null,null,null,null,null,null,null,null,null,null,null,null,null,null,null,null,null,null,null,null,null,9475,998,"Waiting List","PLAYER NOT AVAILABLE",0,"No","No","No",null,null,1171,"Ellie Andrews"]
[null,null,null,null,null,null,null,null,null,null,null,null,null,null,null,null,null,null,null,null,null,null,null,null,9476,12,"Inter Normania","Keylor NAVAS",17467,"Yes","Yes","Yes",null,null,1172,"Lesley Atkinson"]
[null,null,null,null,null,null,null,null,null,null,null,null,null,null,null,null,null,null,null,null,null,null,null,null,9477,998,"Waiting List","PLAYER NOT AVAILABLE",0,"No","No","No",null,null,1173,"NOT APPLICABLE"]
[null,null,null,null,null,null,null,null,null,null,null,null,null,null,null,null,null,null,null,null,null,null,null,null,9480,52,"Applegate Manor","Domagoj VIDA",1891056,"Yes","Yes","Yes",null,null,1174,"Don Davern"]
[null,null,null,null,null,null,null,null,null,null,null,null,null,null,null,null,null,null,null,null,null,null,null,null,9482,82,"Riverside","Michy BATSHUAYI",3633109,"Yes","Yes","Yes",null,null,1175,"UNMANAGED"]
[null,null,null,null,null,null,null,null,null,null,null,null,null,null,null,null,null,null,null,null,null,null,null,null,9483,998,"Waiting List","PLAYER NOT AVAILABLE",0,"No","No","No",null,null,1176,"UNMANAGED"]
[null,null,null,null,null,null,null,null,null,null,null,null,null,null,null,null,null,null,null,null,null,null,null,null,9484,36,"VF Turks","Dries MERTENS",14674,"Yes","Yes","Yes",null,null,1177,"UNMANAGED"]
[null,null,null,null,null,null,null,null,null,null,null,null,null,null,null,null,null,null,null,null,null,null,null,null,9485,998,"Waiting List","PLAYER NOT AVAILABLE",0,"No","No","No",null,null,1178,"NOT APPLICABLE"]
[null,null,null,null,null,null,null,null,null,null,null,null,null,null,null,null,null,null,null,null,null,null,null,null,9489,41,"Newcombe United","Eric Maxim CHOUPO-MOTING",989907,"Yes","Yes","Yes",null,null,1179,"NOT APPLICABLE"]
[null,null,null,null,null,null,null,null,null,null,null,null,null,null,null,null,null,null,null,null,null,null,null,null,9491,56,"All Saints United","Hakan CALHANOGLU",24630392,"Yes","Yes","Yes",null,null,1180,"Don Davern"]
[null,null,null,null,null,null,null,null,null,null,null,null,null,null,null,null,null,null,null,null,null,null,null,null,9492,107,"Falconetti Fire","Thorgan HAZARD",4671446,"Yes","Yes","Yes",null,null,1181,"Lesley Atkinson"]
[null,null,null,null,null,null,null,null,null,null,null,null,null,null,null,null,null,null,null,null,null,null,null,null,9493,126,"Weslington","Mason HOLGATE",7277253,"Yes","Yes","Yes",null,null,1182,"Norman House"]
[null,null,null,null,null,null,null,null,null,null,null,null,null,null,null,null,null,null,null,null,null,null,null,null,9499,26,"Westfield","Christoph KRAMER",2121005,"Yes","Yes","Yes",null,null,1183,"Paul Newman"]
[null,null,null,null,null,null,null,null,null,null,null,null,null,null,null,null,null,null,null,null,null,null,null,null,9502,126,"Weslington","Adnan JANUZAJ",7804491,"Yes","Yes","Yes",null,null,1184,"Olivia Andrews"]
[null,null,null,null,null,null,null,null,null,null,null,null,null,null,null,null,null,null,null,null,null,null,null,null,9510,36,"VF Turks","Timo WERNER",18714935,"Yes","Yes","Yes",null,null,1185,"Mick Sims"]
[null,null,null,null,null,null,null,null,null,null,null,null,null,null,null,null,null,null,null,null,null,null,null,null,9514,998,"Waiting List","PLAYER NOT AVAILABLE",0,"No","No","No",null,null,1186,"Robin Slade"]
[null,null,null,null,null,null,null,null,null,null,null,null,null,null,null,null,null,null,null,null,null,null,null,null,9516,75,"Romano","PLAYER NOT AVAILABLE",0,"No","No","No",null,null,1187,"UNMANAGED"]
[null,null,null,null,null,null,null,null,null,null,null,null,null,null,null,null,null,null,null,null,null,null,null,null,9517,998,"Waiting List","PLAYER NOT AVAILABLE",0,"No","No","No",null,null,1188,"UNMANAGED"]
[null,null,null,null,null,null,null,null,null,null,null,null,null,null,null,null,null,null,null,null,null,null,null,null,9520,32,"Jonton","Koen CASTEELS",7376262,"Yes","Yes","Yes",null,null,1189,"UNMANAGED"]
[null,null,null,null,null,null,null,null,null,null,null,null,null,null,null,null,null,null,null,null,null,null,null,null,9525,998,"Waiting List","PLAYER NOT AVAILABLE",0,"No","No","No",null,null,1190,"Robin Slade"]
[null,null,null,null,null,null,null,null,null,null,null,null,null,null,null,null,null,null,null,null,null,null,null,null,9532,998,"Waiting List","PLAYER NOT AVAILABLE",0,"No","No","No",null,null,1191,"NOT APPLICABLE"]
[null,null,null,null,null,null,null,null,null,null,null,null,null,null,null,null,null,null,null,null,null,null,null,null,9533,21,"Christophia","Juan Fernando QUINTERO",12228604,"Yes","Yes","Yes",null,null,1192,"NOT APPLICABLE"]
[null,null,null,null,null,null,null,null,null,null,null,null,null,null,null,null,null,null,null,null,null,null,null,null,9535,3,"Real Jameosean","PLAYER NOT AVAILABLE",0,"No","No","No",null,null,1193,"Don Davern"]
[null,null,null,null,null,null,null,null,null,null,null,null,null,null,null,null,null,null,null,null,null,null,null,null,9536,104,"Beaumont Belvedere","PLAYER NOT AVAILABLE",0,"No","No","No",null,null,1194,"Don Davern"]
[null,null,null,null,null,null,null,null,null,null,null,null,null,null,null,null,null,null,null,null,null,null,null,null,9540,998,"Waiting List","PLAYER NOT AVAILABLE",0,"No","No","No",null,null,1195,"Transfer List"]
[null,null,null,null,null,null,null,null,null,null,null,null,null,null,null,null,null,null,null,null,null,null,null,null,9542,998,"Waiting List","PLAYER NOT AVAILABLE",0,"No","No","No",null,null,1196,"Paul Newman"]
[null,null,null,null,null,null,null,null,null,null,null,null,null,null,null,null,null,null,null,null,null,null,null,null,9544,38,"Broxton Bulls","Matthias GINTER",10936876,"Yes","Yes","Yes",null,null,1197,"NOT APPLICABLE"]
[null,null,null,null,null,null,null,null,null,null,null,null,null,null,null,null,null,null,null,null,null,null,null,null,9545,998,"Waiting List","PLAYER NOT AVAILABLE",0,"No","No","No",null,null,1198,"NOT APPLICABLE"]
[null,null,null,null,null,null,null,null,null,null,null,null,null,null,null,null,null,null,null,null,null,null,null,null,9546,44,"Trevmania Travellers","Memphis DEPAY",12522848,"Yes","Yes","Yes",null,null,1199,"NOT APPLICABLE"]
[null,null,null,null,null,null,null,null,null,null,null,null,null,null,null,null,null,null,null,null,null,null,null,null,9548,998,"Waiting List","PLAYER NOT AVAILABLE",0,"No","No","No",null,null,1200,"UNMANAGED"]
[null,null,null,null,null,null,null,null,null,null,null,null,null,null,null,null,null,null,null,null,null,null,null,null,9549,0,"Transfer Pool","Jordy CLASIE",3758536,"No","No","Yes",4,null,1201,"Don Davern"]
[null,null,null,null,null,null,null,null,null,null,null,null,null,null,null,null,null,null,null,null,null,null,null,null,9550,0,"Transfer Pool","Georginio WIJNALDUM",3506677,"No","No","Yes",3,null,1202,"Robin Slade"]
[null,null,null,null,null,null,null,null,null,null,null,null,null,null,null,null,null,null,null,null,null,null,null,null,9552,12,"Inter Normania","Stefan DE VRIJ",15044667,"Yes","Yes","Yes",null,null,1203,"Transfer List"]
[null,null,null,null,null,null,null,null,null,null,null,null,null,null,null,null,null,null,null,null,null,null,null,null,9553,69,"Gainsborough Hamlet","Anthony LOPES",3119425,"Yes","Yes","Yes",null,null,1204,"UNMANAGED"]
[null,null,null,null,null,null,null,null,null,null,null,null,null,null,null,null,null,null,null,null,null,null,null,null,9554,35,"Fraserborough","Karim REKIK",4529229,"Yes","Yes","Yes",null,null,1205,"Robin Slade"]
[null,null,null,null,null,null,null,null,null,null,null,null,null,null,null,null,null,null,null,null,null,null,null,null,9555,27,"Blackwater","Joel VELTMAN",5894654,"Yes","Yes","Yes",null,null,1206,"Mick Sims"]
[null,null,null,null,null,null,null,null,null,null,null,null,null,null,null,null,null,null,null,null,null,null,null,null,9557,32,"Jonton","Raul JIMENEZ",9763205,"Yes","Yes","Yes",null,null,1207,"James House"]
[null,null,null,null,null,null,null,null,null,null,null,null,null,null,null,null,null,null,null,null,null,null,null,null,9559,18,"Fairoak Foresters","Silva WILLIAM CARVALHO",7637531,"Yes","Yes","Yes",null,null,1208,"Norman House"]
[null,null,null,null,null,null,null,null,null,null,null,null,null,null,null,null,null,null,null,null,null,null,null,null,9560,998,"Waiting List","PLAYER NOT AVAILABLE",0,"No","No","No",null,null,1209,"NOT APPLICABLE"]
[null,null,null,null,null,null,null,null,null,null,null,null,null,null,null,null,null,null,null,null,null,null,null,null,9566,95,"Roxwell United","PLAYER NOT AVAILABLE",0,"No","No","No",null,null,1210,"NOT APPLICABLE"]
[null,null,null,null,null,null,null,null,null,null,null,null,null,null,null,null,null,null,null,null,null,null,null,null,9570,998,"Waiting List","PLAYER NOT AVAILABLE",0,"No","No","No",null,null,1211,"Transfer List"]
[null,null,null,null,null,null,null,null,null,null,null,null,null,null,null,null,null,null,null,null,null,null,null,null,9571,0,"Transfer Pool","Alexandre Fernandes RAFA SILVA",11676709,"No","No","Yes",2,null,1212,"Don Davern"]
[null,null,null,null,null,null,null,null,null,null,null,null,null,null,null,null,null,null,null,null,null,null,null,null,9572,82,"Riverside","Eduardo JOAO MARIO",8323296,"Yes","Yes","Yes",null,null,1213,"UNMANAGED"]
[null,null,null,null,null,null,null,null,null,null,null,null,null,null,null,null,null,null,null,null,null,null,null,null,9573,29,"Ibursea Wolves","PLAYER NOT AVAILABLE",0,"No","No","No",null,null,1214,"NOT APPLICABLE"]
[null,null,null,null,null,null,null,null,null,null,null,null,null,null,null,null,null,null,null,null,null,null,null,null,9575,18,"Fairoak Foresters","Miguel LAYUN",100357,"Yes","Yes","Yes",null,null,1215,"Olivia Andrews"]
[null,null,null,null,null,null,null,null,null,null,null,null,null,null,null,null,null,null,null,null,null,null,null,null,9578,1,"Bandal Borough","Marco VERRATTI",22539720,"Yes","Yes","Yes",null,null,1216,"NOT APPLICABLE"]
[null,null,null,null,null,null,null,null,null,null,null,null,null,null,null,null,null,null,null,null,null,null,null,null,9580,17,"Bishops Burghclere","PLAYER CAN'T BE SOLD",{"$f":"\"-\"","v":"-"},"No","Yes","No",null,null,1217,"Robin Slade"]
[null,null,null,null,null,null,null,null,null,null,null,null,null,null,null,null,null,null,null,null,null,null,null,null,9581,29,"Ibursea Wolves","PLAYER NOT AVAILABLE",0,"No","No","No",null,null,1218,"Don Davern"]
[null,null,null,null,null,null,null,null,null,null,null,null,null,null,null,null,null,null,null,null,null,null,null,null,9587,45,"NPA","PLAYER NOT AVAILABLE",0,"No","No","No",null,null,1219,"NOT APPLICABLE"]
[null,null,null,null,null,null,null,null,null,null,null,null,null,null,null,null,null,null,null,null,null,null,null,null,9588,81,"Tangerinions","PLAYER NOT AVAILABLE",0,"No","No","No",null,null,1220,"Transfer List"]
[null,null,null,null,null,null,null,null,null,null,null,null,null,null,null,null,null,null,null,null,null,null,null,null,9589,5,"Hurricane Harriers","Trent ALEXANDER-ARNOLD",33437683,"Yes","Yes","Yes",null,null,1221,"NOT APPLICABLE"]
[null,null,null,null,null,null,null,null,null,null,null,null,null,null,null,null,null,null,null,null,null,null,null,null,9591,22,"Nellerton City","Phil FODEN",39181932,"Yes","Yes","Yes",null,null,1222,"NOT APPLICABLE"]
[null,null,null,null,null,null,null,null,null,null,null,null,null,null,null,null,null,null,null,null,null,null,null,null,9592,998,"Waiting List","PLAYER NOT AVAILABLE",0,"No","No","No",null,null,1223,"Don Davern"]
[null,null,null,null,null,null,null,null,null,null,null,null,null,null,null,null,null,null,null,null,null,null,null,null,9593,63,"Davemoor","PLAYER NOT AVAILABLE",0,"No","No","No",null,null,1224,"Norman House"]
[null,null,null,null,null,null,null,null,null,null,null,null,null,null,null,null,null,null,null,null,null,null,null,null,9597,32,"Jonton","Hector Miguel HERRERA",1347925,"Yes","Yes","Yes",null,null,1225,"NOT APPLICABLE"]
[null,null,null,null,null,null,null,null,null,null,null,null,null,null,null,null,null,null,null,null,null,null,null,null,9606,10,"Springfield Lyons","PLAYER CAN'T BE SOLD",{"$f":"\"-\"","v":"-"},"No","Yes","No",null,null,1226,"Don Davern"]
[null,null,null,null,null,null,null,null,null,null,null,null,null,null,null,null,null,null,null,null,null,null,null,null,9607,102,"Dukes Park","PLAYER NOT AVAILABLE",0,"No","No","No",null,null,1227,"Norman House"]
[null,null,null,null,null,null,null,null,null,null,null,null,null,null,null,null,null,null,null,null,null,null,null,null,9608,998,"Waiting List","PLAYER NOT AVAILABLE",0,"No","No","No",null,null,1228,"Transfer List"]
[null,null,null,null,null,null,null,null,null,null,null,null,null,null,null,null,null,null,null,null,null,null,null,null,9609,998,"Waiting List","PLAYER NOT AVAILABLE",0,"No","No","No",null,null,1229,"Don Davern"]
[null,null,null,null,null,null,null,null,null,null,null,null,null,null,null,null,null,null,null,null,null,null,null,null,9612,37,"Old Petersfield","PLAYER NOT AVAILABLE",0,"No","No","No",null,null,1230,"NOT APPLICABLE"]
[null,null,null,null,null,null,null,null,null,null,null,null,null,null,null,null,null,null,null,null,null,null,null,null,9614,3,"Real Jameosean","PLAYER NOT AVAILABLE",0,"No","No","No",null,null,1231,"UNMANAGED"]
[null,null,null,null,null,null,null,null,null,null,null,null,null,null,null,null,null,null,null,null,null,null,null,null,9615,31,"Nesportivo","Thilo KEHRER",7083931,"Yes","Yes","Yes",null,null,1232,"NOT APPLICABLE"]
[null,null,null,null,null,null,null,null,null,null,null,null,null,null,null,null,null,null,null,null,null,null,null,null,9616,998,"Waiting List","PLAYER NOT AVAILABLE",0,"No","No","No",null,null,1233,"Paul Newman"]
[null,null,null,null,null,null,null,null,null,null,null,null,null,null,null,null,null,null,null,null,null,null,null,null,9617,0,"Transfer Pool","Naby KEITA",8076872,"No","No","Yes",3,null,1234,"UNMANAGED"]
[null,null,null,null,null,null,null,null,null,null,null,null,null,null,null,null,null,null,null,null,null,null,null,null,9618,4,"Markhoeven","Kepa Revuella ARRIZABALAGA",7435459,"Yes","Yes","Yes",null,null,1235,"James House"]
[null,null,null,null,null,null,null,null,null,null,null,null,null,null,null,null,null,null,null,null,null,null,null,null,9619,18,"Fairoak Foresters","Anthony MODESTE",881641,"Yes","Yes","Yes",null,null,1236,"UNMANAGED"]
[null,null,null,null,null,null,null,null,null,null,null,null,null,null,null,null,null,null,null,null,null,null,null,null,9620,6,"Roymirth Rovers","Franck KESSIE",30164163,"Yes","Yes","Yes",null,null,1237,"Mick Sims"]
[null,null,null,null,null,null,null,null,null,null,null,null,null,null,null,null,null,null,null,null,null,null,null,null,9622,85,"Krystle Palace","PLAYER NOT AVAILABLE",0,"No","No","No",null,null,1238,"Ellie Andrews"]
[null,null,null,null,null,null,null,null,null,null,null,null,null,null,null,null,null,null,null,null,null,null,null,null,9623,10,"Springfield Lyons","Presnel KIMPEMBE",29513245,"Yes","Yes","Yes",null,null,1239,"NOT APPLICABLE"]
[null,null,null,null,null,null,null,null,null,null,null,null,null,null,null,null,null,null,null,null,null,null,null,null,9624,35,"Fraserborough","PLAYER CAN'T BE SOLD",{"$f":"\"-\"","v":"-"},"No","Yes","No",null,null,1240,"James House"]
[null,null,null,null,null,null,null,null,null,null,null,null,null,null,null,null,null,null,null,null,null,null,null,null,9625,64,"Fellerton","PLAYER CAN'T BE SOLD","-","No","Yes","No",null,null,1241,"Transfer List"]
[null,null,null,null,null,null,null,null,null,null,null,null,null,null,null,null,null,null,null,null,null,null,null,null,9626,998,"Waiting List","PLAYER NOT AVAILABLE",0,"No","No","No",null,null,1242,"NOT APPLICABLE"]
[null,null,null,null,null,null,null,null,null,null,null,null,null,null,null,null,null,null,null,null,null,null,null,null,9627,24,"Cinsath Argyle","PLAYER NOT AVAILABLE",0,"No","No","No",null,null,1243,"Don Davern"]
[null,null,null,null,null,null,null,null,null,null,null,null,null,null,null,null,null,null,null,null,null,null,null,null,9628,73,"Sparta Limarnder","Ibrahima KONATE",34393045,"Yes","Yes","Yes",null,null,1244,"David Bird"]
[null,null,null,null,null,null,null,null,null,null,null,null,null,null,null,null,null,null,null,null,null,null,null,null,9629,998,"Waiting List","PLAYER NOT AVAILABLE",0,"No","No","No",null,null,1245,"Transfer List"]
[null,null,null,null,null,null,null,null,null,null,null,null,null,null,null,null,null,null,null,null,null,null,null,null,9630,46,"Marquis of Granby","PLAYER NOT AVAILABLE",0,"No","No","No",null,null,1246,"Lesley Atkinson"]
[null,null,null,null,null,null,null,null,null,null,null,null,null,null,null,null,null,null,null,null,null,null,null,null,9632,31,"Nesportivo","Konrad LAIMER",11738008,"Yes","Yes","Yes",null,null,1247,"Robin Slade"]
[null,null,null,null,null,null,null,null,null,null,null,null,null,null,null,null,null,null,null,null,null,null,null,null,9634,0,"Transfer Pool","Clement LENGLET",10726654,"No","No","Yes",2,null,1248,"Bernie Iles"]
[null,null,null,null,null,null,null,null,null,null,null,null,null,null,null,null,null,null,null,null,null,null,null,null,9638,998,"Waiting List","PLAYER NOT AVAILABLE",0,"No","No","No",null,null,1249,"Norman House"]
[null,null,null,null,null,null,null,null,null,null,null,null,null,null,null,null,null,null,null,null,null,null,null,null,9639,998,"Waiting List","PLAYER NOT AVAILABLE",0,"No","No","No",null,null,1250,"Mick Sims"]
[null,null,null,null,null,null,null,null,null,null,null,null,null,null,null,null,null,null,null,null,null,null,null,null,9640,7,"AEK Grogan","PLAYER CAN'T BE SOLD",{"$f":"\"-\"","v":"-"},"No","Yes","No",null,null,1251,"UNMANAGED"]
[null,null,null,null,null,null,null,null,null,null,null,null,null,null,null,null,null,null,null,null,null,null,null,null,9641,76,"Olympians","Marcos LLORENTE",24023050,"Yes","Yes","Yes",null,null,1252,"NOT APPLICABLE"]
[null,null,null,null,null,null,null,null,null,null,null,null,null,null,null,null,null,null,null,null,null,null,null,null,9642,31,"Nesportivo","Giovani LO CELSO",11169571,"Yes","Yes","Yes",null,null,1253,"James House"]
[null,null,null,null,null,null,null,null,null,null,null,null,null,null,null,null,null,null,null,null,null,null,null,null,9643,5,"Hurricane Harriers","Manuel LOCATELLI",36237110,"Yes","Yes","Yes",null,null,1254,"NOT APPLICABLE"]
[null,null,null,null,null,null,null,null,null,null,null,null,null,null,null,null,null,null,null,null,null,null,null,null,9646,998,"Waiting List","PLAYER NOT AVAILABLE",0,"No","No","No",null,null,1255,"Transfer List"]
[null,null,null,null,null,null,null,null,null,null,null,null,null,null,null,null,null,null,null,null,null,null,null,null,9647,46,"Marquis of Granby","PLAYER NOT AVAILABLE",0,"No","No","No",null,null,1256,"UNMANAGED"]
[null,null,null,null,null,null,null,null,null,null,null,null,null,null,null,null,null,null,null,null,null,null,null,null,9648,998,"Waiting List","PLAYER NOT AVAILABLE",0,"No","No","No",null,null,1257,"NOT APPLICABLE"]
[null,null,null,null,null,null,null,null,null,null,null,null,null,null,null,null,null,null,null,null,null,null,null,null,9649,998,"Waiting List","PLAYER NOT AVAILABLE",0,"No","No","No",null,null,1258,"UNMANAGED"]
[null,null,null,null,null,null,null,null,null,null,null,null,null,null,null,null,null,null,null,null,null,null,null,null,9650,1000,"RETIRED","PLAYER NOT AVAILABLE",0,"No","No","No",null,null,1259,"Lesley Atkinson"]
[null,null,null,null,null,null,null,null,null,null,null,null,null,null,null,null,null,null,null,null,null,null,null,null,9651,998,"Waiting List","PLAYER NOT AVAILABLE",0,"No","No","No",null,null,1260,"Ken Atkinson"]
[null,null,null,null,null,null,null,null,null,null,null,null,null,null,null,null,null,null,null,null,null,null,null,null,9652,22,"Nellerton City","Ainsley MAITLAND-NILES",5291108,"Yes","Yes","Yes",null,null,1261,"UNMANAGED"]
[null,null,null,null,null,null,null,null,null,null,null,null,null,null,null,null,null,null,null,null,null,null,null,null,9653,998,"Waiting List","PLAYER NOT AVAILABLE",0,"No","No","No",null,null,1262,"NOT APPLICABLE"]
[null,null,null,null,null,null,null,null,null,null,null,null,null,null,null,null,null,null,null,null,null,null,null,null,9654,998,"Waiting List","PLAYER NOT AVAILABLE",0,"No","No","No",null,null,1263,"Don Davern"]
[null,null,null,null,null,null,null,null,null,null,null,null,null,null,null,null,null,null,null,null,null,null,null,null,9655,84,"Oaklea Park","PLAYER NOT AVAILABLE",0,"No","No","No",null,null,1264,"Michael Atkinson-House"]
[null,null,null,null,null,null,null,null,null,null,null,null,null,null,null,null,null,null,null,null,null,null,null,null,9659,26,"Westfield","PLAYER CAN'T BE SOLD",{"$f":"\"-\"","v":"-"},"No","Yes","No",null,null,1265,"UNMANAGED"]
[null,null,null,null,null,null,null,null,null,null,null,null,null,null,null,null,null,null,null,null,null,null,null,null,9660,106,"Colebank","PLAYER NOT AVAILABLE",0,"No","No","No",null,null,1266,"UNMANAGED"]
[null,null,null,null,null,null,null,null,null,null,null,null,null,null,null,null,null,null,null,null,null,null,null,null,9663,22,"Nellerton City","Borja Moya MAYORAL",26299807,"Yes","Yes","Yes",null,null,1267,"Robin Slade"]
[null,null,null,null,null,null,null,null,null,null,null,null,null,null,null,null,null,null,null,null,null,null,null,null,9664,19,"Jasonville","PLAYER CAN'T BE SOLD",{"$f":"\"-\"","v":"-"},"No","Yes","No",null,null,1268,"Bernie Iles"]
[null,null,null,null,null,null,null,null,null,null,null,null,null,null,null,null,null,null,null,null,null,null,null,null,9665,107,"Falconetti Fire","Weston MCKENNIE",21901978,"Yes","Yes","Yes",null,null,1269,"NOT APPLICABLE"]
[null,null,null,null,null,null,null,null,null,null,null,null,null,null,null,null,null,null,null,null,null,null,null,null,9667,76,"Olympians","Mikel MERINO",12881340,"Yes","Yes","Yes",null,null,1270,"UNMANAGED"]
[null,null,null,null,null,null,null,null,null,null,null,null,null,null,null,null,null,null,null,null,null,null,null,null,9668,128,"Yelsel Nosnikta","Diego DEMME",10991311,"Yes","Yes","Yes",null,null,1271,"NOT APPLICABLE"]
[null,null,null,null,null,null,null,null,null,null,null,null,null,null,null,null,null,null,null,null,null,null,null,null,9669,0,"Transfer Pool","Vanja MILINKOVIC-SAVIC",3078300,"No","No","Yes",1,null,1272,"Lesley Atkinson"]
[null,null,null,null,null,null,null,null,null,null,null,null,null,null,null,null,null,null,null,null,null,null,null,null,9670,17,"Bishops Burghclere","Rodrigo BENTANCUR",32398377,"Yes","Yes","Yes",null,null,1273,"Robin Slade"]
[null,null,null,null,null,null,null,null,null,null,null,null,null,null,null,null,null,null,null,null,null,null,null,null,9672,998,"Waiting List","PLAYER NOT AVAILABLE",0,"No","No","No",null,null,1274,"NOT APPLICABLE"]
[null,null,null,null,null,null,null,null,null,null,null,null,null,null,null,null,null,null,null,null,null,null,null,null,9674,998,"Waiting List","PLAYER NOT AVAILABLE",0,"No","No","No",null,null,1275,"NOT APPLICABLE"]
[null,null,null,null,null,null,null,null,null,null,null,null,null,null,null,null,null,null,null,null,null,null,null,null,9675,0,"Transfer Pool","Lucas TORREIRA",8102167,"No","No","Yes",3,null,1276,"NOT APPLICABLE"]
[null,null,null,null,null,null,null,null,null,null,null,null,null,null,null,null,null,null,null,null,null,null,null,null,9677,43,"IOD","PLAYER NOT AVAILABLE",0,"No","No","No",null,null,1277,"UNMANAGED"]
[null,null,null,null,null,null,null,null,null,null,null,null,null,null,null,null,null,null,null,null,null,null,null,null,9679,128,"Yelsel Nosnikta","Luis MURIEL",13824829,"Yes","Yes","Yes",null,null,1278,"Bernie Iles"]
[null,null,null,null,null,null,null,null,null,null,null,null,null,null,null,null,null,null,null,null,null,null,null,null,9680,0,"Transfer Pool","Jacob Kai MURPHY",3436529,"No","No","Yes",1,null,1279,"Norman House"]
[null,null,null,null,null,null,null,null,null,null,null,null,null,null,null,null,null,null,null,null,null,null,null,null,9681,99,"Hamlet Foxes","PLAYER NOT AVAILABLE",0,"No","No","No",null,null,1280,"NOT APPLICABLE"]
[null,null,null,null,null,null,null,null,null,null,null,null,null,null,null,null,null,null,null,null,null,null,null,null,9686,76,"Olympians","Tosin ADARABIOYO",12836143,"Yes","Yes","Yes",null,null,1285,"Paul Newman"]
[null,null,null,null,null,null,null,null,null,null,null,null,null,null,null,null,null,null,null,null,null,null,null,null,9694,17,"Bishops Burghclere","Willi ORBAN",9719033,"Yes","Yes","Yes",null,null,1290,"UNMANAGED"]
[null,null,null,null,null,null,null,null,null,null,null,null,null,null,null,null,null,null,null,null,null,null,null,null,9698,21,"Christophia","Salih OZCAN",13705821,"Yes","Yes","Yes",null,40,1291,"UNMANAGED"]
[null,null,null,null,null,null,null,null,null,null,null,null,null,null,null,null,null,null,null,null,null,null,null,null,9705,69,"Gainsborough Hamlet","Lorenzo PELLEGRINI",26240795,"Yes","Yes","Yes",null,null,1296,"Don Davern"]
[null,null,null,null,null,null,null,null,null,null,null,null,null,null,null,null,null,null,null,null,null,null,null,null,9711,24,"Cinsath Argyle","PLAYER NOT AVAILABLE",0,"No","No","No",null,null,1301,"Norman House"]
[null,null,null,null,null,null,null,null,null,null,null,null,null,null,null,null,null,null,null,null,null,null,null,null,9720,0,"Transfer Pool","Yussuf POULSEN",8503512,"No","No","Yes",3,null,1305,"Don Davern"]
[null,null,null,null,null,null,null,null,null,null,null,null,null,null,null,null,null,null,null,null,null,null,null,null,9721,11,"JPR","Scott MCTOMINAY",21703989,"Yes","Yes","Yes",null,null,1306,"Paul Newman"]
[null,null,null,null,null,null,null,null,null,null,null,null,null,null,null,null,null,null,null,null,null,null,null,null,9732,31,"Nesportivo","de Andrade RICHARLISON",17419494,"Yes","Yes","Yes",null,null,1311,"Lesley Atkinson"]
[null,null,null,null,null,null,null,null,null,null,null,null,null,null,null,null,null,null,null,null,null,null,null,null,9740,126,"Weslington","Nabil FEKIR",11624832,"Yes","Yes","Yes",null,null,1316,"NOT APPLICABLE"]
[null,null,null,null,null,null,null,null,null,null,null,null,null,null,null,null,null,null,null,null,null,null,null,null,9744,56,"All Saints United","Marcel SABITZER",17464533,"Yes","Yes","Yes",null,null,1319,"David Bird"]
[null,null,null,null,null,null,null,null,null,null,null,null,null,null,null,null,null,null,null,null,null,null,null,null,9749,35,"Fraserborough","Pablo SARABIA",13269029,"Yes","Yes","Yes",null,null,1321,"UNMANAGED"]
[null,null,null,null,null,null,null,null,null,null,null,null,null,null,null,null,null,null,null,null,null,null,null,null,9756,88,"St. Mary","PLAYER NOT AVAILABLE",0,"No","No","No",null,null,1326,"NOT APPLICABLE"]
[null,null,null,null,null,null,null,null,null,null,null,null,null,null,null,null,null,null,null,null,null,null,null,null,9765,0,"Transfer Pool","Dominic SOLANKE",22783684,"No","No","Yes",2,null,1331,"UNMANAGED"]
[null,null,null,null,null,null,null,null,null,null,null,null,null,null,null,null,null,null,null,null,null,null,null,null,9773,37,"Old Petersfield","PLAYER NOT AVAILABLE",0,"No","No","No",null,null,1336,"Ken Atkinson"]
[null,null,null,null,null,null,null,null,null,null,null,null,null,null,null,null,null,null,null,null,null,null,null,null,9775,0,"Transfer Pool","Thomas STRAKOSHA",5391957,"No","No","Yes",2,null,1337,"UNMANAGED"]
[null,null,null,null,null,null,null,null,null,null,null,null,null,null,null,null,null,null,null,null,null,null,null,null,9783,6,"Roymirth Rovers","Bernard Francois THEO HERNANDEZ",25390567,"Yes","Yes","Yes",null,null,1341,"UNMANAGED"]
[null,null,null,null,null,null,null,null,null,null,null,null,null,null,null,null,null,null,null,null,null,null,null,null,9789,85,"Krystle Palace","PLAYER NOT AVAILABLE",0,"No","No","No",null,null,1346,"NOT APPLICABLE"]
[null,null,null,null,null,null,null,null,null,null,null,null,null,null,null,null,null,null,null,null,null,null,null,null,9796,998,"Waiting List","PLAYER NOT AVAILABLE",0,"No","No","No",null,null,1351,"NOT APPLICABLE"]
[null,null,null,null,null,null,null,null,null,null,null,null,null,null,null,null,null,null,null,null,null,null,null,null,9797,44,"Trevmania Travellers","Eric DIER",17640095,"Yes","Yes","Yes",null,null,1352,"Transfer List"]
[null,null,null,null,null,null,null,null,null,null,null,null,null,null,null,null,null,null,null,null,null,null,null,null,9807,46,"Marquis of Granby","PLAYER NOT AVAILABLE",0,"No","No","No",null,null,1357,"Robin Slade"]
[null,null,null,null,null,null,null,null,null,null,null,null,null,null,null,null,null,null,null,null,null,null,null,null,9811,998,"Waiting List","PLAYER NOT AVAILABLE",0,"No","No","No",null,null,1360,"David Bird"]
[null,null,null,null,null,null,null,null,null,null,null,null,null,null,null,null,null,null,null,null,null,null,null,null,9821,0,"Transfer Pool","Harry WINKS",4899496,"No","No","Yes",4,null,1366,"UNMANAGED"]
[null,null,null,null,null,null,null,null,null,null,null,null,null,null,null,null,null,null,null,null,null,null,null,null,9822,40,"H&H","Kyle WALKER-PETERS",4524313,"Yes","Yes","Yes",null,null,1367,"Transfer List"]
[null,null,null,null,null,null,null,null,null,null,null,null,null,null,null,null,null,null,null,null,null,null,null,null,9828,70,"Northridge Cormorants","Wilfred NDIDI",3394808,"Yes","Yes","Yes",null,null,1372,"UNMANAGED"]
[null,null,null,null,null,null,null,null,null,null,null,null,null,null,null,null,null,null,null,null,null,null,null,null,9835,998,"Waiting List","PLAYER NOT AVAILABLE",0,"No","No","No",null,null,1377,"NOT APPLICABLE"]
[null,null,null,null,null,null,null,null,null,null,null,null,null,null,null,null,null,null,null,null,null,null,null,null,9838,998,"Waiting List","PLAYER NOT AVAILABLE",0,"No","No","No",null,null,1380,"Norman House"]
[null,null,null,null,null,null,null,null,null,null,null,null,null,null,null,null,null,null,null,null,null,null,null,null,9840,80,"Winchelsea","PLAYER CAN'T BE SOLD",{"$f":"\"-\"","v":"-"},"No","Yes","No",null,null,1382,"Ken Atkinson"]
[null,null,null,null,null,null,null,null,null,null,null,null,null,null,null,null,null,null,null,null,null,null,null,null,9847,54,"Skylark Santiago","PLAYER NOT AVAILABLE",0,"No","No","No",null,null,1387,"Transfer List"]
[null,null,null,null,null,null,null,null,null,null,null,null,null,null,null,null,null,null,null,null,null,null,null,null,9855,998,"Waiting List","PLAYER NOT AVAILABLE",0,"No","No","No",null,null,1392,"NOT APPLICABLE"]
[null,null,null,null,null,null,null,null,null,null,null,null,null,null,null,null,null,null,null,null,null,null,null,null,9863,998,"Waiting List","PLAYER NOT AVAILABLE",0,"No","No","No",null,null,1397,"NOT APPLICABLE"]
[null,null,null,null,null,null,null,null,null,null,null,null,null,null,null,null,null,null,null,null,null,null,null,null,9864,998,"Waiting List","PLAYER NOT AVAILABLE",0,"No","No","No",null,null,1398,"UNMANAGED"]
[null,null,null,null,null,null,null,null,null,null,null,null,null,null,null,null,null,null,null,null,null,null,null,null,9869,54,"Skylark Santiago","PLAYER NOT AVAILABLE",0,"No","No","No",null,null,1402,"Don Davern"]
[null,null,null,null,null,null,null,null,null,null,null,null,null,null,null,null,null,null,null,null,null,null,null,null,9875,83,"Turnham Terriers","PLAYER NOT AVAILABLE",0,"No","No","No",null,null,1407,"UNMANAGED"]
[null,null,null,null,null,null,null,null,null,null,null,null,null,null,null,null,null,null,null,null,null,null,null,null,9880,26,"Westfield","Callum HUDSON-ODOI",10561056,"Yes","Yes","Yes",null,null,1412,"UNMANAGED"]
[null,null,null,null,null,null,null,null,null,null,null,null,null,null,null,null,null,null,null,null,null,null,null,null,9881,998,"Waiting List","PLAYER NOT AVAILABLE",0,"No","No","No",null,null,1413,"Norman House"]
[null,null,null,null,null,null,null,null,null,null,null,null,null,null,null,null,null,null,null,null,null,null,null,null,9888,998,"Waiting List","PLAYER NOT AVAILABLE",0,"No","No","No",null,null,1419,"UNMANAGED"]
[null,null,null,null,null,null,null,null,null,null,null,null,null,null,null,null,null,null,null,null,null,null,null,null,9891,998,"Waiting List","PLAYER NOT AVAILABLE",0,"No","No","No",null,null,1422,"David Bird"]
[null,null,null,null,null,null,null,null,null,null,null,null,null,null,null,null,null,null,null,null,null,null,null,null,9900,80,"Winchelsea","Andre-Franck ZAMBO ANGUISSA",25400982,"Yes","Yes","Yes",null,null,1427,"Don Davern"]
[null,null,null,null,null,null,null,null,null,null,null,null,null,null,null,null,null,null,null,null,null,null,null,null,9902,998,"Waiting List","PLAYER NOT AVAILABLE",0,"No","No","No",null,null,1428,"Transfer List"]
[null,null,null,null,null,null,null,null,null,null,null,null,null,null,null,null,null,null,null,null,null,null,null,null,9910,23,"Rushleydale","James MADDISON",49917570,"Yes","Yes","Yes",null,null,1433,"Michael Atkinson-House"]
[null,null,null,null,null,null,null,null,null,null,null,null,null,null,null,null,null,null,null,null,null,null,null,null,9916,70,"Northridge Cormorants","Abdelkader BRAHIM DIAZ",14936176,"Yes","Yes","Yes",null,null,1438,"Transfer List"]
[null,null,null,null,null,null,null,null,null,null,null,null,null,null,null,null,null,null,null,null,null,null,null,null,9921,998,"Waiting List","PLAYER NOT AVAILABLE",0,"No","No","No",null,null,1442,"Transfer List"]
[null,null,null,null,null,null,null,null,null,null,null,null,null,null,null,null,null,null,null,null,null,null,null,null,9922,0,"Transfer Pool","Angus GUNN",5206803,"No","No","Yes",1,null,1443,"UNMANAGED"]
[null,null,null,null,null,null,null,null,null,null,null,null,null,null,null,null,null,null,null,null,null,null,null,null,9931,86,"Ravensbourne","PLAYER NOT AVAILABLE",0,"No","No","No",null,null,1448,"NOT APPLICABLE"]
[null,null,null,null,null,null,null,null,null,null,null,null,null,null,null,null,null,null,null,null,null,null,null,null,9939,39,"Albenotti","Willy BOLY",8618888,"Yes","Yes","Yes",null,null,1453,"UNMANAGED"]
[null,null,null,null,null,null,null,null,null,null,null,null,null,null,null,null,null,null,null,null,null,null,null,null,9944,54,"Skylark Santiago","PLAYER NOT AVAILABLE",0,"No","No","No",null,null,1458,"NOT APPLICABLE"]
[null,null,null,null,null,null,null,null,null,null,null,null,null,null,null,null,null,null,null,null,null,null,null,null,9945,998,"Waiting List","PLAYER NOT AVAILABLE",0,"No","No","No",null,null,1459,"NOT APPLICABLE"]
[null,null,null,null,null,null,null,null,null,null,null,null,null,null,null,null,null,null,null,null,null,null,null,null,9950,6,"Roymirth Rovers","Mouctar DIAKHABY",12516533,"Yes","Yes","Yes",null,null,1463,"Mick Sims"]
[null,null,null,null,null,null,null,null,null,null,null,null,null,null,null,null,null,null,null,null,null,null,null,null,9955,29,"Ibursea Wolves","PLAYER NOT AVAILABLE",0,"No","No","No",null,null,1468,"James House"]
[null,null,null,null,null,null,null,null,null,null,null,null,null,null,null,null,null,null,null,null,null,null,null,null,9961,998,"Waiting List","PLAYER NOT AVAILABLE",0,"No","No","No",null,null,1473,"UNMANAGED"]
[null,null,null,null,null,null,null,null,null,null,null,null,null,null,null,null,null,null,null,null,null,null,null,null,9962,73,"Sparta Limarnder","Justin KLUIVERT",11622621,"Yes","Yes","Yes",null,null,1474,"UNMANAGED"]
[null,null,null,null,null,null,null,null,null,null,null,null,null,null,null,null,null,null,null,null,null,null,null,null,9969,998,"Waiting List","PLAYER NOT AVAILABLE",0,"No","No","No",null,null,1480,"UNMANAGED"]
[null,null,null,null,null,null,null,null,null,null,null,null,null,null,null,null,null,null,null,null,null,null,null,null,9972,70,"Northridge Cormorants","Abdou DIALLO",3240082,"Yes","Yes","Yes",null,null,1483,"NOT APPLICABLE"]
[null,null,null,null,null,null,null,null,null,null,null,null,null,null,null,null,null,null,null,null,null,null,null,null,9977,2,"Harrogate Orient","Sergio REGUILON",16396406,"Yes","Yes","Yes",null,null,1488,"NOT APPLICABLE"]
[null,null,null,null,null,null,null,null,null,null,null,null,null,null,null,null,null,null,null,null,null,null,null,null,9978,12,"Inter Normania","Jose Paixao VINICIUS JUNIOR",52161158,"Yes","Yes","Yes",null,null,1489,"NOT APPLICABLE"]
[null,null,null,null,null,null,null,null,null,null,null,null,null,null,null,null,null,null,null,null,null,null,null,null,9985,46,"Marquis of Granby","PLAYER NOT AVAILABLE",0,"No","No","No",null,null,1494,"NOT APPLICABLE"]
[null,null,null,null,null,null,null,null,null,null,null,null,null,null,null,null,null,null,null,null,null,null,null,null,9990,80,"Winchelsea","Manuel AKANJI",37094548,"Yes","Yes","Yes",null,null,1498,"NOT APPLICABLE"]
[null,null,null,null,null,null,null,null,null,null,null,null,null,null,null,null,null,null,null,null,null,null,null,null,9995,998,"Waiting List","PLAYER NOT AVAILABLE",0,"No","No","No",null,null,1503,"NOT APPLICABLE"]
[null,null,null,null,null,null,null,null,null,null,null,null,null,null,null,null,null,null,null,null,null,null,null,null,9996,64,"Fellerton","Matteo POLITANO",9579290,"Yes","Yes","Yes",null,null,1504,"UNMANAGED"]
[null,null,null,null,null,null,null,null,null,null,null,null,null,null,null,null,null,null,null,null,null,null,null,null,10002,0,"Transfer Pool","Nicola ZANIOLO",19164231,"No","No","Yes",2,null,1509,"Robin Slade"]
[null,null,null,null,null,null,null,null,null,null,null,null,null,null,null,null,null,null,null,null,null,null,null,null,10009,38,"Broxton Bulls","Garcia FERRAN TORRES",16093201,"Yes","Yes","Yes",null,null,1514,"NOT APPLICABLE"]
[null,null,null,null,null,null,null,null,null,null,null,null,null,null,null,null,null,null,null,null,null,null,null,null,10014,16,"Bumanchester United","Houssem AOUAR",12681669,"Yes","Yes","Yes",null,null,1519,"James House"]
[null,null,null,null,null,null,null,null,null,null,null,null,null,null,null,null,null,null,null,null,null,null,null,null,10017,19,"Jasonville","PLAYER CAN'T BE SOLD",{"$f":"\"-\"","v":"-"},"No","Yes","No",null,null,1521,"NOT APPLICABLE"]
[null,null,null,null,null,null,null,null,null,null,null,null,null,null,null,null,null,null,null,null,null,null,null,null,10020,13,"AC Desantelakos","Christopher NKUNKU",18317504,"Yes","Yes","Yes",null,null,1524,"NOT APPLICABLE"]
[null,null,null,null,null,null,null,null,null,null,null,null,null,null,null,null,null,null,null,null,null,null,null,null,10028,17,"Bishops Burghclere","Lucas PAQUETA",46154064,"Yes","Yes","Yes",null,null,1529,"NOT APPLICABLE"]
[null,null,null,null,null,null,null,null,null,null,null,null,null,null,null,null,null,null,null,null,null,null,null,null,10036,27,"Blackwater","Eric OELSCHLAGEL",420508,"Yes","Yes","Yes",null,null,1534,"NOT APPLICABLE"]
[null,null,null,null,null,null,null,null,null,null,null,null,null,null,null,null,null,null,null,null,null,null,null,null,10037,998,"Waiting List","PLAYER NOT AVAILABLE",0,"No","No","No",null,null,1535,"UNMANAGED"]
[null,null,null,null,null,null,null,null,null,null,null,null,null,null,null,null,null,null,null,null,null,null,null,null,10044,5,"Hurricane Harriers","Sofiane DIOP",7167879,"Yes","Yes","Yes",null,null,1541,"UNMANAGED"]
[null,null,null,null,null,null,null,null,null,null,null,null,null,null,null,null,null,null,null,null,null,null,null,null,10048,64,"Fellerton","Milan SKRINIAR",30448394,"Yes","Yes","Yes",null,null,1544,"UNMANAGED"]
[null,null,null,null,null,null,null,null,null,null,null,null,null,null,null,null,null,null,null,null,null,null,null,null,10058,17,"Bishops Burghclere","Denzel DUMFRIES",22100389,"Yes","Yes","Yes",null,null,1549,"Norman House"]
[null,null,null,null,null,null,null,null,null,null,null,null,null,null,null,null,null,null,null,null,null,null,null,null,10059,998,"Waiting List","PLAYER NOT AVAILABLE",0,"No","No","No",null,null,1550,"Bernie Iles"]
[null,null,null,null,null,null,null,null,null,null,null,null,null,null,null,null,null,null,null,null,null,null,null,null,10069,998,"Waiting List","PLAYER NOT AVAILABLE",0,"No","No","No",null,null,1555,"Olivia Andrews"]
[null,null,null,null,null,null,null,null,null,null,null,null,null,null,null,null,null,null,null,null,null,null,null,null,10074,9,"Real Danyella","Edmilson da Silva OTAVIO",22315089,"Yes","Yes","Yes",null,null,1559,"UNMANAGED"]
[null,null,null,null,null,null,null,null,null,null,null,null,null,null,null,null,null,null,null,null,null,null,null,null,10081,36,"VF Turks","Amine HARIT",13626176,"Yes","Yes","Yes",null,null,1564,"UNMANAGED"]
[null,null,null,null,null,null,null,null,null,null,null,null,null,null,null,null,null,null,null,null,null,null,null,null,10082,998,"Waiting List","PLAYER NOT AVAILABLE",0,"No","No","No",null,null,1565,"UNMANAGED"]
[null,null,null,null,null,null,null,null,null,null,null,null,null,null,null,null,null,null,null,null,null,null,null,null,10088,998,"Waiting List","PLAYER NOT AVAILABLE",0,"No","No","No",null,null,1570,"NOT APPLICABLE"]
[null,null,null,null,null,null,null,null,null,null,null,null,null,null,null,null,null,null,null,null,null,null,null,null,10094,0,"Transfer Pool","Cengiz UNDER",8150829,"No","No","Yes",4,null,1575,"Robin Slade"]
[null,null,null,null,null,null,null,null,null,null,null,null,null,null,null,null,null,null,null,null,null,null,null,null,10101,64,"Fellerton","Nicolas TAGLIAFICO",10355625,"Yes","Yes","Yes",null,null,1577,"NOT APPLICABLE"]
[null,null,null,null,null,null,null,null,null,null,null,null,null,null,null,null,null,null,null,null,null,null,null,null,10105,998,"Waiting List","PLAYER NOT AVAILABLE",0,"No","No","No",null,null,1580,"NOT APPLICABLE"]
[null,null,null,null,null,null,null,null,null,null,null,null,null,null,null,null,null,null,null,null,null,null,null,null,10111,998,"Waiting List","PLAYER NOT AVAILABLE",0,"No","No","No",null,null,1585,"UNMANAGED"]
[null,null,null,null,null,null,null,null,null,null,null,null,null,null,null,null,null,null,null,null,null,null,null,null,10119,14,"Treverton","Loris KARIUS",4914040,"Yes","Yes","Yes",null,null,1590,"NOT APPLICABLE"]
[null,null,null,null,null,null,null,null,null,null,null,null,null,null,null,null,null,null,null,null,null,null,null,null,10129,0,"Transfer Pool","Dani DE WIT",5728600,"No","No","Yes",4,null,1595,"UNMANAGED"]
[null,null,null,null,null,null,null,null,null,null,null,null,null,null,null,null,null,null,null,null,null,null,null,null,10130,82,"Riverside","Odysseas VLACHODIMOS",6970451,"Yes","Yes","Yes",null,null,1596,"NOT APPLICABLE"]
[null,null,null,null,null,null,null,null,null,null,null,null,null,null,null,null,null,null,null,null,null,null,null,null,10135,4,"Markhoeven","Alex GRIMALDO",29700814,"Yes","Yes","Yes",null,null,1600,"UNMANAGED"]
[null,null,null,null,null,null,null,null,null,null,null,null,null,null,null,null,null,null,null,null,null,null,null,null,10140,52,"Applegate Manor","Andrija ZIVKOVIC",6152089,"Yes","Yes","Yes",null,null,1605,"UNMANAGED"]
[null,null,null,null,null,null,null,null,null,null,null,null,null,null,null,null,null,null,null,null,null,null,null,null,10147,998,"Waiting List","PLAYER NOT AVAILABLE",0,"No","No","No",null,null,1610,"NOT APPLICABLE"]
[null,null,null,null,null,null,null,null,null,null,null,null,null,null,null,null,null,null,null,null,null,null,null,null,10149,13,"AC Desantelakos","Cassio Apolinario de Lira JOELINTON",32887177,"Yes","Yes","Yes",null,null,1611,"UNMANAGED"]
[null,null,null,null,null,null,null,null,null,null,null,null,null,null,null,null,null,null,null,null,null,null,null,null,10159,82,"Riverside","Dos Santos Pedro FERNANDO",2277219,"Yes","Yes","Yes",null,null,1616,"UNMANAGED"]
[null,null,null,null,null,null,null,null,null,null,null,null,null,null,null,null,null,null,null,null,null,null,null,null,10168,998,"Waiting List","PLAYER NOT AVAILABLE",0,"No","No","No",null,null,1620,"NOT APPLICABLE"]
[null,null,null,null,null,null,null,null,null,null,null,null,null,null,null,null,null,null,null,null,null,null,null,null,10179,998,"Waiting List","PLAYER NOT AVAILABLE",0,"No","No","No",null,null,1625,"UNMANAGED"]
[null,null,null,null,null,null,null,null,null,null,null,null,null,null,null,null,null,null,null,null,null,null,null,null,10180,5,"Hurricane Harriers","Inigo MARTINEZ",12793457,"Yes","Yes","Yes",null,null,1626,"UNMANAGED"]
[null,null,null,null,null,null,null,null,null,null,null,null,null,null,null,null,null,null,null,null,null,null,null,null,10185,94,"Swifthaven","PLAYER NOT AVAILABLE",0,"No","No","No",null,null,1631,"UNMANAGED"]
[null,null,null,null,null,null,null,null,null,null,null,null,null,null,null,null,null,null,null,null,null,null,null,null,10196,34,"St. Vincent","PLAYER NOT AVAILABLE",0,"No","No","No",null,null,1636,"Bernie Iles"]
[null,null,null,null,null,null,null,null,null,null,null,null,null,null,null,null,null,null,null,null,null,null,null,null,10199,70,"Northridge Cormorants","Ramos LUIZ FELIPE",30344958,"Yes","Yes","Yes",null,null,1638,"Transfer List"]
[null,null,null,null,null,null,null,null,null,null,null,null,null,null,null,null,null,null,null,null,null,null,null,null,10203,4,"Markhoeven","Harvey BARNES",17955478,"Yes","Yes","Yes",null,null,1641,"Robin Slade"]
[null,null,null,null,null,null,null,null,null,null,null,null,null,null,null,null,null,null,null,null,null,null,null,null,10210,20,"Nessertoponions","Samuel CHUKWUEZE",11056106,"Yes","Yes","Yes",null,null,1646,"NOT APPLICABLE"]
[null,null,null,null,null,null,null,null,null,null,null,null,null,null,null,null,null,null,null,null,null,null,null,null,10216,17,"Bishops Burghclere","PLAYER CAN'T BE SOLD",{"$f":"\"-\"","v":"-"},"No","Yes","No",null,null,1651,"Norman House"]
[null,null,null,null,null,null,null,null,null,null,null,null,null,null,null,null,null,null,null,null,null,null,null,null,10221,998,"Waiting List","PLAYER NOT AVAILABLE",0,"No","No","No",null,null,1656,"Norman House"]
[null,null,null,null,null,null,null,null,null,null,null,null,null,null,null,null,null,null,null,null,null,null,null,null,10225,24,"Cinsath Argyle","PLAYER NOT AVAILABLE",0,"No","No","No",null,null,1657,"Transfer List"]
[null,null,null,null,null,null,null,null,null,null,null,null,null,null,null,null,null,null,null,null,null,null,null,null,10231,15,"North Notley","Tahith CHONG",4395140,"Yes","Yes","Yes",null,null,1661,"NOT APPLICABLE"]
[null,null,null,null,null,null,null,null,null,null,null,null,null,null,null,null,null,null,null,null,null,null,null,null,10237,15,"North Notley","PLAYER CAN'T BE SOLD",{"$f":"\"-\"","v":"-"},"No","Yes","No",null,null,1666,"Michael Atkinson-House"]
[null,null,null,null,null,null,null,null,null,null,null,null,null,null,null,null,null,null,null,null,null,null,null,null,10243,27,"Blackwater","PLAYER CAN'T BE SOLD",{"$f":"\"-\"","v":"-"},"No","Yes","No",null,null,1671,"UNMANAGED"]
[null,null,null,null,null,null,null,null,null,null,null,null,null,null,null,null,null,null,null,null,null,null,null,null,10244,70,"Northridge Cormorants","Dean HENDERSON",3397697,"Yes","Yes","Yes",null,null,1672,"UNMANAGED"]
[null,null,null,null,null,null,null,null,null,null,null,null,null,null,null,null,null,null,null,null,null,null,null,null,10253,0,"Transfer Pool","Oliver NORWOOD",2579022,"No","No","Yes",1,null,1677,"NOT APPLICABLE"]
[null,null,null,null,null,null,null,null,null,null,null,null,null,null,null,null,null,null,null,null,null,null,null,null,10262,0,"Transfer Pool","Sayol CARLES PEREZ",6226909,"No","No","Yes",2,null,1682,"UNMANAGED"]
[null,null,null,null,null,null,null,null,null,null,null,null,null,null,null,null,null,null,null,null,null,null,null,null,10266,5,"Hurricane Harriers","Lodi RENAN",17899209,"Yes","Yes","Yes",null,null,1686,"NOT APPLICABLE"]
[null,null,null,null,null,null,null,null,null,null,null,null,null,null,null,null,null,null,null,null,null,null,null,null,10268,998,"Waiting List","PLAYER NOT AVAILABLE",0,"No","No","No",null,null,1687,"NOT APPLICABLE"]
[null,null,null,null,null,null,null,null,null,null,null,null,null,null,null,null,null,null,null,null,null,null,null,null,10328,86,"Ravensbourne","PLAYER NOT AVAILABLE",0,"No","No","No",null,null,1692,"UNMANAGED"]
[null,null,null,null,null,null,null,null,null,null,null,null,null,null,null,null,null,null,null,null,null,null,null,null,10423,998,"Waiting List","PLAYER NOT AVAILABLE",0,"No","No","No",null,null,1697,"UNMANAGED"]
[null,null,null,null,null,null,null,null,null,null,null,null,null,null,null,null,null,null,null,null,null,null,null,null,10434,8,"Intersol","PLAYER NOT AVAILABLE",0,"No","No","No",null,null,1700,"NOT APPLICABLE"]
[null,null,null,null,null,null,null,null,null,null,null,null,null,null,null,null,null,null,null,null,null,null,null,null,10449,14,"Treverton","Carlos MARAFONA",18318,"Yes","Yes","Yes",null,null,1702,"NOT APPLICABLE"]
[null,null,null,null,null,null,null,null,null,null,null,null,null,null,null,null,null,null,null,null,null,null,null,null,10459,3,"Real Jameosean","PLAYER NOT AVAILABLE",0,"No","No","No",null,null,1707,"UNMANAGED"]
[null,null,null,null,null,null,null,null,null,null,null,null,null,null,null,null,null,null,null,null,null,null,null,null,10466,31,"Nesportivo","Ezri KONSA",11160544,"Yes","Yes","Yes",null,null,1712,"NOT APPLICABLE"]
[null,null,null,null,null,null,null,null,null,null,null,null,null,null,null,null,null,null,null,null,null,null,null,null,10474,0,"Transfer Pool","Harry WILSON",9576307,"No","No","Yes",1,null,1717,"NOT APPLICABLE"]
[null,null,null,null,null,null,null,null,null,null,null,null,null,null,null,null,null,null,null,null,null,null,null,null,10478,998,"Waiting List","PLAYER NOT AVAILABLE",0,"No","No","No",null,null,1720,"UNMANAGED"]
[null,null,null,null,null,null,null,null,null,null,null,null,null,null,null,null,null,null,null,null,null,null,null,null,10480,69,"Gainsborough Hamlet","Pedro PORRO",13392093,"Yes","Yes","Yes",null,null,1722,"NOT APPLICABLE"]
[null,null,null,null,null,null,null,null,null,null,null,null,null,null,null,null,null,null,null,null,null,null,null,null,10486,36,"VF Turks","Ruslan MALINOVSKYI",18746999,"Yes","Yes","Yes",null,17,1727,"UNMANAGED"]
[null,null,null,null,null,null,null,null,null,null,null,null,null,null,null,null,null,null,null,null,null,null,null,null,10492,126,"Weslington","PLAYER CAN'T BE SOLD",{"$f":"\"-\"","v":"-"},"No","Yes","No",null,null,1732,"Transfer List"]
[null,null,null,null,null,null,null,null,null,null,null,null,null,null,null,null,null,null,null,null,null,null,null,null,10493,56,"All Saints United","Marvelous NAKAMBA",5317069,"Yes","Yes","Yes",null,null,1733,"Don Davern"]
[null,null,null,null,null,null,null,null,null,null,null,null,null,null,null,null,null,null,null,null,null,null,null,null,10518,998,"Waiting List","PLAYER NOT AVAILABLE",0,"No","No","No",null,null,1738,"UNMANAGED"]
[null,null,null,null,null,null,null,null,null,null,null,null,null,null,null,null,null,null,null,null,null,null,null,null,10538,1000,"RETIRED","PLAYER NOT AVAILABLE",0,"No","No","No",null,null,1743,"Ken Atkinson"]
[null,null,null,null,null,null,null,null,null,null,null,null,null,null,null,null,null,null,null,null,null,null,null,null,10566,998,"Waiting List","PLAYER NOT AVAILABLE",0,"No","No","No",null,null,1747,"Bernie Iles"]
[null,null,null,null,null,null,null,null,null,null,null,null,null,null,null,null,null,null,null,null,null,null,null,null,10569,9,"Real Danyella","Agustin MARCHESIN",20013,"Yes","Yes","Yes",null,null,1748,"Don Davern"]
[null,null,null,null,null,null,null,null,null,null,null,null,null,null,null,null,null,null,null,null,null,null,null,null,10596,97,"Johnsonville","PLAYER NOT AVAILABLE",0,"No","No","No",null,null,1753,"UNMANAGED"]
[null,null,null,null,null,null,null,null,null,null,null,null,null,null,null,null,null,null,null,null,null,null,null,null,10611,102,"Dukes Park","PLAYER NOT AVAILABLE",0,"No","No","No",null,null,1758,"NOT APPLICABLE"]
[null,null,null,null,null,null,null,null,null,null,null,null,null,null,null,null,null,null,null,null,null,null,null,null,10634,84,"Oaklea Park","PLAYER NOT AVAILABLE",0,"No","No","No",null,null,1761,"UNMANAGED"]
[null,null,null,null,null,null,null,null,null,null,null,null,null,null,null,null,null,null,null,null,null,null,null,null,10645,998,"Waiting List","PLAYER NOT AVAILABLE",0,"No","No","No",null,null,1763,"NOT APPLICABLE"]
[null,null,null,null,null,null,null,null,null,null,null,null,null,null,null,null,null,null,null,null,null,null,null,null,10684,998,"Waiting List","PLAYER NOT AVAILABLE",0,"No","No","No",null,null,1768,"Transfer List"]
[null,null,null,null,null,null,null,null,null,null,null,null,null,null,null,null,null,null,null,null,null,null,null,null,10705,998,"Waiting List","PLAYER NOT AVAILABLE",0,"No","No","No",null,null,1773,"NOT APPLICABLE"]
[null,null,null,null,null,null,null,null,null,null,null,null,null,null,null,null,null,null,null,null,null,null,null,null,10721,2,"Harrogate Orient","Dennis DIEKMEIER",321610,"Yes","Yes","Yes",null,null,1778,"UNMANAGED"]
[null,null,null,null,null,null,null,null,null,null,null,null,null,null,null,null,null,null,null,null,null,null,null,null,10725,998,"Waiting List","PLAYER NOT AVAILABLE",0,"No","No","No",null,null,1779,"Bernie Iles"]
[null,null,null,null,null,null,null,null,null,null,null,null,null,null,null,null,null,null,null,null,null,null,null,null,10745,61,"Culmore Crusaders","PLAYER NOT AVAILABLE",0,"No","No","No",null,null,1783,"UNMANAGED"]
[null,null,null,null,null,null,null,null,null,null,null,null,null,null,null,null,null,null,null,null,null,null,null,null,10767,116,"FC Invincible","PLAYER NOT AVAILABLE",0,"No","No","No",null,null,1788,"NOT APPLICABLE"]
[null,null,null,null,null,null,null,null,null,null,null,null,null,null,null,null,null,null,null,null,null,null,null,null,10792,95,"Roxwell United","PLAYER NOT AVAILABLE",0,"No","No","No",null,null,1793,"NOT APPLICABLE"]
[null,null,null,null,null,null,null,null,null,null,null,null,null,null,null,null,null,null,null,null,null,null,null,null,10795,104,"Beaumont Belvedere","PLAYER NOT AVAILABLE",0,"No","No","No",null,null,1794,"UNMANAGED"]
[null,null,null,null,null,null,null,null,null,null,null,null,null,null,null,null,null,null,null,null,null,null,null,null,10813,998,"Waiting List","PLAYER NOT AVAILABLE",0,"No","No","No",null,null,1799,"NOT APPLICABLE"]
[null,null,null,null,null,null,null,null,null,null,null,null,null,null,null,null,null,null,null,null,null,null,null,null,10824,28,"Tauntonian Celtic","PLAYER NOT AVAILABLE",0,"No","No","No",null,null,1803,"NOT APPLICABLE"]
[null,null,null,null,null,null,null,null,null,null,null,null,null,null,null,null,null,null,null,null,null,null,null,null,10846,998,"Waiting List","PLAYER NOT AVAILABLE",0,"No","No","No",null,null,1808,"Robin Slade"]
[null,null,null,null,null,null,null,null,null,null,null,null,null,null,null,null,null,null,null,null,null,null,null,null,10849,24,"Cinsath Argyle","PLAYER NOT AVAILABLE",0,"No","No","No",null,null,1809,"UNMANAGED"]
[null,null,null,null,null,null,null,null,null,null,null,null,null,null,null,null,null,null,null,null,null,null,null,null,10863,998,"Waiting List","PLAYER NOT AVAILABLE",0,"No","No","No",null,null,1814,"NOT APPLICABLE"]
[null,null,null,null,null,null,null,null,null,null,null,null,null,null,null,null,null,null,null,null,null,null,null,null,10888,84,"Oaklea Park","PLAYER NOT AVAILABLE",0,"No","No","No",null,null,1819,"NOT APPLICABLE"]
[null,null,null,null,null,null,null,null,null,null,null,null,null,null,null,null,null,null,null,null,null,null,null,null,10902,74,"Scarlet Rovers","PLAYER NOT AVAILABLE",0,"No","No","No",null,null,1822,"NOT APPLICABLE"]
[null,null,null,null,null,null,null,null,null,null,null,null,null,null,null,null,null,null,null,null,null,null,null,null,10911,111,"Cavendish","PLAYER NOT AVAILABLE",0,"No","No","No",null,null,1824,"Don Davern"]
[null,null,null,null,null,null,null,null,null,null,null,null,null,null,null,null,null,null,null,null,null,null,null,null,10935,29,"Ibursea Wolves","PLAYER NOT AVAILABLE",0,"No","No","No",null,null,1829,"NOT APPLICABLE"]
[null,null,null,null,null,null,null,null,null,null,null,null,null,null,null,null,null,null,null,null,null,null,null,null,10982,100,"East Hanningfield","PLAYER NOT AVAILABLE",0,"No","No","No",null,null,1834,"James House"]
[null,null,null,null,null,null,null,null,null,null,null,null,null,null,null,null,null,null,null,null,null,null,null,null,11021,8,"Intersol","PLAYER NOT AVAILABLE",0,"No","No","No",null,null,1839,"NOT APPLICABLE"]
[null,null,null,null,null,null,null,null,null,null,null,null,null,null,null,null,null,null,null,null,null,null,null,null,11023,124,"Belize Gonagecha","PLAYER NOT AVAILABLE",0,"No","No","No",null,null,1840,"Transfer List"]
[null,null,null,null,null,null,null,null,null,null,null,null,null,null,null,null,null,null,null,null,null,null,null,null,11027,55,"Pennymede Park","PLAYER NOT AVAILABLE",0,"No","No","No",null,null,1844,"UNMANAGED"]
[null,null,null,null,null,null,null,null,null,null,null,null,null,null,null,null,null,null,null,null,null,null,null,null,11038,48,"Hammersmith Celtic","PLAYER CAN'T BE SOLD",{"$f":"\"-\"","v":"-"},"No","Yes","No",null,null,1849,"UNMANAGED"]
[null,null,null,null,null,null,null,null,null,null,null,null,null,null,null,null,null,null,null,null,null,null,null,null,11043,998,"Waiting List","PLAYER NOT AVAILABLE",0,"No","No","No",null,null,1854,"UNMANAGED"]
[null,null,null,null,null,null,null,null,null,null,null,null,null,null,null,null,null,null,null,null,null,null,null,null,11044,0,"Transfer Pool","Remo FREULER",6140635,"No","No","Yes",1,null,1855,"UNMANAGED"]
[null,null,null,null,null,null,null,null,null,null,null,null,null,null,null,null,null,null,null,null,null,null,null,null,11057,998,"Waiting List","PLAYER NOT AVAILABLE",0,"No","No","No",null,null,1861,"Transfer List"]
[null,null,null,null,null,null,null,null,null,null,null,null,null,null,null,null,null,null,null,null,null,null,null,null,11061,998,"Waiting List","PLAYER NOT AVAILABLE",0,"No","No","No",null,null,1864,"Norman House"]
[null,null,null,null,null,null,null,null,null,null,null,null,null,null,null,null,null,null,null,null,null,null,null,null,11071,998,"Waiting List","PLAYER NOT AVAILABLE",0,"No","No","No",null,null,1869,"Transfer List"]
[null,null,null,null,null,null,null,null,null,null,null,null,null,null,null,null,null,null,null,null,null,null,null,null,11072,8,"Intersol","PLAYER NOT AVAILABLE",0,"No","No","No",null,null,1870,"NOT APPLICABLE"]
[null,null,null,null,null,null,null,null,null,null,null,null,null,null,null,null,null,null,null,null,null,null,null,null,11077,9,"Real Danyella","Gonzalez Lopez PEDRI",25526740,"Yes","Yes","Yes",null,null,1875,"UNMANAGED"]
[null,null,null,null,null,null,null,null,null,null,null,null,null,null,null,null,null,null,null,null,null,null,null,null,11088,66,"Lemeno","PLAYER NOT AVAILABLE",0,"No","No","No",null,null,1878,"NOT APPLICABLE"]
[null,null,null,null,null,null,null,null,null,null,null,null,null,null,null,null,null,null,null,null,null,null,null,null,11107,51,"Wyckham Vosper","PLAYER NOT AVAILABLE",0,"No","No","No",null,null,1884,"Lesley Atkinson"]
[null,null,null,null,null,null,null,null,null,null,null,null,null,null,null,null,null,null,null,null,null,null,null,null,11109,74,"Scarlet Rovers","PLAYER NOT AVAILABLE",0,"No","No","No",null,null,1885,"NOT APPLICABLE"]
[null,null,null,null,null,null,null,null,null,null,null,null,null,null,null,null,null,null,null,null,null,null,null,null,11120,998,"Waiting List","PLAYER NOT AVAILABLE",0,"No","No","No",null,null,1890,"NOT APPLICABLE"]
[null,null,null,null,null,null,null,null,null,null,null,null,null,null,null,null,null,null,null,null,null,null,null,null,11132,28,"Tauntonian Celtic","PLAYER NOT AVAILABLE",0,"No","No","No",null,null,1895,"UNMANAGED"]
[null,null,null,null,null,null,null,null,null,null,null,null,null,null,null,null,null,null,null,null,null,null,null,null,11145,998,"Waiting List","PLAYER NOT AVAILABLE",0,"No","No","No",null,null,1900,"UNMANAGED"]
[null,null,null,null,null,null,null,null,null,null,null,null,null,null,null,null,null,null,null,null,null,null,null,null,11146,998,"Waiting List","PLAYER NOT AVAILABLE",0,"No","No","No",null,null,1901,"Robin Slade"]
[null,null,null,null,null,null,null,null,null,null,null,null,null,null,null,null,null,null,null,null,null,null,null,null,11151,998,"Waiting List","PLAYER NOT AVAILABLE",0,"No","No","No",null,null,1905,"UNMANAGED"]
[null,null,null,null,null,null,null,null,null,null,null,null,null,null,null,null,null,null,null,null,null,null,null,null,11172,998,"Waiting List","PLAYER NOT AVAILABLE",0,"No","No","No",null,null,1910,"UNMANAGED"]
[null,null,null,null,null,null,null,null,null,null,null,null,null,null,null,null,null,null,null,null,null,null,null,null,11187,30,"Bigglesea Albion","Armel BELLA-KOTCHAP",14927027,"Yes","Yes","Yes",null,29,1915,"UNMANAGED"]
[null,null,null,null,null,null,null,null,null,null,null,null,null,null,null,null,null,null,null,null,null,null,null,null,11193,115,"Greenbury","PLAYER NOT AVAILABLE",0,"No","No","No",null,null,1916,"UNMANAGED"]
[null,null,null,null,null,null,null,null,null,null,null,null,null,null,null,null,null,null,null,null,null,null,null,null,11212,7,"AEK Grogan","PLAYER CAN'T BE SOLD",{"$f":"\"-\"","v":"-"},"No","Yes","No",null,null,1922,"Ken Atkinson"]
[null,null,null,null,null,null,null,null,null,null,null,null,null,null,null,null,null,null,null,null,null,null,null,null,11217,73,"Sparta Limarnder","Aaron RAMSDALE",25859778,"Yes","Yes","Yes",null,null,1925,"Norman House"]
[null,null,null,null,null,null,null,null,null,null,null,null,null,null,null,null,null,null,null,null,null,null,null,null,11243,33,"Jarikton","PLAYER CAN'T BE SOLD",{"$f":"\"-\"","v":"-"},"No","Yes","No",null,null,1930,"NOT APPLICABLE"]
[null,null,null,null,null,null,null,null,null,null,null,null,null,null,null,null,null,null,null,null,null,null,null,null,11244,998,"Waiting List","PLAYER NOT AVAILABLE",0,"No","No","No",null,null,1931,"Robin Slade"]
[null,null,null,null,null,null,null,null,null,null,null,null,null,null,null,null,null,null,null,null,null,null,null,null,11252,80,"Winchelsea","David RAYA",3758157,"Yes","Yes","Yes",null,null,1936,"UNMANAGED"]
[null,null,null,null,null,null,null,null,null,null,null,null,null,null,null,null,null,null,null,null,null,null,null,null,11259,18,"Fairoak Foresters","Ethan PINNOCK",19503033,"Yes","Yes","Yes",null,null,1940,"UNMANAGED"]
[null,null,null,null,null,null,null,null,null,null,null,null,null,null,null,null,null,null,null,null,null,null,null,null,11268,43,"IOD","PLAYER NOT AVAILABLE",0,"No","No","No",null,null,1945,"UNMANAGED"]
[null,null,null,null,null,null,null,null,null,null,null,null,null,null,null,null,null,null,null,null,null,null,null,null,11269,85,"Krystle Palace","PLAYER NOT AVAILABLE",0,"No","No","No",null,null,1946,"NOT APPLICABLE"]
[null,null,null,null,null,null,null,null,null,null,null,null,null,null,null,null,null,null,null,null,null,null,null,null,11299,115,"Greenbury","PLAYER NOT AVAILABLE",0,"No","No","No",null,null,1951,"UNMANAGED"]
[null,null,null,null,null,null,null,null,null,null,null,null,null,null,null,null,null,null,null,null,null,null,null,null,11350,42,"Macksfield Rovers","PLAYER NOT AVAILABLE",0,"No","No","No",null,null,1956,"UNMANAGED"]
[null,null,null,null,null,null,null,null,null,null,null,null,null,null,null,null,null,null,null,null,null,null,null,null,11355,95,"Roxwell United","PLAYER NOT AVAILABLE",0,"No","No","No",null,null,1960,"UNMANAGED"]
[null,null,null,null,null,null,null,null,null,null,null,null,null,null,null,null,null,null,null,null,null,null,null,null,11356,87,"Zanzibar Aztecs","PLAYER NOT AVAILABLE",0,"No","No","No",null,null,1961,"UNMANAGED"]
[null,null,null,null,null,null,null,null,null,null,null,null,null,null,null,null,null,null,null,null,null,null,null,null,11385,998,"Waiting List","PLAYER NOT AVAILABLE",0,"No","No","No",null,null,1966,"UNMANAGED"]
[null,null,null,null,null,null,null,null,null,null,null,null,null,null,null,null,null,null,null,null,null,null,null,null,11414,74,"Scarlet Rovers","PLAYER NOT AVAILABLE",0,"No","No","No",null,null,1971,"UNMANAGED"]
[null,null,null,null,null,null,null,null,null,null,null,null,null,null,null,null,null,null,null,null,null,null,null,null,11421,87,"Zanzibar Aztecs","PLAYER NOT AVAILABLE",0,"No","No","No",null,null,1976,"UNMANAGED"]
[null,null,null,null,null,null,null,null,null,null,null,null,null,null,null,null,null,null,null,null,null,null,null,null,11424,998,"Waiting List","PLAYER NOT AVAILABLE",0,"No","No","No",null,null,1977,"UNMANAGED"]
[null,null,null,null,null,null,null,null,null,null,null,null,null,null,null,null,null,null,null,null,null,null,null,null,11434,998,"Waiting List","PLAYER NOT AVAILABLE",0,"No","No","No",null,null,1983,"UNMANAGED"]
[null,null,null,null,null,null,null,null,null,null,null,null,null,null,null,null,null,null,null,null,null,null,null,null,11448,109,"Bayswater Kings","PLAYER NOT AVAILABLE",0,"No","No","No",null,null,1986,"UNMANAGED"]
[null,null,null,null,null,null,null,null,null,null,null,null,null,null,null,null,null,null,null,null,null,null,null,null,11489,28,"Tauntonian Celtic","PLAYER NOT AVAILABLE",0,"No","No","No",null,null,1991,"UNMANAGED"]
[null,null,null,null,null,null,null,null,null,null,null,null,null,null,null,null,null,null,null,null,null,null,null,null,11490,89,"Melbourne Park","PLAYER NOT AVAILABLE",0,"No","No","No",null,null,1992,"UNMANAGED"]
[null,null,null,null,null,null,null,null,null,null,null,null,null,null,null,null,null,null,null,null,null,null,null,null,11502,998,"Waiting List","PLAYER NOT AVAILABLE",0,"No","No","No",null,null,1997,"NOT APPLICABLE"]
[null,null,null,null,null,null,null,null,null,null,null,null,null,null,null,null,null,null,null,null,null,null,null,null,11507,24,"Cinsath Argyle","PLAYER NOT AVAILABLE",0,"No","No","No",null,null,2001,"Transfer List"]
[null,null,null,null,null,null,null,null,null,null,null,null,null,null,null,null,null,null,null,null,null,null,null,null,11523,998,"Waiting List","PLAYER NOT AVAILABLE",0,"No","No","No",null,null,2006,"Steven Dingsdale"]
[null,null,null,null,null,null,null,null,null,null,null,null,null,null,null,null,null,null,null,null,null,null,null,null,11526,63,"Davemoor","PLAYER NOT AVAILABLE",0,"No","No","No",null,null,2007,"Don Davern"]
[null,null,null,null,null,null,null,null,null,null,null,null,null,null,null,null,null,null,null,null,null,null,null,null,11562,89,"Melbourne Park","PLAYER NOT AVAILABLE",0,"No","No","No",null,null,2012,"Transfer List"]
[null,null,null,null,null,null,null,null,null,null,null,null,null,null,null,null,null,null,null,null,null,null,null,null,11569,998,"Waiting List","PLAYER NOT AVAILABLE",0,"No","No","No",null,null,2017,"UNMANAGED"]
[null,null,null,null,null,null,null,null,null,null,null,null,null,null,null,null,null,null,null,null,null,null,null,null,11574,110,"Bridgewater","PLAYER NOT AVAILABLE",0,"No","No","No",null,null,2019,"UNMANAGED"]
[null,null,null,null,null,null,null,null,null,null,null,null,null,null,null,null,null,null,null,null,null,null,null,null,11622,998,"Waiting List","PLAYER NOT AVAILABLE",0,"No","No","No",null,null,2022,"NOT APPLICABLE"]
[null,null,null,null,null,null,null,null,null,null,null,null,null,null,null,null,null,null,null,null,null,null,null,null,11630,0,"Transfer Pool","Guilherme Abreu do Santos PEDRO",8867440,"No","No","Yes",4,null,2027,"UNMANAGED"]
[null,null,null,null,null,null,null,null,null,null,null,null,null,null,null,null,null,null,null,null,null,null,null,null,11635,998,"Waiting List","PLAYER NOT AVAILABLE",0,"No","No","No",null,null,2032,"NOT APPLICABLE"]
[null,null,null,null,null,null,null,null,null,null,null,null,null,null,null,null,null,null,null,null,null,null,null,null,11660,77,"Passfield","PLAYER NOT AVAILABLE",0,"No","No","No",null,null,2037,"NOT APPLICABLE"]
[null,null,null,null,null,null,null,null,null,null,null,null,null,null,null,null,null,null,null,null,null,null,null,null,11671,998,"Waiting List","PLAYER NOT AVAILABLE",0,"No","No","No",null,null,2038,"NOT APPLICABLE"]
[null,null,null,null,null,null,null,null,null,null,null,null,null,null,null,null,null,null,null,null,null,null,null,null,11679,998,"Waiting List","PLAYER NOT AVAILABLE",0,"No","No","No",null,null,2044,"UNMANAGED"]
[null,null,null,null,null,null,null,null,null,null,null,null,null,null,null,null,null,null,null,null,null,null,null,null,11686,102,"Dukes Park","PLAYER NOT AVAILABLE",0,"No","No","No",null,null,2047,"NOT APPLICABLE"]
[null,null,null,null,null,null,null,null,null,null,null,null,null,null,null,null,null,null,null,null,null,null,null,null,11695,998,"Waiting List","PLAYER NOT AVAILABLE",0,"No","No","No",null,null,2052,"UNMANAGED"]
[null,null,null,null,null,null,null,null,null,null,null,null,null,null,null,null,null,null,null,null,null,null,null,null,11696,30,"Bigglesea Albion","Christian GUNTER",2839545,"Yes","Yes","Yes",null,null,2053,"UNMANAGED"]
[null,null,null,null,null,null,null,null,null,null,null,null,null,null,null,null,null,null,null,null,null,null,null,null,11705,55,"Pennymede Park","PLAYER NOT AVAILABLE",0,"No","No","No",null,null,2058,"UNMANAGED"]
[null,null,null,null,null,null,null,null,null,null,null,null,null,null,null,null,null,null,null,null,null,null,null,null,11709,0,"Transfer Pool","Marek RODAK",4012999,"No","No","Yes",1,null,2062,"Transfer List"]
[null,null,null,null,null,null,null,null,null,null,null,null,null,null,null,null,null,null,null,null,null,null,null,null,11720,47,"Port Waltham","PLAYER NOT AVAILABLE",0,"No","No","No",null,null,2067,"UNMANAGED"]
[null,null,null,null,null,null,null,null,null,null,null,null,null,null,null,null,null,null,null,null,null,null,null,null,11723,998,"Waiting List","PLAYER NOT AVAILABLE",0,"No","No","No",null,null,2068,"Transfer List"]
[null,null,null,null,null,null,null,null,null,null,null,null,null,null,null,null,null,null,null,null,null,null,null,null,11755,90,"Saddington","PLAYER NOT AVAILABLE",0,"No","No","No",null,null,2073,"NOT APPLICABLE"]
[null,null,null,null,null,null,null,null,null,null,null,null,null,null,null,null,null,null,null,null,null,null,null,null,11771,63,"Davemoor","PLAYER NOT AVAILABLE",0,"No","No","No",null,null,2078,"UNMANAGED"]
[null,null,null,null,null,null,null,null,null,null,null,null,null,null,null,null,null,null,null,null,null,null,null,null,11778,998,"Waiting List","PLAYER NOT AVAILABLE",0,"No","No","No",null,null,2080,"UNMANAGED"]
[null,null,null,null,null,null,null,null,null,null,null,null,null,null,null,null,null,null,null,null,null,null,null,null,11781,63,"Davemoor","PLAYER NOT AVAILABLE",0,"No","No","No",null,null,2083,"UNMANAGED"]
[null,null,null,null,null,null,null,null,null,null,null,null,null,null,null,null,null,null,null,null,null,null,null,null,11792,87,"Zanzibar Aztecs","PLAYER NOT AVAILABLE",0,"No","No","No",null,null,2088,"NOT APPLICABLE"]
[null,null,null,null,null,null,null,null,null,null,null,null,null,null,null,null,null,null,null,null,null,null,null,null,11809,52,"Applegate Manor","Javairo DILROSUN",8436459,"Yes","Yes","Yes",null,null,2093,"NOT APPLICABLE"]
[null,null,null,null,null,null,null,null,null,null,null,null,null,null,null,null,null,null,null,null,null,null,null,null,11816,96,"Stonebridge","PLAYER NOT AVAILABLE",0,"No","No","No",null,null,2098,"UNMANAGED"]
[null,null,null,null,null,null,null,null,null,null,null,null,null,null,null,null,null,null,null,null,null,null,null,null,11822,62,"Highfield","PLAYER NOT AVAILABLE",0,"No","No","No",null,null,2101,"NOT APPLICABLE"]
[null,null,null,null,null,null,null,null,null,null,null,null,null,null,null,null,null,null,null,null,null,null,null,null,11825,998,"Waiting List","PLAYER NOT AVAILABLE",0,"No","No","No",null,null,2103,"UNMANAGED"]
[null,null,null,null,null,null,null,null,null,null,null,null,null,null,null,null,null,null,null,null,null,null,null,null,11853,998,"Waiting List","PLAYER NOT AVAILABLE",0,"No","No","No",null,null,2108,"UNMANAGED"]
[null,null,null,null,null,null,null,null,null,null,null,null,null,null,null,null,null,null,null,null,null,null,null,null,11867,998,"Waiting List","PLAYER NOT AVAILABLE",0,"No","No","No",null,null,2113,"NOT APPLICABLE"]
[null,null,null,null,null,null,null,null,null,null,null,null,null,null,null,null,null,null,null,null,null,null,null,null,11868,38,"Broxton Bulls","Jarrod BOWEN",15510114,"Yes","Yes","Yes",null,null,2114,"NOT APPLICABLE"]
[null,null,null,null,null,null,null,null,null,null,null,null,null,null,null,null,null,null,null,null,null,null,null,null,11879,998,"Waiting List","PLAYER NOT AVAILABLE",0,"No","No","No",null,null,2119,"NOT APPLICABLE"]
[null,null,null,null,null,null,null,null,null,null,null,null,null,null,null,null,null,null,null,null,null,null,null,null,11888,88,"St. Mary","PLAYER NOT AVAILABLE",0,"No","No","No",null,null,2123,"UNMANAGED"]
[null,null,null,null,null,null,null,null,null,null,null,null,null,null,null,null,null,null,null,null,null,null,null,null,11906,40,"H&H","Domilson Cordero dos Santos DODO",14515439,"Yes","Yes","Yes",null,null,2128,"NOT APPLICABLE"]
[null,null,null,null,null,null,null,null,null,null,null,null,null,null,null,null,null,null,null,null,null,null,null,null,11910,106,"Colebank","PLAYER NOT AVAILABLE",0,"No","No","No",null,null,2129,"NOT APPLICABLE"]
[null,null,null,null,null,null,null,null,null,null,null,null,null,null,null,null,null,null,null,null,null,null,null,null,11935,123,"San Michael","PLAYER NOT AVAILABLE",0,"No","No","No",null,null,2134,"Michael Atkinson-House"]
[null,null,null,null,null,null,null,null,null,null,null,null,null,null,null,null,null,null,null,null,null,null,null,null,11954,34,"St. Vincent","PLAYER NOT AVAILABLE",0,"No","No","No",null,null,2139,"UNMANAGED"]
[null,null,null,null,null,null,null,null,null,null,null,null,null,null,null,null,null,null,null,null,null,null,null,null,11956,36,"VF Turks","Jonathan Rodriguez Martinez JONY",1958572,"Yes","Yes","Yes",null,null,2141,"Transfer List"]
[null,null,null,null,null,null,null,null,null,null,null,null,null,null,null,null,null,null,null,null,null,null,null,null,11960,0,"Transfer Pool","Kalvin PHILLIPS",19517003,"No","No","Yes",4,null,2144,"NOT APPLICABLE"]
[null,null,null,null,null,null,null,null,null,null,null,null,null,null,null,null,null,null,null,null,null,null,null,null,11967,1000,"RETIRED","PLAYER NOT AVAILABLE",0,"No","No","No",null,null,2149,"NOT APPLICABLE"]
[null,null,null,null,null,null,null,null,null,null,null,null,null,null,null,null,null,null,null,null,null,null,null,null,11976,70,"Northridge Cormorants","PLAYER CAN'T BE SOLD",{"$f":"\"-\"","v":"-"},"No","Yes","No",null,null,2154,"NOT APPLICABLE"]
[null,null,null,null,null,null,null,null,null,null,null,null,null,null,null,null,null,null,null,null,null,null,null,null,12010,998,"Waiting List","PLAYER NOT AVAILABLE",0,"No","No","No",null,null,2159,"UNMANAGED"]
[null,null,null,null,null,null,null,null,null,null,null,null,null,null,null,null,null,null,null,null,null,null,null,null,12017,68,"Black Diamonds","PLAYER NOT AVAILABLE",0,"No","No","No",null,null,2162,"UNMANAGED"]
[null,null,null,null,null,null,null,null,null,null,null,null,null,null,null,null,null,null,null,null,null,null,null,null,12029,19,"Jasonville","Pelly-Ruddock MPANZU",3553238,"Yes","Yes","Yes",null,null,2164,"NOT APPLICABLE"]
[null,null,null,null,null,null,null,null,null,null,null,null,null,null,null,null,null,null,null,null,null,null,null,null,12056,998,"Waiting List","PLAYER NOT AVAILABLE",0,"No","No","No",null,null,2169,"UNMANAGED"]
[null,null,null,null,null,null,null,null,null,null,null,null,null,null,null,null,null,null,null,null,null,null,null,null,12062,0,"Transfer Pool","Robin ZENTNER",2075825,"No","No","Yes",2,null,2174,"UNMANAGED"]
[null,null,null,null,null,null,null,null,null,null,null,null,null,null,null,null,null,null,null,null,null,null,null,null,12065,0,"Transfer Pool","Jonathan BURKARDT",8177500,"No","No","Yes",4,null,2175,"UNMANAGED"]
[null,null,null,null,null,null,null,null,null,null,null,null,null,null,null,null,null,null,null,null,null,null,null,null,12086,101,"St. Lewis","PLAYER NOT AVAILABLE",0,"No","No","No",null,null,2180,"NOT APPLICABLE"]
[null,null,null,null,null,null,null,null,null,null,null,null,null,null,null,null,null,null,null,null,null,null,null,null,12090,15,"North Notley","Lewis WING",1890946,"Yes","Yes","Yes",null,null,2184,"UNMANAGED"]
[null,null,null,null,null,null,null,null,null,null,null,null,null,null,null,null,null,null,null,null,null,null,null,null,12098,90,"Saddington","PLAYER NOT AVAILABLE",0,"No","No","No",null,null,2189,"UNMANAGED"]
[null,null,null,null,null,null,null,null,null,null,null,null,null,null,null,null,null,null,null,null,null,null,null,null,12100,108,"Dover Court","PLAYER NOT AVAILABLE",0,"No","No","No",null,null,2190,"UNMANAGED"]
[null,null,null,null,null,null,null,null,null,null,null,null,null,null,null,null,null,null,null,null,null,null,null,null,12111,85,"Krystle Palace","PLAYER NOT AVAILABLE",0,"No","No","No",null,null,2195,"UNMANAGED"]
[null,null,null,null,null,null,null,null,null,null,null,null,null,null,null,null,null,null,null,null,null,null,null,null,12168,998,"Waiting List","PLAYER NOT AVAILABLE",0,"No","No","No",null,null,2200,"UNMANAGED"]
[null,null,null,null,null,null,null,null,null,null,null,null,null,null,null,null,null,null,null,null,null,null,null,null,12189,120,"Sherfield Saints","PLAYER NOT AVAILABLE",0,"No","No","No",null,null,2202,"UNMANAGED"]
[null,null,null,null,null,null,null,null,null,null,null,null,null,null,null,null,null,null,null,null,null,null,null,null,12202,48,"Hammersmith Celtic","PLAYER CAN'T BE SOLD",{"$f":"\"-\"","v":"-"},"No","Yes","No",null,null,2205,"Robin Slade"]
[null,null,null,null,null,null,null,null,null,null,null,null,null,null,null,null,null,null,null,null,null,null,null,null,12207,8,"Intersol","PLAYER NOT AVAILABLE",0,"No","No","No",null,null,2210,"Paul Newman"]
[null,null,null,null,null,null,null,null,null,null,null,null,null,null,null,null,null,null,null,null,null,null,null,null,12225,127,"Woodham Mortimer","PLAYER NOT AVAILABLE",0,"No","No","No",null,null,2215,"NOT APPLICABLE"]
[null,null,null,null,null,null,null,null,null,null,null,null,null,null,null,null,null,null,null,null,null,null,null,null,12278,108,"Dover Court","PLAYER NOT AVAILABLE",0,"No","No","No",null,null,2220,"UNMANAGED"]
[null,null,null,null,null,null,null,null,null,null,null,null,null,null,null,null,null,null,null,null,null,null,null,null,12283,98,"Richmond Renegades","PLAYER NOT AVAILABLE",0,"No","No","No",null,null,2223,"NOT APPLICABLE"]
[null,null,null,null,null,null,null,null,null,null,null,null,null,null,null,null,null,null,null,null,null,null,null,null,12294,104,"Beaumont Belvedere","PLAYER NOT AVAILABLE",0,"No","No","No",null,null,2225,"UNMANAGED"]
[null,null,null,null,null,null,null,null,null,null,null,null,null,null,null,null,null,null,null,null,null,null,null,null,12321,127,"Woodham Mortimer","PLAYER NOT AVAILABLE",0,"No","No","No",null,null,2230,"UNMANAGED"]
[null,null,null,null,null,null,null,null,null,null,null,null,null,null,null,null,null,null,null,null,null,null,null,null,12339,998,"Waiting List","PLAYER NOT AVAILABLE",0,"No","No","No",null,null,2235,"UNMANAGED"]
[null,null,null,null,null,null,null,null,null,null,null,null,null,null,null,null,null,null,null,null,null,null,null,null,12362,57,"Mellingborough","PLAYER NOT AVAILABLE",0,"No","No","No",null,null,2236,"UNMANAGED"]
[null,null,null,null,null,null,null,null,null,null,null,null,null,null,null,null,null,null,null,null,null,null,null,null,12374,115,"Greenbury","PLAYER NOT AVAILABLE",0,"No","No","No",null,null,2241,"UNMANAGED"]
[null,null,null,null,null,null,null,null,null,null,null,null,null,null,null,null,null,null,null,null,null,null,null,null,12401,111,"Cavendish","PLAYER NOT AVAILABLE",0,"No","No","No",null,null,2245,"NOT APPLICABLE"]
[null,null,null,null,null,null,null,null,null,null,null,null,null,null,null,null,null,null,null,null,null,null,null,null,12430,50,"E&C","PLAYER NOT AVAILABLE",0,"No","No","No",null,null,2250,"NOT APPLICABLE"]
[null,null,null,null,null,null,null,null,null,null,null,null,null,null,null,null,null,null,null,null,null,null,null,null,12435,118,"Meadowside","PLAYER NOT AVAILABLE",0,"No","No","No",null,null,2251,"Robin Slade"]
[null,null,null,null,null,null,null,null,null,null,null,null,null,null,null,null,null,null,null,null,null,null,null,null,12444,120,"Sherfield Saints","PLAYER NOT AVAILABLE",0,"No","No","No",null,null,2256,"NOT APPLICABLE"]
[null,null,null,null,null,null,null,null,null,null,null,null,null,null,null,null,null,null,null,null,null,null,null,null,12447,49,"AFC Ashton","PLAYER NOT AVAILABLE",0,"No","No","No",null,null,2259,"NOT APPLICABLE"]
[null,null,null,null,null,null,null,null,null,null,null,null,null,null,null,null,null,null,null,null,null,null,null,null,12463,113,"Coggeshall Colts","PLAYER NOT AVAILABLE",0,"No","No","No",null,null,2265,"UNMANAGED"]
[null,null,null,null,null,null,null,null,null,null,null,null,null,null,null,null,null,null,null,null,null,null,null,null,12470,121,"Rettendon","PLAYER NOT AVAILABLE",0,"No","No","No",null,null,2266,"NOT APPLICABLE"]
[null,null,null,null,null,null,null,null,null,null,null,null,null,null,null,null,null,null,null,null,null,null,null,null,12482,89,"Melbourne Park","PLAYER NOT AVAILABLE",0,"No","No","No",null,null,2271,"UNMANAGED"]
[null,null,null,null,null,null,null,null,null,null,null,null,null,null,null,null,null,null,null,null,null,null,null,null,12488,94,"Swifthaven","PLAYER NOT AVAILABLE",0,"No","No","No",null,null,2276,"Paul Newman"]
[null,null,null,null,null,null,null,null,null,null,null,null,null,null,null,null,null,null,null,null,null,null,null,null,12499,32,"Jonton","Martin ODEGAARD",33064459,"Yes","Yes","Yes",null,null,2281,"UNMANAGED"]
[null,null,null,null,null,null,null,null,null,null,null,null,null,null,null,null,null,null,null,null,null,null,null,null,12508,39,"Albenotti","PLAYER CAN'T BE SOLD",{"$f":"\"-\"","v":"-"},"No","Yes","No",null,null,2284,"NOT APPLICABLE"]
[null,null,null,null,null,null,null,null,null,null,null,null,null,null,null,null,null,null,null,null,null,null,null,null,12514,102,"Dukes Park","PLAYER NOT AVAILABLE",0,"No","No","No",null,null,2286,"Norman House"]
[null,null,null,null,null,null,null,null,null,null,null,null,null,null,null,null,null,null,null,null,null,null,null,null,12523,118,"Meadowside","PLAYER NOT AVAILABLE",0,"No","No","No",null,null,2291,"UNMANAGED"]
[null,null,null,null,null,null,null,null,null,null,null,null,null,null,null,null,null,null,null,null,null,null,null,null,12536,30,"Bigglesea Albion","Georgiy DZHIKIYA",1550494,"Yes","Yes","Yes",null,null,2296,"NOT APPLICABLE"]
[null,null,null,null,null,null,null,null,null,null,null,null,null,null,null,null,null,null,null,null,null,null,null,null,12537,998,"Waiting List","PLAYER NOT AVAILABLE",0,"No","No","No",null,null,2297,"UNMANAGED"]
[null,null,null,null,null,null,null,null,null,null,null,null,null,null,null,null,null,null,null,null,null,null,null,null,12561,93,"Kingston Knights","PLAYER NOT AVAILABLE",0,"No","No","No",null,null,2302,"UNMANAGED"]
[null,null,null,null,null,null,null,null,null,null,null,null,null,null,null,null,null,null,null,null,null,null,null,null,12583,118,"Meadowside","PLAYER NOT AVAILABLE",0,"No","No","No",null,null,2306,"UNMANAGED"]
[null,null,null,null,null,null,null,null,null,null,null,null,null,null,null,null,null,null,null,null,null,null,null,null,12602,18,"Fairoak Foresters","PLAYER CAN'T BE SOLD",{"$f":"\"-\"","v":"-"},"No","Yes","No",null,null,2311,"UNMANAGED"]
[null,null,null,null,null,null,null,null,null,null,null,null,null,null,null,null,null,null,null,null,null,null,null,null,12603,998,"Waiting List","PLAYER NOT AVAILABLE",0,"No","No","No",null,null,2312,"NOT APPLICABLE"]
[null,null,null,null,null,null,null,null,null,null,null,null,null,null,null,null,null,null,null,null,null,null,null,null,12620,103,"Westminster Wanderers","PLAYER NOT AVAILABLE",0,"No","No","No",null,null,2317,"UNMANAGED"]
[null,null,null,null,null,null,null,null,null,null,null,null,null,null,null,null,null,null,null,null,null,null,null,null,12634,37,"Old Petersfield","PLAYER NOT AVAILABLE",0,"No","No","No",null,null,2320,"UNMANAGED"]
[null,null,null,null,null,null,null,null,null,null,null,null,null,null,null,null,null,null,null,null,null,null,null,null,12663,998,"Waiting List","PLAYER NOT AVAILABLE",0,"No","No","No",null,null,2326,"Transfer List"]
[null,null,null,null,null,null,null,null,null,null,null,null,null,null,null,null,null,null,null,null,null,null,null,null,12677,998,"Waiting List","PLAYER NOT AVAILABLE",0,"No","No","No",null,null,2327,"NOT APPLICABLE"]
[null,null,null,null,null,null,null,null,null,null,null,null,null,null,null,null,null,null,null,null,null,null,null,null,12684,97,"Johnsonville","PLAYER NOT AVAILABLE",0,"No","No","No",null,null,2332,"UNMANAGED"]
[null,null,null,null,null,null,null,null,null,null,null,null,null,null,null,null,null,null,null,null,null,null,null,null,12714,116,"FC Invincible","PLAYER NOT AVAILABLE",0,"No","No","No",null,null,2337,"UNMANAGED"]
[null,null,null,null,null,null,null,null,null,null,null,null,null,null,null,null,null,null,null,null,null,null,null,null,12721,72,"Kraukhampton","PLAYER NOT AVAILABLE",0,"No","No","No",null,null,2341,"UNMANAGED"]
[null,null,null,null,null,null,null,null,null,null,null,null,null,null,null,null,null,null,null,null,null,null,null,null,12724,43,"IOD","PLAYER NOT AVAILABLE",0,"No","No","No",null,null,2342,"UNMANAGED"]
[null,null,null,null,null,null,null,null,null,null,null,null,null,null,null,null,null,null,null,null,null,null,null,null,12730,41,"Newcombe United","Orel MANGALA",16287033,"Yes","Yes","Yes",null,24,2347,"NOT APPLICABLE"]
[null,null,null,null,null,null,null,null,null,null,null,null,null,null,null,null,null,null,null,null,null,null,null,null,12738,128,"Yelsel Nosnikta","PLAYER CAN'T BE SOLD",{"$f":"\"-\"","v":"-"},"No","Yes","No",null,null,2352,"UNMANAGED"]
[null,null,null,null,null,null,null,null,null,null,null,null,null,null,null,null,null,null,null,null,null,null,null,null,12746,998,"Waiting List","PLAYER NOT AVAILABLE",0,"No","No","No",null,null,2357,"Transfer List"]
[null,null,null,null,null,null,null,null,null,null,null,null,null,null,null,null,null,null,null,null,null,null,null,null,12749,0,"Transfer Pool","Gregor KOBEL",30440166,"No","No","Yes",2,null,2358,"NOT APPLICABLE"]
[null,null,null,null,null,null,null,null,null,null,null,null,null,null,null,null,null,null,null,null,null,null,null,null,12765,42,"Macksfield Rovers","PLAYER NOT AVAILABLE",0,"No","No","No",null,null,2363,"NOT APPLICABLE"]
[null,null,null,null,null,null,null,null,null,null,null,null,null,null,null,null,null,null,null,null,null,null,null,null,12769,998,"Waiting List","PLAYER NOT AVAILABLE",0,"No","No","No",null,null,2367,"UNMANAGED"]
[null,null,null,null,null,null,null,null,null,null,null,null,null,null,null,null,null,null,null,null,null,null,null,null,12778,998,"Waiting List","PLAYER NOT AVAILABLE",0,"No","No","No",null,null,2372,"NOT APPLICABLE"]
[null,null,null,null,null,null,null,null,null,null,null,null,null,null,null,null,null,null,null,null,null,null,null,null,12779,113,"Coggeshall Colts","PLAYER NOT AVAILABLE",0,"No","No","No",null,null,2373,"Paul Newman"]
[null,null,null,null,null,null,null,null,null,null,null,null,null,null,null,null,null,null,null,null,null,null,null,null,12809,122,"Sherringham","PLAYER NOT AVAILABLE",0,"No","No","No",null,null,2378,"UNMANAGED"]
[null,null,null,null,null,null,null,null,null,null,null,null,null,null,null,null,null,null,null,null,null,null,null,null,12824,2,"Harrogate Orient","Zeki CELIK",6513977,"Yes","Yes","Yes",null,null,2381,"NOT APPLICABLE"]
[null,null,null,null,null,null,null,null,null,null,null,null,null,null,null,null,null,null,null,null,null,null,null,null,12843,0,"Transfer Pool","Victor TSYGANKOV",23819306,"No","No","Yes",1,null,2387,"UNMANAGED"]
[null,null,null,null,null,null,null,null,null,null,null,null,null,null,null,null,null,null,null,null,null,null,null,null,12845,80,"Winchelsea","PLAYER CAN'T BE SOLD",{"$f":"\"-\"","v":"-"},"No","Yes","No",null,null,2388,"NOT APPLICABLE"]
[null,null,null,null,null,null,null,null,null,null,null,null,null,null,null,null,null,null,null,null,null,null,null,null,12852,109,"Bayswater Kings","PLAYER NOT AVAILABLE",0,"No","No","No",null,null,2393,"Lesley Atkinson"]
[null,null,null,null,null,null,null,null,null,null,null,null,null,null,null,null,null,null,null,null,null,null,null,null,12864,998,"Waiting List","PLAYER NOT AVAILABLE",0,"No","No","No",null,null,2398,"Bernie Iles"]
[null,null,null,null,null,null,null,null,null,null,null,null,null,null,null,null,null,null,null,null,null,null,null,null,12872,52,"Applegate Manor","PLAYER CAN'T BE SOLD",{"$f":"\"-\"","v":"-"},"No","Yes","No",null,null,2402,"NOT APPLICABLE"]
[null,null,null,null,null,null,null,null,null,null,null,null,null,null,null,null,null,null,null,null,null,null,null,null,12877,998,"Waiting List","PLAYER NOT AVAILABLE",0,"No","No","No",null,null,2403,"NOT APPLICABLE"]
[null,null,null,null,null,null,null,null,null,null,null,null,null,null,null,null,null,null,null,null,null,null,null,null,12900,102,"Dukes Park","PLAYER NOT AVAILABLE",0,"No","No","No",null,null,2408,"UNMANAGED"]
[null,null,null,null,null,null,null,null,null,null,null,null,null,null,null,null,null,null,null,null,null,null,null,null,12928,0,"Transfer Pool","Niclas FULLKRUG",7246414,"No","No","Yes",1,null,2413,"UNMANAGED"]
[null,null,null,null,null,null,null,null,null,null,null,null,null,null,null,null,null,null,null,null,null,null,null,null,12937,120,"Sherfield Saints","PLAYER NOT AVAILABLE",0,"No","No","No",null,null,2418,"Robin Slade"]
[null,null,null,null,null,null,null,null,null,null,null,null,null,null,null,null,null,null,null,null,null,null,null,null,12939,53,"Essex Ruminants","PLAYER NOT AVAILABLE",0,"No","No","No",null,null,2419,"NOT APPLICABLE"]
[null,null,null,null,null,null,null,null,null,null,null,null,null,null,null,null,null,null,null,null,null,null,null,null,12949,998,"Waiting List","PLAYER NOT AVAILABLE",0,"No","No","No",null,null,2424,"UNMANAGED"]
[null,null,null,null,null,null,null,null,null,null,null,null,null,null,null,null,null,null,null,null,null,null,null,null,12959,65,"Lemmington","PLAYER NOT AVAILABLE",0,"No","No","No",null,null,2428,"UNMANAGED"]
[null,null,null,null,null,null,null,null,null,null,null,null,null,null,null,null,null,null,null,null,null,null,null,null,12983,3,"Real Jameosean","PLAYER NOT AVAILABLE",0,"No","No","No",null,null,2433,"Transfer List"]
[null,null,null,null,null,null,null,null,null,null,null,null,null,null,null,null,null,null,null,null,null,null,null,null,12984,998,"Waiting List","PLAYER NOT AVAILABLE",0,"No","No","No",null,null,2434,"Paul Newman"]
[null,null,null,null,null,null,null,null,null,null,null,null,null,null,null,null,null,null,null,null,null,null,null,null,12990,48,"Hammersmith Celtic","PLAYER CAN'T BE SOLD",{"$f":"\"-\"","v":"-"},"No","Yes","No",null,null,2439,"NOT APPLICABLE"]
[null,null,null,null,null,null,null,null,null,null,null,null,null,null,null,null,null,null,null,null,null,null,null,null,12993,45,"NPA","PLAYER NOT AVAILABLE",0,"No","No","No",null,null,2442,"NOT APPLICABLE"]
[null,null,null,null,null,null,null,null,null,null,null,null,null,null,null,null,null,null,null,null,null,null,null,null,13000,32,"Jonton","John BROOKS",4605651,"Yes","Yes","Yes",null,null,2448,"NOT APPLICABLE"]
[null,null,null,null,null,null,null,null,null,null,null,null,null,null,null,null,null,null,null,null,null,null,null,null,13001,28,"Tauntonian Celtic","PLAYER NOT AVAILABLE",0,"No","No","No",null,null,2449,"UNMANAGED"]
[null,null,null,null,null,null,null,null,null,null,null,null,null,null,null,null,null,null,null,null,null,null,null,null,13018,63,"Davemoor","PLAYER NOT AVAILABLE",0,"No","No","No",null,null,2454,"NOT APPLICABLE"]
[null,null,null,null,null,null,null,null,null,null,null,null,null,null,null,null,null,null,null,null,null,null,null,null,13067,81,"Tangerinions","PLAYER NOT AVAILABLE",0,"No","No","No",null,null,2459,"NOT APPLICABLE"]
[null,null,null,null,null,null,null,null,null,null,null,null,null,null,null,null,null,null,null,null,null,null,null,null,13073,105,"Heythrop Cavaliers","PLAYER NOT AVAILABLE",0,"No","No","No",null,null,2463,"UNMANAGED"]
[null,null,null,null,null,null,null,null,null,null,null,null,null,null,null,null,null,null,null,null,null,null,null,null,13075,91,"Goldhanger","PLAYER NOT AVAILABLE",0,"No","No","No",null,null,2464,"NOT APPLICABLE"]
[null,null,null,null,null,null,null,null,null,null,null,null,null,null,null,null,null,null,null,null,null,null,null,null,13089,998,"Waiting List","PLAYER NOT AVAILABLE",0,"No","No","No",null,null,2469,"Transfer List"]
[null,null,null,null,null,null,null,null,null,null,null,null,null,null,null,null,null,null,null,null,null,null,null,null,13101,998,"Waiting List","PLAYER NOT AVAILABLE",0,"No","No","No",null,null,2474,"NOT APPLICABLE"]
[null,null,null,null,null,null,null,null,null,null,null,null,null,null,null,null,null,null,null,null,null,null,null,null,13144,68,"Black Diamonds","PLAYER NOT AVAILABLE",0,"No","No","No",null,null,2479,"Robin Slade"]
[null,null,null,null,null,null,null,null,null,null,null,null,null,null,null,null,null,null,null,null,null,null,null,null,13148,62,"Highfield","PLAYER NOT AVAILABLE",0,"No","No","No",null,null,2481,"UNMANAGED"]
[null,null,null,null,null,null,null,null,null,null,null,null,null,null,null,null,null,null,null,null,null,null,null,null,13171,119,"Jessingborough Jets","PLAYER NOT AVAILABLE",0,"No","No","No",null,null,2484,"Robin Slade"]
[null,null,null,null,null,null,null,null,null,null,null,null,null,null,null,null,null,null,null,null,null,null,null,null,13183,107,"Falconetti Fire","Jose Luis PALOMINO",2603386,"Yes","Yes","Yes",null,null,2489,"UNMANAGED"]
[null,null,null,null,null,null,null,null,null,null,null,null,null,null,null,null,null,null,null,null,null,null,null,null,13202,998,"Waiting List","PLAYER NOT AVAILABLE",0,"No","No","No",null,null,2494,"UNMANAGED"]
[null,null,null,null,null,null,null,null,null,null,null,null,null,null,null,null,null,null,null,null,null,null,null,null,13204,105,"Heythrop Cavaliers","PLAYER NOT AVAILABLE",0,"No","No","No",null,null,2495,"NOT APPLICABLE"]
[null,null,null,null,null,null,null,null,null,null,null,null,null,null,null,null,null,null,null,null,null,null,null,null,13222,20,"Nessertoponions","Bruno GUIMARAES",42149560,"Yes","Yes","Yes",null,null,2500,"NOT APPLICABLE"]
[null,null,null,null,null,null,null,null,null,null,null,null,null,null,null,null,null,null,null,null,null,null,null,null,13229,8,"Intersol","PLAYER NOT AVAILABLE",0,"No","No","No",null,null,2503,"UNMANAGED"]
[null,null,null,null,null,null,null,null,null,null,null,null,null,null,null,null,null,null,null,null,null,null,null,null,13268,117,"Kelvedon Kickers","PLAYER NOT AVAILABLE",0,"No","No","No",null,null,2509,"UNMANAGED"]
[null,null,null,null,null,null,null,null,null,null,null,null,null,null,null,null,null,null,null,null,null,null,null,null,13270,998,"Waiting List","PLAYER NOT AVAILABLE",0,"No","No","No",null,null,2510,"UNMANAGED"]
[null,null,null,null,null,null,null,null,null,null,null,null,null,null,null,null,null,null,null,null,null,null,null,null,13310,68,"Black Diamonds","PLAYER NOT AVAILABLE",0,"No","No","No",null,null,2515,"UNMANAGED"]
[null,null,null,null,null,null,null,null,null,null,null,null,null,null,null,null,null,null,null,null,null,null,null,null,13346,998,"Waiting List","PLAYER NOT AVAILABLE",0,"No","No","No",null,null,2520,"UNMANAGED"]
[null,null,null,null,null,null,null,null,null,null,null,null,null,null,null,null,null,null,null,null,null,null,null,null,13371,998,"Waiting List","PLAYER NOT AVAILABLE",0,"No","No","No",null,null,2524,"Transfer List"]
[null,null,null,null,null,null,null,null,null,null,null,null,null,null,null,null,null,null,null,null,null,null,null,null,13384,998,"Waiting List","PLAYER NOT AVAILABLE",0,"No","No","No",null,null,2525,"UNMANAGED"]
[null,null,null,null,null,null,null,null,null,null,null,null,null,null,null,null,null,null,null,null,null,null,null,null,13419,998,"Waiting List","PLAYER NOT AVAILABLE",0,"No","No","No",null,null,2530,"NOT APPLICABLE"]
[null,null,null,null,null,null,null,null,null,null,null,null,null,null,null,null,null,null,null,null,null,null,null,null,13427,998,"Waiting List","PLAYER NOT AVAILABLE",0,"No","No","No",null,null,2535,"UNMANAGED"]
[null,null,null,null,null,null,null,null,null,null,null,null,null,null,null,null,null,null,null,null,null,null,null,null,13434,998,"Waiting List","PLAYER NOT AVAILABLE",0,"No","No","No",null,null,2540,"UNMANAGED"]
[null,null,null,null,null,null,null,null,null,null,null,null,null,null,null,null,null,null,null,null,null,null,null,null,13447,0,"Transfer Pool","David Datro FOFANA",4889629,"No","No","Yes",1,null,2542,"UNMANAGED"]
[null,null,null,null,null,null,null,null,null,null,null,null,null,null,null,null,null,null,null,null,null,null,null,null,13467,25,"Nempton","PLAYER NOT AVAILABLE",0,"No","No","No",null,null,2545,"UNMANAGED"]
[null,null,null,null,null,null,null,null,null,null,null,null,null,null,null,null,null,null,null,null,null,null,null,null,13481,998,"Waiting List","PLAYER NOT AVAILABLE",0,"No","No","No",null,null,2550,"UNMANAGED"]
[null,null,null,null,null,null,null,null,null,null,null,null,null,null,null,null,null,null,null,null,null,null,null,null,13496,126,"Weslington","PLAYER CAN'T BE SOLD","-","No","Yes","No",null,null,2555,"NOT APPLICABLE"]
[null,null,null,null,null,null,null,null,null,null,null,null,null,null,null,null,null,null,null,null,null,null,null,null,13497,76,"Olympians","Takehiro TOMIYASU",38743960,"Yes","Yes","Yes",null,null,2556,"NOT APPLICABLE"]
[null,null,null,null,null,null,null,null,null,null,null,null,null,null,null,null,null,null,null,null,null,null,null,null,13502,998,"Waiting List","PLAYER NOT AVAILABLE",0,"No","No","No",null,null,2560,"Transfer List"]
[null,null,null,null,null,null,null,null,null,null,null,null,null,null,null,null,null,null,null,null,null,null,null,null,13511,998,"Waiting List","PLAYER NOT AVAILABLE",0,"No","No","No",null,null,2565,"Lesley Atkinson"]
[null,null,null,null,null,null,null,null,null,null,null,null,null,null,null,null,null,null,null,null,null,null,null,null,13563,69,"Gainsborough Hamlet","Sandro TONALI",33000905,"Yes","Yes","Yes",null,null,2570,"UNMANAGED"]
[null,null,null,null,null,null,null,null,null,null,null,null,null,null,null,null,null,null,null,null,null,null,null,null,13565,101,"St. Lewis","PLAYER NOT AVAILABLE",0,"No","No","No",null,null,2571,"UNMANAGED"]
[null,null,null,null,null,null,null,null,null,null,null,null,null,null,null,null,null,null,null,null,null,null,null,null,13629,97,"Johnsonville","PLAYER NOT AVAILABLE",0,"No","No","No",null,null,2576,"UNMANAGED"]
[null,null,null,null,null,null,null,null,null,null,null,null,null,null,null,null,null,null,null,null,null,null,null,null,13642,118,"Meadowside","PLAYER NOT AVAILABLE",0,"No","No","No",null,null,2581,"UNMANAGED"]
[null,null,null,null,null,null,null,null,null,null,null,null,null,null,null,null,null,null,null,null,null,null,null,null,13648,998,"Waiting List","PLAYER NOT AVAILABLE",0,"No","No","No",null,null,2585,"Bernie Iles"]
[null,null,null,null,null,null,null,null,null,null,null,null,null,null,null,null,null,null,null,null,null,null,null,null,13653,15,"North Notley","Sebastian WALUKIEWICZ",1833461,"Yes","Yes","Yes",null,null,2586,"NOT APPLICABLE"]
[null,null,null,null,null,null,null,null,null,null,null,null,null,null,null,null,null,null,null,null,null,null,null,null,13688,121,"Rettendon","PLAYER NOT AVAILABLE",0,"No","No","No",null,null,2591,"Robin Slade"]
[null,null,null,null,null,null,null,null,null,null,null,null,null,null,null,null,null,null,null,null,null,null,null,null,13710,121,"Rettendon","PLAYER NOT AVAILABLE",0,"No","No","No",null,null,2596,"UNMANAGED"]
[null,null,null,null,null,null,null,null,null,null,null,null,null,null,null,null,null,null,null,null,null,null,null,null,13715,105,"Heythrop Cavaliers","PLAYER NOT AVAILABLE",0,"No","No","No",null,null,2601,"UNMANAGED"]
[null,null,null,null,null,null,null,null,null,null,null,null,null,null,null,null,null,null,null,null,null,null,null,null,13723,998,"Waiting List","PLAYER NOT AVAILABLE",0,"No","No","No",null,null,2603,"Norman House"]
[null,null,null,null,null,null,null,null,null,null,null,null,null,null,null,null,null,null,null,null,null,null,null,null,13731,998,"Waiting List","PLAYER NOT AVAILABLE",0,"No","No","No",null,null,2606,"UNMANAGED"]
[null,null,null,null,null,null,null,null,null,null,null,null,null,null,null,null,null,null,null,null,null,null,null,null,13745,0,"Transfer Pool","Victor Delmino da Silva PEDRINHO",4212303,"No","No","Yes",2,null,2611,"UNMANAGED"]
[null,null,null,null,null,null,null,null,null,null,null,null,null,null,null,null,null,null,null,null,null,null,null,null,13759,60,"Chelmersdale","PLAYER NOT AVAILABLE",0,"No","No","No",null,null,2616,"UNMANAGED"]
[null,null,null,null,null,null,null,null,null,null,null,null,null,null,null,null,null,null,null,null,null,null,null,null,13767,121,"Rettendon","PLAYER NOT AVAILABLE",0,"No","No","No",null,null,2617,"NOT APPLICABLE"]
[null,null,null,null,null,null,null,null,null,null,null,null,null,null,null,null,null,null,null,null,null,null,null,null,13778,117,"Kelvedon Kickers","PLAYER NOT AVAILABLE",0,"No","No","No",null,null,2621,"UNMANAGED"]
[null,null,null,null,null,null,null,null,null,null,null,null,null,null,null,null,null,null,null,null,null,null,null,null,13808,998,"Waiting List","PLAYER NOT AVAILABLE",0,"No","No","No",null,null,2626,"NOT APPLICABLE"]
[null,null,null,null,null,null,null,null,null,null,null,null,null,null,null,null,null,null,null,null,null,null,null,null,13839,998,"Waiting List","PLAYER NOT AVAILABLE",0,"No","No","No",null,null,2631,"UNMANAGED"]
[null,null,null,null,null,null,null,null,null,null,null,null,null,null,null,null,null,null,null,null,null,null,null,null,13845,107,"Falconetti Fire","PLAYER CAN'T BE SOLD",{"$f":"\"-\"","v":"-"},"No","Yes","No",null,null,2632,"UNMANAGED"]
[null,null,null,null,null,null,null,null,null,null,null,null,null,null,null,null,null,null,null,null,null,null,null,null,13855,97,"Johnsonville","PLAYER NOT AVAILABLE",0,"No","No","No",null,null,2637,"UNMANAGED"]
[null,null,null,null,null,null,null,null,null,null,null,null,null,null,null,null,null,null,null,null,null,null,null,null,13871,72,"Kraukhampton","PLAYER NOT AVAILABLE",0,"No","No","No",null,null,2642,"UNMANAGED"]
[null,null,null,null,null,null,null,null,null,null,null,null,null,null,null,null,null,null,null,null,null,null,null,null,13930,99,"Hamlet Foxes","PLAYER NOT AVAILABLE",0,"No","No","No",null,null,2646,"UNMANAGED"]
[null,null,null,null,null,null,null,null,null,null,null,null,null,null,null,null,null,null,null,null,null,null,null,null,13931,117,"Kelvedon Kickers","PLAYER NOT AVAILABLE",0,"No","No","No",null,null,2647,"UNMANAGED"]
[null,null,null,null,null,null,null,null,null,null,null,null,null,null,null,null,null,null,null,null,null,null,null,null,13955,998,"Waiting List","PLAYER NOT AVAILABLE",0,"No","No","No",null,null,2652,"UNMANAGED"]
[null,null,null,null,null,null,null,null,null,null,null,null,null,null,null,null,null,null,null,null,null,null,null,null,13985,998,"Waiting List","PLAYER NOT AVAILABLE",0,"No","No","No",null,null,2657,"NOT APPLICABLE"]
[null,null,null,null,null,null,null,null,null,null,null,null,null,null,null,null,null,null,null,null,null,null,null,null,14013,998,"Waiting List","PLAYER NOT AVAILABLE",0,"No","No","No",null,null,2662,"Steven Dingsdale"]
[null,null,null,null,null,null,null,null,null,null,null,null,null,null,null,null,null,null,null,null,null,null,null,null,14042,104,"Beaumont Belvedere","PLAYER NOT AVAILABLE",0,"No","No","No",null,null,2664,"Robin Slade"]
[null,null,null,null,null,null,null,null,null,null,null,null,null,null,null,null,null,null,null,null,null,null,null,null,14075,62,"Highfield","PLAYER NOT AVAILABLE",0,"No","No","No",null,null,2667,"NOT APPLICABLE"]
[null,null,null,null,null,null,null,null,null,null,null,null,null,null,null,null,null,null,null,null,null,null,null,null,14117,114,"Great Baddow Ridge","PLAYER NOT AVAILABLE",0,"No","No","No",null,null,2672,"NOT APPLICABLE"]
[null,null,null,null,null,null,null,null,null,null,null,null,null,null,null,null,null,null,null,null,null,null,null,null,14124,0,"Transfer Pool","Toni MARTINEZ",12809317,"No","No","Yes",4,null,2677,"UNMANAGED"]
[null,null,null,null,null,null,null,null,null,null,null,null,null,null,null,null,null,null,null,null,null,null,null,null,14125,998,"Waiting List","PLAYER NOT AVAILABLE",0,"No","No","No",null,null,2678,"UNMANAGED"]
[null,null,null,null,null,null,null,null,null,null,null,null,null,null,null,null,null,null,null,null,null,null,null,null,14135,100,"East Hanningfield","PLAYER NOT AVAILABLE",0,"No","No","No",null,null,2682,"UNMANAGED"]
[null,null,null,null,null,null,null,null,null,null,null,null,null,null,null,null,null,null,null,null,null,null,null,null,14145,124,"Belize Gonagecha","PLAYER NOT AVAILABLE",0,"No","No","No",null,null,2687,"UNMANAGED"]
[null,null,null,null,null,null,null,null,null,null,null,null,null,null,null,null,null,null,null,null,null,null,null,null,14158,110,"Bridgewater","PLAYER NOT AVAILABLE",0,"No","No","No",null,null,2692,"UNMANAGED"]
[null,null,null,null,null,null,null,null,null,null,null,null,null,null,null,null,null,null,null,null,null,null,null,null,14159,998,"Waiting List","PLAYER NOT AVAILABLE",0,"No","No","No",null,null,2693,"UNMANAGED"]
[null,null,null,null,null,null,null,null,null,null,null,null,null,null,null,null,null,null,null,null,null,null,null,null,14171,109,"Bayswater Kings","PLAYER NOT AVAILABLE",0,"No","No","No",null,null,2698,"NOT APPLICABLE"]
[null,null,null,null,null,null,null,null,null,null,null,null,null,null,null,null,null,null,null,null,null,null,null,null,14185,998,"Waiting List","PLAYER NOT AVAILABLE",0,"No","No","No",null,null,2703,"UNMANAGED"]
[null,null,null,null,null,null,null,null,null,null,null,null,null,null,null,null,null,null,null,null,null,null,null,null,14201,104,"Beaumont Belvedere","PLAYER NOT AVAILABLE",0,"No","No","No",null,null,2707,"NOT APPLICABLE"]
[null,null,null,null,null,null,null,null,null,null,null,null,null,null,null,null,null,null,null,null,null,null,null,null,14220,72,"Kraukhampton","PLAYER NOT AVAILABLE",0,"No","No","No",null,null,2708,"NOT APPLICABLE"]
[null,null,null,null,null,null,null,null,null,null,null,null,null,null,null,null,null,null,null,null,null,null,null,null,14234,78,"DBR","PLAYER NOT AVAILABLE",0,"No","No","No",null,null,2713,"UNMANAGED"]
[null,null,null,null,null,null,null,null,null,null,null,null,null,null,null,null,null,null,null,null,null,null,null,null,14244,24,"Cinsath Argyle","PLAYER NOT AVAILABLE",0,"No","No","No",null,null,2718,"NOT APPLICABLE"]
[null,null,null,null,null,null,null,null,null,null,null,null,null,null,null,null,null,null,null,null,null,null,null,null,14250,108,"Dover Court","PLAYER NOT AVAILABLE",0,"No","No","No",null,null,2721,"UNMANAGED"]
[null,null,null,null,null,null,null,null,null,null,null,null,null,null,null,null,null,null,null,null,null,null,null,null,14256,998,"Waiting List","PLAYER NOT AVAILABLE",0,"No","No","No",null,null,2723,"Transfer List"]
[null,null,null,null,null,null,null,null,null,null,null,null,null,null,null,null,null,null,null,null,null,null,null,null,14265,1000,"RETIRED","PLAYER NOT AVAILABLE",0,"No","No","No",null,null,2728,"Michael Atkinson-House"]
[null,null,null,null,null,null,null,null,null,null,null,null,null,null,null,null,null,null,null,null,null,null,null,null,14275,59,"Sawbo Sabres","PLAYER NOT AVAILABLE",0,"No","No","No",null,null,2733,"Robin Slade"]
[null,null,null,null,null,null,null,null,null,null,null,null,null,null,null,null,null,null,null,null,null,null,null,null,14286,43,"IOD","PLAYER NOT AVAILABLE",0,"No","No","No",null,null,2738,"UNMANAGED"]
[null,null,null,null,null,null,null,null,null,null,null,null,null,null,null,null,null,null,null,null,null,null,null,null,14289,0,"Transfer Pool","Thomas KAMINSKI",1984339,"No","No","Yes",1,null,2739,"UNMANAGED"]
[null,null,null,null,null,null,null,null,null,null,null,null,null,null,null,null,null,null,null,null,null,null,null,null,14302,49,"AFC Ashton","PLAYER NOT AVAILABLE",0,"No","No","No",null,null,2743,"UNMANAGED"]
[null,null,null,null,null,null,null,null,null,null,null,null,null,null,null,null,null,null,null,null,null,null,null,null,14315,61,"Culmore Crusaders","PLAYER NOT AVAILABLE",0,"No","No","No",null,null,2748,"UNMANAGED"]
[null,null,null,null,null,null,null,null,null,null,null,null,null,null,null,null,null,null,null,null,null,null,null,null,14328,59,"Sawbo Sabres","PLAYER NOT AVAILABLE",0,"No","No","No",null,null,2753,"Paul Newman"]
[null,null,null,null,null,null,null,null,null,null,null,null,null,null,null,null,null,null,null,null,null,null,null,null,14333,998,"Waiting List","PLAYER NOT AVAILABLE",0,"No","No","No",null,null,2754,"Robin Slade"]
[null,null,null,null,null,null,null,null,null,null,null,null,null,null,null,null,null,null,null,null,null,null,null,null,14357,55,"Pennymede Park","PLAYER NOT AVAILABLE",0,"No","No","No",null,null,2759,"UNMANAGED"]
[null,null,null,null,null,null,null,null,null,null,null,null,null,null,null,null,null,null,null,null,null,null,null,null,14373,85,"Krystle Palace","PLAYER NOT AVAILABLE",0,"No","No","No",null,null,2764,"UNMANAGED"]
[null,null,null,null,null,null,null,null,null,null,null,null,null,null,null,null,null,null,null,null,null,null,null,null,14378,66,"Lemeno","PLAYER NOT AVAILABLE",0,"No","No","No",null,null,2768,"Olivia Andrews"]
[null,null,null,null,null,null,null,null,null,null,null,null,null,null,null,null,null,null,null,null,null,null,null,null,14393,79,"Juniper Viables","PLAYER NOT AVAILABLE",0,"No","No","No",null,null,2769,"NOT APPLICABLE"]
[null,null,null,null,null,null,null,null,null,null,null,null,null,null,null,null,null,null,null,null,null,null,null,null,14402,998,"Waiting List","PLAYER NOT AVAILABLE",0,"No","No","No",null,null,2774,"UNMANAGED"]
[null,null,null,null,null,null,null,null,null,null,null,null,null,null,null,null,null,null,null,null,null,null,null,null,14412,124,"Belize Gonagecha","PLAYER NOT AVAILABLE",0,"No","No","No",null,null,2779,"Paul Newman"]
[null,null,null,null,null,null,null,null,null,null,null,null,null,null,null,null,null,null,null,null,null,null,null,null,14423,114,"Great Baddow Ridge","PLAYER NOT AVAILABLE",0,"No","No","No",null,null,2782,"UNMANAGED"]
[null,null,null,null,null,null,null,null,null,null,null,null,null,null,null,null,null,null,null,null,null,null,null,null,14430,60,"Chelmersdale","PLAYER NOT AVAILABLE",0,"No","No","No",null,null,2784,"UNMANAGED"]
[null,null,null,null,null,null,null,null,null,null,null,null,null,null,null,null,null,null,null,null,null,null,null,null,14466,100,"East Hanningfield","PLAYER NOT AVAILABLE",0,"No","No","No",null,null,2789,"Lesley Atkinson"]
[null,null,null,null,null,null,null,null,null,null,null,null,null,null,null,null,null,null,null,null,null,null,null,null,14487,116,"FC Invincible","PLAYER NOT AVAILABLE",0,"No","No","No",null,null,2794,"Transfer List"]
[null,null,null,null,null,null,null,null,null,null,null,null,null,null,null,null,null,null,null,null,null,null,null,null,14498,83,"Turnham Terriers","PLAYER NOT AVAILABLE",0,"No","No","No",null,null,2799,"UNMANAGED"]
[null,null,null,null,null,null,null,null,null,null,null,null,null,null,null,null,null,null,null,null,null,null,null,null,14510,49,"AFC Ashton","PLAYER NOT AVAILABLE",0,"No","No","No",null,null,2800,"NOT APPLICABLE"]
[null,null,null,null,null,null,null,null,null,null,null,null,null,null,null,null,null,null,null,null,null,null,null,null,14541,122,"Sherringham","PLAYER NOT AVAILABLE",0,"No","No","No",null,null,2804,"UNMANAGED"]
[null,null,null,null,null,null,null,null,null,null,null,null,null,null,null,null,null,null,null,null,null,null,null,null,14554,78,"DBR","PLAYER NOT AVAILABLE",0,"No","No","No",null,null,2809,"NOT APPLICABLE"]
[null,null,null,null,null,null,null,null,null,null,null,null,null,null,null,null,null,null,null,null,null,null,null,null,14564,998,"Waiting List","PLAYER NOT AVAILABLE",0,"No","No","No",null,null,2814,"UNMANAGED"]
[null,null,null,null,null,null,null,null,null,null,null,null,null,null,null,null,null,null,null,null,null,null,null,null,14565,92,"Pantherville","PLAYER NOT AVAILABLE",0,"No","No","No",null,null,2815,"Transfer List"]
[null,null,null,null,null,null,null,null,null,null,null,null,null,null,null,null,null,null,null,null,null,null,null,null,14581,72,"Kraukhampton","PLAYER NOT AVAILABLE",0,"No","No","No",null,null,2820,"NOT APPLICABLE"]
[null,null,null,null,null,null,null,null,null,null,null,null,null,null,null,null,null,null,null,null,null,null,null,null,14600,51,"Wyckham Vosper","PLAYER NOT AVAILABLE",0,"No","No","No",null,null,2825,"UNMANAGED"]
[null,null,null,null,null,null,null,null,null,null,null,null,null,null,null,null,null,null,null,null,null,null,null,null,14620,41,"Newcombe United","Steven FORTES",791505,"Yes","Yes","Yes",null,null,2829,"NOT APPLICABLE"]
[null,null,null,null,null,null,null,null,null,null,null,null,null,null,null,null,null,null,null,null,null,null,null,null,14623,998,"Waiting List","PLAYER NOT AVAILABLE",0,"No","No","No",null,null,2830,"Paul Newman"]
[null,null,null,null,null,null,null,null,null,null,null,null,null,null,null,null,null,null,null,null,null,null,null,null,14652,998,"Waiting List","PLAYER NOT AVAILABLE",0,"No","No","No",null,null,2835,"UNMANAGED"]
[null,null,null,null,null,null,null,null,null,null,null,null,null,null,null,null,null,null,null,null,null,null,null,null,14675,22,"Nellerton City","dos Santos Magalhaes GABRIEL",38526536,"Yes","Yes","Yes",null,null,2840,"UNMANAGED"]
[null,null,null,null,null,null,null,null,null,null,null,null,null,null,null,null,null,null,null,null,null,null,null,null,14678,998,"Waiting List","PLAYER NOT AVAILABLE",0,"No","No","No",null,null,2843,"UNMANAGED"]
[null,null,null,null,null,null,null,null,null,null,null,null,null,null,null,null,null,null,null,null,null,null,null,null,14680,9,"Real Danyella","Victor OSIMHEN",34890061,"Yes","Yes","Yes",null,null,2845,"UNMANAGED"]
[null,null,null,null,null,null,null,null,null,null,null,null,null,null,null,null,null,null,null,null,null,null,null,null,14687,57,"Mellingborough","PLAYER NOT AVAILABLE",0,"No","No","No",null,null,2850,"NOT APPLICABLE"]
[null,null,null,null,null,null,null,null,null,null,null,null,null,null,null,null,null,null,null,null,null,null,null,null,14714,998,"Waiting List","PLAYER NOT AVAILABLE",0,"No","No","No",null,null,2855,"NOT APPLICABLE"]
[null,null,null,null,null,null,null,null,null,null,null,null,null,null,null,null,null,null,null,null,null,null,null,null,14738,0,"Transfer Pool","Amine GOUIRI",22470674,"No","No","Yes",2,null,2860,"James House"]
[null,null,null,null,null,null,null,null,null,null,null,null,null,null,null,null,null,null,null,null,null,null,null,null,14739,101,"St. Lewis","PLAYER NOT AVAILABLE",0,"No","No","No",null,null,2861,"UNMANAGED"]
[null,null,null,null,null,null,null,null,null,null,null,null,null,null,null,null,null,null,null,null,null,null,null,null,14773,117,"Kelvedon Kickers","PLAYER NOT AVAILABLE",0,"No","No","No",null,null,2865,"UNMANAGED"]
[null,null,null,null,null,null,null,null,null,null,null,null,null,null,null,null,null,null,null,null,null,null,null,null,14785,998,"Waiting List","PLAYER NOT AVAILABLE",0,"No","No","No",null,null,2870,"UNMANAGED"]
[null,null,null,null,null,null,null,null,null,null,null,null,null,null,null,null,null,null,null,null,null,null,null,null,14803,998,"Waiting List","PLAYER NOT AVAILABLE",0,"No","No","No",null,null,2875,"Paul Newman"]
[null,null,null,null,null,null,null,null,null,null,null,null,null,null,null,null,null,null,null,null,null,null,null,null,14804,998,"Waiting List","PLAYER NOT AVAILABLE",0,"No","No","No",null,null,2876,"Norman House"]
[null,null,null,null,null,null,null,null,null,null,null,null,null,null,null,null,null,null,null,null,null,null,null,null,14817,35,"Fraserborough","PLAYER CAN'T BE SOLD",{"$f":"\"-\"","v":"-"},"No","Yes","No",null,null,2881,"NOT APPLICABLE"]
[null,null,null,null,null,null,null,null,null,null,null,null,null,null,null,null,null,null,null,null,null,null,null,null,14837,110,"Bridgewater","PLAYER NOT AVAILABLE",0,"No","No","No",null,null,2886,"UNMANAGED"]
[null,null,null,null,null,null,null,null,null,null,null,null,null,null,null,null,null,null,null,null,null,null,null,null,14882,53,"Essex Ruminants","PLAYER NOT AVAILABLE",0,"No","No","No",null,null,2890,"UNMANAGED"]
[null,null,null,null,null,null,null,null,null,null,null,null,null,null,null,null,null,null,null,null,null,null,null,null,14885,0,"Transfer Pool","Deniz UNDAV",11821170,"No","No","Yes",3,null,2891,"NOT APPLICABLE"]
[null,null,null,null,null,null,null,null,null,null,null,null,null,null,null,null,null,null,null,null,null,null,null,null,14898,55,"Pennymede Park","PLAYER NOT AVAILABLE",0,"No","No","No",null,null,2896,"Norman House"]
[null,null,null,null,null,null,null,null,null,null,null,null,null,null,null,null,null,null,null,null,null,null,null,null,14912,998,"Waiting List","PLAYER NOT AVAILABLE",0,"No","No","No",null,null,2901,"NOT APPLICABLE"]
[null,null,null,null,null,null,null,null,null,null,null,null,null,null,null,null,null,null,null,null,null,null,null,null,14920,47,"Port Waltham","PLAYER NOT AVAILABLE",0,"No","No","No",null,null,2904,"NOT APPLICABLE"]
[null,null,null,null,null,null,null,null,null,null,null,null,null,null,null,null,null,null,null,null,null,null,null,null,14928,79,"Juniper Viables","PLAYER NOT AVAILABLE",0,"No","No","No",null,null,2906,"UNMANAGED"]
[null,null,null,null,null,null,null,null,null,null,null,null,null,null,null,null,null,null,null,null,null,null,null,null,15004,86,"Ravensbourne","PLAYER NOT AVAILABLE",0,"No","No","No",null,null,2911,"NOT APPLICABLE"]
[null,null,null,null,null,null,null,null,null,null,null,null,null,null,null,null,null,null,null,null,null,null,null,null,15029,83,"Turnham Terriers","PLAYER NOT AVAILABLE",0,"No","No","No",null,null,2916,"UNMANAGED"]
[null,null,null,null,null,null,null,null,null,null,null,null,null,null,null,null,null,null,null,null,null,null,null,null,15045,998,"Waiting List","PLAYER NOT AVAILABLE",0,"No","No","No",null,null,2921,"UNMANAGED"]
[null,null,null,null,null,null,null,null,null,null,null,null,null,null,null,null,null,null,null,null,null,null,null,null,15046,998,"Waiting List","PLAYER NOT AVAILABLE",0,"No","No","No",null,null,2922,"David Bird"]
[null,null,null,null,null,null,null,null,null,null,null,null,null,null,null,null,null,null,null,null,null,null,null,null,15055,998,"Waiting List","PLAYER NOT AVAILABLE",0,"No","No","No",null,null,2926,"UNMANAGED"]
[null,null,null,null,null,null,null,null,null,null,null,null,null,null,null,null,null,null,null,null,null,null,null,null,15122,90,"Saddington","PLAYER NOT AVAILABLE",0,"No","No","No",null,null,2931,"UNMANAGED"]
[null,null,null,null,null,null,null,null,null,null,null,null,null,null,null,null,null,null,null,null,null,null,null,null,15137,998,"Waiting List","PLAYER NOT AVAILABLE",0,"No","No","No",null,null,2936,"NOT APPLICABLE"]
[null,null,null,null,null,null,null,null,null,null,null,null,null,null,null,null,null,null,null,null,null,null,null,null,15141,998,"Waiting List","PLAYER NOT AVAILABLE",0,"No","No","No",null,null,2937,"UNMANAGED"]
[null,null,null,null,null,null,null,null,null,null,null,null,null,null,null,null,null,null,null,null,null,null,null,null,15156,107,"Falconetti Fire","Daniel PODENCE",11687645,"Yes","Yes","Yes",null,null,2943,"UNMANAGED"]
[null,null,null,null,null,null,null,null,null,null,null,null,null,null,null,null,null,null,null,null,null,null,null,null,15161,40,"H&H","Kostas TSIMIKAS",11600660,"Yes","Yes","Yes",null,null,2946,"Norman House"]
[null,null,null,null,null,null,null,null,null,null,null,null,null,null,null,null,null,null,null,null,null,null,null,null,15201,51,"Wyckham Vosper","PLAYER NOT AVAILABLE",0,"No","No","No",null,null,2951,"UNMANAGED"]
[null,null,null,null,null,null,null,null,null,null,null,null,null,null,null,null,null,null,null,null,null,null,null,null,15202,998,"Waiting List","PLAYER NOT AVAILABLE",0,"No","No","No",null,null,2952,"UNMANAGED"]
[null,null,null,null,null,null,null,null,null,null,null,null,null,null,null,null,null,null,null,null,null,null,null,null,15228,998,"Waiting List","PLAYER NOT AVAILABLE",0,"No","No","No",null,null,2957,"UNMANAGED"]
[null,null,null,null,null,null,null,null,null,null,null,null,null,null,null,null,null,null,null,null,null,null,null,null,15238,90,"Saddington","PLAYER NOT AVAILABLE",0,"No","No","No",null,null,2962,"NOT APPLICABLE"]
[null,null,null,null,null,null,null,null,null,null,null,null,null,null,null,null,null,null,null,null,null,null,null,null,15244,125,"Van Diemans United","PLAYER NOT AVAILABLE",0,"No","No","No",null,null,2965,"NOT APPLICABLE"]
[null,null,null,null,null,null,null,null,null,null,null,null,null,null,null,null,null,null,null,null,null,null,null,null,15249,94,"Swifthaven","PLAYER NOT AVAILABLE",0,"No","No","No",null,null,2967,"Transfer List"]
[null,null,null,null,null,null,null,null,null,null,null,null,null,null,null,null,null,null,null,null,null,null,null,null,15257,77,"Passfield","PLAYER NOT AVAILABLE",0,"No","No","No",null,null,2972,"UNMANAGED"]
[null,null,null,null,null,null,null,null,null,null,null,null,null,null,null,null,null,null,null,null,null,null,null,null,15289,42,"Macksfield Rovers","PLAYER NOT AVAILABLE",0,"No","No","No",null,null,2977,"Transfer List"]
[null,null,null,null,null,null,null,null,null,null,null,null,null,null,null,null,null,null,null,null,null,null,null,null,15300,998,"Waiting List","PLAYER NOT AVAILABLE",0,"No","No","No",null,null,2982,"UNMANAGED"]
[null,null,null,null,null,null,null,null,null,null,null,null,null,null,null,null,null,null,null,null,null,null,null,null,15301,1,"Bandal Borough","Dejan KULUSEVSKI",25690452,"Yes","Yes","Yes",null,null,2983,"UNMANAGED"]
[null,null,null,null,null,null,null,null,null,null,null,null,null,null,null,null,null,null,null,null,null,null,null,null,15311,67,"Parmenter","PLAYER NOT AVAILABLE",0,"No","No","No",null,null,2987,"Robin Slade"]
[null,null,null,null,null,null,null,null,null,null,null,null,null,null,null,null,null,null,null,null,null,null,null,null,15345,114,"Great Baddow Ridge","PLAYER NOT AVAILABLE",0,"No","No","No",null,null,2992,"UNMANAGED"]
[null,null,null,null,null,null,null,null,null,null,null,null,null,null,null,null,null,null,null,null,null,null,null,null,15363,998,"Waiting List","PLAYER NOT AVAILABLE",0,"No","No","No",null,null,2997,"UNMANAGED"]
[null,null,null,null,null,null,null,null,null,null,null,null,null,null,null,null,null,null,null,null,null,null,null,null,15367,998,"Waiting List","PLAYER NOT AVAILABLE",0,"No","No","No",null,null,2998,"UNMANAGED"]
[null,null,null,null,null,null,null,null,null,null,null,null,null,null,null,null,null,null,null,null,null,null,null,null,15394,0,"Transfer Pool","Samuel PORTUGAL",4683685,"No","No","Yes",1,null,3004,"NOT APPLICABLE"]
[null,null,null,null,null,null,null,null,null,null,null,null,null,null,null,null,null,null,null,null,null,null,null,null,15404,998,"Waiting List","PLAYER NOT AVAILABLE",0,"No","No","No",null,null,3007,"Transfer List"]
[null,null,null,null,null,null,null,null,null,null,null,null,null,null,null,null,null,null,null,null,null,null,null,null,15415,998,"Waiting List","PLAYER NOT AVAILABLE",0,"No","No","No",null,null,3012,"Norman House"]
[null,null,null,null,null,null,null,null,null,null,null,null,null,null,null,null,null,null,null,null,null,null,null,null,15420,3,"Real Jameosean","PLAYER NOT AVAILABLE",0,"No","No","No",null,null,3013,"UNMANAGED"]
[null,null,null,null,null,null,null,null,null,null,null,null,null,null,null,null,null,null,null,null,null,null,null,null,15438,54,"Skylark Santiago","PLAYER NOT AVAILABLE",0,"No","No","No",null,null,3018,"UNMANAGED"]
[null,null,null,null,null,null,null,null,null,null,null,null,null,null,null,null,null,null,null,null,null,null,null,null,15444,2,"Harrogate Orient","Gaston GOMEZ",706932,"Yes","Yes","Yes",null,null,3022,"UNMANAGED"]
[null,null,null,null,null,null,null,null,null,null,null,null,null,null,null,null,null,null,null,null,null,null,null,null,15456,998,"Waiting List","PLAYER NOT AVAILABLE",0,"No","No","No",null,null,3027,"UNMANAGED"]
[null,null,null,null,null,null,null,null,null,null,null,null,null,null,null,null,null,null,null,null,null,null,null,null,15468,60,"Chelmersdale","PLAYER NOT AVAILABLE",0,"No","No","No",null,null,3028,"NOT APPLICABLE"]
[null,null,null,null,null,null,null,null,null,null,null,null,null,null,null,null,null,null,null,null,null,null,null,null,15485,61,"Culmore Crusaders","PLAYER NOT AVAILABLE",0,"No","No","No",null,null,3033,"Norman House"]
[null,null,null,null,null,null,null,null,null,null,null,null,null,null,null,null,null,null,null,null,null,null,null,null,15495,998,"Waiting List","PLAYER NOT AVAILABLE",0,"No","No","No",null,null,3038,"NOT APPLICABLE"]
[null,null,null,null,null,null,null,null,null,null,null,null,null,null,null,null,null,null,null,null,null,null,null,null,15504,107,"Falconetti Fire","Eduardo CAMAVINGA",41814359,"Yes","Yes","Yes",null,null,3043,"NOT APPLICABLE"]
[null,null,null,null,null,null,null,null,null,null,null,null,null,null,null,null,null,null,null,null,null,null,null,null,15506,93,"Kingston Knights","PLAYER NOT AVAILABLE",0,"No","No","No",null,null,3044,"UNMANAGED"]
[null,null,null,null,null,null,null,null,null,null,null,null,null,null,null,null,null,null,null,null,null,null,null,null,15513,6,"Roymirth Rovers","Edouard MENDY",8739010,"Yes","Yes","Yes",null,null,3048,"UNMANAGED"]
[null,null,null,null,null,null,null,null,null,null,null,null,null,null,null,null,null,null,null,null,null,null,null,null,15529,998,"Waiting List","PLAYER NOT AVAILABLE",0,"No","No","No",null,null,3053,"NOT APPLICABLE"]
[null,null,null,null,null,null,null,null,null,null,null,null,null,null,null,null,null,null,null,null,null,null,null,null,15554,0,"Transfer Pool","Miguel NUNO SANTOS",10540238,"No","No","Yes",2,null,3058,"Robin Slade"]
[null,null,null,null,null,null,null,null,null,null,null,null,null,null,null,null,null,null,null,null,null,null,null,null,15558,998,"Waiting List","PLAYER NOT AVAILABLE",0,"No","No","No",null,null,3059,"NOT APPLICABLE"]
[null,null,null,null,null,null,null,null,null,null,null,null,null,null,null,null,null,null,null,null,null,null,null,null,15569,59,"Sawbo Sabres","PLAYER NOT AVAILABLE",0,"No","No","No",null,null,3065,"Robin Slade"]
[null,null,null,null,null,null,null,null,null,null,null,null,null,null,null,null,null,null,null,null,null,null,null,null,15575,64,"Fellerton","Exequiel PALACIOS",30506928,"Yes","Yes","Yes",null,null,3068,"NOT APPLICABLE"]
[null,null,null,null,null,null,null,null,null,null,null,null,null,null,null,null,null,null,null,null,null,null,null,null,15603,998,"Waiting List","PLAYER NOT AVAILABLE",0,"No","No","No",null,null,3073,"NOT APPLICABLE"]
[null,null,null,null,null,null,null,null,null,null,null,null,null,null,null,null,null,null,null,null,null,null,null,null,15609,47,"Port Waltham","PLAYER NOT AVAILABLE",0,"No","No","No",null,null,3074,"Robin Slade"]
[null,null,null,null,null,null,null,null,null,null,null,null,null,null,null,null,null,null,null,null,null,null,null,null,15623,112,"Chingford Argyle","PLAYER NOT AVAILABLE",0,"No","No","No",null,null,3079,"NOT APPLICABLE"]
[null,null,null,null,null,null,null,null,null,null,null,null,null,null,null,null,null,null,null,null,null,null,null,null,15654,105,"Heythrop Cavaliers","PLAYER NOT AVAILABLE",0,"No","No","No",null,null,3083,"UNMANAGED"]
[null,null,null,null,null,null,null,null,null,null,null,null,null,null,null,null,null,null,null,null,null,null,null,null,15672,106,"Colebank","PLAYER NOT AVAILABLE",0,"No","No","No",null,null,3088,"NOT APPLICABLE"]
[null,null,null,null,null,null,null,null,null,null,null,null,null,null,null,null,null,null,null,null,null,null,null,null,15679,98,"Richmond Renegades","PLAYER NOT AVAILABLE",0,"No","No","No",null,null,3089,"UNMANAGED"]
[null,null,null,null,null,null,null,null,null,null,null,null,null,null,null,null,null,null,null,null,null,null,null,null,15695,84,"Oaklea Park","PLAYER NOT AVAILABLE",0,"No","No","No",null,null,3094,"NOT APPLICABLE"]
[null,null,null,null,null,null,null,null,null,null,null,null,null,null,null,null,null,null,null,null,null,null,null,null,15721,113,"Coggeshall Colts","PLAYER NOT AVAILABLE",0,"No","No","No",null,null,3099,"NOT APPLICABLE"]
[null,null,null,null,null,null,null,null,null,null,null,null,null,null,null,null,null,null,null,null,null,null,null,null,15728,998,"Waiting List","PLAYER NOT AVAILABLE",0,"No","No","No",null,null,3101,"UNMANAGED"]
[null,null,null,null,null,null,null,null,null,null,null,null,null,null,null,null,null,null,null,null,null,null,null,null,15735,998,"Waiting List","PLAYER NOT AVAILABLE",0,"No","No","No",null,null,3104,"NOT APPLICABLE"]
[null,null,null,null,null,null,null,null,null,null,null,null,null,null,null,null,null,null,null,null,null,null,null,null,15749,998,"Waiting List","PLAYER NOT AVAILABLE",0,"No","No","No",null,null,3109,"NOT APPLICABLE"]
[null,null,null,null,null,null,null,null,null,null,null,null,null,null,null,null,null,null,null,null,null,null,null,null,15764,124,"Belize Gonagecha","PLAYER NOT AVAILABLE",0,"No","No","No",null,null,3114,"UNMANAGED"]
[null,null,null,null,null,null,null,null,null,null,null,null,null,null,null,null,null,null,null,null,null,null,null,null,15775,49,"AFC Ashton","PLAYER NOT AVAILABLE",0,"No","No","No",null,null,3119,"NOT APPLICABLE"]
[null,null,null,null,null,null,null,null,null,null,null,null,null,null,null,null,null,null,null,null,null,null,null,null,15777,58,"Lyonswade","PLAYER NOT AVAILABLE",0,"No","No","No",null,null,3120,"NOT APPLICABLE"]
[null,null,null,null,null,null,null,null,null,null,null,null,null,null,null,null,null,null,null,null,null,null,null,null,15798,65,"Lemmington","PLAYER NOT AVAILABLE",0,"No","No","No",null,null,3126,"Transfer List"]
[null,null,null,null,null,null,null,null,null,null,null,null,null,null,null,null,null,null,null,null,null,null,null,null,15809,79,"Juniper Viables","PLAYER NOT AVAILABLE",0,"No","No","No",null,null,3129,"Transfer List"]
[null,null,null,null,null,null,null,null,null,null,null,null,null,null,null,null,null,null,null,null,null,null,null,null,15819,998,"Waiting List","PLAYER NOT AVAILABLE",0,"No","No","No",null,null,3134,"NOT APPLICABLE"]
[null,null,null,null,null,null,null,null,null,null,null,null,null,null,null,null,null,null,null,null,null,null,null,null,15820,998,"Waiting List","PLAYER NOT AVAILABLE",0,"No","No","No",null,null,3135,"UNMANAGED"]
[null,null,null,null,null,null,null,null,null,null,null,null,null,null,null,null,null,null,null,null,null,null,null,null,15847,998,"Waiting List","PLAYER NOT AVAILABLE",0,"No","No","No",null,null,3140,"UNMANAGED"]
[null,null,null,null,null,null,null,null,null,null,null,null,null,null,null,null,null,null,null,null,null,null,null,null,15864,998,"Waiting List","PLAYER NOT AVAILABLE",0,"No","No","No",null,null,3144,"Ellie Andrews"]
[null,null,null,null,null,null,null,null,null,null,null,null,null,null,null,null,null,null,null,null,null,null,null,null,15894,119,"Jessingborough Jets","PLAYER NOT AVAILABLE",0,"No","No","No",null,null,3149,"NOT APPLICABLE"]
[null,null,null,null,null,null,null,null,null,null,null,null,null,null,null,null,null,null,null,null,null,null,null,null,15897,16,"Bumanchester United","Maxence LACROIX",18170409,"Yes","Yes","Yes",null,18,3150,"Transfer List"]
[null,null,null,null,null,null,null,null,null,null,null,null,null,null,null,null,null,null,null,null,null,null,null,null,15917,998,"Waiting List","PLAYER NOT AVAILABLE",0,"No","No","No",null,null,3155,"Transfer List"]
[null,null,null,null,null,null,null,null,null,null,null,null,null,null,null,null,null,null,null,null,null,null,null,null,15978,998,"Waiting List","PLAYER NOT AVAILABLE",0,"No","No","No",null,null,3160,"NOT APPLICABLE"]
[null,null,null,null,null,null,null,null,null,null,null,null,null,null,null,null,null,null,null,null,null,null,null,null,15983,998,"Waiting List","PLAYER NOT AVAILABLE",0,"No","No","No",null,null,3162,"UNMANAGED"]
[null,null,null,null,null,null,null,null,null,null,null,null,null,null,null,null,null,null,null,null,null,null,null,null,15988,118,"Meadowside","PLAYER NOT AVAILABLE",0,"No","No","No",null,null,3165,"UNMANAGED"]
[null,null,null,null,null,null,null,null,null,null,null,null,null,null,null,null,null,null,null,null,null,null,null,null,16022,998,"Waiting List","PLAYER NOT AVAILABLE",0,"No","No","No",null,null,3170,"UNMANAGED"]
[null,null,null,null,null,null,null,null,null,null,null,null,null,null,null,null,null,null,null,null,null,null,null,null,16040,998,"Waiting List","PLAYER NOT AVAILABLE",0,"No","No","No",null,null,3175,"Bernie Iles"]
[null,null,null,null,null,null,null,null,null,null,null,null,null,null,null,null,null,null,null,null,null,null,null,null,16055,42,"Macksfield Rovers","PLAYER NOT AVAILABLE",0,"No","No","No",null,null,3180,"UNMANAGED"]
[null,null,null,null,null,null,null,null,null,null,null,null,null,null,null,null,null,null,null,null,null,null,null,null,16056,998,"Waiting List","PLAYER NOT AVAILABLE",0,"No","No","No",null,null,3181,"NOT APPLICABLE"]
[null,null,null,null,null,null,null,null,null,null,null,null,null,null,null,null,null,null,null,null,null,null,null,null,16066,8,"Intersol","PLAYER NOT AVAILABLE",0,"No","No","No",null,null,3187,"Transfer List"]
[null,null,null,null,null,null,null,null,null,null,null,null,null,null,null,null,null,null,null,null,null,null,null,null,16069,0,"Transfer Pool","Raul SILVA",3201039,"No","No","Yes",4,null,3190,"Transfer List"]
[null,null,null,null,null,null,null,null,null,null,null,null,null,null,null,null,null,null,null,null,null,null,null,null,16094,998,"Waiting List","PLAYER NOT AVAILABLE",0,"No","No","No",null,null,3195,"NOT APPLICABLE"]
[null,null,null,null,null,null,null,null,null,null,null,null,null,null,null,null,null,null,null,null,null,null,null,null,16101,100,"East Hanningfield","PLAYER NOT AVAILABLE",0,"No","No","No",null,null,3196,"Norman House"]
[null,null,null,null,null,null,null,null,null,null,null,null,null,null,null,null,null,null,null,null,null,null,null,null,16132,7,"AEK Grogan","PLAYER CAN'T BE SOLD",{"$f":"\"-\"","v":"-"},"No","Yes","No",null,null,3201,"NOT APPLICABLE"]
[null,null,null,null,null,null,null,null,null,null,null,null,null,null,null,null,null,null,null,null,null,null,null,null,16144,110,"Bridgewater","PLAYER NOT AVAILABLE",0,"No","No","No",null,null,3205,"NOT APPLICABLE"]
[null,null,null,null,null,null,null,null,null,null,null,null,null,null,null,null,null,null,null,null,null,null,null,null,16222,998,"Waiting List","PLAYER NOT AVAILABLE",0,"No","No","No",null,null,3210,"UNMANAGED"]
[null,null,null,null,null,null,null,null,null,null,null,null,null,null,null,null,null,null,null,null,null,null,null,null,16223,122,"Sherringham","PLAYER NOT AVAILABLE",0,"No","No","No",null,null,3211,"NOT APPLICABLE"]
[null,null,null,null,null,null,null,null,null,null,null,null,null,null,null,null,null,null,null,null,null,null,null,null,16330,90,"Saddington","PLAYER NOT AVAILABLE",0,"No","No","No",null,null,3216,"UNMANAGED"]
[null,null,null,null,null,null,null,null,null,null,null,null,null,null,null,null,null,null,null,null,null,null,null,null,16343,998,"Waiting List","PLAYER NOT AVAILABLE",0,"No","No","No",null,null,3221,"NOT APPLICABLE"]
[null,null,null,null,null,null,null,null,null,null,null,null,null,null,null,null,null,null,null,null,null,null,null,null,16346,21,"Christophia","PLAYER CAN'T BE SOLD",{"$f":"\"-\"","v":"-"},"No","Yes","No",null,null,3223,"UNMANAGED"]
[null,null,null,null,null,null,null,null,null,null,null,null,null,null,null,null,null,null,null,null,null,null,null,null,16364,119,"Jessingborough Jets","PLAYER NOT AVAILABLE",0,"No","No","No",null,null,3226,"UNMANAGED"]
[null,null,null,null,null,null,null,null,null,null,null,null,null,null,null,null,null,null,null,null,null,null,null,null,16388,110,"Bridgewater","PLAYER NOT AVAILABLE",0,"No","No","No",null,null,3231,"NOT APPLICABLE"]
[null,null,null,null,null,null,null,null,null,null,null,null,null,null,null,null,null,null,null,null,null,null,null,null,16417,998,"Waiting List","PLAYER NOT AVAILABLE",0,"No","No","No",null,null,3236,"UNMANAGED"]
[null,null,null,null,null,null,null,null,null,null,null,null,null,null,null,null,null,null,null,null,null,null,null,null,16446,111,"Cavendish","PLAYER NOT AVAILABLE",0,"No","No","No",null,null,3241,"UNMANAGED"]
[null,null,null,null,null,null,null,null,null,null,null,null,null,null,null,null,null,null,null,null,null,null,null,null,16455,63,"Davemoor","PLAYER NOT AVAILABLE",0,"No","No","No",null,null,3244,"NOT APPLICABLE"]
[null,null,null,null,null,null,null,null,null,null,null,null,null,null,null,null,null,null,null,null,null,null,null,null,16478,998,"Waiting List","PLAYER NOT AVAILABLE",0,"No","No","No",null,null,3246,"NOT APPLICABLE"]
[null,null,null,null,null,null,null,null,null,null,null,null,null,null,null,null,null,null,null,null,null,null,null,null,16502,99,"Hamlet Foxes","PLAYER NOT AVAILABLE",0,"No","No","No",null,null,3251,"NOT APPLICABLE"]
[null,null,null,null,null,null,null,null,null,null,null,null,null,null,null,null,null,null,null,null,null,null,null,null,16522,85,"Krystle Palace","PLAYER NOT AVAILABLE",0,"No","No","No",null,null,3256,"NOT APPLICABLE"]
[null,null,null,null,null,null,null,null,null,null,null,null,null,null,null,null,null,null,null,null,null,null,null,null,16524,998,"Waiting List","PLAYER NOT AVAILABLE",0,"No","No","No",null,null,3257,"UNMANAGED"]
[null,null,null,null,null,null,null,null,null,null,null,null,null,null,null,null,null,null,null,null,null,null,null,null,16535,998,"Waiting List","PLAYER NOT AVAILABLE",0,"No","No","No",null,null,3262,"UNMANAGED"]
[null,null,null,null,null,null,null,null,null,null,null,null,null,null,null,null,null,null,null,null,null,null,null,null,16540,125,"Van Diemans United","PLAYER NOT AVAILABLE",0,"No","No","No",null,null,3267,"UNMANAGED"]
[null,null,null,null,null,null,null,null,null,null,null,null,null,null,null,null,null,null,null,null,null,null,null,null,16546,121,"Rettendon","PLAYER NOT AVAILABLE",0,"No","No","No",null,null,3271,"NOT APPLICABLE"]
[null,null,null,null,null,null,null,null,null,null,null,null,null,null,null,null,null,null,null,null,null,null,null,null,16549,39,"Albenotti","Mattia ZACCAGNI",25253727,"Yes","Yes","Yes",null,null,3272,"UNMANAGED"]
[null,null,null,null,null,null,null,null,null,null,null,null,null,null,null,null,null,null,null,null,null,null,null,null,16594,115,"Greenbury","PLAYER NOT AVAILABLE",0,"No","No","No",null,null,3277,"UNMANAGED"]
[null,null,null,null,null,null,null,null,null,null,null,null,null,null,null,null,null,null,null,null,null,null,null,null,16603,998,"Waiting List","PLAYER NOT AVAILABLE",0,"No","No","No",null,null,3282,"UNMANAGED"]
[null,null,null,null,null,null,null,null,null,null,null,null,null,null,null,null,null,null,null,null,null,null,null,null,16605,85,"Krystle Palace","PLAYER NOT AVAILABLE",0,"No","No","No",null,null,3284,"NOT APPLICABLE"]
[null,null,null,null,null,null,null,null,null,null,null,null,null,null,null,null,null,null,null,null,null,null,null,null,16613,75,"Romano","PLAYER NOT AVAILABLE",0,"No","No","No",null,null,3287,"Transfer List"]
[null,null,null,null,null,null,null,null,null,null,null,null,null,null,null,null,null,null,null,null,null,null,null,null,16632,998,"Waiting List","PLAYER NOT AVAILABLE",0,"No","No","No",null,null,3292,"Transfer List"]
[null,null,null,null,null,null,null,null,null,null,null,null,null,null,null,null,null,null,null,null,null,null,null,null,16641,113,"Coggeshall Colts","PLAYER NOT AVAILABLE",0,"No","No","No",null,null,3297,"UNMANAGED"]
[null,null,null,null,null,null,null,null,null,null,null,null,null,null,null,null,null,null,null,null,null,null,null,null,16689,102,"Dukes Park","PLAYER NOT AVAILABLE",0,"No","No","No",null,null,3302,"UNMANAGED"]
[null,null,null,null,null,null,null,null,null,null,null,null,null,null,null,null,null,null,null,null,null,null,null,null,16709,998,"Waiting List","PLAYER NOT AVAILABLE",0,"No","No","No",null,null,3305,"UNMANAGED"]
[null,null,null,null,null,null,null,null,null,null,null,null,null,null,null,null,null,null,null,null,null,null,null,null,16713,89,"Melbourne Park","PLAYER NOT AVAILABLE",0,"No","No","No",null,null,3307,"UNMANAGED"]
[null,null,null,null,null,null,null,null,null,null,null,null,null,null,null,null,null,null,null,null,null,null,null,null,16783,72,"Kraukhampton","PLAYER NOT AVAILABLE",0,"No","No","No",null,null,3312,"NOT APPLICABLE"]
[null,null,null,null,null,null,null,null,null,null,null,null,null,null,null,null,null,null,null,null,null,null,null,null,16795,998,"Waiting List","PLAYER NOT AVAILABLE",0,"No","No","No",null,null,3317,"UNMANAGED"]
[null,null,null,null,null,null,null,null,null,null,null,null,null,null,null,null,null,null,null,null,null,null,null,null,16798,109,"Bayswater Kings","PLAYER NOT AVAILABLE",0,"No","No","No",null,null,3318,"Robin Slade"]
[null,null,null,null,null,null,null,null,null,null,null,null,null,null,null,null,null,null,null,null,null,null,null,null,16828,63,"Davemoor","PLAYER NOT AVAILABLE",0,"No","No","No",null,null,3323,"NOT APPLICABLE"]
[null,null,null,null,null,null,null,null,null,null,null,null,null,null,null,null,null,null,null,null,null,null,null,null,16857,53,"Essex Ruminants","PLAYER NOT AVAILABLE",0,"No","No","No",null,null,3327,"NOT APPLICABLE"]
[null,null,null,null,null,null,null,null,null,null,null,null,null,null,null,null,null,null,null,null,null,null,null,null,16909,97,"Johnsonville","PLAYER NOT AVAILABLE",0,"No","No","No",null,null,3332,"UNMANAGED"]
[null,null,null,null,null,null,null,null,null,null,null,null,null,null,null,null,null,null,null,null,null,null,null,null,16912,998,"Waiting List","PLAYER NOT AVAILABLE",0,"No","No","No",null,null,3333,"Norman House"]
[null,null,null,null,null,null,null,null,null,null,null,null,null,null,null,null,null,null,null,null,null,null,null,null,16930,73,"Sparta Limarnder","Patson DAKA",9101665,"Yes","Yes","Yes",null,null,3338,"UNMANAGED"]
[null,null,null,null,null,null,null,null,null,null,null,null,null,null,null,null,null,null,null,null,null,null,null,null,16941,998,"Waiting List","PLAYER NOT AVAILABLE",0,"No","No","No",null,null,3343,"James House"]
[null,null,null,null,null,null,null,null,null,null,null,null,null,null,null,null,null,null,null,null,null,null,null,null,16950,70,"Northridge Cormorants","Juan MUSSO",6039398,"Yes","Yes","Yes",null,null,3346,"UNMANAGED"]
[null,null,null,null,null,null,null,null,null,null,null,null,null,null,null,null,null,null,null,null,null,null,null,null,16960,998,"Waiting List","PLAYER NOT AVAILABLE",0,"No","No","No",null,null,3348,"UNMANAGED"]
[null,null,null,null,null,null,null,null,null,null,null,null,null,null,null,null,null,null,null,null,null,null,null,null,16979,998,"Waiting List","PLAYER NOT AVAILABLE",0,"No","No","No",null,null,3353,"UNMANAGED"]
[null,null,null,null,null,null,null,null,null,null,null,null,null,null,null,null,null,null,null,null,null,null,null,null,16990,998,"Waiting List","PLAYER NOT AVAILABLE",0,"No","No","No",null,null,3358,"UNMANAGED"]
[null,null,null,null,null,null,null,null,null,null,null,null,null,null,null,null,null,null,null,null,null,null,null,null,16999,71,"Wandsworth","PLAYER NOT AVAILABLE",0,"No","No","No",null,null,3363,"Norman House"]
[null,null,null,null,null,null,null,null,null,null,null,null,null,null,null,null,null,null,null,null,null,null,null,null,17008,0,"Transfer Pool","Willian JOSE",10798892,"No","No","Yes",2,null,3366,"NOT APPLICABLE"]
[null,null,null,null,null,null,null,null,null,null,null,null,null,null,null,null,null,null,null,null,null,null,null,null,17011,65,"Lemmington","PLAYER NOT AVAILABLE",0,"No","No","No",null,null,3368,"NOT APPLICABLE"]
[null,null,null,null,null,null,null,null,null,null,null,null,null,null,null,null,null,null,null,null,null,null,null,null,17034,101,"St. Lewis","PLAYER NOT AVAILABLE",0,"No","No","No",null,null,3373,"Transfer List"]
[null,null,null,null,null,null,null,null,null,null,null,null,null,null,null,null,null,null,null,null,null,null,null,null,17043,0,"Transfer Pool","Arthur CABRAL",8456652,"No","No","Yes",1,null,3378,"NOT APPLICABLE"]
[null,null,null,null,null,null,null,null,null,null,null,null,null,null,null,null,null,null,null,null,null,null,null,null,17044,33,"Jarikton","Gleison BREMER",26548546,"Yes","Yes","Yes",null,null,3379,"NOT APPLICABLE"]
[null,null,null,null,null,null,null,null,null,null,null,null,null,null,null,null,null,null,null,null,null,null,null,null,17077,998,"Waiting List","PLAYER NOT AVAILABLE",0,"No","No","No",null,null,3384,"UNMANAGED"]
[null,null,null,null,null,null,null,null,null,null,null,null,null,null,null,null,null,null,null,null,null,null,null,null,17084,998,"Waiting List","PLAYER NOT AVAILABLE",0,"No","No","No",null,null,3388,"UNMANAGED"]
[null,null,null,null,null,null,null,null,null,null,null,null,null,null,null,null,null,null,null,null,null,null,null,null,17096,81,"Tangerinions","PLAYER NOT AVAILABLE",0,"No","No","No",null,25,3393,"NOT APPLICABLE"]
[null,null,null,null,null,null,null,null,null,null,null,null,null,null,null,null,null,null,null,null,null,null,null,null,17099,23,"Rushleydale","Josko GVARDIOL",38492232,"Yes","Yes","Yes",null,null,3394,"UNMANAGED"]
[null,null,null,null,null,null,null,null,null,null,null,null,null,null,null,null,null,null,null,null,null,null,null,null,17109,998,"Waiting List","PLAYER NOT AVAILABLE",0,"No","No","No",null,null,3399,"UNMANAGED"]
[null,null,null,null,null,null,null,null,null,null,null,null,null,null,null,null,null,null,null,null,null,null,null,null,17116,49,"AFC Ashton","PLAYER NOT AVAILABLE",0,"No","No","No",null,null,3402,"UNMANAGED"]
[null,null,null,null,null,null,null,null,null,null,null,null,null,null,null,null,null,null,null,null,null,null,null,null,17143,998,"Waiting List","PLAYER NOT AVAILABLE",0,"No","No","No",null,null,3408,"UNMANAGED"]
[null,null,null,null,null,null,null,null,null,null,null,null,null,null,null,null,null,null,null,null,null,null,null,null,17148,998,"Waiting List","PLAYER NOT AVAILABLE",0,"No","No","No",null,null,3409,"NOT APPLICABLE"]
[null,null,null,null,null,null,null,null,null,null,null,null,null,null,null,null,null,null,null,null,null,null,null,null,17168,69,"Gainsborough Hamlet","Bukayo SAKA",38793638,"Yes","Yes","Yes",null,null,3414,"NOT APPLICABLE"]
[null,null,null,null,null,null,null,null,null,null,null,null,null,null,null,null,null,null,null,null,null,null,null,null,17188,93,"Kingston Knights","PLAYER NOT AVAILABLE",0,"No","No","No",null,null,3419,"UNMANAGED"]
[null,null,null,null,null,null,null,null,null,null,null,null,null,null,null,null,null,null,null,null,null,null,null,null,17229,998,"Waiting List","PLAYER NOT AVAILABLE",0,"No","No","No",null,null,3424,"UNMANAGED"]
[null,null,null,null,null,null,null,null,null,null,null,null,null,null,null,null,null,null,null,null,null,null,null,null,17238,16,"Bumanchester United","Kenny TETE",3720626,"Yes","Yes","Yes",null,null,3425,"NOT APPLICABLE"]
[null,null,null,null,null,null,null,null,null,null,null,null,null,null,null,null,null,null,null,null,null,null,null,null,17251,90,"Saddington","PLAYER NOT AVAILABLE",0,"No","No","No",null,null,3429,"Ken Atkinson"]
[null,null,null,null,null,null,null,null,null,null,null,null,null,null,null,null,null,null,null,null,null,null,null,null,17261,15,"North Notley","Rodrigo ELY",912246,"Yes","Yes","Yes",null,null,3434,"NOT APPLICABLE"]
[null,null,null,null,null,null,null,null,null,null,null,null,null,null,null,null,null,null,null,null,null,null,null,null,17271,91,"Goldhanger","PLAYER NOT AVAILABLE",0,"No","No","No",null,null,3439,"Paul Newman"]
[null,null,null,null,null,null,null,null,null,null,null,null,null,null,null,null,null,null,null,null,null,null,null,null,17272,998,"Waiting List","PLAYER NOT AVAILABLE",0,"No","No","No",null,null,3440,"Transfer List"]
[null,null,null,null,null,null,null,null,null,null,null,null,null,null,null,null,null,null,null,null,null,null,null,null,17297,6,"Roymirth Rovers","Stole DIMITRIEVSKI",1443849,"Yes","Yes","Yes",null,null,3445,"NOT APPLICABLE"]
[null,null,null,null,null,null,null,null,null,null,null,null,null,null,null,null,null,null,null,null,null,null,null,null,17306,998,"Waiting List","PLAYER NOT AVAILABLE",0,"No","No","No",null,null,3449,"NOT APPLICABLE"]
[null,null,null,null,null,null,null,null,null,null,null,null,null,null,null,null,null,null,null,null,null,null,null,null,17330,127,"Woodham Mortimer","PLAYER NOT AVAILABLE",0,"No","No","No",null,null,3454,"UNMANAGED"]
[null,null,null,null,null,null,null,null,null,null,null,null,null,null,null,null,null,null,null,null,null,null,null,null,17333,71,"Wandsworth","PLAYER NOT AVAILABLE",0,"No","No","No",null,null,3455,"NOT APPLICABLE"]
[null,null,null,null,null,null,null,null,null,null,null,null,null,null,null,null,null,null,null,null,null,null,null,null,17364,998,"Waiting List","PLAYER NOT AVAILABLE",0,"No","No","No",null,null,3460,"UNMANAGED"]
[null,null,null,null,null,null,null,null,null,null,null,null,null,null,null,null,null,null,null,null,null,null,null,null,17378,77,"Passfield","PLAYER NOT AVAILABLE",0,"No","No","No",null,null,3463,"UNMANAGED"]
[null,null,null,null,null,null,null,null,null,null,null,null,null,null,null,null,null,null,null,null,null,null,null,null,17396,9,"Real Danyella","Lawrence SHANKLAND",6979636,"Yes","Yes","Yes",null,null,3469,"UNMANAGED"]
[null,null,null,null,null,null,null,null,null,null,null,null,null,null,null,null,null,null,null,null,null,null,null,null,17403,88,"St. Mary","PLAYER NOT AVAILABLE",0,"No","No","No",null,null,3470,"Norman House"]
[null,null,null,null,null,null,null,null,null,null,null,null,null,null,null,null,null,null,null,null,null,null,null,null,17428,84,"Oaklea Park","PLAYER NOT AVAILABLE",0,"No","No","No",null,null,3475,"Transfer List"]
[null,null,null,null,null,null,null,null,null,null,null,null,null,null,null,null,null,null,null,null,null,null,null,null,17448,998,"Waiting List","PLAYER NOT AVAILABLE",0,"No","No","No",null,null,3480,"Robin Slade"]
[null,null,null,null,null,null,null,null,null,null,null,null,null,null,null,null,null,null,null,null,null,null,null,null,17452,87,"Zanzibar Aztecs","PLAYER NOT AVAILABLE",0,"No","No","No",null,null,3484,"UNMANAGED"]
[null,null,null,null,null,null,null,null,null,null,null,null,null,null,null,null,null,null,null,null,null,null,null,null,17454,998,"Waiting List","PLAYER NOT AVAILABLE",0,"No","No","No",null,null,3485,"NOT APPLICABLE"]
[null,null,null,null,null,null,null,null,null,null,null,null,null,null,null,null,null,null,null,null,null,null,null,null,17467,77,"Passfield","PLAYER NOT AVAILABLE",0,"No","No","No",null,null,3490,"UNMANAGED"]
[null,null,null,null,null,null,null,null,null,null,null,null,null,null,null,null,null,null,null,null,null,null,null,null,17478,110,"Bridgewater","PLAYER NOT AVAILABLE",0,"No","No","No",null,null,3495,"UNMANAGED"]
[null,null,null,null,null,null,null,null,null,null,null,null,null,null,null,null,null,null,null,null,null,null,null,null,17498,998,"Waiting List","PLAYER NOT AVAILABLE",0,"No","No","No",null,null,3500,"Don Davern"]
[null,null,null,null,null,null,null,null,null,null,null,null,null,null,null,null,null,null,null,null,null,null,null,null,17503,80,"Winchelsea","PLAYER CAN'T BE SOLD",{"$f":"\"-\"","v":"-"},"No","Yes","No",null,null,3501,"Paul Newman"]
[null,null,null,null,null,null,null,null,null,null,null,null,null,null,null,null,null,null,null,null,null,null,null,null,17541,96,"Stonebridge","PLAYER NOT AVAILABLE",0,"No","No","No",null,null,3507,"UNMANAGED"]
[null,null,null,null,null,null,null,null,null,null,null,null,null,null,null,null,null,null,null,null,null,null,null,null,17545,998,"Waiting List","PLAYER NOT AVAILABLE",0,"No","No","No",null,null,3510,"UNMANAGED"]
[null,null,null,null,null,null,null,null,null,null,null,null,null,null,null,null,null,null,null,null,null,null,null,null,17564,67,"Parmenter","PLAYER NOT AVAILABLE",0,"No","No","No",null,null,3515,"UNMANAGED"]
[null,null,null,null,null,null,null,null,null,null,null,null,null,null,null,null,null,null,null,null,null,null,null,null,17565,43,"IOD","PLAYER NOT AVAILABLE",0,"No","No","No",null,null,3516,"UNMANAGED"]
[null,null,null,null,null,null,null,null,null,null,null,null,null,null,null,null,null,null,null,null,null,null,null,null,17571,92,"Pantherville","PLAYER NOT AVAILABLE",0,"No","No","No",null,null,3521,"Norman House"]
[null,null,null,null,null,null,null,null,null,null,null,null,null,null,null,null,null,null,null,null,null,null,null,null,17576,121,"Rettendon","PLAYER NOT AVAILABLE",0,"No","No","No",null,null,3524,"UNMANAGED"]
[null,null,null,null,null,null,null,null,null,null,null,null,null,null,null,null,null,null,null,null,null,null,null,null,17585,998,"Waiting List","PLAYER NOT AVAILABLE",0,"No","No","No",null,null,3530,"Don Davern"]
[null,null,null,null,null,null,null,null,null,null,null,null,null,null,null,null,null,null,null,null,null,null,null,null,17586,0,"Transfer Pool","Fernando PACHECO",2577397,"No","No","Yes",4,null,3531,"Don Davern"]
[null,null,null,null,null,null,null,null,null,null,null,null,null,null,null,null,null,null,null,null,null,null,null,null,17594,120,"Sherfield Saints","PLAYER NOT AVAILABLE",0,"No","No","No",null,null,3536,"NOT APPLICABLE"]
[null,null,null,null,null,null,null,null,null,null,null,null,null,null,null,null,null,null,null,null,null,null,null,null,17613,998,"Waiting List","PLAYER NOT AVAILABLE",0,"No","No","No",null,null,3541,"NOT APPLICABLE"]
[null,null,null,null,null,null,null,null,null,null,null,null,null,null,null,null,null,null,null,null,null,null,null,null,17622,98,"Richmond Renegades","PLAYER NOT AVAILABLE",0,"No","No","No",null,null,3545,"UNMANAGED"]
[null,null,null,null,null,null,null,null,null,null,null,null,null,null,null,null,null,null,null,null,null,null,null,null,17627,998,"Waiting List","PLAYER NOT AVAILABLE",0,"No","No","No",null,null,3546,"UNMANAGED"]
[null,null,null,null,null,null,null,null,null,null,null,null,null,null,null,null,null,null,null,null,null,null,null,null,17639,39,"Albenotti","Marc ROCA",11034641,"Yes","Yes","Yes",null,null,3551,"UNMANAGED"]
[null,null,null,null,null,null,null,null,null,null,null,null,null,null,null,null,null,null,null,null,null,null,null,null,17646,20,"Nessertoponions","PLAYER CAN'T BE SOLD",{"$f":"\"-\"","v":"-"},"No","Yes","No",null,null,3556,"NOT APPLICABLE"]
[null,null,null,null,null,null,null,null,null,null,null,null,null,null,null,null,null,null,null,null,null,null,null,null,17655,91,"Goldhanger","PLAYER NOT AVAILABLE",0,"No","No","No",null,null,3561,"Transfer List"]
[null,null,null,null,null,null,null,null,null,null,null,null,null,null,null,null,null,null,null,null,null,null,null,null,17659,998,"Waiting List","PLAYER NOT AVAILABLE",0,"No","No","No",null,null,3562,"NOT APPLICABLE"]
[null,null,null,null,null,null,null,null,null,null,null,null,null,null,null,null,null,null,null,null,null,null,null,null,17671,0,"Transfer Pool","Alvaro FERNANDEZ",3190465,"No","No","Yes",2,null,3568,"Bernie Iles"]
[null,null,null,null,null,null,null,null,null,null,null,null,null,null,null,null,null,null,null,null,null,null,null,null,17677,998,"Waiting List","PLAYER NOT AVAILABLE",0,"No","No","No",null,null,3571,"Don Davern"]
[null,null,null,null,null,null,null,null,null,null,null,null,null,null,null,null,null,null,null,null,null,null,null,null,17701,15,"North Notley","Ertac OZBIR",811611,"Yes","Yes","Yes",null,null,3576,"NOT APPLICABLE"]
[null,null,null,null,null,null,null,null,null,null,null,null,null,null,null,null,null,null,null,null,null,null,null,null,17703,998,"Waiting List","PLAYER NOT AVAILABLE",0,"No","No","No",null,null,3577,"UNMANAGED"]
[null,null,null,null,null,null,null,null,null,null,null,null,null,null,null,null,null,null,null,null,null,null,null,null,17749,88,"St. Mary","PLAYER NOT AVAILABLE",0,"No","No","No",null,null,3582,"UNMANAGED"]
[null,null,null,null,null,null,null,null,null,null,null,null,null,null,null,null,null,null,null,null,null,null,null,null,17771,72,"Kraukhampton","PLAYER NOT AVAILABLE",0,"No","No","No",null,null,3586,"Norman House"]
[null,null,null,null,null,null,null,null,null,null,null,null,null,null,null,null,null,null,null,null,null,null,null,null,17807,998,"Waiting List","PLAYER NOT AVAILABLE",0,"No","No","No",null,null,3591,"UNMANAGED"]
[null,null,null,null,null,null,null,null,null,null,null,null,null,null,null,null,null,null,null,null,null,null,null,null,17816,0,"Transfer Pool","Raul RUIDIAZ",2172450,"No","No","Yes",1,null,3592,"Bernie Iles"]
[null,null,null,null,null,null,null,null,null,null,null,null,null,null,null,null,null,null,null,null,null,null,null,null,17824,7,"AEK Grogan","Lucas OLAZA",2867822,"Yes","Yes","Yes",null,null,3597,"UNMANAGED"]
[null,null,null,null,null,null,null,null,null,null,null,null,null,null,null,null,null,null,null,null,null,null,null,null,17839,28,"Tauntonian Celtic","PLAYER NOT AVAILABLE",0,"No","No","No",null,null,3602,"NOT APPLICABLE"]
[null,null,null,null,null,null,null,null,null,null,null,null,null,null,null,null,null,null,null,null,null,null,null,null,17850,998,"Waiting List","PLAYER NOT AVAILABLE",0,"No","No","No",null,null,3606,"NOT APPLICABLE"]
[null,null,null,null,null,null,null,null,null,null,null,null,null,null,null,null,null,null,null,null,null,null,null,null,17853,59,"Sawbo Sabres","PLAYER NOT AVAILABLE",0,"No","No","No",null,null,3607,"UNMANAGED"]
[null,null,null,null,null,null,null,null,null,null,null,null,null,null,null,null,null,null,null,null,null,null,null,null,17864,115,"Greenbury","PLAYER NOT AVAILABLE",0,"No","No","No",null,null,3612,"NOT APPLICABLE"]
[null,null,null,null,null,null,null,null,null,null,null,null,null,null,null,null,null,null,null,null,null,null,null,null,17886,123,"San Michael","PLAYER NOT AVAILABLE",0,"No","No","No",null,null,3617,"UNMANAGED"]
[null,null,null,null,null,null,null,null,null,null,null,null,null,null,null,null,null,null,null,null,null,null,null,null,17899,32,"Jonton","Ermedin DEMIROVIC",20381007,"Yes","Yes","Yes",null,14,3622,"UNMANAGED"]
[null,null,null,null,null,null,null,null,null,null,null,null,null,null,null,null,null,null,null,null,null,null,null,null,17905,19,"Jasonville","Timon WELLENREUTHER",3248997,"Yes","Yes","Yes",null,null,3624,"UNMANAGED"]
[null,null,null,null,null,null,null,null,null,null,null,null,null,null,null,null,null,null,null,null,null,null,null,null,17921,86,"Ravensbourne","PLAYER NOT AVAILABLE",0,"No","No","No",null,null,3627,"NOT APPLICABLE"]
[null,null,null,null,null,null,null,null,null,null,null,null,null,null,null,null,null,null,null,null,null,null,null,null,17954,998,"Waiting List","PLAYER NOT AVAILABLE",0,"No","No","No",null,null,3632,"UNMANAGED"]
[null,null,null,null,null,null,null,null,null,null,null,null,null,null,null,null,null,null,null,null,null,null,null,null,17967,85,"Krystle Palace","PLAYER NOT AVAILABLE",0,"No","No","No",null,null,3637,"UNMANAGED"]
[null,null,null,null,null,null,null,null,null,null,null,null,null,null,null,null,null,null,null,null,null,null,null,null,17970,125,"Van Diemans United","PLAYER NOT AVAILABLE",0,"No","No","No",null,null,3638,"UNMANAGED"]
[null,null,null,null,null,null,null,null,null,null,null,null,null,null,null,null,null,null,null,null,null,null,null,null,18261,44,"Trevmania Travellers","Benjamin PAVARD",26859541,"Yes","Yes","Yes",null,null,3643,"UNMANAGED"]
[null,null,null,null,null,null,null,null,null,null,null,null,null,null,null,null,null,null,null,null,null,null,null,null,18266,998,"Waiting List","PLAYER NOT AVAILABLE",0,"No","No","No",null,null,3647,"NOT APPLICABLE"]
[null,null,null,null,null,null,null,null,null,null,null,null,null,null,null,null,null,null,null,null,null,null,null,null,18273,12,"Inter Normania","Andrea BELOTTI",9125412,"Yes","Yes","Yes",null,null,3652,"NOT APPLICABLE"]
[null,null,null,null,null,null,null,null,null,null,null,null,null,null,null,null,null,null,null,null,null,null,null,null,18274,45,"NPA","PLAYER NOT AVAILABLE",0,"No","No","No",null,null,3653,"NOT APPLICABLE"]
[null,null,null,null,null,null,null,null,null,null,null,null,null,null,null,null,null,null,null,null,null,null,null,null,18281,998,"Waiting List","PLAYER NOT AVAILABLE",0,"No","No","No",null,null,3658,"NOT APPLICABLE"]
[null,null,null,null,null,null,null,null,null,null,null,null,null,null,null,null,null,null,null,null,null,null,null,null,18318,88,"St. Mary","PLAYER NOT AVAILABLE",0,"No","No","No",null,null,3663,"Norman House"]
[null,null,null,null,null,null,null,null,null,null,null,null,null,null,null,null,null,null,null,null,null,null,null,null,18321,86,"Ravensbourne","PLAYER NOT AVAILABLE",0,"No","No","No",null,null,3665,"UNMANAGED"]
[null,null,null,null,null,null,null,null,null,null,null,null,null,null,null,null,null,null,null,null,null,null,null,null,18333,114,"Great Baddow Ridge","PLAYER NOT AVAILABLE",0,"No","No","No",null,null,3668,"Norman House"]
[null,null,null,null,null,null,null,null,null,null,null,null,null,null,null,null,null,null,null,null,null,null,null,null,18342,998,"Waiting List","PLAYER NOT AVAILABLE",0,"No","No","No",null,null,3673,"UNMANAGED"]
[null,null,null,null,null,null,null,null,null,null,null,null,null,null,null,null,null,null,null,null,null,null,null,null,18352,127,"Woodham Mortimer","PLAYER NOT AVAILABLE",0,"No","No","No",null,null,3678,"NOT APPLICABLE"]
[null,null,null,null,null,null,null,null,null,null,null,null,null,null,null,null,null,null,null,null,null,null,null,null,18363,94,"Swifthaven","PLAYER NOT AVAILABLE",0,"No","No","No",null,null,3683,"NOT APPLICABLE"]
[null,null,null,null,null,null,null,null,null,null,null,null,null,null,null,null,null,null,null,null,null,null,null,null,18370,998,"Waiting List","PLAYER NOT AVAILABLE",0,"No","No","No",null,null,3686,"UNMANAGED"]
[null,null,null,null,null,null,null,null,null,null,null,null,null,null,null,null,null,null,null,null,null,null,null,null,18372,59,"Sawbo Sabres","PLAYER NOT AVAILABLE",0,"No","No","No",null,23,3688,"UNMANAGED"]
[null,null,null,null,null,null,null,null,null,null,null,null,null,null,null,null,null,null,null,null,null,null,null,null,18381,8,"Intersol","PLAYER NOT AVAILABLE",0,"No","No","No",null,null,3693,"NOT APPLICABLE"]
[null,null,null,null,null,null,null,null,null,null,null,null,null,null,null,null,null,null,null,null,null,null,null,null,18399,55,"Pennymede Park","PLAYER NOT AVAILABLE",0,"No","No","No",null,null,3698,"Norman House"]
[null,null,null,null,null,null,null,null,null,null,null,null,null,null,null,null,null,null,null,null,null,null,null,null,18400,114,"Great Baddow Ridge","PLAYER NOT AVAILABLE",0,"No","No","No",null,null,3699,"Transfer List"]
[null,null,null,null,null,null,null,null,null,null,null,null,null,null,null,null,null,null,null,null,null,null,null,null,18412,98,"Richmond Renegades","PLAYER NOT AVAILABLE",0,"No","No","No",null,null,3703,"NOT APPLICABLE"]
[null,null,null,null,null,null,null,null,null,null,null,null,null,null,null,null,null,null,null,null,null,null,null,null,18420,5,"Hurricane Harriers","PLAYER CAN'T BE SOLD",{"$f":"\"-\"","v":"-"},"No","Yes","No",null,null,3708,"UNMANAGED"]
[null,null,null,null,null,null,null,null,null,null,null,null,null,null,null,null,null,null,null,null,null,null,null,null,18437,126,"Weslington","PLAYER CAN'T BE SOLD",{"$f":"\"-\"","v":"-"},"No","Yes","No",null,null,3713,"Transfer List"]
[null,null,null,null,null,null,null,null,null,null,null,null,null,null,null,null,null,null,null,null,null,null,null,null,18438,998,"Waiting List","PLAYER NOT AVAILABLE",0,"No","No","No",null,null,3714,"NOT APPLICABLE"]
[null,null,null,null,null,null,null,null,null,null,null,null,null,null,null,null,null,null,null,null,null,null,null,null,18457,63,"Davemoor","PLAYER NOT AVAILABLE",0,"No","No","No",null,null,3719,"NOT APPLICABLE"]
[null,null,null,null,null,null,null,null,null,null,null,null,null,null,null,null,null,null,null,null,null,null,null,null,18464,9,"Real Danyella","PLAYER CAN'T BE SOLD",{"$f":"\"-\"","v":"-"},"No","Yes","No",null,null,3724,"NOT APPLICABLE"]
[null,null,null,null,null,null,null,null,null,null,null,null,null,null,null,null,null,null,null,null,null,null,null,null,18467,998,"Waiting List","PLAYER NOT AVAILABLE",0,"No","No","No",null,null,3726,"UNMANAGED"]
[null,null,null,null,null,null,null,null,null,null,null,null,null,null,null,null,null,null,null,null,null,null,null,null,18471,66,"Lemeno","PLAYER NOT AVAILABLE",0,"No","No","No",null,null,3729,"UNMANAGED"]
[null,null,null,null,null,null,null,null,null,null,null,null,null,null,null,null,null,null,null,null,null,null,null,null,18476,111,"Cavendish","PLAYER NOT AVAILABLE",0,"No","No","No",null,null,3734,"UNMANAGED"]
[null,null,null,null,null,null,null,null,null,null,null,null,null,null,null,null,null,null,null,null,null,null,null,null,18486,56,"All Saints United","Dani OLMO",34870726,"Yes","Yes","Yes",null,null,3739,"UNMANAGED"]
[null,null,null,null,null,null,null,null,null,null,null,null,null,null,null,null,null,null,null,null,null,null,null,null,18497,60,"Chelmersdale","PLAYER NOT AVAILABLE",0,"No","No","No",null,null,3744,"UNMANAGED"]
[null,null,null,null,null,null,null,null,null,null,null,null,null,null,null,null,null,null,null,null,null,null,null,null,18501,0,"Transfer Pool","Mikkel DAMSGAARD",4020835,"No","No","Yes",1,null,3747,"NOT APPLICABLE"]
[null,null,null,null,null,null,null,null,null,null,null,null,null,null,null,null,null,null,null,null,null,null,null,null,18511,63,"Davemoor","PLAYER NOT AVAILABLE",0,"No","No","No",null,null,3749,"UNMANAGED"]
[null,null,null,null,null,null,null,null,null,null,null,null,null,null,null,null,null,null,null,null,null,null,null,null,18524,92,"Pantherville","PLAYER NOT AVAILABLE",0,"No","No","No",null,null,3754,"NOT APPLICABLE"]
[null,null,null,null,null,null,null,null,null,null,null,null,null,null,null,null,null,null,null,null,null,null,null,null,18533,31,"Nesportivo","Jeremie FRIMPONG",18036556,"Yes","Yes","Yes",null,null,3759,"NOT APPLICABLE"]
[null,null,null,null,null,null,null,null,null,null,null,null,null,null,null,null,null,null,null,null,null,null,null,null,18535,71,"Wandsworth","PLAYER NOT AVAILABLE",0,"No","No","No",null,null,3760,"NOT APPLICABLE"]
[null,null,null,null,null,null,null,null,null,null,null,null,null,null,null,null,null,null,null,null,null,null,null,null,18544,98,"Richmond Renegades","PLAYER NOT AVAILABLE",0,"No","No","No",null,null,3765,"Transfer List"]
[null,null,null,null,null,null,null,null,null,null,null,null,null,null,null,null,null,null,null,null,null,null,null,null,18548,68,"Black Diamonds","PLAYER NOT AVAILABLE",0,"No","No","No",null,null,3769,"NOT APPLICABLE"]
[null,null,null,null,null,null,null,null,null,null,null,null,null,null,null,null,null,null,null,null,null,null,null,null,18564,74,"Scarlet Rovers","PLAYER NOT AVAILABLE",0,"No","No","No",null,null,3774,"UNMANAGED"]
[null,null,null,null,null,null,null,null,null,null,null,null,null,null,null,null,null,null,null,null,null,null,null,null,18565,49,"AFC Ashton","PLAYER NOT AVAILABLE",0,"No","No","No",null,null,3775,"NOT APPLICABLE"]
[null,null,null,null,null,null,null,null,null,null,null,null,null,null,null,null,null,null,null,null,null,null,null,null,18578,118,"Meadowside","PLAYER NOT AVAILABLE",0,"No","No","No",null,null,3780,"UNMANAGED"]
[null,null,null,null,null,null,null,null,null,null,null,null,null,null,null,null,null,null,null,null,null,null,null,null,18595,87,"Zanzibar Aztecs","PLAYER NOT AVAILABLE",0,"No","No","No",null,null,3785,"NOT APPLICABLE"]
[null,null,null,null,null,null,null,null,null,null,null,null,null,null,null,null,null,null,null,null,null,null,null,null,18609,108,"Dover Court","PLAYER NOT AVAILABLE",0,"No","No","No",null,null,3789,"NOT APPLICABLE"]
[null,null,null,null,null,null,null,null,null,null,null,null,null,null,null,null,null,null,null,null,null,null,null,null,18613,61,"Culmore Crusaders","PLAYER NOT AVAILABLE",0,"No","No","No",null,null,3790,"UNMANAGED"]
[null,null,null,null,null,null,null,null,null,null,null,null,null,null,null,null,null,null,null,null,null,null,null,null,18633,0,"Transfer Pool","Danilho DOEKHI",10601339,"No","No","Yes",4,null,3795,"UNMANAGED"]
[null,null,null,null,null,null,null,null,null,null,null,null,null,null,null,null,null,null,null,null,null,null,null,null,18652,91,"Goldhanger","PLAYER NOT AVAILABLE",0,"No","No","No",null,null,3800,"NOT APPLICABLE"]
[null,null,null,null,null,null,null,null,null,null,null,null,null,null,null,null,null,null,null,null,null,null,null,null,18662,79,"Juniper Viables","PLAYER NOT AVAILABLE",0,"No","No","No",null,null,3805,"UNMANAGED"]
[null,null,null,null,null,null,null,null,null,null,null,null,null,null,null,null,null,null,null,null,null,null,null,null,18668,35,"Fraserborough","Lutsharel GEERTRUIDA",26163771,"Yes","Yes","Yes",null,3,3808,"UNMANAGED"]
[null,null,null,null,null,null,null,null,null,null,null,null,null,null,null,null,null,null,null,null,null,null,null,null,18682,73,"Sparta Limarnder","Ryan GRAVENBERCH",19198574,"Yes","Yes","Yes",null,null,3810,"NOT APPLICABLE"]
[null,null,null,null,null,null,null,null,null,null,null,null,null,null,null,null,null,null,null,null,null,null,null,null,18703,24,"Cinsath Argyle","PLAYER NOT AVAILABLE",0,"No","No","No",null,null,3815,"UNMANAGED"]
[null,null,null,null,null,null,null,null,null,null,null,null,null,null,null,null,null,null,null,null,null,null,null,null,18710,123,"San Michael","PLAYER NOT AVAILABLE",0,"No","No","No",null,null,3820,"NOT APPLICABLE"]
[null,null,null,null,null,null,null,null,null,null,null,null,null,null,null,null,null,null,null,null,null,null,null,null,18715,28,"Tauntonian Celtic","PLAYER NOT AVAILABLE",0,"No","No","No",null,null,3821,"Transfer List"]
[null,null,null,null,null,null,null,null,null,null,null,null,null,null,null,null,null,null,null,null,null,null,null,null,18727,42,"Macksfield Rovers","PLAYER NOT AVAILABLE",0,"No","No","No",null,null,3826,"UNMANAGED"]
[null,null,null,null,null,null,null,null,null,null,null,null,null,null,null,null,null,null,null,null,null,null,null,null,18733,68,"Black Diamonds","PLAYER NOT AVAILABLE",0,"No","No","No",null,null,3830,"UNMANAGED"]
[null,null,null,null,null,null,null,null,null,null,null,null,null,null,null,null,null,null,null,null,null,null,null,null,18742,128,"Yelsel Nosnikta","Federico DIMARCO",22778491,"Yes","Yes","Yes",null,10,3835,"NOT APPLICABLE"]
[null,null,null,null,null,null,null,null,null,null,null,null,null,null,null,null,null,null,null,null,null,null,null,null,18745,120,"Sherfield Saints","PLAYER NOT AVAILABLE",0,"No","No","No",null,null,3836,"UNMANAGED"]
[null,null,null,null,null,null,null,null,null,null,null,null,null,null,null,null,null,null,null,null,null,null,null,null,18751,118,"Meadowside","PLAYER NOT AVAILABLE",0,"No","No","No",null,null,3841,"NOT APPLICABLE"]
[null,null,null,null,null,null,null,null,null,null,null,null,null,null,null,null,null,null,null,null,null,null,null,null,18754,110,"Bridgewater","PLAYER NOT AVAILABLE",0,"No","No","No",null,null,3844,"UNMANAGED"]
[null,null,null,null,null,null,null,null,null,null,null,null,null,null,null,null,null,null,null,null,null,null,null,null,18767,24,"Cinsath Argyle","PLAYER NOT AVAILABLE",0,"No","No","No",null,null,3850,"NOT APPLICABLE"]
[null,null,null,null,null,null,null,null,null,null,null,null,null,null,null,null,null,null,null,null,null,null,null,null,18770,998,"Waiting List","PLAYER NOT AVAILABLE",0,"No","No","No",null,null,3851,"UNMANAGED"]
[null,null,null,null,null,null,null,null,null,null,null,null,null,null,null,null,null,null,null,null,null,null,null,null,18796,0,"Transfer Pool","Riccardo CALAFIORI",5895533,"No","No","Yes",4,null,3856,"UNMANAGED"]
[null,null,null,null,null,null,null,null,null,null,null,null,null,null,null,null,null,null,null,null,null,null,null,null,18809,0,"Transfer Pool","Terem MOFFI",18387652,"No","No","Yes",2,null,3861,"NOT APPLICABLE"]
[null,null,null,null,null,null,null,null,null,null,null,null,null,null,null,null,null,null,null,null,null,null,null,null,18819,998,"Waiting List","PLAYER NOT AVAILABLE",0,"No","No","No",null,null,3864,"NOT APPLICABLE"]
[null,null,null,null,null,null,null,null,null,null,null,null,null,null,null,null,null,null,null,null,null,null,null,null,18824,46,"Marquis of Granby","PLAYER NOT AVAILABLE",0,"No","No","No",null,null,3866,"UNMANAGED"]
[null,null,null,null,null,null,null,null,null,null,null,null,null,null,null,null,null,null,null,null,null,null,null,null,18840,103,"Westminster Wanderers","PLAYER NOT AVAILABLE",0,"No","No","No",null,null,3871,"UNMANAGED"]
[null,null,null,null,null,null,null,null,null,null,null,null,null,null,null,null,null,null,null,null,null,null,null,null,18850,117,"Kelvedon Kickers","PLAYER NOT AVAILABLE",0,"No","No","No",null,null,3876,"NOT APPLICABLE"]
[null,null,null,null,null,null,null,null,null,null,null,null,null,null,null,null,null,null,null,null,null,null,null,null,18861,23,"Rushleydale","PLAYER CAN'T BE SOLD",{"$f":"\"-\"","v":"-"},"No","Yes","No",null,null,3881,"NOT APPLICABLE"]
[null,null,null,null,null,null,null,null,null,null,null,null,null,null,null,null,null,null,null,null,null,null,null,null,18870,40,"H&H","PLAYER CAN'T BE SOLD","-","No","Yes","No",null,null,3882,"UNMANAGED"]
[null,null,null,null,null,null,null,null,null,null,null,null,null,null,null,null,null,null,null,null,null,null,null,null,18877,998,"Waiting List","PLAYER NOT AVAILABLE",0,"No","No","No",null,null,3887,"UNMANAGED"]
[null,null,null,null,null,null,null,null,null,null,null,null,null,null,null,null,null,null,null,null,null,null,null,null,18888,998,"Waiting List","PLAYER NOT AVAILABLE",0,"No","No","No",null,null,3891,"UNMANAGED"]
[null,null,null,null,null,null,null,null,null,null,null,null,null,null,null,null,null,null,null,null,null,null,null,null,18901,49,"AFC Ashton","PLAYER NOT AVAILABLE",0,"No","No","No",null,null,3896,"NOT APPLICABLE"]
[null,null,null,null,null,null,null,null,null,null,null,null,null,null,null,null,null,null,null,null,null,null,null,null,18902,998,"Waiting List","PLAYER NOT AVAILABLE",0,"No","No","No",null,null,3897,"NOT APPLICABLE"]
[null,null,null,null,null,null,null,null,null,null,null,null,null,null,null,null,null,null,null,null,null,null,null,null,18909,0,"Transfer Pool","Tony NWAKAEME",1853729,"No","No","Yes",1,null,3902,"NOT APPLICABLE"]
[null,null,null,null,null,null,null,null,null,null,null,null,null,null,null,null,null,null,null,null,null,null,null,null,18918,118,"Meadowside","PLAYER NOT AVAILABLE",0,"No","No","No",null,null,3905,"NOT APPLICABLE"]
[null,null,null,null,null,null,null,null,null,null,null,null,null,null,null,null,null,null,null,null,null,null,null,null,18935,121,"Rettendon","PLAYER NOT AVAILABLE",0,"No","No","No",null,null,3911,"UNMANAGED"]
[null,null,null,null,null,null,null,null,null,null,null,null,null,null,null,null,null,null,null,null,null,null,null,null,18936,89,"Melbourne Park","PLAYER NOT AVAILABLE",0,"No","No","No",null,null,3912,"UNMANAGED"]
[null,null,null,null,null,null,null,null,null,null,null,null,null,null,null,null,null,null,null,null,null,null,null,null,18950,998,"Waiting List","PLAYER NOT AVAILABLE",0,"No","No","No",null,null,3917,"UNMANAGED"]
[null,null,null,null,null,null,null,null,null,null,null,null,null,null,null,null,null,null,null,null,null,null,null,null,18963,118,"Meadowside","PLAYER NOT AVAILABLE",0,"No","No","No",null,null,3922,"UNMANAGED"]
[null,null,null,null,null,null,null,null,null,null,null,null,null,null,null,null,null,null,null,null,null,null,null,null,18976,20,"Nessertoponions","Dusan VLAHOVIC",32931024,"Yes","Yes","Yes",null,null,3926,"UNMANAGED"]
[null,null,null,null,null,null,null,null,null,null,null,null,null,null,null,null,null,null,null,null,null,null,null,null,18981,20,"Nessertoponions","Stanislav LOBOTKA",11002687,"Yes","Yes","Yes",null,null,3927,"NOT APPLICABLE"]
[null,null,null,null,null,null,null,null,null,null,null,null,null,null,null,null,null,null,null,null,null,null,null,null,18998,998,"Waiting List","PLAYER NOT AVAILABLE",0,"No","No","No",null,null,3932,"UNMANAGED"]
[null,null,null,null,null,null,null,null,null,null,null,null,null,null,null,null,null,null,null,null,null,null,null,null,19004,998,"Waiting List","PLAYER NOT AVAILABLE",0,"No","No","No",null,null,3937,"UNMANAGED"]
[null,null,null,null,null,null,null,null,null,null,null,null,null,null,null,null,null,null,null,null,null,null,null,null,19013,998,"Waiting List","PLAYER NOT AVAILABLE",0,"No","No","No",null,null,3942,"NOT APPLICABLE"]
[null,null,null,null,null,null,null,null,null,null,null,null,null,null,null,null,null,null,null,null,null,null,null,null,19015,98,"Richmond Renegades","PLAYER NOT AVAILABLE",0,"No","No","No",null,null,3943,"UNMANAGED"]
[null,null,null,null,null,null,null,null,null,null,null,null,null,null,null,null,null,null,null,null,null,null,null,null,19023,998,"Waiting List","PLAYER NOT AVAILABLE",0,"No","No","No",null,null,3948,"UNMANAGED"]
[null,null,null,null,null,null,null,null,null,null,null,null,null,null,null,null,null,null,null,null,null,null,null,null,19029,84,"Oaklea Park","PLAYER NOT AVAILABLE",0,"No","No","No",null,null,3952,"UNMANAGED"]
[null,null,null,null,null,null,null,null,null,null,null,null,null,null,null,null,null,null,null,null,null,null,null,null,19042,39,"Albenotti","Aritz ELUSTONDO",11356944,"Yes","Yes","Yes",null,null,3957,"Paul Newman"]
[null,null,null,null,null,null,null,null,null,null,null,null,null,null,null,null,null,null,null,null,null,null,null,null,19044,117,"Kelvedon Kickers","PLAYER NOT AVAILABLE",0,"No","No","No",null,null,3958,"Robin Slade"]
[null,null,null,null,null,null,null,null,null,null,null,null,null,null,null,null,null,null,null,null,null,null,null,null,19051,998,"Waiting List","PLAYER NOT AVAILABLE",0,"No","No","No",null,null,3963,"UNMANAGED"]
[null,null,null,null,null,null,null,null,null,null,null,null,null,null,null,null,null,null,null,null,null,null,null,null,19059,998,"Waiting List","PLAYER NOT AVAILABLE",0,"No","No","No",null,null,3966,"UNMANAGED"]
[null,null,null,null,null,null,null,null,null,null,null,null,null,null,null,null,null,null,null,null,null,null,null,null,19068,120,"Sherfield Saints","PLAYER NOT AVAILABLE",0,"No","No","No",null,null,3972,"UNMANAGED"]
[null,null,null,null,null,null,null,null,null,null,null,null,null,null,null,null,null,null,null,null,null,null,null,null,19071,998,"Waiting List","PLAYER NOT AVAILABLE",0,"No","No","No",null,null,3973,"UNMANAGED"]
[null,null,null,null,null,null,null,null,null,null,null,null,null,null,null,null,null,null,null,null,null,null,null,null,19083,998,"Waiting List","PLAYER NOT AVAILABLE",0,"No","No","No",null,null,3978,"NOT APPLICABLE"]
[null,null,null,null,null,null,null,null,null,null,null,null,null,null,null,null,null,null,null,null,null,null,null,null,19094,33,"Jarikton","PLAYER CAN'T BE SOLD",{"$f":"\"-\"","v":"-"},"No","Yes","No",null,null,3983,"UNMANAGED"]
[null,null,null,null,null,null,null,null,null,null,null,null,null,null,null,null,null,null,null,null,null,null,null,null,19101,5,"Hurricane Harriers","Bryan GIL",7907521,"Yes","Yes","Yes",null,null,3987,"UNMANAGED"]
[null,null,null,null,null,null,null,null,null,null,null,null,null,null,null,null,null,null,null,null,null,null,null,null,19104,0,"Transfer Pool","Mohammed SALISU",9940319,"No","No","Yes",4,null,3988,"UNMANAGED"]
[null,null,null,null,null,null,null,null,null,null,null,null,null,null,null,null,null,null,null,null,null,null,null,null,19113,7,"AEK Grogan","PLAYER CAN'T BE SOLD",{"$f":"\"-\"","v":"-"},"No","Yes","No",null,null,3993,"UNMANAGED"]
[null,null,null,null,null,null,null,null,null,null,null,null,null,null,null,null,null,null,null,null,null,null,null,null,19126,998,"Waiting List","PLAYER NOT AVAILABLE",0,"No","No","No",null,null,3998,"NOT APPLICABLE"]
[null,null,null,null,null,null,null,null,null,null,null,null,null,null,null,null,null,null,null,null,null,null,null,null,19136,108,"Dover Court","PLAYER NOT AVAILABLE",0,"No","No","No",null,null,4003,"UNMANAGED"]
[null,null,null,null,null,null,null,null,null,null,null,null,null,null,null,null,null,null,null,null,null,null,null,null,19139,998,"Waiting List","PLAYER NOT AVAILABLE",0,"No","No","No",null,null,4005,"NOT APPLICABLE"]
[null,null,null,null,null,null,null,null,null,null,null,null,null,null,null,null,null,null,null,null,null,null,null,null,19146,998,"Waiting List","PLAYER NOT AVAILABLE",0,"No","No","No",null,null,4008,"Norman House"]
[null,null,null,null,null,null,null,null,null,null,null,null,null,null,null,null,null,null,null,null,null,null,null,null,19160,998,"Waiting List","PLAYER NOT AVAILABLE",0,"No","No","No",null,null,4013,"UNMANAGED"]
[null,null,null,null,null,null,null,null,null,null,null,null,null,null,null,null,null,null,null,null,null,null,null,null,19171,114,"Great Baddow Ridge","PLAYER NOT AVAILABLE",0,"No","No","No",null,null,4018,"NOT APPLICABLE"]
[null,null,null,null,null,null,null,null,null,null,null,null,null,null,null,null,null,null,null,null,null,null,null,null,19179,102,"Dukes Park","PLAYER NOT AVAILABLE",0,"No","No","No",null,null,4019,"Don Davern"]
[null,null,null,null,null,null,null,null,null,null,null,null,null,null,null,null,null,null,null,null,null,null,null,null,19194,0,"Transfer Pool","Mert CETIN",7047072,"No","No","Yes",4,null,4024,"NOT APPLICABLE"]
[null,null,null,null,null,null,null,null,null,null,null,null,null,null,null,null,null,null,null,null,null,null,null,null,19204,101,"St. Lewis","PLAYER NOT AVAILABLE",0,"No","No","No",null,null,4027,"UNMANAGED"]
[null,null,null,null,null,null,null,null,null,null,null,null,null,null,null,null,null,null,null,null,null,null,null,null,19279,0,"Transfer Pool","Giovanni REYNA",16184050,"No","No","Yes",1,null,4033,"NOT APPLICABLE"]
[null,null,null,null,null,null,null,null,null,null,null,null,null,null,null,null,null,null,null,null,null,null,null,null,19281,998,"Waiting List","PLAYER NOT AVAILABLE",0,"No","No","No",null,null,4034,"UNMANAGED"]
[null,null,null,null,null,null,null,null,null,null,null,null,null,null,null,null,null,null,null,null,null,null,null,null,19289,8,"Intersol","PLAYER NOT AVAILABLE",0,"No","No","No",null,null,4039,"UNMANAGED"]
[null,null,null,null,null,null,null,null,null,null,null,null,null,null,null,null,null,null,null,null,null,null,null,null,19297,111,"Cavendish","PLAYER NOT AVAILABLE",0,"No","No","No",null,null,4044,"UNMANAGED"]
[null,null,null,null,null,null,null,null,null,null,null,null,null,null,null,null,null,null,null,null,null,null,null,null,19309,998,"Waiting List","PLAYER NOT AVAILABLE",0,"No","No","No",null,null,4048,"UNMANAGED"]
[null,null,null,null,null,null,null,null,null,null,null,null,null,null,null,null,null,null,null,null,null,null,null,null,19311,998,"Waiting List","PLAYER NOT AVAILABLE",0,"No","No","No",null,null,4049,"UNMANAGED"]
[null,null,null,null,null,null,null,null,null,null,null,null,null,null,null,null,null,null,null,null,null,null,null,null,19319,998,"Waiting List","PLAYER NOT AVAILABLE",0,"No","No","No",null,null,4054,"NOT APPLICABLE"]
[null,null,null,null,null,null,null,null,null,null,null,null,null,null,null,null,null,null,null,null,null,null,null,null,19328,998,"Waiting List","PLAYER NOT AVAILABLE",0,"No","No","No",null,null,4059,"UNMANAGED"]
[null,null,null,null,null,null,null,null,null,null,null,null,null,null,null,null,null,null,null,null,null,null,null,null,19338,103,"Westminster Wanderers","PLAYER NOT AVAILABLE",0,"No","No","No",null,null,4064,"UNMANAGED"]
[null,null,null,null,null,null,null,null,null,null,null,null,null,null,null,null,null,null,null,null,null,null,null,null,19343,998,"Waiting List","PLAYER NOT AVAILABLE",0,"No","No","No",null,null,4066,"UNMANAGED"]
[null,null,null,null,null,null,null,null,null,null,null,null,null,null,null,null,null,null,null,null,null,null,null,null,19353,998,"Waiting List","PLAYER NOT AVAILABLE",0,"No","No","No",null,null,4069,"UNMANAGED"]
[null,null,null,null,null,null,null,null,null,null,null,null,null,null,null,null,null,null,null,null,null,null,null,null,19361,116,"FC Invincible","PLAYER NOT AVAILABLE",0,"No","No","No",null,null,4074,"UNMANAGED"]
[null,null,null,null,null,null,null,null,null,null,null,null,null,null,null,null,null,null,null,null,null,null,null,null,19373,91,"Goldhanger","PLAYER NOT AVAILABLE",0,"No","No","No",null,null,4079,"Transfer List"]
[null,null,null,null,null,null,null,null,null,null,null,null,null,null,null,null,null,null,null,null,null,null,null,null,19374,67,"Parmenter","PLAYER NOT AVAILABLE",0,"No","No","No",null,null,4080,"UNMANAGED"]
[null,null,null,null,null,null,null,null,null,null,null,null,null,null,null,null,null,null,null,null,null,null,null,null,19386,0,"Transfer Pool","Ismail JAKOBS",4618622,"No","No","Yes",4,null,4084,"UNMANAGED"]
[null,null,null,null,null,null,null,null,null,null,null,null,null,null,null,null,null,null,null,null,null,null,null,null,19407,28,"Tauntonian Celtic","PLAYER NOT AVAILABLE",0,"No","No","No",null,null,4089,"UNMANAGED"]
[null,null,null,null,null,null,null,null,null,null,null,null,null,null,null,null,null,null,null,null,null,null,null,null,19427,79,"Juniper Viables","PLAYER NOT AVAILABLE",0,"No","No","No",null,null,4094,"UNMANAGED"]
[null,null,null,null,null,null,null,null,null,null,null,null,null,null,null,null,null,null,null,null,null,null,null,null,19428,119,"Jessingborough Jets","PLAYER NOT AVAILABLE",0,"No","No","No",null,null,4095,"Michael Atkinson-House"]
[null,null,null,null,null,null,null,null,null,null,null,null,null,null,null,null,null,null,null,null,null,null,null,null,19478,123,"San Michael","PLAYER NOT AVAILABLE",0,"No","No","No",null,null,4100,"UNMANAGED"]
[null,null,null,null,null,null,null,null,null,null,null,null,null,null,null,null,null,null,null,null,null,null,null,null,19496,66,"Lemeno","PLAYER NOT AVAILABLE",0,"No","No","No",null,null,4105,"Transfer List"]
[null,null,null,null,null,null,null,null,null,null,null,null,null,null,null,null,null,null,null,null,null,null,null,null,19511,0,"Transfer Pool","Luis MAXIMIANO",3992607,"No","No","Yes",2,null,4109,"UNMANAGED"]
[null,null,null,null,null,null,null,null,null,null,null,null,null,null,null,null,null,null,null,null,null,null,null,null,19512,23,"Rushleydale","PLAYER CAN'T BE SOLD",{"$f":"\"-\"","v":"-"},"No","Yes","No",null,null,4110,"UNMANAGED"]
[null,null,null,null,null,null,null,null,null,null,null,null,null,null,null,null,null,null,null,null,null,null,null,null,19531,18,"Fairoak Foresters","Goncalo INACIO",23198802,"Yes","Yes","Yes",null,9,4115,"UNMANAGED"]
[null,null,null,null,null,null,null,null,null,null,null,null,null,null,null,null,null,null,null,null,null,null,null,null,19557,998,"Waiting List","PLAYER NOT AVAILABLE",0,"No","No","No",null,null,4120,"UNMANAGED"]
[null,null,null,null,null,null,null,null,null,null,null,null,null,null,null,null,null,null,null,null,null,null,null,null,19601,89,"Melbourne Park","PLAYER NOT AVAILABLE",0,"No","No","No",null,null,4125,"UNMANAGED"]
[null,null,null,null,null,null,null,null,null,null,null,null,null,null,null,null,null,null,null,null,null,null,null,null,19618,43,"IOD","PLAYER NOT AVAILABLE",0,"No","No","No",null,null,4127,"NOT APPLICABLE"]
[null,null,null,null,null,null,null,null,null,null,null,null,null,null,null,null,null,null,null,null,null,null,null,null,19633,12,"Inter Normania","PLAYER CAN'T BE SOLD",{"$f":"\"-\"","v":"-"},"No","Yes","No",null,null,4130,"UNMANAGED"]
[null,null,null,null,null,null,null,null,null,null,null,null,null,null,null,null,null,null,null,null,null,null,null,null,19639,998,"Waiting List","PLAYER NOT AVAILABLE",0,"No","No","No",null,null,4135,"Norman House"]
[null,null,null,null,null,null,null,null,null,null,null,null,null,null,null,null,null,null,null,null,null,null,null,null,19645,0,"Transfer Pool","Hugo SOUZA",2528978,"No","No","Yes",2,null,4140,"UNMANAGED"]
[null,null,null,null,null,null,null,null,null,null,null,null,null,null,null,null,null,null,null,null,null,null,null,null,19646,998,"Waiting List","PLAYER NOT AVAILABLE",0,"No","No","No",null,null,4141,"UNMANAGED"]
[null,null,null,null,null,null,null,null,null,null,null,null,null,null,null,null,null,null,null,null,null,null,null,null,19650,998,"Waiting List","PLAYER NOT AVAILABLE",0,"No","No","No",null,null,4145,"Don Davern"]
[null,null,null,null,null,null,null,null,null,null,null,null,null,null,null,null,null,null,null,null,null,null,null,null,19656,0,"Transfer Pool","Yanick BRECHER",3089772,"No","No","Yes",1,null,4150,"NOT APPLICABLE"]
[null,null,null,null,null,null,null,null,null,null,null,null,null,null,null,null,null,null,null,null,null,null,null,null,19661,127,"Woodham Mortimer","PLAYER NOT AVAILABLE",0,"No","No","No",null,null,4155,"NOT APPLICABLE"]
[null,null,null,null,null,null,null,null,null,null,null,null,null,null,null,null,null,null,null,null,null,null,null,null,19662,998,"Waiting List","PLAYER NOT AVAILABLE",0,"No","No","No",null,null,4156,"UNMANAGED"]
[null,null,null,null,null,null,null,null,null,null,null,null,null,null,null,null,null,null,null,null,null,null,null,null,19667,998,"Waiting List","PLAYER NOT AVAILABLE",0,"No","No","No",null,null,4161,"UNMANAGED"]
[null,null,null,null,null,null,null,null,null,null,null,null,null,null,null,null,null,null,null,null,null,null,null,null,19675,97,"Johnsonville","PLAYER NOT AVAILABLE",0,"No","No","No",null,null,4166,"NOT APPLICABLE"]
[null,null,null,null,null,null,null,null,null,null,null,null,null,null,null,null,null,null,null,null,null,null,null,null,19681,99,"Hamlet Foxes","PLAYER NOT AVAILABLE",0,"No","No","No",null,null,4170,"NOT APPLICABLE"]
[null,null,null,null,null,null,null,null,null,null,null,null,null,null,null,null,null,null,null,null,null,null,null,null,19682,998,"Waiting List","PLAYER NOT AVAILABLE",0,"No","No","No",null,null,4171,"NOT APPLICABLE"]
[null,null,null,null,null,null,null,null,null,null,null,null,null,null,null,null,null,null,null,null,null,null,null,null,19689,998,"Waiting List","PLAYER NOT AVAILABLE",0,"No","No","No",null,null,4176,"UNMANAGED"]
[null,null,null,null,null,null,null,null,null,null,null,null,null,null,null,null,null,null,null,null,null,null,null,null,19712,998,"Waiting List","PLAYER NOT AVAILABLE",0,"No","No","No",null,null,4181,"UNMANAGED"]
[null,null,null,null,null,null,null,null,null,null,null,null,null,null,null,null,null,null,null,null,null,null,null,null,19757,998,"Waiting List","PLAYER NOT AVAILABLE",0,"No","No","No",null,null,4186,"NOT APPLICABLE"]
[null,null,null,null,null,null,null,null,null,null,null,null,null,null,null,null,null,null,null,null,null,null,null,null,19761,105,"Heythrop Cavaliers","PLAYER NOT AVAILABLE",0,"No","No","No",null,null,4188,"NOT APPLICABLE"]
[null,null,null,null,null,null,null,null,null,null,null,null,null,null,null,null,null,null,null,null,null,null,null,null,19764,68,"Black Diamonds","PLAYER NOT AVAILABLE",0,"No","No","No",null,null,4191,"NOT APPLICABLE"]
[null,null,null,null,null,null,null,null,null,null,null,null,null,null,null,null,null,null,null,null,null,null,null,null,19775,998,"Waiting List","PLAYER NOT AVAILABLE",0,"No","No","No",null,null,4196,"NOT APPLICABLE"]
[null,null,null,null,null,null,null,null,null,null,null,null,null,null,null,null,null,null,null,null,null,null,null,null,19786,53,"Essex Ruminants","PLAYER NOT AVAILABLE",0,"No","No","No",null,null,4201,"UNMANAGED"]
[null,null,null,null,null,null,null,null,null,null,null,null,null,null,null,null,null,null,null,null,null,null,null,null,19789,998,"Waiting List","PLAYER NOT AVAILABLE",0,"No","No","No",null,null,4202,"NOT APPLICABLE"]
[null,null,null,null,null,null,null,null,null,null,null,null,null,null,null,null,null,null,null,null,null,null,null,null,19797,77,"Passfield","PLAYER NOT AVAILABLE",0,"No","No","No",null,null,4206,"NOT APPLICABLE"]
[null,null,null,null,null,null,null,null,null,null,null,null,null,null,null,null,null,null,null,null,null,null,null,null,19810,77,"Passfield","PLAYER NOT AVAILABLE",0,"No","No","No",null,null,4211,"NOT APPLICABLE"]
[null,null,null,null,null,null,null,null,null,null,null,null,null,null,null,null,null,null,null,null,null,null,null,null,19826,119,"Jessingborough Jets","PLAYER NOT AVAILABLE",0,"No","No","No",null,null,4216,"NOT APPLICABLE"]
[null,null,null,null,null,null,null,null,null,null,null,null,null,null,null,null,null,null,null,null,null,null,null,null,19828,50,"E&C","PLAYER NOT AVAILABLE",0,"No","No","No",null,null,4217,"UNMANAGED"]
[null,null,null,null,null,null,null,null,null,null,null,null,null,null,null,null,null,null,null,null,null,null,null,null,19838,28,"Tauntonian Celtic","PLAYER NOT AVAILABLE",0,"No","No","No",null,null,4222,"UNMANAGED"]
[null,null,null,null,null,null,null,null,null,null,null,null,null,null,null,null,null,null,null,null,null,null,null,null,19876,74,"Scarlet Rovers","PLAYER NOT AVAILABLE",0,"No","No","No",null,null,4227,"UNMANAGED"]
[null,null,null,null,null,null,null,null,null,null,null,null,null,null,null,null,null,null,null,null,null,null,null,null,19894,93,"Kingston Knights","PLAYER NOT AVAILABLE",0,"No","No","No",null,null,4231,"UNMANAGED"]
[null,null,null,null,null,null,null,null,null,null,null,null,null,null,null,null,null,null,null,null,null,null,null,null,19895,79,"Juniper Viables","PLAYER NOT AVAILABLE",0,"No","No","No",null,null,4232,"NOT APPLICABLE"]
[null,null,null,null,null,null,null,null,null,null,null,null,null,null,null,null,null,null,null,null,null,null,null,null,19946,998,"Waiting List","PLAYER NOT AVAILABLE",0,"No","No","No",null,null,4237,"NOT APPLICABLE"]
[null,null,null,null,null,null,null,null,null,null,null,null,null,null,null,null,null,null,null,null,null,null,null,null,19952,57,"Mellingborough","PLAYER NOT AVAILABLE",0,"No","No","No",null,null,4242,"NOT APPLICABLE"]
[null,null,null,null,null,null,null,null,null,null,null,null,null,null,null,null,null,null,null,null,null,null,null,null,19960,106,"Colebank","PLAYER NOT AVAILABLE",0,"No","No","No",null,null,4245,"NOT APPLICABLE"]
[null,null,null,null,null,null,null,null,null,null,null,null,null,null,null,null,null,null,null,null,null,null,null,null,19963,78,"DBR","PLAYER NOT AVAILABLE",0,"No","No","No",null,null,4247,"UNMANAGED"]
[null,null,null,null,null,null,null,null,null,null,null,null,null,null,null,null,null,null,null,null,null,null,null,null,19988,86,"Ravensbourne","PLAYER NOT AVAILABLE",0,"No","No","No",null,null,4252,"NOT APPLICABLE"]
[null,null,null,null,null,null,null,null,null,null,null,null,null,null,null,null,null,null,null,null,null,null,null,null,19998,106,"Colebank","PLAYER NOT AVAILABLE",0,"No","No","No",null,null,4257,"UNMANAGED"]
[null,null,null,null,null,null,null,null,null,null,null,null,null,null,null,null,null,null,null,null,null,null,null,null,20017,101,"St. Lewis","PLAYER NOT AVAILABLE",0,"No","No","No",null,null,4262,"NOT APPLICABLE"]
[null,null,null,null,null,null,null,null,null,null,null,null,null,null,null,null,null,null,null,null,null,null,null,null,20019,112,"Chingford Argyle","PLAYER NOT AVAILABLE",0,"No","No","No",null,null,4263,"UNMANAGED"]
[null,null,null,null,null,null,null,null,null,null,null,null,null,null,null,null,null,null,null,null,null,null,null,null,20035,63,"Davemoor","PLAYER NOT AVAILABLE",0,"No","No","No",null,null,4267,"UNMANAGED"]
[null,null,null,null,null,null,null,null,null,null,null,null,null,null,null,null,null,null,null,null,null,null,null,null,20043,102,"Dukes Park","PLAYER NOT AVAILABLE",0,"No","No","No",null,null,4272,"UNMANAGED"]
[null,null,null,null,null,null,null,null,null,null,null,null,null,null,null,null,null,null,null,null,null,null,null,null,20061,77,"Passfield","PLAYER NOT AVAILABLE",0,"No","No","No",null,null,4277,"NOT APPLICABLE"]
[null,null,null,null,null,null,null,null,null,null,null,null,null,null,null,null,null,null,null,null,null,null,null,null,20063,67,"Parmenter","PLAYER NOT AVAILABLE",0,"No","No","No",null,null,4278,"UNMANAGED"]
[null,null,null,null,null,null,null,null,null,null,null,null,null,null,null,null,null,null,null,null,null,null,null,null,20082,90,"Saddington","PLAYER NOT AVAILABLE",0,"No","No","No",null,null,4283,"Robin Slade"]
[null,null,null,null,null,null,null,null,null,null,null,null,null,null,null,null,null,null,null,null,null,null,null,null,20130,15,"North Notley","Noa LANG",14810779,"Yes","Yes","Yes",null,30,4288,"UNMANAGED"]
[null,null,null,null,null,null,null,null,null,null,null,null,null,null,null,null,null,null,null,null,null,null,null,null,20135,0,"Transfer Pool","Facundo PELLISTRI",3420031,"No","No","Yes",1,null,4292,"NOT APPLICABLE"]
[null,null,null,null,null,null,null,null,null,null,null,null,null,null,null,null,null,null,null,null,null,null,null,null,20136,12,"Inter Normania","PLAYER CAN'T BE SOLD",{"$f":"\"-\"","v":"-"},"No","Yes","No",null,null,4293,"UNMANAGED"]
[null,null,null,null,null,null,null,null,null,null,null,null,null,null,null,null,null,null,null,null,null,null,null,null,20143,10,"Springfield Lyons","Anthony GORDON",12783362,"Yes","Yes","Yes",null,null,4298,"UNMANAGED"]
[null,null,null,null,null,null,null,null,null,null,null,null,null,null,null,null,null,null,null,null,null,null,null,null,20156,52,"Applegate Manor","PLAYER CAN'T BE SOLD",{"$f":"\"-\"","v":"-"},"No","Yes","No",null,null,4303,"UNMANAGED"]
[null,null,null,null,null,null,null,null,null,null,null,null,null,null,null,null,null,null,null,null,null,null,null,null,20162,0,"Transfer Pool","Alfie DOUGHTY",6325749,"No","No","Yes",4,null,4306,"UNMANAGED"]
[null,null,null,null,null,null,null,null,null,null,null,null,null,null,null,null,null,null,null,null,null,null,null,null,20164,78,"DBR","PLAYER NOT AVAILABLE",0,"No","No","No",null,null,4308,"UNMANAGED"]
[null,null,null,null,null,null,null,null,null,null,null,null,null,null,null,null,null,null,null,null,null,null,null,null,20179,63,"Davemoor","PLAYER NOT AVAILABLE",0,"No","No","No",null,null,4313,"Transfer List"]
[null,null,null,null,null,null,null,null,null,null,null,null,null,null,null,null,null,null,null,null,null,null,null,null,20196,62,"Highfield","PLAYER NOT AVAILABLE",0,"No","No","No",null,null,4318,"NOT APPLICABLE"]
[null,null,null,null,null,null,null,null,null,null,null,null,null,null,null,null,null,null,null,null,null,null,null,null,20216,92,"Pantherville","PLAYER NOT AVAILABLE",0,"No","No","No",null,null,4323,"UNMANAGED"]
[null,null,null,null,null,null,null,null,null,null,null,null,null,null,null,null,null,null,null,null,null,null,null,null,20225,57,"Mellingborough","PLAYER NOT AVAILABLE",0,"No","No","No",null,null,4324,"UNMANAGED"]
[null,null,null,null,null,null,null,null,null,null,null,null,null,null,null,null,null,null,null,null,null,null,null,null,20234,104,"Beaumont Belvedere","PLAYER NOT AVAILABLE",0,"No","No","No",null,null,4328,"UNMANAGED"]
[null,null,null,null,null,null,null,null,null,null,null,null,null,null,null,null,null,null,null,null,null,null,null,null,20247,75,"Romano","PLAYER NOT AVAILABLE",0,"No","No","No",null,null,4333,"UNMANAGED"]
[null,null,null,null,null,null,null,null,null,null,null,null,null,null,null,null,null,null,null,null,null,null,null,null,20264,88,"St. Mary","PLAYER NOT AVAILABLE",0,"No","No","No",null,null,4338,"UNMANAGED"]
[null,null,null,null,null,null,null,null,null,null,null,null,null,null,null,null,null,null,null,null,null,null,null,null,20272,113,"Coggeshall Colts","PLAYER NOT AVAILABLE",0,"No","No","No",null,null,4339,"NOT APPLICABLE"]
[null,null,null,null,null,null,null,null,null,null,null,null,null,null,null,null,null,null,null,null,null,null,null,null,20291,112,"Chingford Argyle","PLAYER NOT AVAILABLE",0,"No","No","No",null,null,4344,"Transfer List"]
[null,null,null,null,null,null,null,null,null,null,null,null,null,null,null,null,null,null,null,null,null,null,null,null,20312,122,"Sherringham","PLAYER NOT AVAILABLE",0,"No","No","No",null,null,4349,"UNMANAGED"]
[null,null,null,null,null,null,null,null,null,null,null,null,null,null,null,null,null,null,null,null,null,null,null,null,20351,49,"AFC Ashton","PLAYER NOT AVAILABLE",0,"No","No","No",null,null,4353,"UNMANAGED"]
[null,null,null,null,null,null,null,null,null,null,null,null,null,null,null,null,null,null,null,null,null,null,null,null,20355,68,"Black Diamonds","PLAYER NOT AVAILABLE",0,"No","No","No",null,null,4354,"UNMANAGED"]
[null,null,null,null,null,null,null,null,null,null,null,null,null,null,null,null,null,null,null,null,null,null,null,null,20401,42,"Macksfield Rovers","PLAYER NOT AVAILABLE",0,"No","No","No",null,null,4359,"UNMANAGED"]
[null,null,null,null,null,null,null,null,null,null,null,null,null,null,null,null,null,null,null,null,null,null,null,null,20481,5,"Hurricane Harriers","Billy GILMOUR",6345581,"Yes","Yes","Yes",null,null,4364,"NOT APPLICABLE"]
[null,null,null,null,null,null,null,null,null,null,null,null,null,null,null,null,null,null,null,null,null,null,null,null,20487,104,"Beaumont Belvedere","PLAYER NOT AVAILABLE",0,"No","No","No",null,null,4367,"NOT APPLICABLE"]
[null,null,null,null,null,null,null,null,null,null,null,null,null,null,null,null,null,null,null,null,null,null,null,null,20490,38,"Broxton Bulls","PLAYER CAN'T BE SOLD",{"$f":"\"-\"","v":"-"},"No","Yes","No",null,null,4369,"UNMANAGED"]
[null,null,null,null,null,null,null,null,null,null,null,null,null,null,null,null,null,null,null,null,null,null,null,null,20499,106,"Colebank","PLAYER NOT AVAILABLE",0,"No","No","No",null,null,4374,"NOT APPLICABLE"]
[null,null,null,null,null,null,null,null,null,null,null,null,null,null,null,null,null,null,null,null,null,null,null,null,20511,70,"Northridge Cormorants","Antonio BLANCO",2688691,"Yes","Yes","Yes",null,null,4379,"UNMANAGED"]
[null,null,null,null,null,null,null,null,null,null,null,null,null,null,null,null,null,null,null,null,null,null,null,null,20527,117,"Kelvedon Kickers","PLAYER NOT AVAILABLE",0,"No","No","No",null,null,4384,"UNMANAGED"]
[null,null,null,null,null,null,null,null,null,null,null,null,null,null,null,null,null,null,null,null,null,null,null,null,20528,43,"IOD","PLAYER NOT AVAILABLE",0,"No","No","No",null,null,4385,"Robin Slade"]
[null,null,null,null,null,null,null,null,null,null,null,null,null,null,null,null,null,null,null,null,null,null,null,null,20538,77,"Passfield","PLAYER NOT AVAILABLE",0,"No","No","No",null,null,4389,"NOT APPLICABLE"]
[null,null,null,null,null,null,null,null,null,null,null,null,null,null,null,null,null,null,null,null,null,null,null,null,20556,55,"Pennymede Park","PLAYER NOT AVAILABLE",0,"No","No","No",null,null,4394,"NOT APPLICABLE"]
[null,null,null,null,null,null,null,null,null,null,null,null,null,null,null,null,null,null,null,null,null,null,null,null,20587,95,"Roxwell United","PLAYER NOT AVAILABLE",0,"No","No","No",null,null,4399,"UNMANAGED"]
[null,null,null,null,null,null,null,null,null,null,null,null,null,null,null,null,null,null,null,null,null,null,null,null,20597,121,"Rettendon","PLAYER NOT AVAILABLE",0,"No","No","No",null,null,4400,"UNMANAGED"]
[null,null,null,null,null,null,null,null,null,null,null,null,null,null,null,null,null,null,null,null,null,null,null,null,20626,75,"Romano","PLAYER NOT AVAILABLE",0,"No","No","No",null,null,4405,"UNMANAGED"]
[null,null,null,null,null,null,null,null,null,null,null,null,null,null,null,null,null,null,null,null,null,null,null,null,20668,998,"Waiting List","PLAYER NOT AVAILABLE",0,"No","No","No",null,null,4410,"UNMANAGED"]
[null,null,null,null,null,null,null,null,null,null,null,null,null,null,null,null,null,null,null,null,null,null,null,null,20677,998,"Waiting List","PLAYER NOT AVAILABLE",0,"No","No","No",null,null,4414,"UNMANAGED"]
[null,null,null,null,null,null,null,null,null,null,null,null,null,null,null,null,null,null,null,null,null,null,null,null,20678,998,"Waiting List","PLAYER NOT AVAILABLE",0,"No","No","No",null,null,4415,"NOT APPLICABLE"]
[null,null,null,null,null,null,null,null,null,null,null,null,null,null,null,null,null,null,null,null,null,null,null,null,20685,998,"Waiting List","PLAYER NOT AVAILABLE",0,"No","No","No",null,null,4420,"UNMANAGED"]
[null,null,null,null,null,null,null,null,null,null,null,null,null,null,null,null,null,null,null,null,null,null,null,null,20696,67,"Parmenter","PLAYER NOT AVAILABLE",0,"No","No","No",null,null,4425,"UNMANAGED"]
[null,null,null,null,null,null,null,null,null,null,null,null,null,null,null,null,null,null,null,null,null,null,null,null,20705,121,"Rettendon","PLAYER NOT AVAILABLE",0,"No","No","No",null,null,4428,"UNMANAGED"]
[null,null,null,null,null,null,null,null,null,null,null,null,null,null,null,null,null,null,null,null,null,null,null,null,20707,998,"Waiting List","PLAYER NOT AVAILABLE",0,"No","No","No",null,null,4430,"UNMANAGED"]
[null,null,null,null,null,null,null,null,null,null,null,null,null,null,null,null,null,null,null,null,null,null,null,null,20749,84,"Oaklea Park","PLAYER NOT AVAILABLE",0,"No","No","No",null,null,4435,"NOT APPLICABLE"]
[null,null,null,null,null,null,null,null,null,null,null,null,null,null,null,null,null,null,null,null,null,null,null,null,20783,51,"Wyckham Vosper","PLAYER NOT AVAILABLE",0,"No","No","No",null,null,4440,"UNMANAGED"]
[null,null,null,null,null,null,null,null,null,null,null,null,null,null,null,null,null,null,null,null,null,null,null,null,20793,0,"Transfer Pool","Keinan DAVIS",7237452,"No","No","Yes",4,null,4445,"UNMANAGED"]
[null,null,null,null,null,null,null,null,null,null,null,null,null,null,null,null,null,null,null,null,null,null,null,null,20794,8,"Intersol","PLAYER NOT AVAILABLE",0,"No","No","No",null,null,4446,"UNMANAGED"]
[null,null,null,null,null,null,null,null,null,null,null,null,null,null,null,null,null,null,null,null,null,null,null,null,20813,121,"Rettendon","PLAYER NOT AVAILABLE",0,"No","No","No",null,null,4450,"UNMANAGED"]
[null,null,null,null,null,null,null,null,null,null,null,null,null,null,null,null,null,null,null,null,null,null,null,null,20827,998,"Waiting List","PLAYER NOT AVAILABLE",0,"No","No","No",null,null,4455,"UNMANAGED"]
[null,null,null,null,null,null,null,null,null,null,null,null,null,null,null,null,null,null,null,null,null,null,null,null,20851,57,"Mellingborough","PLAYER NOT AVAILABLE",0,"No","No","No",null,null,4460,"UNMANAGED"]
[null,null,null,null,null,null,null,null,null,null,null,null,null,null,null,null,null,null,null,null,null,null,null,null,20853,118,"Meadowside","PLAYER NOT AVAILABLE",0,"No","No","No",null,null,4461,"UNMANAGED"]
[null,null,null,null,null,null,null,null,null,null,null,null,null,null,null,null,null,null,null,null,null,null,null,null,20878,998,"Waiting List","PLAYER NOT AVAILABLE",0,"No","No","No",null,null,4467,"UNMANAGED"]
[null,null,null,null,null,null,null,null,null,null,null,null,null,null,null,null,null,null,null,null,null,null,null,null,20881,1,"Bandal Borough","Matt TURNER",6496208,"Yes","Yes","Yes",null,null,4470,"UNMANAGED"]
[null,null,null,null,null,null,null,null,null,null,null,null,null,null,null,null,null,null,null,null,null,null,null,null,20886,60,"Chelmersdale","PLAYER NOT AVAILABLE",0,"No","No","No",null,null,4475,"UNMANAGED"]
[null,null,null,null,null,null,null,null,null,null,null,null,null,null,null,null,null,null,null,null,null,null,null,null,20888,998,"Waiting List","PLAYER NOT AVAILABLE",0,"No","No","No",null,null,4476,"NOT APPLICABLE"]
[null,null,null,null,null,null,null,null,null,null,null,null,null,null,null,null,null,null,null,null,null,null,null,null,20899,49,"AFC Ashton","PLAYER NOT AVAILABLE",0,"No","No","No",null,null,4481,"UNMANAGED"]
[null,null,null,null,null,null,null,null,null,null,null,null,null,null,null,null,null,null,null,null,null,null,null,null,20909,998,"Waiting List","PLAYER NOT AVAILABLE",0,"No","No","No",null,null,4486,"UNMANAGED"]
[null,null,null,null,null,null,null,null,null,null,null,null,null,null,null,null,null,null,null,null,null,null,null,null,20916,50,"E&C","PLAYER NOT AVAILABLE",0,"No","No","No",null,null,4489,"NOT APPLICABLE"]
[null,null,null,null,null,null,null,null,null,null,null,null,null,null,null,null,null,null,null,null,null,null,null,null,20919,998,"Waiting List","PLAYER NOT AVAILABLE",0,"No","No","No",null,null,4491,"UNMANAGED"]
[null,null,null,null,null,null,null,null,null,null,null,null,null,null,null,null,null,null,null,null,null,null,null,null,20928,79,"Juniper Viables","PLAYER NOT AVAILABLE",0,"No","No","No",null,null,4496,"Transfer List"]
[null,null,null,null,null,null,null,null,null,null,null,null,null,null,null,null,null,null,null,null,null,null,null,null,20942,55,"Pennymede Park","PLAYER NOT AVAILABLE",0,"No","No","No",null,null,4501,"UNMANAGED"]
[null,null,null,null,null,null,null,null,null,null,null,null,null,null,null,null,null,null,null,null,null,null,null,null,20949,72,"Kraukhampton","PLAYER NOT AVAILABLE",0,"No","No","No",null,null,4506,"UNMANAGED"]
[null,null,null,null,null,null,null,null,null,null,null,null,null,null,null,null,null,null,null,null,null,null,null,null,20950,105,"Heythrop Cavaliers","PLAYER NOT AVAILABLE",0,"No","No","No",null,null,4507,"UNMANAGED"]
[null,null,null,null,null,null,null,null,null,null,null,null,null,null,null,null,null,null,null,null,null,null,null,null,20955,998,"Waiting List","PLAYER NOT AVAILABLE",0,"No","No","No",null,null,4511,"UNMANAGED"]
[null,null,null,null,null,null,null,null,null,null,null,null,null,null,null,null,null,null,null,null,null,null,null,null,20964,998,"Waiting List","PLAYER NOT AVAILABLE",0,"No","No","No",null,null,4516,"UNMANAGED"]
[null,null,null,null,null,null,null,null,null,null,null,null,null,null,null,null,null,null,null,null,null,null,null,null,20974,65,"Lemmington","PLAYER NOT AVAILABLE",0,"No","No","No",null,null,4521,"UNMANAGED"]
[null,null,null,null,null,null,null,null,null,null,null,null,null,null,null,null,null,null,null,null,null,null,null,null,20975,114,"Great Baddow Ridge","PLAYER NOT AVAILABLE",0,"No","No","No",null,null,4522,"UNMANAGED"]
[null,null,null,null,null,null,null,null,null,null,null,null,null,null,null,null,null,null,null,null,null,null,null,null,20990,50,"E&C","PLAYER NOT AVAILABLE",0,"No","No","No",null,null,4528,"Transfer List"]
[null,null,null,null,null,null,null,null,null,null,null,null,null,null,null,null,null,null,null,null,null,null,null,null,20994,8,"Intersol","PLAYER NOT AVAILABLE",0,"No","No","No",null,null,4531,"UNMANAGED"]
[null,null,null,null,null,null,null,null,null,null,null,null,null,null,null,null,null,null,null,null,null,null,null,null,21006,998,"Waiting List","PLAYER NOT AVAILABLE",0,"No","No","No",null,null,4536,"UNMANAGED"]
[null,null,null,null,null,null,null,null,null,null,null,null,null,null,null,null,null,null,null,null,null,null,null,null,21010,121,"Rettendon","PLAYER NOT AVAILABLE",0,"No","No","No",null,null,4537,"UNMANAGED"]
[null,null,null,null,null,null,null,null,null,null,null,null,null,null,null,null,null,null,null,null,null,null,null,null,21022,108,"Dover Court","PLAYER NOT AVAILABLE",0,"No","No","No",null,null,4542,"UNMANAGED"]
[null,null,null,null,null,null,null,null,null,null,null,null,null,null,null,null,null,null,null,null,null,null,null,null,21037,63,"Davemoor","PLAYER NOT AVAILABLE",0,"No","No","No",null,null,4546,"NOT APPLICABLE"]
[null,null,null,null,null,null,null,null,null,null,null,null,null,null,null,null,null,null,null,null,null,null,null,null,21068,103,"Westminster Wanderers","PLAYER NOT AVAILABLE",0,"No","No","No",null,null,4551,"UNMANAGED"]
[null,null,null,null,null,null,null,null,null,null,null,null,null,null,null,null,null,null,null,null,null,null,null,null,21071,62,"Highfield","PLAYER NOT AVAILABLE",0,"No","No","No",null,null,4552,"UNMANAGED"]
[null,null,null,null,null,null,null,null,null,null,null,null,null,null,null,null,null,null,null,null,null,null,null,null,21169,998,"Waiting List","PLAYER NOT AVAILABLE",0,"No","No","No",null,null,4557,"UNMANAGED"]
[null,null,null,null,null,null,null,null,null,null,null,null,null,null,null,null,null,null,null,null,null,null,null,null,21187,91,"Goldhanger","PLAYER NOT AVAILABLE",0,"No","No","No",null,null,4562,"UNMANAGED"]
[null,null,null,null,null,null,null,null,null,null,null,null,null,null,null,null,null,null,null,null,null,null,null,null,21201,998,"Waiting List","PLAYER NOT AVAILABLE",0,"No","No","No",null,null,4567,"UNMANAGED"]
[null,null,null,null,null,null,null,null,null,null,null,null,null,null,null,null,null,null,null,null,null,null,null,null,21204,120,"Sherfield Saints","PLAYER NOT AVAILABLE",0,"No","No","No",null,null,4568,"UNMANAGED"]
[null,null,null,null,null,null,null,null,null,null,null,null,null,null,null,null,null,null,null,null,null,null,null,null,21218,998,"Waiting List","PLAYER NOT AVAILABLE",0,"No","No","No",null,null,4572,"UNMANAGED"]
[null,null,null,null,null,null,null,null,null,null,null,null,null,null,null,null,null,null,null,null,null,null,null,null,21226,998,"Waiting List","PLAYER NOT AVAILABLE",0,"No","No","No",null,null,4577,"UNMANAGED"]
[null,null,null,null,null,null,null,null,null,null,null,null,null,null,null,null,null,null,null,null,null,null,null,null,21234,998,"Waiting List","PLAYER NOT AVAILABLE",0,"No","No","No",null,null,4582,"NOT APPLICABLE"]
[null,null,null,null,null,null,null,null,null,null,null,null,null,null,null,null,null,null,null,null,null,null,null,null,21236,998,"Waiting List","PLAYER NOT AVAILABLE",0,"No","No","No",null,null,4583,"UNMANAGED"]
[null,null,null,null,null,null,null,null,null,null,null,null,null,null,null,null,null,null,null,null,null,null,null,null,21246,92,"Pantherville","PLAYER NOT AVAILABLE",0,"No","No","No",null,null,4589,"UNMANAGED"]
[null,null,null,null,null,null,null,null,null,null,null,null,null,null,null,null,null,null,null,null,null,null,null,null,21251,998,"Waiting List","PLAYER NOT AVAILABLE",0,"No","No","No",null,null,4592,"UNMANAGED"]
[null,null,null,null,null,null,null,null,null,null,null,null,null,null,null,null,null,null,null,null,null,null,null,null,21258,998,"Waiting List","PLAYER NOT AVAILABLE",0,"No","No","No",null,null,4597,"UNMANAGED"]
[null,null,null,null,null,null,null,null,null,null,null,null,null,null,null,null,null,null,null,null,null,null,null,null,21259,998,"Waiting List","PLAYER NOT AVAILABLE",0,"No","No","No",null,null,4598,"UNMANAGED"]
[null,null,null,null,null,null,null,null,null,null,null,null,null,null,null,null,null,null,null,null,null,null,null,null,21268,118,"Meadowside","PLAYER NOT AVAILABLE",0,"No","No","No",null,null,4603,"UNMANAGED"]
[null,null,null,null,null,null,null,null,null,null,null,null,null,null,null,null,null,null,null,null,null,null,null,null,21276,998,"Waiting List","PLAYER NOT AVAILABLE",0,"No","No","No",null,null,4607,"UNMANAGED"]
[null,null,null,null,null,null,null,null,null,null,null,null,null,null,null,null,null,null,null,null,null,null,null,null,21292,30,"Bigglesea Albion","Manuel UGARTE",31814368,"Yes","Yes","Yes",null,null,4612,"Transfer List"]
[null,null,null,null,null,null,null,null,null,null,null,null,null,null,null,null,null,null,null,null,null,null,null,null,21295,86,"Ravensbourne","PLAYER NOT AVAILABLE",0,"No","No","No",null,null,4613,"NOT APPLICABLE"]
[null,null,null,null,null,null,null,null,null,null,null,null,null,null,null,null,null,null,null,null,null,null,null,null,21303,122,"Sherringham","PLAYER NOT AVAILABLE",0,"No","No","No",null,null,4618,"UNMANAGED"]
[null,null,null,null,null,null,null,null,null,null,null,null,null,null,null,null,null,null,null,null,null,null,null,null,21316,79,"Juniper Viables","PLAYER NOT AVAILABLE",0,"No","No","No",null,null,4623,"UNMANAGED"]
[null,null,null,null,null,null,null,null,null,null,null,null,null,null,null,null,null,null,null,null,null,null,null,null,21322,0,"Transfer Pool","Fede CARTABIA",4450782,"No","No","Yes",2,null,4625,"UNMANAGED"]
[null,null,null,null,null,null,null,null,null,null,null,null,null,null,null,null,null,null,null,null,null,null,null,null,21328,66,"Lemeno","PLAYER NOT AVAILABLE",0,"No","No","No",null,null,4628,"UNMANAGED"]
[null,null,null,null,null,null,null,null,null,null,null,null,null,null,null,null,null,null,null,null,null,null,null,null,21345,21,"Christophia","PLAYER CAN'T BE SOLD",{"$f":"\"-\"","v":"-"},"No","Yes","No",null,null,4633,"UNMANAGED"]
[null,null,null,null,null,null,null,null,null,null,null,null,null,null,null,null,null,null,null,null,null,null,null,null,21356,998,"Waiting List","PLAYER NOT AVAILABLE",0,"No","No","No",null,null,4638,"UNMANAGED"]
[null,null,null,null,null,null,null,null,null,null,null,null,null,null,null,null,null,null,null,null,null,null,null,null,21372,65,"Lemmington","PLAYER NOT AVAILABLE",0,"No","No","No",null,null,4643,"UNMANAGED"]
[null,null,null,null,null,null,null,null,null,null,null,null,null,null,null,null,null,null,null,null,null,null,null,null,21376,998,"Waiting List","PLAYER NOT AVAILABLE",0,"No","No","No",null,null,4644,"UNMANAGED"]
[null,null,null,null,null,null,null,null,null,null,null,null,null,null,null,null,null,null,null,null,null,null,null,null,21392,104,"Beaumont Belvedere","PLAYER NOT AVAILABLE",0,"No","No","No",null,null,4650,"NOT APPLICABLE"]
[null,null,null,null,null,null,null,null,null,null,null,null,null,null,null,null,null,null,null,null,null,null,null,null,21397,67,"Parmenter","PLAYER NOT AVAILABLE",0,"No","No","No",null,null,4653,"UNMANAGED"]
[null,null,null,null,null,null,null,null,null,null,null,null,null,null,null,null,null,null,null,null,null,null,null,null,21410,109,"Bayswater Kings","PLAYER NOT AVAILABLE",0,"No","No","No",null,null,4658,"UNMANAGED"]
[null,null,null,null,null,null,null,null,null,null,null,null,null,null,null,null,null,null,null,null,null,null,null,null,21411,72,"Kraukhampton","PLAYER NOT AVAILABLE",0,"No","No","No",null,null,4659,"UNMANAGED"]
[null,null,null,null,null,null,null,null,null,null,null,null,null,null,null,null,null,null,null,null,null,null,null,null,21420,110,"Bridgewater","PLAYER NOT AVAILABLE",0,"No","No","No",null,null,4664,"NOT APPLICABLE"]
[null,null,null,null,null,null,null,null,null,null,null,null,null,null,null,null,null,null,null,null,null,null,null,null,21448,998,"Waiting List","PLAYER NOT AVAILABLE",0,"No","No","No",null,null,4668,"Paul Newman"]
[null,null,null,null,null,null,null,null,null,null,null,null,null,null,null,null,null,null,null,null,null,null,null,null,21474,121,"Rettendon","PLAYER NOT AVAILABLE",0,"No","No","No",null,null,4673,"UNMANAGED"]
[null,null,null,null,null,null,null,null,null,null,null,null,null,null,null,null,null,null,null,null,null,null,null,null,21480,115,"Greenbury","PLAYER NOT AVAILABLE",0,"No","No","No",null,null,4674,"UNMANAGED"]
[null,null,null,null,null,null,null,null,null,null,null,null,null,null,null,null,null,null,null,null,null,null,null,null,21498,55,"Pennymede Park","PLAYER NOT AVAILABLE",0,"No","No","No",null,null,4679,"UNMANAGED"]
[null,null,null,null,null,null,null,null,null,null,null,null,null,null,null,null,null,null,null,null,null,null,null,null,21510,998,"Waiting List","PLAYER NOT AVAILABLE",0,"No","No","No",null,null,4684,"UNMANAGED"]
[null,null,null,null,null,null,null,null,null,null,null,null,null,null,null,null,null,null,null,null,null,null,null,null,21527,108,"Dover Court","PLAYER NOT AVAILABLE",0,"No","No","No",null,null,4686,"UNMANAGED"]
[null,null,null,null,null,null,null,null,null,null,null,null,null,null,null,null,null,null,null,null,null,null,null,null,21533,998,"Waiting List","PLAYER NOT AVAILABLE",0,"No","No","No",null,null,4689,"UNMANAGED"]
[null,null,null,null,null,null,null,null,null,null,null,null,null,null,null,null,null,null,null,null,null,null,null,null,21557,101,"St. Lewis","PLAYER NOT AVAILABLE",0,"No","No","No",null,null,4694,"Norman House"]
[null,null,null,null,null,null,null,null,null,null,null,null,null,null,null,null,null,null,null,null,null,null,null,null,21578,104,"Beaumont Belvedere","PLAYER NOT AVAILABLE",0,"No","No","No",null,null,4699,"UNMANAGED"]
[null,null,null,null,null,null,null,null,null,null,null,null,null,null,null,null,null,null,null,null,null,null,null,null,21588,998,"Waiting List","PLAYER NOT AVAILABLE",0,"No","No","No",null,null,4704,"UNMANAGED"]
[null,null,null,null,null,null,null,null,null,null,null,null,null,null,null,null,null,null,null,null,null,null,null,null,21600,998,"Waiting List","PLAYER NOT AVAILABLE",0,"No","No","No",null,null,4705,"UNMANAGED"]
[null,null,null,null,null,null,null,null,null,null,null,null,null,null,null,null,null,null,null,null,null,null,null,null,21614,127,"Woodham Mortimer","PLAYER NOT AVAILABLE",0,"No","No","No",null,null,4711,"UNMANAGED"]
[null,null,null,null,null,null,null,null,null,null,null,null,null,null,null,null,null,null,null,null,null,null,null,null,21623,998,"Waiting List","PLAYER NOT AVAILABLE",0,"No","No","No",null,null,4714,"UNMANAGED"]
[null,null,null,null,null,null,null,null,null,null,null,null,null,null,null,null,null,null,null,null,null,null,null,null,21648,67,"Parmenter","PLAYER NOT AVAILABLE",0,"No","No","No",null,null,4719,"NOT APPLICABLE"]
[null,null,null,null,null,null,null,null,null,null,null,null,null,null,null,null,null,null,null,null,null,null,null,null,21658,998,"Waiting List","PLAYER NOT AVAILABLE",0,"No","No","No",null,null,4720,"UNMANAGED"]
[null,null,null,null,null,null,null,null,null,null,null,null,null,null,null,null,null,null,null,null,null,null,null,null,21681,998,"Waiting List","PLAYER NOT AVAILABLE",0,"No","No","No",null,null,4725,"UNMANAGED"]
[null,null,null,null,null,null,null,null,null,null,null,null,null,null,null,null,null,null,null,null,null,null,null,null,21689,112,"Chingford Argyle","PLAYER NOT AVAILABLE",0,"No","No","No",null,null,4729,"NOT APPLICABLE"]
[null,null,null,null,null,null,null,null,null,null,null,null,null,null,null,null,null,null,null,null,null,null,null,null,21708,74,"Scarlet Rovers","PLAYER NOT AVAILABLE",0,"No","No","No",null,null,4734,"UNMANAGED"]
[null,null,null,null,null,null,null,null,null,null,null,null,null,null,null,null,null,null,null,null,null,null,null,null,21716,60,"Chelmersdale","PLAYER NOT AVAILABLE",0,"No","No","No",null,null,4735,"NOT APPLICABLE"]
[null,null,null,null,null,null,null,null,null,null,null,null,null,null,null,null,null,null,null,null,null,null,null,null,21726,111,"Cavendish","PLAYER NOT AVAILABLE",0,"No","No","No",null,null,4740,"Norman House"]
[null,null,null,null,null,null,null,null,null,null,null,null,null,null,null,null,null,null,null,null,null,null,null,null,21735,78,"DBR","PLAYER NOT AVAILABLE",0,"No","No","No",null,null,4745,"NOT APPLICABLE"]
[null,null,null,null,null,null,null,null,null,null,null,null,null,null,null,null,null,null,null,null,null,null,null,null,21746,77,"Passfield","PLAYER NOT AVAILABLE",0,"No","No","No",null,null,4747,"Ken Atkinson"]
[null,null,null,null,null,null,null,null,null,null,null,null,null,null,null,null,null,null,null,null,null,null,null,null,21755,998,"Waiting List","PLAYER NOT AVAILABLE",0,"No","No","No",null,null,4750,"NOT APPLICABLE"]
[null,null,null,null,null,null,null,null,null,null,null,null,null,null,null,null,null,null,null,null,null,null,null,null,21786,95,"Roxwell United","PLAYER NOT AVAILABLE",0,"No","No","No",null,null,4755,"Lesley Atkinson"]
[null,null,null,null,null,null,null,null,null,null,null,null,null,null,null,null,null,null,null,null,null,null,null,null,21799,92,"Pantherville","PLAYER NOT AVAILABLE",0,"No","No","No",null,null,4760,"Transfer List"]
[null,null,null,null,null,null,null,null,null,null,null,null,null,null,null,null,null,null,null,null,null,null,null,null,21812,116,"FC Invincible","PLAYER NOT AVAILABLE",0,"No","No","No",null,null,4765,"Robin Slade"]
[null,null,null,null,null,null,null,null,null,null,null,null,null,null,null,null,null,null,null,null,null,null,null,null,21824,120,"Sherfield Saints","PLAYER NOT AVAILABLE",0,"No","No","No",null,null,4768,"Michael Atkinson-House"]
[null,null,null,null,null,null,null,null,null,null,null,null,null,null,null,null,null,null,null,null,null,null,null,null,21830,998,"Waiting List","PLAYER NOT AVAILABLE",0,"No","No","No",null,null,4770,"NOT APPLICABLE"]
[null,null,null,null,null,null,null,null,null,null,null,null,null,null,null,null,null,null,null,null,null,null,null,null,21860,67,"Parmenter","PLAYER NOT AVAILABLE",0,"No","No","No",null,null,4775,"Norman House"]
[null,null,null,null,null,null,null,null,null,null,null,null,null,null,null,null,null,null,null,null,null,null,null,null,21883,998,"Waiting List","PLAYER NOT AVAILABLE",0,"No","No","No",null,null,4780,"Don Davern"]
[null,null,null,null,null,null,null,null,null,null,null,null,null,null,null,null,null,null,null,null,null,null,null,null,21884,101,"St. Lewis","PLAYER NOT AVAILABLE",0,"No","No","No",null,null,4781,"Transfer List"]
[null,null,null,null,null,null,null,null,null,null,null,null,null,null,null,null,null,null,null,null,null,null,null,null,21895,75,"Romano","PLAYER NOT AVAILABLE",0,"No","No","No",null,null,4786,"Ellie Andrews"]
[null,null,null,null,null,null,null,null,null,null,null,null,null,null,null,null,null,null,null,null,null,null,null,null,21904,998,"Waiting List","PLAYER NOT AVAILABLE",0,"No","No","No",null,null,4790,"NOT APPLICABLE"]
[null,null,null,null,null,null,null,null,null,null,null,null,null,null,null,null,null,null,null,null,null,null,null,null,21941,118,"Meadowside","PLAYER NOT AVAILABLE",0,"No","No","No",null,null,4795,"Robin Slade"]
[null,null,null,null,null,null,null,null,null,null,null,null,null,null,null,null,null,null,null,null,null,null,null,null,21944,87,"Zanzibar Aztecs","PLAYER NOT AVAILABLE",0,"No","No","No",null,null,4796,"Robin Slade"]
[null,null,null,null,null,null,null,null,null,null,null,null,null,null,null,null,null,null,null,null,null,null,null,null,21957,998,"Waiting List","PLAYER NOT AVAILABLE",0,"No","No","No",null,null,4801,"Bernie Iles"]
[null,null,null,null,null,null,null,null,null,null,null,null,null,null,null,null,null,null,null,null,null,null,null,null,21971,93,"Kingston Knights","PLAYER NOT AVAILABLE",0,"No","No","No",null,null,4806,"Transfer List"]
[null,null,null,null,null,null,null,null,null,null,null,null,null,null,null,null,null,null,null,null,null,null,null,null,21974,66,"Lemeno","PLAYER NOT AVAILABLE",0,"No","No","No",null,null,4808,"Robin Slade"]
[null,null,null,null,null,null,null,null,null,null,null,null,null,null,null,null,null,null,null,null,null,null,null,null,21981,74,"Scarlet Rovers","PLAYER NOT AVAILABLE",0,"No","No","No",null,null,4811,"NOT APPLICABLE"]
[null,null,null,null,null,null,null,null,null,null,null,null,null,null,null,null,null,null,null,null,null,null,null,null,22015,87,"Zanzibar Aztecs","PLAYER NOT AVAILABLE",0,"No","No","No",null,null,4816,"Transfer List"]
[null,null,null,null,null,null,null,null,null,null,null,null,null,null,null,null,null,null,null,null,null,null,null,null,22037,998,"Waiting List","PLAYER NOT AVAILABLE",0,"No","No","No",null,null,4821,"NOT APPLICABLE"]
[null,null,null,null,null,null,null,null,null,null,null,null,null,null,null,null,null,null,null,null,null,null,null,null,22059,17,"Bishops Burghclere","PLAYER CAN'T BE SOLD",{"$f":"\"-\"","v":"-"},"No","Yes","No",null,null,4826,"Don Davern"]
[null,null,null,null,null,null,null,null,null,null,null,null,null,null,null,null,null,null,null,null,null,null,null,null,22068,998,"Waiting List","PLAYER NOT AVAILABLE",0,"No","No","No",null,null,4829,"Norman House"]
[null,null,null,null,null,null,null,null,null,null,null,null,null,null,null,null,null,null,null,null,null,null,null,null,22078,88,"St. Mary","PLAYER NOT AVAILABLE",0,"No","No","No",null,null,4831,"Robin Slade"]
[null,null,null,null,null,null,null,null,null,null,null,null,null,null,null,null,null,null,null,null,null,null,null,null,22103,998,"Waiting List","PLAYER NOT AVAILABLE",0,"No","No","No",null,null,4836,"NOT APPLICABLE"]
[null,null,null,null,null,null,null,null,null,null,null,null,null,null,null,null,null,null,null,null,null,null,null,null,22129,72,"Kraukhampton","PLAYER NOT AVAILABLE",0,"No","No","No",null,null,4841,"Transfer List"]
[null,null,null,null,null,null,null,null,null,null,null,null,null,null,null,null,null,null,null,null,null,null,null,null,22132,86,"Ravensbourne","PLAYER NOT AVAILABLE",0,"No","No","No",null,null,4842,"NOT APPLICABLE"]
[null,null,null,null,null,null,null,null,null,null,null,null,null,null,null,null,null,null,null,null,null,null,null,null,22174,120,"Sherfield Saints","PLAYER NOT AVAILABLE",0,"No","No","No",null,null,4847,"NOT APPLICABLE"]
[null,null,null,null,null,null,null,null,null,null,null,null,null,null,null,null,null,null,null,null,null,null,null,null,22185,63,"Davemoor","PLAYER NOT AVAILABLE",0,"No","No","No",null,null,4851,"NOT APPLICABLE"]
[null,null,null,null,null,null,null,null,null,null,null,null,null,null,null,null,null,null,null,null,null,null,null,null,22214,120,"Sherfield Saints","PLAYER NOT AVAILABLE",0,"No","No","No",null,null,4856,"NOT APPLICABLE"]
[null,null,null,null,null,null,null,null,null,null,null,null,null,null,null,null,null,null,null,null,null,null,null,null,22221,86,"Ravensbourne","PLAYER NOT AVAILABLE",0,"No","No","No",null,null,4857,"NOT APPLICABLE"]
[null,null,null,null,null,null,null,null,null,null,null,null,null,null,null,null,null,null,null,null,null,null,null,null,22249,97,"Johnsonville","PLAYER NOT AVAILABLE",0,"No","No","No",null,null,4862,"NOT APPLICABLE"]
[null,null,null,null,null,null,null,null,null,null,null,null,null,null,null,null,null,null,null,null,null,null,null,null,22263,63,"Davemoor","PLAYER NOT AVAILABLE",0,"No","No","No",null,null,4867,"NOT APPLICABLE"]
[null,null,null,null,null,null,null,null,null,null,null,null,null,null,null,null,null,null,null,null,null,null,null,null,22267,91,"Goldhanger","PLAYER NOT AVAILABLE",0,"No","No","No",null,null,4869,"Transfer List"]
[null,null,null,null,null,null,null,null,null,null,null,null,null,null,null,null,null,null,null,null,null,null,null,null,22284,91,"Goldhanger","PLAYER NOT AVAILABLE",0,"No","No","No",null,null,4872,"NOT APPLICABLE"]
[null,null,null,null,null,null,null,null,null,null,null,null,null,null,null,null,null,null,null,null,null,null,null,null,22305,66,"Lemeno","PLAYER NOT AVAILABLE",0,"No","No","No",null,null,4877,"NOT APPLICABLE"]
[null,null,null,null,null,null,null,null,null,null,null,null,null,null,null,null,null,null,null,null,null,null,null,null,22322,105,"Heythrop Cavaliers","PLAYER NOT AVAILABLE",0,"No","No","No",null,null,4882,"NOT APPLICABLE"]
[null,null,null,null,null,null,null,null,null,null,null,null,null,null,null,null,null,null,null,null,null,null,null,null,22345,998,"Waiting List","PLAYER NOT AVAILABLE",0,"No","No","No",null,null,4887,"NOT APPLICABLE"]
[null,null,null,null,null,null,null,null,null,null,null,null,null,null,null,null,null,null,null,null,null,null,null,null,22362,998,"Waiting List","PLAYER NOT AVAILABLE",0,"No","No","No",null,null,4890,"Transfer List"]
[null,null,null,null,null,null,null,null,null,null,null,null,null,null,null,null,null,null,null,null,null,null,null,null,22366,98,"Richmond Renegades","PLAYER NOT AVAILABLE",0,"No","No","No",null,null,4892,"NOT APPLICABLE"]
[null,null,null,null,null,null,null,null,null,null,null,null,null,null,null,null,null,null,null,null,null,null,null,null,22387,49,"AFC Ashton","PLAYER NOT AVAILABLE",0,"No","No","No",null,null,4897,"NOT APPLICABLE"]
[null,null,null,null,null,null,null,null,null,null,null,null,null,null,null,null,null,null,null,null,null,null,null,null,22417,117,"Kelvedon Kickers","PLAYER NOT AVAILABLE",0,"No","No","No",null,null,4902,"NOT APPLICABLE"]
[null,null,null,null,null,null,null,null,null,null,null,null,null,null,null,null,null,null,null,null,null,null,null,null,22418,55,"Pennymede Park","PLAYER NOT AVAILABLE",0,"No","No","No",null,null,4903,"NOT APPLICABLE"]
[null,null,null,null,null,null,null,null,null,null,null,null,null,null,null,null,null,null,null,null,null,null,null,null,22463,121,"Rettendon","PLAYER NOT AVAILABLE",0,"No","No","No",null,null,4908,"Transfer List"]
[null,null,null,null,null,null,null,null,null,null,null,null,null,null,null,null,null,null,null,null,null,null,null,null,22481,998,"Waiting List","PLAYER NOT AVAILABLE",0,"No","No","No",null,null,4912,"NOT APPLICABLE"]
[null,null,null,null,null,null,null,null,null,null,null,null,null,null,null,null,null,null,null,null,null,null,null,null,22499,121,"Rettendon","PLAYER NOT AVAILABLE",0,"No","No","No",null,null,4917,"NOT APPLICABLE"]
[null,null,null,null,null,null,null,null,null,null,null,null,null,null,null,null,null,null,null,null,null,null,null,null,22501,122,"Sherringham","PLAYER NOT AVAILABLE",0,"No","No","No",null,null,4918,"Norman House"]
[null,null,null,null,null,null,null,null,null,null,null,null,null,null,null,null,null,null,null,null,null,null,null,null,22531,998,"Waiting List","PLAYER NOT AVAILABLE",0,"No","No","No",null,null,4923,"Ellie Andrews"]
[null,null,null,null,null,null,null,null,null,null,null,null,null,null,null,null,null,null,null,null,null,null,null,null,22542,108,"Dover Court","PLAYER NOT AVAILABLE",0,"No","No","No",null,null,4926,"NOT APPLICABLE"]
[null,null,null,null,null,null,null,null,null,null,null,null,null,null,null,null,null,null,null,null,null,null,null,null,22595,120,"Sherfield Saints","PLAYER NOT AVAILABLE",0,"No","No","No",null,null,4932,"UNMANAGED"]
[null,null,null,null,null,null,null,null,null,null,null,null,null,null,null,null,null,null,null,null,null,null,null,null,22600,60,"Chelmersdale","PLAYER NOT AVAILABLE",0,"No","No","No",null,null,4933,"NOT APPLICABLE"]
[null,null,null,null,null,null,null,null,null,null,null,null,null,null,null,null,null,null,null,null,null,null,null,null,22639,116,"FC Invincible","PLAYER NOT AVAILABLE",0,"No","No","No",null,null,4938,"NOT APPLICABLE"]
[null,null,null,null,null,null,null,null,null,null,null,null,null,null,null,null,null,null,null,null,null,null,null,null,22685,103,"Westminster Wanderers","PLAYER NOT AVAILABLE",0,"No","No","No",null,null,4943,"NOT APPLICABLE"]
[null,null,null,null,null,null,null,null,null,null,null,null,null,null,null,null,null,null,null,null,null,null,null,null,22752,106,"Colebank","PLAYER NOT AVAILABLE",0,"No","No","No",null,null,4948,"NOT APPLICABLE"]
[null,null,null,null,null,null,null,null,null,null,null,null,null,null,null,null,null,null,null,null,null,null,null,null,22770,88,"St. Mary","PLAYER NOT AVAILABLE",0,"No","No","No",null,null,4951,"NOT APPLICABLE"]
[null,null,null,null,null,null,null,null,null,null,null,null,null,null,null,null,null,null,null,null,null,null,null,null,22785,90,"Saddington","PLAYER NOT AVAILABLE",0,"No","No","No",null,null,4953,"NOT APPLICABLE"]
[null,null,null,null,null,null,null,null,null,null,null,null,null,null,null,null,null,null,null,null,null,null,null,null,22819,91,"Goldhanger","PLAYER NOT AVAILABLE",0,"No","No","No",null,null,4958,"NOT APPLICABLE"]
[null,null,null,null,null,null,null,null,null,null,null,null,null,null,null,null,null,null,null,null,null,null,null,null,22838,71,"Wandsworth","PLAYER NOT AVAILABLE",0,"No","No","No",null,null,4963,"Transfer List"]
[null,null,null,null,null,null,null,null,null,null,null,null,null,null,null,null,null,null,null,null,null,null,null,null,22842,95,"Roxwell United","PLAYER NOT AVAILABLE",0,"No","No","No",null,null,4964,"Bernie Iles"]
[null,null,null,null,null,null,null,null,null,null,null,null,null,null,null,null,null,null,null,null,null,null,null,null,22877,75,"Romano","PLAYER NOT AVAILABLE",0,"No","No","No",null,null,4969,"NOT APPLICABLE"]
[null,null,null,null,null,null,null,null,null,null,null,null,null,null,null,null,null,null,null,null,null,null,null,null,22921,77,"Passfield","PLAYER NOT AVAILABLE",0,"No","No","No",null,null,4973,"NOT APPLICABLE"]
[null,null,null,null,null,null,null,null,null,null,null,null,null,null,null,null,null,null,null,null,null,null,null,null,22978,125,"Van Diemans United","PLAYER NOT AVAILABLE",0,"No","No","No",null,null,4978,"UNMANAGED"]
[null,null,null,null,null,null,null,null,null,null,null,null,null,null,null,null,null,null,null,null,null,null,null,null,22988,118,"Meadowside","PLAYER NOT AVAILABLE",0,"No","No","No",null,null,4979,"UNMANAGED"]
[null,null,null,null,null,null,null,null,null,null,null,null,null,null,null,null,null,null,null,null,null,null,null,null,23003,62,"Highfield","PLAYER NOT AVAILABLE",0,"No","No","No",null,null,4984,"UNMANAGED"]
[null,null,null,null,null,null,null,null,null,null,null,null,null,null,null,null,null,null,null,null,null,null,null,null,23022,116,"FC Invincible","PLAYER NOT AVAILABLE",0,"No","No","No",null,null,4987,"UNMANAGED"]
[null,null,null,null,null,null,null,null,null,null,null,null,null,null,null,null,null,null,null,null,null,null,null,null,23098,112,"Chingford Argyle","PLAYER NOT AVAILABLE",0,"No","No","No",null,null,4993,"UNMANAGED"]
[null,null,null,null,null,null,null,null,null,null,null,null,null,null,null,null,null,null,null,null,null,null,null,null,23118,98,"Richmond Renegades","PLAYER NOT AVAILABLE",0,"No","No","No",null,null,4994,"UNMANAGED"]
[null,null,null,null,null,null,null,null,null,null,null,null,null,null,null,null,null,null,null,null,null,null,null,null,23242,91,"Goldhanger","PLAYER NOT AVAILABLE",0,"No","No","No",null,null,4999,"UNMANAGED"]
[null,null,null,null,null,null,null,null,null,null,null,null,null,null,null,null,null,null,null,null,null,null,null,null,23347,86,"Ravensbourne","PLAYER NOT AVAILABLE",0,"No","No","No",null,null,5004,"NOT APPLICABLE"]
[null,null,null,null,null,null,null,null,null,null,null,null,null,null,null,null,null,null,null,null,null,null,null,null,23541,101,"St. Lewis","PLAYER NOT AVAILABLE",0,"No","No","No",null,null,5008,"UNMANAGED"]
[null,null,null,null,null,null,null,null,null,null,null,null,null,null,null,null,null,null,null,null,null,null,null,null,23543,127,"Woodham Mortimer","PLAYER NOT AVAILABLE",0,"No","No","No",null,null,5009,"Olivia Andrews"]
[null,null,null,null,null,null,null,null,null,null,null,null,null,null,null,null,null,null,null,null,null,null,null,null,23552,85,"Krystle Palace","PLAYER NOT AVAILABLE",0,"No","No","No",null,null,5014,"NOT APPLICABLE"]
[null,null,null,null,null,null,null,null,null,null,null,null,null,null,null,null,null,null,null,null,null,null,null,null,23566,998,"Waiting List","PLAYER NOT AVAILABLE",0,"No","No","No",null,null,5019,"Transfer List"]
[null,null,null,null,null,null,null,null,null,null,null,null,null,null,null,null,null,null,null,null,null,null,null,null,23571,48,"Hammersmith Celtic","Manu KONE",23985881,"Yes","Yes","Yes",null,7,5024,"James House"]
[null,null,null,null,null,null,null,null,null,null,null,null,null,null,null,null,null,null,null,null,null,null,null,null,23572,18,"Fairoak Foresters","PLAYER CAN'T BE SOLD",{"$f":"\"-\"","v":"-"},"No","Yes","No",null,null,5025,"Bernie Iles"]
[null,null,null,null,null,null,null,null,null,null,null,null,null,null,null,null,null,null,null,null,null,null,null,null,23578,41,"Newcombe United","PLAYER CAN'T BE SOLD","-","No","Yes","No",null,null,5030,"NOT APPLICABLE"]
[null,null,null,null,null,null,null,null,null,null,null,null,null,null,null,null,null,null,null,null,null,null,null,null,23582,0,"Transfer Pool","Ivan MARTIN",10630018,"No","No","Yes",4,null,5034,"UNMANAGED"]
[null,null,null,null,null,null,null,null,null,null,null,null,null,null,null,null,null,null,null,null,null,null,null,null,23588,0,"Transfer Pool","Alex SCOTT",4542701,"No","No","Yes",4,null,5039,"NOT APPLICABLE"]
[null,null,null,null,null,null,null,null,null,null,null,null,null,null,null,null,null,null,null,null,null,null,null,null,23590,998,"Waiting List","PLAYER NOT AVAILABLE",0,"No","No","No",null,null,5040,"Norman House"]
[null,null,null,null,null,null,null,null,null,null,null,null,null,null,null,null,null,null,null,null,null,null,null,null,23596,998,"Waiting List","PLAYER NOT AVAILABLE",0,"No","No","No",null,null,5045,"NOT APPLICABLE"]
[null,null,null,null,null,null,null,null,null,null,null,null,null,null,null,null,null,null,null,null,null,null,null,null,23601,39,"Albenotti","PLAYER CAN'T BE SOLD",{"$f":"\"-\"","v":"-"},"No","Yes","No",null,null,5048,"NOT APPLICABLE"]
[null,null,null,null,null,null,null,null,null,null,null,null,null,null,null,null,null,null,null,null,null,null,null,null,23608,0,"Transfer Pool","Piero HINCAPIE",5594328,"No","No","Yes",4,null,5054,"Transfer List"]
[null,null,null,null,null,null,null,null,null,null,null,null,null,null,null,null,null,null,null,null,null,null,null,null,23609,998,"Waiting List","PLAYER NOT AVAILABLE",0,"No","No","No",null,null,5055,"NOT APPLICABLE"]
[null,null,null,null,null,null,null,null,null,null,null,null,null,null,null,null,null,null,null,null,null,null,null,null,23614,998,"Waiting List","PLAYER NOT AVAILABLE",0,"No","No","No"]
[null,null,null,null,null,null,null,null,null,null,null,null,null,null,null,null,null,null,null,null,null,null,null,null,23622,998,"Waiting List","PLAYER NOT AVAILABLE",0,"No","No","No"]
[null,null,null,null,null,null,null,null,null,null,null,null,null,null,null,null,null,null,null,null,null,null,null,null,23629,998,"Waiting List","PLAYER NOT AVAILABLE",0,"No","No","No"]
[null,null,null,null,null,null,null,null,null,null,null,null,null,null,null,null,null,null,null,null,null,null,null,null,23630,80,"Winchelsea","PLAYER CAN'T BE SOLD",{"$f":"\"-\"","v":"-"},"No","Yes","No"]
[null,null,null,null,null,null,null,null,null,null,null,null,null,null,null,null,null,null,null,null,null,null,null,null,23635,998,"Waiting List","PLAYER NOT AVAILABLE",0,"No","No","No"]
[null,null,null,null,null,null,null,null,null,null,null,null,null,null,null,null,null,null,null,null,null,null,null,null,23641,998,"Waiting List","PLAYER NOT AVAILABLE",0,"No","No","No"]
[null,null,null,null,null,null,null,null,null,null,null,null,null,null,null,null,null,null,null,null,null,null,null,null,23653,69,"Gainsborough Hamlet","PLAYER CAN'T BE SOLD",{"$f":"\"-\"","v":"-"},"No","Yes","No"]
[null,null,null,null,null,null,null,null,null,null,null,null,null,null,null,null,null,null,null,null,null,null,null,null,23654,998,"Waiting List","PLAYER NOT AVAILABLE",0,"No","No","No"]
[null,null,null,null,null,null,null,null,null,null,null,null,null,null,null,null,null,null,null,null,null,null,null,null,23660,998,"Waiting List","PLAYER NOT AVAILABLE",0,"No","No","No"]
[null,null,null,null,null,null,null,null,null,null,null,null,null,null,null,null,null,null,null,null,null,null,null,null,23666,4,"Markhoeven","PLAYER CAN'T BE SOLD",{"$f":"\"-\"","v":"-"},"No","Yes","No"]
[null,null,null,null,null,null,null,null,null,null,null,null,null,null,null,null,null,null,null,null,null,null,null,null,23667,998,"Waiting List","PLAYER NOT AVAILABLE",0,"No","No","No"]
[null,null,null,null,null,null,null,null,null,null,null,null,null,null,null,null,null,null,null,null,null,null,null,null,23669,998,"Waiting List","PLAYER NOT AVAILABLE",0,"No","No","No"]
[null,null,null,null,null,null,null,null,null,null,null,null,null,null,null,null,null,null,null,null,null,null,null,null,23670,998,"Waiting List","PLAYER NOT AVAILABLE",0,"No","No","No"]
[null,null,null,null,null,null,null,null,null,null,null,null,null,null,null,null,null,null,null,null,null,null,null,null,23671,998,"Waiting List","PLAYER NOT AVAILABLE",0,"No","No","No"]
[null,null,null,null,null,null,null,null,null,null,null,null,null,null,null,null,null,null,null,null,null,null,null,null,23673,998,"Waiting List","PLAYER NOT AVAILABLE",0,"No","No","No"]
[null,null,null,null,null,null,null,null,null,null,null,null,null,null,null,null,null,null,null,null,null,null,null,null,23674,0,"Transfer Pool","Reo HATATE",8637446,"No","No","Yes",4]
[null,null,null,null,null,null,null,null,null,null,null,null,null,null,null,null,null,null,null,null,null,null,null,null,23675,998,"Waiting List","PLAYER NOT AVAILABLE",0,"No","No","No"]
[null,null,null,null,null,null,null,null,null,null,null,null,null,null,null,null,null,null,null,null,null,null,null,null,23677,998,"Waiting List","PLAYER NOT AVAILABLE",0,"No","No","No"]
[null,null,null,null,null,null,null,null,null,null,null,null,null,null,null,null,null,null,null,null,null,null,null,null,23678,64,"Fellerton","PLAYER CAN'T BE SOLD",{"$f":"\"-\"","v":"-"},"No","Yes","No"]
[null,null,null,null,null,null,null,null,null,null,null,null,null,null,null,null,null,null,null,null,null,null,null,null,23679,76,"Olympians","PLAYER CAN'T BE SOLD","-","No","Yes","No"]
[null,null,null,null,null,null,null,null,null,null,null,null,null,null,null,null,null,null,null,null,null,null,null,null,23681,998,"Waiting List","PLAYER NOT AVAILABLE",0,"No","No","No"]
[null,null,null,null,null,null,null,null,null,null,null,null,null,null,null,null,null,null,null,null,null,null,null,null,23682,998,"Waiting List","PLAYER NOT AVAILABLE",0,"No","No","No"]
[null,null,null,null,null,null,null,null,null,null,null,null,null,null,null,null,null,null,null,null,null,null,null,null,23683,998,"Waiting List","PLAYER NOT AVAILABLE",0,"No","No","No"]
[null,null,null,null,null,null,null,null,null,null,null,null,null,null,null,null,null,null,null,null,null,null,null,null,23685,998,"Waiting List","PLAYER NOT AVAILABLE",0,"No","No","No"]
[null,null,null,null,null,null,null,null,null,null,null,null,null,null,null,null,null,null,null,null,null,null,null,null,23687,107,"Falconetti Fire","PLAYER CAN'T BE SOLD",{"$f":"\"-\"","v":"-"},"No","Yes","No"]
[null,null,null,null,null,null,null,null,null,null,null,null,null,null,null,null,null,null,null,null,null,null,null,null,23688,13,"AC Desantelakos","PLAYER CAN'T BE SOLD","-","No","Yes","No"]
[null,null,null,null,null,null,null,null,null,null,null,null,null,null,null,null,null,null,null,null,null,null,null,null,23689,64,"Fellerton","PLAYER CAN'T BE SOLD","-","No","Yes","No"]
[null,null,null,null,null,null,null,null,null,null,null,null,null,null,null,null,null,null,null,null,null,null,null,null,23690,0,"Transfer Pool","Alistair JOHNSTON",5270312,"No","No","Yes",4]
[null,null,null,null,null,null,null,null,null,null,null,null,null,null,null,null,null,null,null,null,null,null,null,null,23693,15,"North Notley","PLAYER CAN'T BE SOLD",{"$f":"\"-\"","v":"-"},"No","Yes","No"]
[null,null,null,null,null,null,null,null,null,null,null,null,null,null,null,null,null,null,null,null,null,null,null,null,23694,998,"Waiting List","PLAYER NOT AVAILABLE",0,"No","No","No"]
[null,null,null,null,null,null,null,null,null,null,null,null,null,null,null,null,null,null,null,null,null,null,null,null,23696,70,"Northridge Cormorants","PLAYER CAN'T BE SOLD",{"$f":"\"-\"","v":"-"},"No","Yes","No"]
[null,null,null,null,null,null,null,null,null,null,null,null,null,null,null,null,null,null,null,null,null,null,null,null,23698,126,"Weslington","Edoardo BOVE",14373526,"Yes","Yes","Yes",null,36]
[null,null,null,null,null,null,null,null,null,null,null,null,null,null,null,null,null,null,null,null,null,null,null,null,23701,998,"Waiting List","PLAYER NOT AVAILABLE",0,"No","No","No"]
[null,null,null,null,null,null,null,null,null,null,null,null,null,null,null,null,null,null,null,null,null,null,null,null,23705,998,"Waiting List","PLAYER NOT AVAILABLE",0,"No","No","No"]
[null,null,null,null,null,null,null,null,null,null,null,null,null,null,null,null,null,null,null,null,null,null,null,null,23707,998,"Waiting List","PLAYER NOT AVAILABLE",0,"No","No","No"]
[null,null,null,null,null,null,null,null,null,null,null,null,null,null,null,null,null,null,null,null,null,null,null,null,23708,998,"Waiting List","PLAYER NOT AVAILABLE",0,"No","No","No"]
[null,null,null,null,null,null,null,null,null,null,null,null,null,null,null,null,null,null,null,null,null,null,null,null,23709,998,"Waiting List","PLAYER NOT AVAILABLE",0,"No","No","No"]
[null,null,null,null,null,null,null,null,null,null,null,null,null,null,null,null,null,null,null,null,null,null,null,null,23711,998,"Waiting List","PLAYER NOT AVAILABLE",0,"No","No","No"]
[null,null,null,null,null,null,null,null,null,null,null,null,null,null,null,null,null,null,null,null,null,null,null,null,23713,998,"Waiting List","PLAYER NOT AVAILABLE",0,"No","No","No"]
[null,null,null,null,null,null,null,null,null,null,null,null,null,null,null,null,null,null,null,null,null,null,null,null,23714,0,"Transfer Pool","James MCATEE",9231967,"No","No","Yes",1]
[null,null,null,null,null,null,null,null,null,null,null,null,null,null,null,null,null,null,null,null,null,null,null,null,23722,0,"Transfer Pool","Brian BROBBEY",4385322,"No","No","Yes",4]
[null,null,null,null,null,null,null,null,null,null,null,null,null,null,null,null,null,null,null,null,null,null,null,null,23723,998,"Waiting List","PLAYER NOT AVAILABLE",0,"No","No","No"]
[null,null,null,null,null,null,null,null,null,null,null,null,null,null,null,null,null,null,null,null,null,null,null,null,23724,52,"Applegate Manor","PLAYER CAN'T BE SOLD",{"$f":"\"-\"","v":"-"},"No","Yes","No"]
[null,null,null,null,null,null,null,null,null,null,null,null,null,null,null,null,null,null,null,null,null,null,null,null,23731,76,"Olympians","Santiago GIMENEZ",26542956,"Yes","Yes","Yes",null,2]
[null,null,null,null,null,null,null,null,null,null,null,null,null,null,null,null,null,null,null,null,null,null,null,null,23733,998,"Waiting List","PLAYER NOT AVAILABLE",0,"No","No","No"]
[null,null,null,null,null,null,null,null,null,null,null,null,null,null,null,null,null,null,null,null,null,null,null,null,23734,998,"Waiting List","PLAYER NOT AVAILABLE",0,"No","No","No"]
[null,null,null,null,null,null,null,null,null,null,null,null,null,null,null,null,null,null,null,null,null,null,null,null,23735,998,"Waiting List","PLAYER NOT AVAILABLE",0,"No","No","No"]
[null,null,null,null,null,null,null,null,null,null,null,null,null,null,null,null,null,null,null,null,null,null,null,null,23739,11,"JPR","PLAYER CAN'T BE SOLD",{"$f":"\"-\"","v":"-"},"No","Yes","No"]
[null,null,null,null,null,null,null,null,null,null,null,null,null,null,null,null,null,null,null,null,null,null,null,null,23740,73,"Sparta Limarnder","PLAYER CAN'T BE SOLD","-","No","Yes","No"]
[null,null,null,null,null,null,null,null,null,null,null,null,null,null,null,null,null,null,null,null,null,null,null,null,23741,52,"Applegate Manor","PLAYER CAN'T BE SOLD","-","No","Yes","No"]
[null,null,null,null,null,null,null,null,null,null,null,null,null,null,null,null,null,null,null,null,null,null,null,null,23742,998,"Waiting List","PLAYER NOT AVAILABLE",0,"No","No","No"]
[null,null,null,null,null,null,null,null,null,null,null,null,null,null,null,null,null,null,null,null,null,null,null,null,23743,998,"Waiting List","PLAYER NOT AVAILABLE",0,"No","No","No"]
[null,null,null,null,null,null,null,null,null,null,null,null,null,null,null,null,null,null,null,null,null,null,null,null,23744,0,"Transfer Pool","Rodrigo MUNIZ",5643485,"No","No","Yes",4]
[null,null,null,null,null,null,null,null,null,null,null,null,null,null,null,null,null,null,null,null,null,null,null,null,23745,70,"Northridge Cormorants","PLAYER CAN'T BE SOLD",{"$f":"\"-\"","v":"-"},"No","Yes","No"]
[null,null,null,null,null,null,null,null,null,null,null,null,null,null,null,null,null,null,null,null,null,null,null,null,23746,998,"Waiting List","PLAYER NOT AVAILABLE",0,"No","No","No"]
[null,null,null,null,null,null,null,null,null,null,null,null,null,null,null,null,null,null,null,null,null,null,null,null,23748,998,"Waiting List","PLAYER NOT AVAILABLE",0,"No","No","No"]
[null,null,null,null,null,null,null,null,null,null,null,null,null,null,null,null,null,null,null,null,null,null,null,null,23749,998,"Waiting List","PLAYER NOT AVAILABLE",0,"No","No","No"]
[null,null,null,null,null,null,null,null,null,null,null,null,null,null,null,null,null,null,null,null,null,null,null,null,23750,0,"Transfer Pool","Abde EZZALZOULI",8894825,"No","No","Yes",4]
[null,null,null,null,null,null,null,null,null,null,null,null,null,null,null,null,null,null,null,null,null,null,null,null,23751,998,"Waiting List","PLAYER NOT AVAILABLE",0,"No","No","No"]
[null,null,null,null,null,null,null,null,null,null,null,null,null,null,null,null,null,null,null,null,null,null,null,null,23752,73,"Sparta Limarnder","PLAYER CAN'T BE SOLD",{"$f":"\"-\"","v":"-"},"No","Yes","No"]
[null,null,null,null,null,null,null,null,null,null,null,null,null,null,null,null,null,null,null,null,null,null,null,null,23753,25,"Nempton","PLAYER NOT AVAILABLE",0,"No","No","No"]
[null,null,null,null,null,null,null,null,null,null,null,null,null,null,null,null,null,null,null,null,null,null,null,null,23760,998,"Waiting List","PLAYER NOT AVAILABLE",0,"No","No","No"]
[null,null,null,null,null,null,null,null,null,null,null,null,null,null,null,null,null,null,null,null,null,null,null,null,23763,998,"Waiting List","PLAYER NOT AVAILABLE",0,"No","No","No"]
[null,null,null,null,null,null,null,null,null,null,null,null,null,null,null,null,null,null,null,null,null,null,null,null,23764,998,"Waiting List","PLAYER NOT AVAILABLE",0,"No","No","No"]
[null,null,null,null,null,null,null,null,null,null,null,null,null,null,null,null,null,null,null,null,null,null,null,null,23765,998,"Waiting List","PLAYER NOT AVAILABLE",0,"No","No","No"]
[null,null,null,null,null,null,null,null,null,null,null,null,null,null,null,null,null,null,null,null,null,null,null,null,23767,64,"Fellerton","PLAYER CAN'T BE SOLD",{"$f":"\"-\"","v":"-"},"No","Yes","No"]
[null,null,null,null,null,null,null,null,null,null,null,null,null,null,null,null,null,null,null,null,null,null,null,null,23768,998,"Waiting List","PLAYER NOT AVAILABLE",0,"No","No","No"]
[null,null,null,null,null,null,null,null,null,null,null,null,null,null,null,null,null,null,null,null,null,null,null,null,23771,998,"Waiting List","PLAYER NOT AVAILABLE",0,"No","No","No"]
[null,null,null,null,null,null,null,null,null,null,null,null,null,null,null,null,null,null,null,null,null,null,null,null,23776,0,"Transfer Pool","Oliveira dos Santos LINCOLN HENRIQUE",7980256,"No","No","Yes",4]
[null,null,null,null,null,null,null,null,null,null,null,null,null,null,null,null,null,null,null,null,null,null,null,null,23777,0,"Transfer Pool","Youssoufa MOUKOKO",13108515,"No","No","Yes",3]
[null,null,null,null,null,null,null,null,null,null,null,null,null,null,null,null,null,null,null,null,null,null,null,null,23778,998,"Waiting List","PLAYER NOT AVAILABLE",0,"No","No","No"]
[null,null,null,null,null,null,null,null,null,null,null,null,null,null,null,null,null,null,null,null,null,null,null,null,23779,998,"Waiting List","PLAYER NOT AVAILABLE",0,"No","No","No"]
[null,null,null,null,null,null,null,null,null,null,null,null,null,null,null,null,null,null,null,null,null,null,null,null,23781,9,"Real Danyella","Iliman NDIAYE",14134185,"Yes","Yes","Yes",null,38]
[null,null,null,null,null,null,null,null,null,null,null,null,null,null,null,null,null,null,null,null,null,null,null,null,23782,998,"Waiting List","PLAYER NOT AVAILABLE",0,"No","No","No"]
[null,null,null,null,null,null,null,null,null,null,null,null,null,null,null,null,null,null,null,null,null,null,null,null,23783,998,"Waiting List","PLAYER NOT AVAILABLE",0,"No","No","No"]
[null,null,null,null,null,null,null,null,null,null,null,null,null,null,null,null,null,null,null,null,null,null,null,null,23790,0,"Transfer Pool","Kerem AKTURKOGLU",5787150,"No","No","Yes",4]
[null,null,null,null,null,null,null,null,null,null,null,null,null,null,null,null,null,null,null,null,null,null,null,null,23792,998,"Waiting List","PLAYER NOT AVAILABLE",0,"No","No","No"]
[null,null,null,null,null,null,null,null,null,null,null,null,null,null,null,null,null,null,null,null,null,null,null,null,23795,998,"Waiting List","PLAYER NOT AVAILABLE",0,"No","No","No"]
[null,null,null,null,null,null,null,null,null,null,null,null,null,null,null,null,null,null,null,null,null,null,null,null,23796,0,"Transfer Pool","Zeki AMDOUNI",5822226,"No","No","Yes",1]
[null,null,null,null,null,null,null,null,null,null,null,null,null,null,null,null,null,null,null,null,null,null,null,null,23806,998,"Waiting List","PLAYER NOT AVAILABLE",0,"No","No","No"]
[null,null,null,null,null,null,null,null,null,null,null,null,null,null,null,null,null,null,null,null,null,null,null,null,23807,40,"H&H","PLAYER CAN'T BE SOLD",{"$f":"\"-\"","v":"-"},"No","Yes","No"]
[null,null,null,null,null,null,null,null,null,null,null,null,null,null,null,null,null,null,null,null,null,null,null,null,23814,998,"Waiting List","PLAYER NOT AVAILABLE",0,"No","No","No"]
[null,null,null,null,null,null,null,null,null,null,null,null,null,null,null,null,null,null,null,null,null,null,null,null,23817,998,"Waiting List","PLAYER NOT AVAILABLE",0,"No","No","No"]
[null,null,null,null,null,null,null,null,null,null,null,null,null,null,null,null,null,null,null,null,null,null,null,null,23818,0,"Transfer Pool","Jon PACHECO",5235309,"No","No","Yes",4]
[null,null,null,null,null,null,null,null,null,null,null,null,null,null,null,null,null,null,null,null,null,null,null,null,23819,998,"Waiting List","PLAYER NOT AVAILABLE",0,"No","No","No"]
[null,null,null,null,null,null,null,null,null,null,null,null,null,null,null,null,null,null,null,null,null,null,null,null,23821,998,"Waiting List","PLAYER NOT AVAILABLE",0,"No","No","No"]
[null,null,null,null,null,null,null,null,null,null,null,null,null,null,null,null,null,null,null,null,null,null,null,null,23823,998,"Waiting List","PLAYER NOT AVAILABLE",0,"No","No","No"]
[null,null,null,null,null,null,null,null,null,null,null,null,null,null,null,null,null,null,null,null,null,null,null,null,23826,0,"Transfer Pool","Jakub KAMINSKI",6947954,"No","No","Yes",4]
[null,null,null,null,null,null,null,null,null,null,null,null,null,null,null,null,null,null,null,null,null,null,null,null,23827,998,"Waiting List","PLAYER NOT AVAILABLE",0,"No","No","No"]
[null,null,null,null,null,null,null,null,null,null,null,null,null,null,null,null,null,null,null,null,null,null,null,null,23828,0,"Transfer Pool","Jordan ZEMURA",4009691,"No","No","Yes",2]
[null,null,null,null,null,null,null,null,null,null,null,null,null,null,null,null,null,null,null,null,null,null,null,null,23829,998,"Waiting List","PLAYER NOT AVAILABLE",0,"No","No","No"]
[null,null,null,null,null,null,null,null,null,null,null,null,null,null,null,null,null,null,null,null,null,null,null,null,23830,998,"Waiting List","PLAYER NOT AVAILABLE",0,"No","No","No"]
[null,null,null,null,null,null,null,null,null,null,null,null,null,null,null,null,null,null,null,null,null,null,null,null,23833,0,"Transfer Pool","Aaron RAMSEY",2999096,"No","No","Yes",1]
[null,null,null,null,null,null,null,null,null,null,null,null,null,null,null,null,null,null,null,null,null,null,null,null,23834,998,"Waiting List","PLAYER NOT AVAILABLE",0,"No","No","No"]
[null,null,null,null,null,null,null,null,null,null,null,null,null,null,null,null,null,null,null,null,null,null,null,null,23840,998,"Waiting List","PLAYER NOT AVAILABLE",0,"No","No","No"]
[null,null,null,null,null,null,null,null,null,null,null,null,null,null,null,null,null,null,null,null,null,null,null,null,23851,998,"Waiting List","PLAYER NOT AVAILABLE",0,"No","No","No"]
[null,null,null,null,null,null,null,null,null,null,null,null,null,null,null,null,null,null,null,null,null,null,null,null,23857,998,"Waiting List","PLAYER NOT AVAILABLE",0,"No","No","No"]
[null,null,null,null,null,null,null,null,null,null,null,null,null,null,null,null,null,null,null,null,null,null,null,null,23859,998,"Waiting List","PLAYER NOT AVAILABLE",0,"No","No","No"]
[null,null,null,null,null,null,null,null,null,null,null,null,null,null,null,null,null,null,null,null,null,null,null,null,23865,998,"Waiting List","PLAYER NOT AVAILABLE",0,"No","No","No"]
[null,null,null,null,null,null,null,null,null,null,null,null,null,null,null,null,null,null,null,null,null,null,null,null,23867,998,"Waiting List","PLAYER NOT AVAILABLE",0,"No","No","No"]
[null,null,null,null,null,null,null,null,null,null,null,null,null,null,null,null,null,null,null,null,null,null,null,null,23871,998,"Waiting List","PLAYER NOT AVAILABLE",0,"No","No","No"]
[null,null,null,null,null,null,null,null,null,null,null,null,null,null,null,null,null,null,null,null,null,null,null,null,23878,998,"Waiting List","PLAYER NOT AVAILABLE",0,"No","No","No"]
[null,null,null,null,null,null,null,null,null,null,null,null,null,null,null,null,null,null,null,null,null,null,null,null,23881,998,"Waiting List","PLAYER NOT AVAILABLE",0,"No","No","No"]
[null,null,null,null,null,null,null,null,null,null,null,null,null,null,null,null,null,null,null,null,null,null,null,null,23887,998,"Waiting List","PLAYER NOT AVAILABLE",0,"No","No","No"]
[null,null,null,null,null,null,null,null,null,null,null,null,null,null,null,null,null,null,null,null,null,null,null,null,23888,41,"Newcombe United","PLAYER CAN'T BE SOLD",{"$f":"\"-\"","v":"-"},"No","Yes","No"]
[null,null,null,null,null,null,null,null,null,null,null,null,null,null,null,null,null,null,null,null,null,null,null,null,23891,998,"Waiting List","PLAYER NOT AVAILABLE",0,"No","No","No"]
[null,null,null,null,null,null,null,null,null,null,null,null,null,null,null,null,null,null,null,null,null,null,null,null,23895,998,"Waiting List","PLAYER NOT AVAILABLE",0,"No","No","No"]
[null,null,null,null,null,null,null,null,null,null,null,null,null,null,null,null,null,null,null,null,null,null,null,null,23898,0,"Transfer Pool","Eliesse BEN SEGHIR",8205358,"No","No","Yes",1]
[null,null,null,null,null,null,null,null,null,null,null,null,null,null,null,null,null,null,null,null,null,null,null,null,23909,998,"Waiting List","PLAYER NOT AVAILABLE",0,"No","No","No"]
[null,null,null,null,null,null,null,null,null,null,null,null,null,null,null,null,null,null,null,null,null,null,null,null,23910,0,"Transfer Pool","Kevin SCHADE",6518822,"No","No","Yes",4]
[null,null,null,null,null,null,null,null,null,null,null,null,null,null,null,null,null,null,null,null,null,null,null,null,23914,41,"Newcombe United","PLAYER CAN'T BE SOLD",{"$f":"\"-\"","v":"-"},"No","Yes","No"]
[null,null,null,null,null,null,null,null,null,null,null,null,null,null,null,null,null,null,null,null,null,null,null,null,23915,998,"Waiting List","PLAYER NOT AVAILABLE",0,"No","No","No"]
[null,null,null,null,null,null,null,null,null,null,null,null,null,null,null,null,null,null,null,null,null,null,null,null,23921,998,"Waiting List","PLAYER NOT AVAILABLE",0,"No","No","No"]
[null,null,null,null,null,null,null,null,null,null,null,null,null,null,null,null,null,null,null,null,null,null,null,null,23925,52,"Applegate Manor","PLAYER CAN'T BE SOLD",{"$f":"\"-\"","v":"-"},"No","Yes","No"]
[null,null,null,null,null,null,null,null,null,null,null,null,null,null,null,null,null,null,null,null,null,null,null,null,23929,998,"Waiting List","PLAYER NOT AVAILABLE",0,"No","No","No"]
[null,null,null,null,null,null,null,null,null,null,null,null,null,null,null,null,null,null,null,null,null,null,null,null,23939,998,"Waiting List","PLAYER NOT AVAILABLE",0,"No","No","No"]
[null,null,null,null,null,null,null,null,null,null,null,null,null,null,null,null,null,null,null,null,null,null,null,null,23940,998,"Waiting List","PLAYER NOT AVAILABLE",0,"No","No","No"]
[null,null,null,null,null,null,null,null,null,null,null,null,null,null,null,null,null,null,null,null,null,null,null,null,23942,35,"Fraserborough","PLAYER CAN'T BE SOLD",{"$f":"\"-\"","v":"-"},"No","Yes","No"]
[null,null,null,null,null,null,null,null,null,null,null,null,null,null,null,null,null,null,null,null,null,null,null,null,23943,33,"Jarikton","PLAYER CAN'T BE SOLD","-","No","Yes","No"]
[null,null,null,null,null,null,null,null,null,null,null,null,null,null,null,null,null,null,null,null,null,null,null,null,23946,998,"Waiting List","PLAYER NOT AVAILABLE",0,"No","No","No"]
[null,null,null,null,null,null,null,null,null,null,null,null,null,null,null,null,null,null,null,null,null,null,null,null,23947,998,"Waiting List","PLAYER NOT AVAILABLE",0,"No","No","No"]
[null,null,null,null,null,null,null,null,null,null,null,null,null,null,null,null,null,null,null,null,null,null,null,null,23948,998,"Waiting List","PLAYER NOT AVAILABLE",0,"No","No","No"]
[null,null,null,null,null,null,null,null,null,null,null,null,null,null,null,null,null,null,null,null,null,null,null,null,23949,16,"Bumanchester United","Kevin PAREDES",2286658,"Yes","Yes","Yes"]
[null,null,null,null,null,null,null,null,null,null,null,null,null,null,null,null,null,null,null,null,null,null,null,null,23955,998,"Waiting List","PLAYER NOT AVAILABLE",0,"No","No","No"]
[null,null,null,null,null,null,null,null,null,null,null,null,null,null,null,null,null,null,null,null,null,null,null,null,23962,998,"Waiting List","PLAYER NOT AVAILABLE",0,"No","No","No"]
[null,null,null,null,null,null,null,null,null,null,null,null,null,null,null,null,null,null,null,null,null,null,null,null,23963,998,"Waiting List","PLAYER NOT AVAILABLE",0,"No","No","No"]
[null,null,null,null,null,null,null,null,null,null,null,null,null,null,null,null,null,null,null,null,null,null,null,null,23966,998,"Waiting List","PLAYER NOT AVAILABLE",0,"No","No","No"]
[null,null,null,null,null,null,null,null,null,null,null,null,null,null,null,null,null,null,null,null,null,null,null,null,23973,998,"Waiting List","PLAYER NOT AVAILABLE",0,"No","No","No"]
[null,null,null,null,null,null,null,null,null,null,null,null,null,null,null,null,null,null,null,null,null,null,null,null,23974,998,"Waiting List","PLAYER NOT AVAILABLE",0,"No","No","No"]
[null,null,null,null,null,null,null,null,null,null,null,null,null,null,null,null,null,null,null,null,null,null,null,null,23978,998,"Waiting List","PLAYER NOT AVAILABLE",0,"No","No","No"]
[null,null,null,null,null,null,null,null,null,null,null,null,null,null,null,null,null,null,null,null,null,null,null,null,23980,59,"Sawbo Sabres","PLAYER NOT AVAILABLE",0,"No","No","No"]
[null,null,null,null,null,null,null,null,null,null,null,null,null,null,null,null,null,null,null,null,null,null,null,null,23983,25,"Nempton","PLAYER NOT AVAILABLE",0,"No","No","No"]
[null,null,null,null,null,null,null,null,null,null,null,null,null,null,null,null,null,null,null,null,null,null,null,null,23987,998,"Waiting List","PLAYER NOT AVAILABLE",0,"No","No","No"]
[null,null,null,null,null,null,null,null,null,null,null,null,null,null,null,null,null,null,null,null,null,null,null,null,23990,998,"Waiting List","PLAYER NOT AVAILABLE",0,"No","No","No"]
[null,null,null,null,null,null,null,null,null,null,null,null,null,null,null,null,null,null,null,null,null,null,null,null,24001,998,"Waiting List","PLAYER NOT AVAILABLE",0,"No","No","No"]
[null,null,null,null,null,null,null,null,null,null,null,null,null,null,null,null,null,null,null,null,null,null,null,null,24002,998,"Waiting List","PLAYER NOT AVAILABLE",0,"No","No","No"]
[null,null,null,null,null,null,null,null,null,null,null,null,null,null,null,null,null,null,null,null,null,null,null,null,24009,998,"Waiting List","PLAYER NOT AVAILABLE",0,"No","No","No"]
[null,null,null,null,null,null,null,null,null,null,null,null,null,null,null,null,null,null,null,null,null,null,null,null,24019,998,"Waiting List","PLAYER NOT AVAILABLE",0,"No","No","No"]
[null,null,null,null,null,null,null,null,null,null,null,null,null,null,null,null,null,null,null,null,null,null,null,null,24023,998,"Waiting List","PLAYER NOT AVAILABLE",0,"No","No","No"]
[null,null,null,null,null,null,null,null,null,null,null,null,null,null,null,null,null,null,null,null,null,null,null,null,24025,998,"Waiting List","PLAYER NOT AVAILABLE",0,"No","No","No"]
[null,null,null,null,null,null,null,null,null,null,null,null,null,null,null,null,null,null,null,null,null,null,null,null,24027,64,"Fellerton","PLAYER CAN'T BE SOLD",{"$f":"\"-\"","v":"-"},"No","Yes","No"]
[null,null,null,null,null,null,null,null,null,null,null,null,null,null,null,null,null,null,null,null,null,null,null,null,24028,25,"Nempton","PLAYER NOT AVAILABLE",0,"No","No","No"]
[null,null,null,null,null,null,null,null,null,null,null,null,null,null,null,null,null,null,null,null,null,null,null,null,24029,998,"Waiting List","PLAYER NOT AVAILABLE",0,"No","No","No"]
[null,null,null,null,null,null,null,null,null,null,null,null,null,null,null,null,null,null,null,null,null,null,null,null,24034,40,"H&H","PLAYER CAN'T BE SOLD",{"$f":"\"-\"","v":"-"},"No","Yes","No"]
[null,null,null,null,null,null,null,null,null,null,null,null,null,null,null,null,null,null,null,null,null,null,null,null,24037,73,"Sparta Limarnder","PLAYER CAN'T BE SOLD","-","No","Yes","No"]
[null,null,null,null,null,null,null,null,null,null,null,null,null,null,null,null,null,null,null,null,null,null,null,null,24041,998,"Waiting List","PLAYER NOT AVAILABLE",0,"No","No","No"]
[null,null,null,null,null,null,null,null,null,null,null,null,null,null,null,null,null,null,null,null,null,null,null,null,24042,998,"Waiting List","PLAYER NOT AVAILABLE",0,"No","No","No"]
[null,null,null,null,null,null,null,null,null,null,null,null,null,null,null,null,null,null,null,null,null,null,null,null,24054,998,"Waiting List","PLAYER NOT AVAILABLE",0,"No","No","No"]
[null,null,null,null,null,null,null,null,null,null,null,null,null,null,null,null,null,null,null,null,null,null,null,null,24062,998,"Waiting List","PLAYER NOT AVAILABLE",0,"No","No","No"]
[null,null,null,null,null,null,null,null,null,null,null,null,null,null,null,null,null,null,null,null,null,null,null,null,24063,998,"Waiting List","PLAYER NOT AVAILABLE",0,"No","No","No"]
[null,null,null,null,null,null,null,null,null,null,null,null,null,null,null,null,null,null,null,null,null,null,null,null,24070,998,"Waiting List","PLAYER NOT AVAILABLE",0,"No","No","No"]
[null,null,null,null,null,null,null,null,null,null,null,null,null,null,null,null,null,null,null,null,null,null,null,null,24073,998,"Waiting List","PLAYER NOT AVAILABLE",0,"No","No","No"]
[null,null,null,null,null,null,null,null,null,null,null,null,null,null,null,null,null,null,null,null,null,null,null,null,24074,998,"Waiting List","PLAYER NOT AVAILABLE",0,"No","No","No"]
[null,null,null,null,null,null,null,null,null,null,null,null,null,null,null,null,null,null,null,null,null,null,null,null,24084,998,"Waiting List","PLAYER NOT AVAILABLE",0,"No","No","No"]
[null,null,null,null,null,null,null,null,null,null,null,null,null,null,null,null,null,null,null,null,null,null,null,null,24087,13,"AC Desantelakos","PLAYER CAN'T BE SOLD",{"$f":"\"-\"","v":"-"},"No","Yes","No"]
[null,null,null,null,null,null,null,null,null,null,null,null,null,null,null,null,null,null,null,null,null,null,null,null,24100,998,"Waiting List","PLAYER NOT AVAILABLE",0,"No","No","No"]
[null,null,null,null,null,null,null,null,null,null,null,null,null,null,null,null,null,null,null,null,null,null,null,null,24109,998,"Waiting List","PLAYER NOT AVAILABLE",0,"No","No","No"]
[null,null,null,null,null,null,null,null,null,null,null,null,null,null,null,null,null,null,null,null,null,null,null,null,24120,998,"Waiting List","PLAYER NOT AVAILABLE",0,"No","No","No"]
[null,null,null,null,null,null,null,null,null,null,null,null,null,null,null,null,null,null,null,null,null,null,null,null,24121,998,"Waiting List","PLAYER NOT AVAILABLE",0,"No","No","No"]
[null,null,null,null,null,null,null,null,null,null,null,null,null,null,null,null,null,null,null,null,null,null,null,null,24127,998,"Waiting List","PLAYER NOT AVAILABLE",0,"No","No","No"]
[null,null,null,null,null,null,null,null,null,null,null,null,null,null,null,null,null,null,null,null,null,null,null,null,24129,998,"Waiting List","PLAYER NOT AVAILABLE",0,"No","No","No"]
[null,null,null,null,null,null,null,null,null,null,null,null,null,null,null,null,null,null,null,null,null,null,null,null,24132,998,"Waiting List","PLAYER NOT AVAILABLE",0,"No","No","No"]
[null,null,null,null,null,null,null,null,null,null,null,null,null,null,null,null,null,null,null,null,null,null,null,null,24135,0,"Transfer Pool","Gabriel ARAUJO",4461434,"No","No","Yes",4]
[null,null,null,null,null,null,null,null,null,null,null,null,null,null,null,null,null,null,null,null,null,null,null,null,24140,44,"Trevmania Travellers","PLAYER CAN'T BE SOLD",{"$f":"\"-\"","v":"-"},"No","Yes","No"]
[null,null,null,null,null,null,null,null,null,null,null,null,null,null,null,null,null,null,null,null,null,null,null,null,24149,998,"Waiting List","PLAYER NOT AVAILABLE",0,"No","No","No"]
[null,null,null,null,null,null,null,null,null,null,null,null,null,null,null,null,null,null,null,null,null,null,null,null,24173,998,"Waiting List","PLAYER NOT AVAILABLE",0,"No","No","No"]
[null,null,null,null,null,null,null,null,null,null,null,null,null,null,null,null,null,null,null,null,null,null,null,null,24189,998,"Waiting List","PLAYER NOT AVAILABLE",0,"No","No","No"]
[null,null,null,null,null,null,null,null,null,null,null,null,null,null,null,null,null,null,null,null,null,null,null,null,24198,998,"Waiting List","PLAYER NOT AVAILABLE",0,"No","No","No"]
[null,null,null,null,null,null,null,null,null,null,null,null,null,null,null,null,null,null,null,null,null,null,null,null,24210,998,"Waiting List","PLAYER NOT AVAILABLE",0,"No","No","No"]
[null,null,null,null,null,null,null,null,null,null,null,null,null,null,null,null,null,null,null,null,null,null,null,null,24226,25,"Nempton","PLAYER NOT AVAILABLE",0,"No","No","No"]
[null,null,null,null,null,null,null,null,null,null,null,null,null,null,null,null,null,null,null,null,null,null,null,null,24234,998,"Waiting List","PLAYER NOT AVAILABLE",0,"No","No","No"]
[null,null,null,null,null,null,null,null,null,null,null,null,null,null,null,null,null,null,null,null,null,null,null,null,24235,998,"Waiting List","PLAYER NOT AVAILABLE",0,"No","No","No"]
[null,null,null,null,null,null,null,null,null,null,null,null,null,null,null,null,null,null,null,null,null,null,null,null,24242,998,"Waiting List","PLAYER NOT AVAILABLE",0,"No","No","No"]
[null,null,null,null,null,null,null,null,null,null,null,null,null,null,null,null,null,null,null,null,null,null,null,null,24279,998,"Waiting List","PLAYER NOT AVAILABLE",0,"No","No","No"]
[null,null,null,null,null,null,null,null,null,null,null,null,null,null,null,null,null,null,null,null,null,null,null,null,24313,998,"Waiting List","PLAYER NOT AVAILABLE",0,"No","No","No"]
[null,null,null,null,null,null,null,null,null,null,null,null,null,null,null,null,null,null,null,null,null,null,null,null,24342,998,"Waiting List","PLAYER NOT AVAILABLE",0,"No","No","No"]
[null,null,null,null,null,null,null,null,null,null,null,null,null,null,null,null,null,null,null,null,null,null,null,null,24344,998,"Waiting List","PLAYER NOT AVAILABLE",0,"No","No","No"]
[null,null,null,null,null,null,null,null,null,null,null,null,null,null,null,null,null,null,null,null,null,null,null,null,24370,81,"Tangerinions","PLAYER NOT AVAILABLE",0,"No","No","No"]
[null,null,null,null,null,null,null,null,null,null,null,null,null,null,null,null,null,null,null,null,null,null,null,null,24510,117,"Kelvedon Kickers","PLAYER NOT AVAILABLE",0,"No","No","No"]
[null,null,null,null,null,null,null,null,null,null,null,null,null,null,null,null,null,null,null,null,null,null,null,null,24511,77,"Passfield","PLAYER NOT AVAILABLE",0,"No","No","No"]
[null,null,null,null,null,null,null,null,null,null,null,null,null,null,null,null,null,null,null,null,null,null,null,null,24517,99,"Hamlet Foxes","PLAYER NOT AVAILABLE",0,"No","No","No"]
[null,null,null,null,null,null,null,null,null,null,null,null,null,null,null,null,null,null,null,null,null,null,null,null,24520,7,"AEK Grogan","Jan OLSCHOWSKY",663662,"Yes","Yes","Yes"]
[null,null,null,null,null,null,null,null,null,null,null,null,null,null,null,null,null,null,null,null,null,null,null,null,24521,11,"JPR","Jonas KERSKEN",367290,"Yes","Yes","Yes"]
[null,null,null,null,null,null,null,null,null,null,null,null,null,null,null,null,null,null,null,null,null,null,null,null,24523,109,"Bayswater Kings","PLAYER NOT AVAILABLE",0,"No","No","No"]
[null,null,null,null,null,null,null,null,null,null,null,null,null,null,null,null,null,null,null,null,null,null,null,null,24524,15,"North Notley","Nick SHINTON",201462,"Yes","Yes","Yes"]
[null,null,null,null,null,null,null,null,null,null,null,null,null,null,null,null,null,null,null,null,null,null,null,null,24525,998,"Waiting List","PLAYER NOT AVAILABLE",0,"No","No","No"]
[null,null,null,null,null,null,null,null,null,null,null,null,null,null,null,null,null,null,null,null,null,null,null,null,24528,25,"Nempton","PLAYER NOT AVAILABLE",0,"No","No","No"]
[null,null,null,null,null,null,null,null,null,null,null,null,null,null,null,null,null,null,null,null,null,null,null,null,24532,104,"Beaumont Belvedere","PLAYER NOT AVAILABLE",0,"No","No","No"]
[null,null,null,null,null,null,null,null,null,null,null,null,null,null,null,null,null,null,null,null,null,null,null,null,24534,117,"Kelvedon Kickers","PLAYER NOT AVAILABLE",0,"No","No","No"]
[null,null,null,null,null,null,null,null,null,null,null,null,null,null,null,null,null,null,null,null,null,null,null,null,24536,998,"Waiting List","PLAYER NOT AVAILABLE",0,"No","No","No"]
[null,null,null,null,null,null,null,null,null,null,null,null,null,null,null,null,null,null,null,null,null,null,null,null,24538,92,"Pantherville","PLAYER NOT AVAILABLE",0,"No","No","No"]
[null,null,null,null,null,null,null,null,null,null,null,null,null,null,null,null,null,null,null,null,null,null,null,null,24539,91,"Goldhanger","PLAYER NOT AVAILABLE",0,"No","No","No"]
[null,null,null,null,null,null,null,null,null,null,null,null,null,null,null,null,null,null,null,null,null,null,null,null,24540,79,"Juniper Viables","PLAYER NOT AVAILABLE",0,"No","No","No"]
[null,null,null,null,null,null,null,null,null,null,null,null,null,null,null,null,null,null,null,null,null,null,null,null,24541,63,"Davemoor","PLAYER NOT AVAILABLE",0,"No","No","No"]
[null,null,null,null,null,null,null,null,null,null,null,null,null,null,null,null,null,null,null,null,null,null,null,null,24543,998,"Waiting List","PLAYER NOT AVAILABLE",0,"No","No","No"]
[null,null,null,null,null,null,null,null,null,null,null,null,null,null,null,null,null,null,null,null,null,null,null,null,24544,33,"Jarikton","Tim SCHREIBER",509133,"Yes","Yes","Yes"]
[null,null,null,null,null,null,null,null,null,null,null,null,null,null,null,null,null,null,null,null,null,null,null,null,24545,32,"Jonton","Lucas CHEVALIER",472968,"Yes","Yes","Yes"]
[null,null,null,null,null,null,null,null,null,null,null,null,null,null,null,null,null,null,null,null,null,null,null,null,24550,120,"Sherfield Saints","PLAYER NOT AVAILABLE",0,"No","No","No"]
[null,null,null,null,null,null,null,null,null,null,null,null,null,null,null,null,null,null,null,null,null,null,null,null,24553,34,"St. Vincent","PLAYER NOT AVAILABLE",0,"No","No","No"]
[null,null,null,null,null,null,null,null,null,null,null,null,null,null,null,null,null,null,null,null,null,null,null,null,24555,67,"Parmenter","PLAYER NOT AVAILABLE",0,"No","No","No"]
[null,null,null,null,null,null,null,null,null,null,null,null,null,null,null,null,null,null,null,null,null,null,null,null,24556,109,"Bayswater Kings","PLAYER NOT AVAILABLE",0,"No","No","No"]
[null,null,null,null,null,null,null,null,null,null,null,null,null,null,null,null,null,null,null,null,null,null,null,null,24557,75,"Romano","PLAYER NOT AVAILABLE",0,"No","No","No"]
[null,null,null,null,null,null,null,null,null,null,null,null,null,null,null,null,null,null,null,null,null,null,null,null,24558,998,"Waiting List","PLAYER NOT AVAILABLE",0,"No","No","No"]
[null,null,null,null,null,null,null,null,null,null,null,null,null,null,null,null,null,null,null,null,null,null,null,null,24559,998,"Waiting List","PLAYER NOT AVAILABLE",0,"No","No","No"]
[null,null,null,null,null,null,null,null,null,null,null,null,null,null,null,null,null,null,null,null,null,null,null,null,24561,41,"Newcombe United","PLAYER CAN'T BE SOLD",{"$f":"\"-\"","v":"-"},"No","Yes","No"]
[null,null,null,null,null,null,null,null,null,null,null,null,null,null,null,null,null,null,null,null,null,null,null,null,24562,96,"Stonebridge","PLAYER NOT AVAILABLE",0,"No","No","No"]
[null,null,null,null,null,null,null,null,null,null,null,null,null,null,null,null,null,null,null,null,null,null,null,null,24567,78,"DBR","PLAYER NOT AVAILABLE",0,"No","No","No"]
[null,null,null,null,null,null,null,null,null,null,null,null,null,null,null,null,null,null,null,null,null,null,null,null,24571,59,"Sawbo Sabres","PLAYER NOT AVAILABLE",0,"No","No","No"]
[null,null,null,null,null,null,null,null,null,null,null,null,null,null,null,null,null,null,null,null,null,null,null,null,24574,36,"VF Turks","Franco ISRAEL",337514,"Yes","Yes","Yes"]
[null,null,null,null,null,null,null,null,null,null,null,null,null,null,null,null,null,null,null,null,null,null,null,null,24578,998,"Waiting List","PLAYER NOT AVAILABLE",0,"No","No","No"]
[null,null,null,null,null,null,null,null,null,null,null,null,null,null,null,null,null,null,null,null,null,null,null,null,24580,105,"Heythrop Cavaliers","PLAYER NOT AVAILABLE",0,"No","No","No"]
[null,null,null,null,null,null,null,null,null,null,null,null,null,null,null,null,null,null,null,null,null,null,null,null,24581,23,"Rushleydale","PLAYER CAN'T BE SOLD",{"$f":"\"-\"","v":"-"},"No","Yes","No"]
[null,null,null,null,null,null,null,null,null,null,null,null,null,null,null,null,null,null,null,null,null,null,null,null,24584,41,"Newcombe United","PLAYER CAN'T BE SOLD","-","No","Yes","No"]
[null,null,null,null,null,null,null,null,null,null,null,null,null,null,null,null,null,null,null,null,null,null,null,null,24585,998,"Waiting List","PLAYER NOT AVAILABLE",0,"No","No","No"]
[null,null,null,null,null,null,null,null,null,null,null,null,null,null,null,null,null,null,null,null,null,null,null,null,24586,2,"Harrogate Orient","PLAYER CAN'T BE SOLD",{"$f":"\"-\"","v":"-"},"No","Yes","No"]
[null,null,null,null,null,null,null,null,null,null,null,null,null,null,null,null,null,null,null,null,null,null,null,null,24587,23,"Rushleydale","PLAYER CAN'T BE SOLD","-","No","Yes","No"]
[null,null,null,null,null,null,null,null,null,null,null,null,null,null,null,null,null,null,null,null,null,null,null,null,24589,998,"Waiting List","PLAYER NOT AVAILABLE",0,"No","No","No"]
[null,null,null,null,null,null,null,null,null,null,null,null,null,null,null,null,null,null,null,null,null,null,null,null,24590,998,"Waiting List","PLAYER NOT AVAILABLE",0,"No","No","No"]
[null,null,null,null,null,null,null,null,null,null,null,null,null,null,null,null,null,null,null,null,null,null,null,null,24591,0,"Transfer Pool","Tommy DOYLE",6301891,"No","No","Yes",4]
[null,null,null,null,null,null,null,null,null,null,null,null,null,null,null,null,null,null,null,null,null,null,null,null,24592,0,"Transfer Pool","Isaac BABADI",4884807,"No","No","Yes",4]
[null,null,null,null,null,null,null,null,null,null,null,null,null,null,null,null,null,null,null,null,null,null,null,null,24593,998,"Waiting List","PLAYER NOT AVAILABLE",0,"No","No","No"]
[null,null,null,null,null,null,null,null,null,null,null,null,null,null,null,null,null,null,null,null,null,null,null,null,24594,80,"Winchelsea","PLAYER CAN'T BE SOLD",{"$f":"\"-\"","v":"-"},"No","Yes","No"]
[null,null,null,null,null,null,null,null,null,null,null,null,null,null,null,null,null,null,null,null,null,null,null,null,24595,64,"Fellerton","Fran GARCIA",25200136,"Yes","Yes","Yes",null,4]
[null,null,null,null,null,null,null,null,null,null,null,null,null,null,null,null,null,null,null,null,null,null,null,null,24598,18,"Fairoak Foresters","PLAYER CAN'T BE SOLD",{"$f":"\"-\"","v":"-"},"No","Yes","No"]
[null,null,null,null,null,null,null,null,null,null,null,null,null,null,null,null,null,null,null,null,null,null,null,null,24603,44,"Trevmania Travellers","PLAYER CAN'T BE SOLD","-","No","Yes","No"]
[null,null,null,null,null,null,null,null,null,null,null,null,null,null,null,null,null,null,null,null,null,null,null,null,24604,998,"Waiting List","PLAYER NOT AVAILABLE",0,"No","No","No"]
[null,null,null,null,null,null,null,null,null,null,null,null,null,null,null,null,null,null,null,null,null,null,null,null,24607,73,"Sparta Limarnder","PLAYER CAN'T BE SOLD",{"$f":"\"-\"","v":"-"},"No","Yes","No"]
[null,null,null,null,null,null,null,null,null,null,null,null,null,null,null,null,null,null,null,null,null,null,null,null,24608,73,"Sparta Limarnder","PLAYER CAN'T BE SOLD","-","No","Yes","No"]
[null,null,null,null,null,null,null,null,null,null,null,null,null,null,null,null,null,null,null,null,null,null,null,null,24610,998,"Waiting List","PLAYER NOT AVAILABLE",0,"No","No","No"]
[null,null,null,null,null,null,null,null,null,null,null,null,null,null,null,null,null,null,null,null,null,null,null,null,24611,998,"Waiting List","PLAYER NOT AVAILABLE",0,"No","No","No"]
[null,null,null,null,null,null,null,null,null,null,null,null,null,null,null,null,null,null,null,null,null,null,null,null,24614,0,"Transfer Pool","Daniel PERETZ",1602351,"No","No","Yes",1]
[null,null,null,null,null,null,null,null,null,null,null,null,null,null,null,null,null,null,null,null,null,null,null,null,24616,0,"Transfer Pool","Marcel LOTKA",1809239,"No","No","Yes",2]
[null,null,null,null,null,null,null,null,null,null,null,null,null,null,null,null,null,null,null,null,null,null,null,null,24617,3,"Real Jameosean","PLAYER NOT AVAILABLE",0,"No","No","No"]
[null,null,null,null,null,null,null,null,null,null,null,null,null,null,null,null,null,null,null,null,null,null,null,null,24618,59,"Sawbo Sabres","PLAYER NOT AVAILABLE",0,"No","No","No"]
[null,null,null,null,null,null,null,null,null,null,null,null,null,null,null,null,null,null,null,null,null,null,null,null,24621,998,"Waiting List","PLAYER NOT AVAILABLE",0,"No","No","No"]
[null,null,null,null,null,null,null,null,null,null,null,null,null,null,null,null,null,null,null,null,null,null,null,null,24623,998,"Waiting List","PLAYER NOT AVAILABLE",0,"No","No","No"]
[null,null,null,null,null,null,null,null,null,null,null,null,null,null,null,null,null,null,null,null,null,null,null,null,24625,16,"Bumanchester United","Tymur PUZANKOV",600681,"Yes","Yes","Yes"]
[null,null,null,null,null,null,null,null,null,null,null,null,null,null,null,null,null,null,null,null,null,null,null,null,24629,21,"Christophia","Noah ATUBOLU",741659,"Yes","Yes","Yes"]
[null,null,null,null,null,null,null,null,null,null,null,null,null,null,null,null,null,null,null,null,null,null,null,null,24631,998,"Waiting List","PLAYER NOT AVAILABLE",0,"No","No","No"]
[null,null,null,null,null,null,null,null,null,null,null,null,null,null,null,null,null,null,null,null,null,null,null,null,24632,30,"Bigglesea Albion","Jan SIROTNIK",659717,"Yes","Yes","Yes"]
[null,null,null,null,null,null,null,null,null,null,null,null,null,null,null,null,null,null,null,null,null,null,null,null,24633,0,"Transfer Pool","Peter VINDAHL JENSEN",3307232,"No","No","Yes",1]
[null,null,null,null,null,null,null,null,null,null,null,null,null,null,null,null,null,null,null,null,null,null,null,null,24635,125,"Van Diemans United","PLAYER NOT AVAILABLE",0,"No","No","No"]
[null,null,null,null,null,null,null,null,null,null,null,null,null,null,null,null,null,null,null,null,null,null,null,null,24655,998,"Waiting List","PLAYER NOT AVAILABLE",0,"No","No","No"]
[null,null,null,null,null,null,null,null,null,null,null,null,null,null,null,null,null,null,null,null,null,null,null,null,24659,998,"Waiting List","PLAYER NOT AVAILABLE",0,"No","No","No"]
[null,null,null,null,null,null,null,null,null,null,null,null,null,null,null,null,null,null,null,null,null,null,null,null,24663,998,"Waiting List","PLAYER NOT AVAILABLE",0,"No","No","No"]
[null,null,null,null,null,null,null,null,null,null,null,null,null,null,null,null,null,null,null,null,null,null,null,null,24668,44,"Trevmania Travellers","PLAYER CAN'T BE SOLD",{"$f":"\"-\"","v":"-"},"No","Yes","No"]
[null,null,null,null,null,null,null,null,null,null,null,null,null,null,null,null,null,null,null,null,null,null,null,null,24673,998,"Waiting List","PLAYER NOT AVAILABLE",0,"No","No","No"]
[null,null,null,null,null,null,null,null,null,null,null,null,null,null,null,null,null,null,null,null,null,null,null,null,24676,998,"Waiting List","PLAYER NOT AVAILABLE",0,"No","No","No"]
[null,null,null,null,null,null,null,null,null,null,null,null,null,null,null,null,null,null,null,null,null,null,null,null,24683,107,"Falconetti Fire","Guillaume RESTES",436604,"Yes","Yes","Yes"]
[null,null,null,null,null,null,null,null,null,null,null,null,null,null,null,null,null,null,null,null,null,null,null,null,24689,998,"Waiting List","PLAYER NOT AVAILABLE",0,"No","No","No"]
[null,null,null,null,null,null,null,null,null,null,null,null,null,null,null,null,null,null,null,null,null,null,null,null,24691,9,"Real Danyella","PLAYER CAN'T BE SOLD",{"$f":"\"-\"","v":"-"},"No","Yes","No"]
[null,null,null,null,null,null,null,null,null,null,null,null,null,null,null,null,null,null,null,null,null,null,null,null,24692,998,"Waiting List","PLAYER NOT AVAILABLE",0,"No","No","No"]
[null,null,null,null,null,null,null,null,null,null,null,null,null,null,null,null,null,null,null,null,null,null,null,null,24693,998,"Waiting List","PLAYER NOT AVAILABLE",0,"No","No","No"]
[null,null,null,null,null,null,null,null,null,null,null,null,null,null,null,null,null,null,null,null,null,null,null,null,24694,0,"Transfer Pool","Noah WEISHAUPT",8894825,"No","No","Yes",4]
[null,null,null,null,null,null,null,null,null,null,null,null,null,null,null,null,null,null,null,null,null,null,null,null,24696,998,"Waiting List","PLAYER NOT AVAILABLE",0,"No","No","No"]
[null,null,null,null,null,null,null,null,null,null,null,null,null,null,null,null,null,null,null,null,null,null,null,null,24697,2,"Harrogate Orient","Victor BONIFACE",24840745,"Yes","Yes","Yes",null,5]
[null,null,null,null,null,null,null,null,null,null,null,null,null,null,null,null,null,null,null,null,null,null,null,null,24698,998,"Waiting List","PLAYER NOT AVAILABLE",0,"No","No","No"]
[null,null,null,null,null,null,null,null,null,null,null,null,null,null,null,null,null,null,null,null,null,null,null,null,24699,998,"Waiting List","PLAYER NOT AVAILABLE",0,"No","No","No"]

{"sheet":"Guidelines - please read","index":1,"n_rows":24,"n_cols":2,"rows_kept":24,"cut":false,"hidden":false,"merged":[[7,0,7,1],[0,0,0,1],[8,0,9,0],[8,1,9,1],[1,0,1,1],[2,0,2,1],[3,0,3,1],[4,0,4,1],[5,0,5,1],[6,0,6,1]]}
["Filling in the Transfer Template"]
["You must fill in your club name - Top Left of the TRANSFER form - this then automatically records your starting and available bank balance"]
["Enter data only in the yellow shaded cells. The form validation should stop you doing otherwise, anyway!"]
["Inter-Managerial Sales cannot be dependent, they must be agreed by managers and appear on both managers forms. Can be recorded in Box C or D"]
["Inter-Managerial Purchases cannot be dependent. They must be agreed by managers and appear on both manager's forms"]
["Loans in and Out can only be between managers and appear on both managers forms. "]
["If the 'FORM IS VALID' field indicates NO, there is an error on your form, which you must rectify. See 'Error List' at bottom of Transfer Form"]
["Do not send form until the 'FORM IS VALID' filed indicates YES "]
["Send your completed form to:","microcoach@gmail.com \n(if you want to be doubly-sure of our receipt you can copy me (Norman) at norman.house77@ntlworld.com)"]
[]
["Topic","Guidelines/Rules"]
["General","Up to four players in and eight players out in each transfer session are allowed, either from the listed available players (Transfer List on EXTRAS file) or Inter-Managerial deals.  Plus up to 5 loans in or out for the whole season. These may be undertaken all in one session or throughout the 4 session transfer window."]
["Transfer Templates & Valid Bids","Only transfer dealings on this template will be accepted. The templates include 'hidden lookups' to player names, MTVs and clubs, using PLAYER ID as the key. It is therefore imperative to select the correct player ID. If an error is made on selecting a player to buy or sell this will result in the bid or any affected bids being deemed invalid. The template will change in terms of player club lookup each session, so please use the template for the current session."]
["Player Purchases","To purchase players you must either make a bid against a player on the transfer list, or agree a deal with another manager for one of their players.  You can bid for a maximum of 4 players for permanent transfer in each transfer session (session 2-5). No player purchased by a club can be resold in the same season."]
["Player Sales","You may sell players to the transfer list/pool or direct to another managers' club.  Sales to the transfer list/pool will always be at MTV.  You can sell up to 8 players in each transfer session (session 2-5) but cannot sell outside a transfer window. A maximum of 8 sales per session are allowed, of which 4 can be inter-managerial or the full 8 to the Transfer Pool."]
["Dependent Transfers","A manager may stipulate that a transfer out is dependent on a bid being successful for an incoming transfer.  Where this bid is unsuccessful, this player will then remain on your club's squad.  You may make this potential purchase dependent on the sale of an outgoing player; no player can be used as a dependency in two different purchases in the same session.  Dependencies must be on a one to one, line by line basis.  A dependent player's MTV must be less than the BID for the player they are dependent on. However, you are allowed up to FOUR dependent transfers per session. Put the dependent bids in the same order as the Purchase requests they relate to."]
["Transfers between clubs with the same manager","Transfers directly between clubs with the same manager are not permitted; there is no restriction on inter-household deals."]
["Inter Managerial Purchases","Managers may make transfer requests for players currently playing in other 'managed' clubs, these are called inter-managerial bids.  An inter-managerial bid must be at least equivalent to the MTV, and will attract a 10% tax on MTV of the player purchased, (regardless of the fee agreed between the two managers) which will be levied on the purchasing club funds.  Players below £100,000 MTV will incur a standard tax of £10,000.  Inter-managerial bids can only be made directly between managers.  However, the same details must appear on both managers' returns, to be deemed valid. Please enter Inter-managerial transfers in SECTION D. Maximum of 4 inter-managerial deals per session."]
["Loans","Each club can loan out up to a total 5 of their players in the transfer window to any other manager's clubs (over 4 sessions) and also loan in up to 5 players to their club. \rA player loaned out will return at the end of the season (after Session 9) so managers need to be aware of their squad size. If at the end of the season a club has more than 32 players, the additional players will be released on a free transfer to the Transfer Pool (lowest MTVs first). \n"]
["Number of Loan Deals","Loan entitlement (5 in, 5 out per season) is in addition to the permanent transfer allowance.\r Loan costs are pre-set at 5% of MTV, or £100,000, whichever is the greater. The receiving club pays the full wages for the time the player is at their club. A deal reached in Session 2 will mean that a player joins his new club in Session 3. Loan deals can be struck right up to Session 5, though the loan cost is still 5% of MTV. \n. "]
["Loans to non-managed clubs","No loans are possible via the transfer pool or unmanaged clubs.  \rThere is no restriction on loans within division or within household, but as with permanent deals, no manager can loan players to/from one of their other clubs. \n"]
["Check your deals before submitting form","You must ensure that each bid is financially viable in its own right, as one or more of your bids might be unsuccessful.  \rTo avoid disappointment, you need to check carefully that you have the appropriate funds to support any combination of successful or unsuccessful bids. We do not check transfer forms until after the deadline!\n"]
["What is included in your bank balance","Prospective early return bonuses cannot be included in your calculations.  Where insufficient funds are available the latter bids on the return will be ignored.\r\n\n"]
["Highest Bid Wins","For a bid placed against a player on the transfer pool/list, the player will join the club who makes the highest bid.  In the event of there being equal best bids, the player will go to the club placed lowest in the league pyramid/table, as at the end of the previous session."]